Workbook

Sheet Výstup
A2: Hodnoty nastavené v textové části DP
A3: Hodnoty nastavitelné uživatelem
D4: Zdroj (PV = fotovoltaická el., Wind = větrná el.) | E4: PV | F4: PV | G4: Wind | H4: PV | I4: Wind | K4: OPTIMALIZACE
D5: Průměrný roční výnos energie (kWh/kWp) | E5: 950 | F5: 1050 | G5: 2000 | H5: 1050 | I5: 2300
D6: Počáteční realizační cena PPA (EUR/MWh) | E6: 85 | F6: 95 | G6: 100 | H6: - | I6: 125
D7: Cenový mechanismus | E7: Eskalace | F7: Fixní | G7: Eskalace | H7: Tržní | I7: Fixní
D8: Eskalace | E8: 0.02 | F8: - | G8: 0.02 | H8: 0.02 | I8: 0.03
D9: Tržní poměr | E9: - | F9: 1 | G9: 1 | H9: 0.95 | I9: 1
D10: Schéma dodávky | E10: Pay as produced | F10: Pay as produced | G10: Pay as produced | H10: Pay as produced | I10: Pay as contracted
D11: Maximální alokační kapacita (výkon) (MW) | E11: 2 | F11: 5 | G11: 4 | H11: 2 | I11: 6
D12: Alokovaná kapacita (výkon) (MW) | E12: 2 | F12: 5 | G12: 4 | H12: 0 | I12: 0
D15: Počátční rok platnosti kontraktu | E15: 2024 | G15: Roční spotřeba | H15: 24000 | I15: MWh
D16: Délka kontraktů | E16: 16 | G16: Reziduální spotřeba | H16: =AVERAGE('Pomocný list 1'!AO10:AS10) -> 10973.15178 | I16: MWh
G17: Pokrytí spotřeby | H17: =H15-H16 -> 13026.84822 | I17: MWh
D18: Marže obchodníka - nákup (bez PPA) | E18: 0.03 | G18: Pokrytí spotřeby | H18: =H17/H15 -> 0.5427853426
D19: Marže obchodníka - nákup (využití PPA) | E19: 0.06 | G19: Přebytky | H19: =E23+E24-H17 -> 2377.385656 | I19: MWh
D20: Marže obchodníka - prodej | E20: 0.06 | G20: Využití PPA pro pokrytí spotřeby | H20: =IFERROR(H17/(E23+E24),0) -> 0.8456667384
D23: Průměrný rořní objem výroby PPA z FVE | E23: =SUMIFS('Pomocný list 1'!$C$15:$G$15,'Pomocný list 1'!$C$4:$G$4,"PV") -> 7171.946044 | F23: MWh | G23: WACC | H23: 0.1046
D24: Průměrný rořní objem výroby PPA z VtE | E24: =SUMIFS('Pomocný list 1'!$C$15:$G$15,'Pomocný list 1'!$C$4:$G$4,"Wind") -> 8232.287835 | F24: MWh
D25: Průměrný rořní objem výroby PPA | E25: =E24+E23 -> 15404.23388 | F25: MWh | G25: NPV PPA - respondentní scénář | H25: =IF(AND($E$12=0,$F$12=0,$G$12=0,$H$12=0,$I$12=0),0,NPV($H$23,F53:V53)) -> 1105945.33
G26: NPV PPA - progresivní scénář | H26: =IF(AND($E$12=0,$F$12=0,$G$12=0,$H$12=0,$I$12=0),0,NPV($H$23,F54:V54)) -> 2674553.216
D27: Potenciální maximum roční výroby z PPA (dle dospupných kapacit) | E27: ='Pomocný list 1'!N4 -> 31050 | F27: MWh | G27: NPV PPA - dekarbonizační scénář | H27: 13174775.09
D46: scénář | E46: rok | F46: 2024 | G46: 2025 | H46: 2026 | I46: 2027 | J46: 2028 | K46: 2029 | L46: 2030 | M46: 2031 | N46: 2032 | O46: 2033 | P46: 2034 | Q46: 2035 | R46: 2036 | S46: 2037 | T46: 2038 | U46: 2039 | V46: 2040
D47: respondentní | E47: náklady na elektřinu - bez PPA | F47: =$H$15*F$57*F61*(1+$E$18) -> 3600040.276 | G47: 3234818.799 | H47: 2813687.38 | I47: 2497735.053 | J47: 2543199.978 | K47: 2588535.024 | L47: 2633740.19 | M47: 2732534.302 | N47: 2830960.11 | O47: 2929017.612 | P47: 3026706.809 | Q47: 3124027.701 | R47: 3168835.407 | S47: 3213468.353 | T47: 3257926.539 | U47: 3302209.967 | V47: 3346318.635
D48: progresivní | E48: náklady na elektřinu - bez PPA | F48: =$H$15*F$57*F62*(1+$E$18) -> 3600040.276 | G48: 3234818.799 | H48: 2813687.38 | I48: 2497735.053 | J48: 2536129.642 | K48: 2574413.174 | L48: 2612585.65 | M48: 2990161.184 | N48: 3366376.244 | O48: 3741230.829 | P48: 4114724.94 | Q48: 4486858.577 | R48: 4554416.014 | S48: 4621711.311 | T48: 4688744.469 | U48: 4755515.488 | V48: 4822024.368
D49: dekarbonizační | E49: náklady na elektřinu - bez PPA | F49: =$H$15*F$57*F63*(1+$E$18) -> 3600040.276 | G49: 3234818.799 | H49: 2813687.38 | I49: 2497735.053 | J49: 3971407.917 | K49: 5441148.634 | L49: 6906957.204 | M49: 7540865.528 | N49: 8172473.824 | O49: 8801782.091 | P49: 9428790.33 | Q49: 10053498.54 | R49: 9596506.169 | S49: 9141042.941 | T49: 8687108.859 | U49: 8234703.921 | V49: 7783828.129
D50: respondentní | E50: náklady na elektřinu - využití PPA | F50: =IF(OR(F$46<$E$15,F$46+1>$E$15+$E$16),F47,F65+$H$16*F$58*F61*(1+$E$19)-$H$19*F$59*F61*(1-$E$20)) -> 2900178.549 | G50: 2776365.466 | H50: 2639665.212 | I50: 2542767.227 | J50: 2589720.549 | K50: 2637343.162 | L50: 2685643.428 | M50: 2757276.603 | N50: 2829891.332 | O50: 2903496.491 | P50: 2978101.134 | Q50: 3053714.496 | R50: 3108417.484 | S50: 3163889.64 | T50: 3220140.764 | U50: 3277180.851 | V50: 3346318.635
D51: progresivní | E51: náklady na elektřinu - využití PPA | F51: =IF(OR(F$46<$E$15,F$46+1>$E$15+$E$16),F48,F66+$H$16*F$58*F62*(1+$E$19)-$H$19*F$59*F62*(1-$E$20)) -> 2900178.549 | G51: 2776365.466 | H51: 2639665.212 | I51: 2542767.227 | J51: 2586876.51 | K51: 2631618.694 | L51: 2677002.145 | M51: 2863369.698 | N51: 3052167.425 | O51: 3243404.202 | P51: 3437089.082 | Q51: 3633231.3 | R51: 3702483.236 | S51: 3772643.923 | T51: 3843723.162 | U51: 3915730.948 | V51: 4822024.368
D52: dekarbonizační | E52: náklady na elektřinu - využití PPA | F52: =IF(OR(F$46<$E$15,F$46+1>$E$15+$E$16),F49,F67+$H$16*F$58*F63*(1+$E$19)-$H$19*F$59*F63*(1-$E$20)) -> 2900178.549 | G52: 2776365.466 | H52: 2639665.212 | I52: 2542767.227 | J52: 3164216.539 | K52: 3793685.567 | L52: 4431182.676 | M52: 4737391.177 | N52: 5047401.65 | O52: 5361222.971 | P52: 5678864.195 | Q52: 6000334.555 | R52: 5864272.356 | S52: 5726257.448 | T52: 5586299.632 | U52: 5444408.902 | V52: 7783828.129
D53: respondentní | E53: úspora PPA | F53: =F47-F50 -> 699861.7273 | G53: =G47-G50 -> 458453.3323 | H53: 174022.1679 | I53: -45032.17442 | J53: -46520.5715 | K53: -48808.13815 | L53: -51903.23861 | M53: -24742.30053 | N53: 1068.778143 | O53: 25521.12125 | P53: 48605.67507 | Q53: 70313.20483 | R53: 60417.92263 | S53: 49578.71302 | T53: 37785.77597 | U53: 25029.11547 | V53: 0
D54: progresivní | E54: úspora PPA | F54: =F48-F51 -> 699861.7273 | G54: 458453.3323 | H54: 174022.1679 | I54: -45032.17442 | J54: -50746.86827 | K54: -57205.52035 | L54: -64416.49488 | M54: 126791.4858 | N54: 314208.8186 | O54: 497826.6274 | P54: 677635.8584 | Q54: 853627.2768 | R54: 851932.7774 | S54: 849067.3875 | T54: 845021.307 | U54: 839784.5399 | V54: 0
D55: dekarbonizační | E55: úspora PPA | F55: =F49-F52 -> 699861.7273 | G55: 458453.3323 | H55: 174022.1679 | I55: -45032.17442 | J55: 807191.3774 | K55: 1647463.066 | L55: 2475774.528 | M55: 2803474.352 | N55: 3125072.174 | O55: 3440559.12 | P55: 3749926.136 | Q55: 4053163.986 | R55: 3732233.812 | S55: 3414785.493 | T55: 3100809.227 | U55: 2790295.019 | V55: 0
E57: hodnota profilu spotřeby | F57: =$M89 -> 1.0553094 | G57: =$M89 -> 1.0553094 | H57: =$G57+($L57-$G57)/5 -> 1.053910231 | I57: =$G57+($L57-$G57)/5*2 -> 1.052511063 | J57: =$G57+($L57-$G57)/5*3 -> 1.051111894 | K57: =$G57+($L57-$G57)/5*4 -> 1.049712725 | L57: =T89 -> 1.048313556 | M57: =$L57+($Q57-$L57)/5 -> 1.046451171 | N57: =$L57+($Q57-$L57)/5*2 -> 1.044588787 | O57: =$L57+($Q57-$L57)/5*3 -> 1.042726402 | P57: =$L57+($Q57-$L57)/5*4 -> 1.040864017 | Q57: =AA89 -> 1.039001633 | R57: =$Q57+($V57-$Q57)/5 -> 1.037197423 | S57: =$Q57+($V57-$Q57)/5*2 -> 1.035393213 | T57: =$Q57+($V57-$Q57)/5*3 -> 1.033589004 | U57: =$Q57+($V57-$Q57)/5*4 -> 1.031784794 | V57: =AH89 -> 1.029980584
E58: hodnota profilu rez. spotřeby | F58: =$M90 -> 1.055892399 | G58: 1.055892399 | H58: =$G58+($L58-$G58)/5 -> 1.059471822 | I58: =$G58+($L58-$G58)/5*2 -> 1.063051244 | J58: =$G58+($L58-$G58)/5*3 -> 1.066630667 | K58: =$G58+($L58-$G58)/5*4 -> 1.070210089 | L58: =T90 -> 1.073789511 | M58: =$L58+($Q58-$L58)/5 -> 1.077405336 | N58: =$L58+($Q58-$L58)/5*2 -> 1.081021161 | O58: =$L58+($Q58-$L58)/5*3 -> 1.084636985 | P58: =$L58+($Q58-$L58)/5*4 -> 1.08825281 | Q58: =AA90 -> 1.091868635 | R58: =$Q58+($V58-$Q58)/5 -> 1.095781641 | S58: =$Q58+($V58-$Q58)/5*2 -> 1.099694647 | T58: =$Q58+($V58-$Q58)/5*3 -> 1.103607653 | U58: =$Q58+($V58-$Q58)/5*4 -> 1.107520659 | V58: =AH90 -> 1.111433665
E59: hodnota profilu přebytků | F59: =$M91 -> 0.9085612582 | G59: 0.9085612582 | H59: 0.8972717213 | I59: 0.8859821844 | J59: 0.8746926476 | K59: 0.8634031107 | L59: 0.8521135738 | M59: 0.8408547717 | N59: 0.8295959697 | O59: 0.8183371676 | P59: 0.8070783655 | Q59: 0.7958195634 | R59: 0.7843052982 | S59: 0.772791033 | T59: 0.7612767678 | U59: 0.7497625027 | V59: 0.7382482375
D61: respondentní | E61: cena elektřiny - baseload | F61: =TRANSPOSE(G75:I91) -> 138 | G61: 124 | H61: 108 | I61: 96 | J61: 97.87755102 | K61: 99.75510204 | L61: 101.6326531 | M61: 105.6326531 | N61: 109.6326531 | O61: 113.6326531 | P61: 117.6326531 | Q61: 121.6326531 | R61: 123.5918367 | S61: 125.5510204 | T61: 127.5102041 | U61: 129.4693878 | V61: 131.4285714
D62: progresivní | E62: cena elektřiny - baseload | F62: 138 | G62: 124 | H62: 108 | I62: 96 | J62: 97.60544218 | K62: 99.21088435 | L62: 100.8163265 | M62: 115.5918367 | N62: 130.3673469 | O62: 145.1428571 | P62: 159.9183673 | Q62: 174.6938776 | R62: 177.6326531 | S62: 180.5714286 | T62: 183.5102041 | U62: 186.4489796 | V62: 189.3877551
D63: dekarbonizační | E63: cena elektřiny - baseload | F63: 138 | G63: 124 | H63: 108 | I63: 96 | J63: 152.8435374 | K63: 209.6870748 | L63: 266.5306122 | M63: 291.5102041 | N63: 316.4897959 | O63: 341.4693878 | P63: 366.4489796 | Q63: 391.4285714 | R63: 374.2857143 | S63: 357.1428571 | T63: 340 | U63: 322.8571429 | V63: 305.7142857
D65: respondentní | E65: náklady na PPA | F65: =IF($E$7="Tržní",'Pomocný list 1'!$C$15*Výstup!F61,'Pomocný list 1'!$C$15*Výstup!$E$6*(1+Výstup!$E$146)^(Výstup!F$46-2024))+IF($F$7="Tržní",'Pomocný list 1'!$D$15*Výstup!F61,'Pomocný list 1'!$D$15*Výstup!$F$6*(1+Výstup!$F$146)^(Výstup!F$46-2024))+IF($G$7="Tržní",'Pomocný list 1'!$E$15*Výstup!F61,'Pomocný list 1'!$E$15*Výstup!$G$6*(1+Výstup!$G$146)^(Výstup!F$46-2024))+IF($H$7="Tržní",'Pomocný list 1'!$F$15*Výstup!F61,'Pomocný list 1'!$F$15*Výstup!$H$6*(1+Výstup!$H$146)^(Výstup!F$46-2024))+IF($I$7="Tržní",'Pomocný list 1'!$G$15*Výstup!F61,'Pomocný list 1'!$G$15*Výstup!$I$6*(1+Výstup!$I$146)^(Výstup!F$46-2024)) -> 1485505.339 | G65: =IF($E$7="Tržní",'Pomocný list 1'!$C$15*Výstup!G61,'Pomocný list 1'!$C$15*Výstup!$E$6*(1+Výstup!$E$146)^(Výstup!G$46-2024))+IF($F$7="Tržní",'Pomocný list 1'!$D$15*Výstup!G61,'Pomocný list 1'!$D$15*Výstup!$F$6*(1+Výstup!$F$146)^(Výstup!G$46-2024))+IF($G$7="Tržní",'Pomocný list 1'!$E$15*Výstup!G61,'Pomocný list 1'!$E$15*Výstup!$G$6*(1+Výstup!$G$146)^(Výstup!G$46-2024))+IF($H$7="Tržní",'Pomocný list 1'!$F$15*Výstup!G61,'Pomocný list 1'!$F$15*Výstup!$H$6*(1+Výstup!$H$146)^(Výstup!G$46-2024))+IF($I$7="Tržní",'Pomocný list 1'!$G$15*Výstup!G61,'Pomocný list 1'!$G$15*Výstup!$I$6*(1+Výstup!$I$146)^(Výstup!G$46-2024)) -> 1505209.829 | H65: =IF($E$7="Tržní",'Pomocný list 1'!$C$15*Výstup!H61,'Pomocný list 1'!$C$15*Výstup!$E$6*(1+Výstup!$E$146)^(Výstup!H$46-2024))+IF($F$7="Tržní",'Pomocný list 1'!$D$15*Výstup!H61,'Pomocný list 1'!$D$15*Výstup!$F$6*(1+Výstup!$F$146)^(Výstup!H$46-2024))+IF($G$7="Tržní",'Pomocný list 1'!$E$15*Výstup!H61,'Pomocný list 1'!$E$15*Výstup!$G$6*(1+Výstup!$G$146)^(Výstup!H$46-2024))+IF($H$7="Tržní",'Pomocný list 1'!$F$15*Výstup!H61,'Pomocný list 1'!$F$15*Výstup!$H$6*(1+Výstup!$H$146)^(Výstup!H$46-2024))+IF($I$7="Tržní",'Pomocný list 1'!$G$15*Výstup!H61,'Pomocný list 1'!$G$15*Výstup!$I$6*(1+Výstup!$I$146)^(Výstup!H$46-2024)) -> 1525308.409 | I65: =IF($E$7="Tržní",'Pomocný list 1'!$C$15*Výstup!I61,'Pomocný list 1'!$C$15*Výstup!$E$6*(1+Výstup!$E$146)^(Výstup!I$46-2024))+IF($F$7="Tržní",'Pomocný list 1'!$D$15*Výstup!I61,'Pomocný list 1'!$D$15*Výstup!$F$6*(1+Výstup!$F$146)^(Výstup!I$46-2024))+IF($G$7="Tržní",'Pomocný list 1'!$E$15*Výstup!I61,'Pomocný list 1'!$E$15*Výstup!$G$6*(1+Výstup!$G$146)^(Výstup!I$46-2024))+IF($H$7="Tržní",'Pomocný list 1'!$F$15*Výstup!I61,'Pomocný list 1'!$F$15*Výstup!$H$6*(1+Výstup!$H$146)^(Výstup!I$46-2024))+IF($I$7="Tržní",'Pomocný list 1'!$G$15*Výstup!I61,'Pomocný list 1'!$G$15*Výstup!$I$6*(1+Výstup!$I$146)^(Výstup!I$46-2024)) -> 1545808.96 | J65: =IF($E$7="Tržní",'Pomocný list 1'!$C$15*Výstup!J61,'Pomocný list 1'!$C$15*Výstup!$E$6*(1+Výstup!$E$146)^(Výstup!J$46-2024))+IF($F$7="Tržní",'Pomocný list 1'!$D$15*Výstup!J61,'Pomocný list 1'!$D$15*Výstup!$F$6*(1+Výstup!$F$146)^(Výstup!J$46-2024))+IF($G$7="Tržní",'Pomocný list 1'!$E$15*Výstup!J61,'Pomocný list 1'!$E$15*Výstup!$G$6*(1+Výstup!$G$146)^(Výstup!J$46-2024))+IF($H$7="Tržní",'Pomocný list 1'!$F$15*Výstup!J61,'Pomocný list 1'!$F$15*Výstup!$H$6*(1+Výstup!$H$146)^(Výstup!J$46-2024))+IF($I$7="Tržní",'Pomocný list 1'!$G$15*Výstup!J61,'Pomocný list 1'!$G$15*Výstup!$I$6*(1+Výstup!$I$146)^(Výstup!J$46-2024)) -> 1566719.522 | K65: =IF($E$7="Tržní",'Pomocný list 1'!$C$15*Výstup!K61,'Pomocný list 1'!$C$15*Výstup!$E$6*(1+Výstup!$E$146)^(Výstup!K$46-2024))+IF($F$7="Tržní",'Pomocný list 1'!$D$15*Výstup!K61,'Pomocný list 1'!$D$15*Výstup!$F$6*(1+Výstup!$F$146)^(Výstup!K$46-2024))+IF($G$7="Tržní",'Pomocný list 1'!$E$15*Výstup!K61,'Pomocný list 1'!$E$15*Výstup!$G$6*(1+Výstup!$G$146)^(Výstup!K$46-2024))+IF($H$7="Tržní",'Pomocný list 1'!$F$15*Výstup!K61,'Pomocný list 1'!$F$15*Výstup!$H$6*(1+Výstup!$H$146)^(Výstup!K$46-2024))+IF($I$7="Tržní",'Pomocný list 1'!$G$15*Výstup!K61,'Pomocný list 1'!$G$15*Výstup!$I$6*(1+Výstup!$I$146)^(Výstup!K$46-2024)) -> 1588048.295 | L65: =IF($E$7="Tržní",'Pomocný list 1'!$C$15*Výstup!L61,'Pomocný list 1'!$C$15*Výstup!$E$6*(1+Výstup!$E$146)^(Výstup!L$46-2024))+IF($F$7="Tržní",'Pomocný list 1'!$D$15*Výstup!L61,'Pomocný list 1'!$D$15*Výstup!$F$6*(1+Výstup!$F$146)^(Výstup!L$46-2024))+IF($G$7="Tržní",'Pomocný list 1'!$E$15*Výstup!L61,'Pomocný list 1'!$E$15*Výstup!$G$6*(1+Výstup!$G$146)^(Výstup!L$46-2024))+IF($H$7="Tržní",'Pomocný list 1'!$F$15*Výstup!L61,'Pomocný list 1'!$F$15*Výstup!$H$6*(1+Výstup!$H$146)^(Výstup!L$46-2024))+IF($I$7="Tržní",'Pomocný list 1'!$G$15*Výstup!L61,'Pomocný list 1'!$G$15*Výstup!$I$6*(1+Výstup!$I$146)^(Výstup!L$46-2024)) -> 1609803.644 | M65: =IF($E$7="Tržní",'Pomocný list 1'!$C$15*Výstup!M61,'Pomocný list 1'!$C$15*Výstup!$E$6*(1+Výstup!$E$146)^(Výstup!M$46-2024))+IF($F$7="Tržní",'Pomocný list 1'!$D$15*Výstup!M61,'Pomocný list 1'!$D$15*Výstup!$F$6*(1+Výstup!$F$146)^(Výstup!M$46-2024))+IF($G$7="Tržní",'Pomocný list 1'!$E$15*Výstup!M61,'Pomocný list 1'!$E$15*Výstup!$G$6*(1+Výstup!$G$146)^(Výstup!M$46-2024))+IF($H$7="Tržní",'Pomocný list 1'!$F$15*Výstup!M61,'Pomocný list 1'!$F$15*Výstup!$H$6*(1+Výstup!$H$146)^(Výstup!M$46-2024))+IF($I$7="Tržní",'Pomocný list 1'!$G$15*Výstup!M61,'Pomocný list 1'!$G$15*Výstup!$I$6*(1+Výstup!$I$146)^(Výstup!M$46-2024)) -> 1631994.1 | N65: =IF($E$7="Tržní",'Pomocný list 1'!$C$15*Výstup!N61,'Pomocný list 1'!$C$15*Výstup!$E$6*(1+Výstup!$E$146)^(Výstup!N$46-2024))+IF($F$7="Tržní",'Pomocný list 1'!$D$15*Výstup!N61,'Pomocný list 1'!$D$15*Výstup!$F$6*(1+Výstup!$F$146)^(Výstup!N$46-2024))+IF($G$7="Tržní",'Pomocný list 1'!$E$15*Výstup!N61,'Pomocný list 1'!$E$15*Výstup!$G$6*(1+Výstup!$G$146)^(Výstup!N$46-2024))+IF($H$7="Tržní",'Pomocný list 1'!$F$15*Výstup!N61,'Pomocný list 1'!$F$15*Výstup!$H$6*(1+Výstup!$H$146)^(Výstup!N$46-2024))+IF($I$7="Tržní",'Pomocný list 1'!$G$15*Výstup!N61,'Pomocný list 1'!$G$15*Výstup!$I$6*(1+Výstup!$I$146)^(Výstup!N$46-2024)) -> 1654628.365 | O65: =IF($E$7="Tržní",'Pomocný list 1'!$C$15*Výstup!O61,'Pomocný list 1'!$C$15*Výstup!$E$6*(1+Výstup!$E$146)^(Výstup!O$46-2024))+IF($F$7="Tržní",'Pomocný list 1'!$D$15*Výstup!O61,'Pomocný list 1'!$D$15*Výstup!$F$6*(1+Výstup!$F$146)^(Výstup!O$46-2024))+IF($G$7="Tržní",'Pomocný list 1'!$E$15*Výstup!O61,'Pomocný list 1'!$E$15*Výstup!$G$6*(1+Výstup!$G$146)^(Výstup!O$46-2024))+IF($H$7="Tržní",'Pomocný list 1'!$F$15*Výstup!O61,'Pomocný list 1'!$F$15*Výstup!$H$6*(1+Výstup!$H$146)^(Výstup!O$46-2024))+IF($I$7="Tržní",'Pomocný list 1'!$G$15*Výstup!O61,'Pomocný list 1'!$G$15*Výstup!$I$6*(1+Výstup!$I$146)^(Výstup!O$46-2024)) -> 1677715.315 | P65: =IF($E$7="Tržní",'Pomocný list 1'!$C$15*Výstup!P61,'Pomocný list 1'!$C$15*Výstup!$E$6*(1+Výstup!$E$146)^(Výstup!P$46-2024))+IF($F$7="Tržní",'Pomocný list 1'!$D$15*Výstup!P61,'Pomocný list 1'!$D$15*Výstup!$F$6*(1+Výstup!$F$146)^(Výstup!P$46-2024))+IF($G$7="Tržní",'Pomocný list 1'!$E$15*Výstup!P61,'Pomocný list 1'!$E$15*Výstup!$G$6*(1+Výstup!$G$146)^(Výstup!P$46-2024))+IF($H$7="Tržní",'Pomocný list 1'!$F$15*Výstup!P61,'Pomocný list 1'!$F$15*Výstup!$H$6*(1+Výstup!$H$146)^(Výstup!P$46-2024))+IF($I$7="Tržní",'Pomocný list 1'!$G$15*Výstup!P61,'Pomocný list 1'!$G$15*Výstup!$I$6*(1+Výstup!$I$146)^(Výstup!P$46-2024)) -> 1701264.005 | Q65: =IF($E$7="Tržní",'Pomocný list 1'!$C$15*Výstup!Q61,'Pomocný list 1'!$C$15*Výstup!$E$6*(1+Výstup!$E$146)^(Výstup!Q$46-2024))+IF($F$7="Tržní",'Pomocný list 1'!$D$15*Výstup!Q61,'Pomocný list 1'!$D$15*Výstup!$F$6*(1+Výstup!$F$146)^(Výstup!Q$46-2024))+IF($G$7="Tržní",'Pomocný list 1'!$E$15*Výstup!Q61,'Pomocný list 1'!$E$15*Výstup!$G$6*(1+Výstup!$G$146)^(Výstup!Q$46-2024))+IF($H$7="Tržní",'Pomocný list 1'!$F$15*Výstup!Q61,'Pomocný list 1'!$F$15*Výstup!$H$6*(1+Výstup!$H$146)^(Výstup!Q$46-2024))+IF($I$7="Tržní",'Pomocný list 1'!$G$15*Výstup!Q61,'Pomocný list 1'!$G$15*Výstup!$I$6*(1+Výstup!$I$146)^(Výstup!Q$46-2024)) -> 1725283.668 | R65: =IF($E$7="Tržní",'Pomocný list 1'!$C$15*Výstup!R61,'Pomocný list 1'!$C$15*Výstup!$E$6*(1+Výstup!$E$146)^(Výstup!R$46-2024))+IF($F$7="Tržní",'Pomocný list 1'!$D$15*Výstup!R61,'Pomocný list 1'!$D$15*Výstup!$F$6*(1+Výstup!$F$146)^(Výstup!R$46-2024))+IF($G$7="Tržní",'Pomocný list 1'!$E$15*Výstup!R61,'Pomocný list 1'!$E$15*Výstup!$G$6*(1+Výstup!$G$146)^(Výstup!R$46-2024))+IF($H$7="Tržní",'Pomocný list 1'!$F$15*Výstup!R61,'Pomocný list 1'!$F$15*Výstup!$H$6*(1+Výstup!$H$146)^(Výstup!R$46-2024))+IF($I$7="Tržní",'Pomocný list 1'!$G$15*Výstup!R61,'Pomocný list 1'!$G$15*Výstup!$I$6*(1+Výstup!$I$146)^(Výstup!R$46-2024)) -> 1749783.724 | S65: =IF($E$7="Tržní",'Pomocný list 1'!$C$15*Výstup!S61,'Pomocný list 1'!$C$15*Výstup!$E$6*(1+Výstup!$E$146)^(Výstup!S$46-2024))+IF($F$7="Tržní",'Pomocný list 1'!$D$15*Výstup!S61,'Pomocný list 1'!$D$15*Výstup!$F$6*(1+Výstup!$F$146)^(Výstup!S$46-2024))+IF($G$7="Tržní",'Pomocný list 1'!$E$15*Výstup!S61,'Pomocný list 1'!$E$15*Výstup!$G$6*(1+Výstup!$G$146)^(Výstup!S$46-2024))+IF($H$7="Tržní",'Pomocný list 1'!$F$15*Výstup!S61,'Pomocný list 1'!$F$15*Výstup!$H$6*(1+Výstup!$H$146)^(Výstup!S$46-2024))+IF($I$7="Tržní",'Pomocný list 1'!$G$15*Výstup!S61,'Pomocný list 1'!$G$15*Výstup!$I$6*(1+Výstup!$I$146)^(Výstup!S$46-2024)) -> 1774773.782 | T65: =IF($E$7="Tržní",'Pomocný list 1'!$C$15*Výstup!T61,'Pomocný list 1'!$C$15*Výstup!$E$6*(1+Výstup!$E$146)^(Výstup!T$46-2024))+IF($F$7="Tržní",'Pomocný list 1'!$D$15*Výstup!T61,'Pomocný list 1'!$D$15*Výstup!$F$6*(1+Výstup!$F$146)^(Výstup!T$46-2024))+IF($G$7="Tržní",'Pomocný list 1'!$E$15*Výstup!T61,'Pomocný list 1'!$E$15*Výstup!$G$6*(1+Výstup!$G$146)^(Výstup!T$46-2024))+IF($H$7="Tržní",'Pomocný list 1'!$F$15*Výstup!T61,'Pomocný list 1'!$F$15*Výstup!$H$6*(1+Výstup!$H$146)^(Výstup!T$46-2024))+IF($I$7="Tržní",'Pomocný list 1'!$G$15*Výstup!T61,'Pomocný list 1'!$G$15*Výstup!$I$6*(1+Výstup!$I$146)^(Výstup!T$46-2024)) -> 1800263.64 | U65: =IF($E$7="Tržní",'Pomocný list 1'!$C$15*Výstup!U61,'Pomocný list 1'!$C$15*Výstup!$E$6*(1+Výstup!$E$146)^(Výstup!U$46-2024))+IF($F$7="Tržní",'Pomocný list 1'!$D$15*Výstup!U61,'Pomocný list 1'!$D$15*Výstup!$F$6*(1+Výstup!$F$146)^(Výstup!U$46-2024))+IF($G$7="Tržní",'Pomocný list 1'!$E$15*Výstup!U61,'Pomocný list 1'!$E$15*Výstup!$G$6*(1+Výstup!$G$146)^(Výstup!U$46-2024))+IF($H$7="Tržní",'Pomocný list 1'!$F$15*Výstup!U61,'Pomocný list 1'!$F$15*Výstup!$H$6*(1+Výstup!$H$146)^(Výstup!U$46-2024))+IF($I$7="Tržní",'Pomocný list 1'!$G$15*Výstup!U61,'Pomocný list 1'!$G$15*Výstup!$I$6*(1+Výstup!$I$146)^(Výstup!U$46-2024)) -> 1826263.296 | V65: =IF($E$7="Tržní",'Pomocný list 1'!$C$15*Výstup!V61,'Pomocný list 1'!$C$15*Výstup!$E$6*(1+Výstup!$E$146)^(Výstup!V$46-2024))+IF($F$7="Tržní",'Pomocný list 1'!$D$15*Výstup!V61,'Pomocný list 1'!$D$15*Výstup!$F$6*(1+Výstup!$F$146)^(Výstup!V$46-2024))+IF($G$7="Tržní",'Pomocný list 1'!$E$15*Výstup!V61,'Pomocný list 1'!$E$15*Výstup!$G$6*(1+Výstup!$G$146)^(Výstup!V$46-2024))+IF($H$7="Tržní",'Pomocný list 1'!$F$15*Výstup!V61,'Pomocný list 1'!$F$15*Výstup!$H$6*(1+Výstup!$H$146)^(Výstup!V$46-2024))+IF($I$7="Tržní",'Pomocný list 1'!$G$15*Výstup!V61,'Pomocný list 1'!$G$15*Výstup!$I$6*(1+Výstup!$I$146)^(Výstup!V$46-2024)) -> 1852782.945
D66: progresivní | E66: náklady na PPA | F66: =IF($E$7="Tržní",'Pomocný list 1'!$C$15*Výstup!F62,'Pomocný list 1'!$C$15*Výstup!$E$6*(1+Výstup!$E$146)^(Výstup!F$46-2024))+IF($F$7="Tržní",'Pomocný list 1'!$D$15*Výstup!F62,'Pomocný list 1'!$D$15*Výstup!$F$6*(1+Výstup!$F$146)^(Výstup!F$46-2024))+IF($G$7="Tržní",'Pomocný list 1'!$E$15*Výstup!F62,'Pomocný list 1'!$E$15*Výstup!$G$6*(1+Výstup!$G$146)^(Výstup!F$46-2024))+IF($H$7="Tržní",'Pomocný list 1'!$F$15*Výstup!F62,'Pomocný list 1'!$F$15*Výstup!$H$6*(1+Výstup!$H$146)^(Výstup!F$46-2024))+IF($I$7="Tržní",'Pomocný list 1'!$G$15*Výstup!F62,'Pomocný list 1'!$G$15*Výstup!$I$6*(1+Výstup!$I$146)^(Výstup!F$46-2024)) -> 1485505.339 | G66: =IF($E$7="Tržní",'Pomocný list 1'!$C$15*Výstup!G62,'Pomocný list 1'!$C$15*Výstup!$E$6*(1+Výstup!$E$146)^(Výstup!G$46-2024))+IF($F$7="Tržní",'Pomocný list 1'!$D$15*Výstup!G62,'Pomocný list 1'!$D$15*Výstup!$F$6*(1+Výstup!$F$146)^(Výstup!G$46-2024))+IF($G$7="Tržní",'Pomocný list 1'!$E$15*Výstup!G62,'Pomocný list 1'!$E$15*Výstup!$G$6*(1+Výstup!$G$146)^(Výstup!G$46-2024))+IF($H$7="Tržní",'Pomocný list 1'!$F$15*Výstup!G62,'Pomocný list 1'!$F$15*Výstup!$H$6*(1+Výstup!$H$146)^(Výstup!G$46-2024))+IF($I$7="Tržní",'Pomocný list 1'!$G$15*Výstup!G62,'Pomocný list 1'!$G$15*Výstup!$I$6*(1+Výstup!$I$146)^(Výstup!G$46-2024)) -> 1505209.829 | H66: =IF($E$7="Tržní",'Pomocný list 1'!$C$15*Výstup!H62,'Pomocný list 1'!$C$15*Výstup!$E$6*(1+Výstup!$E$146)^(Výstup!H$46-2024))+IF($F$7="Tržní",'Pomocný list 1'!$D$15*Výstup!H62,'Pomocný list 1'!$D$15*Výstup!$F$6*(1+Výstup!$F$146)^(Výstup!H$46-2024))+IF($G$7="Tržní",'Pomocný list 1'!$E$15*Výstup!H62,'Pomocný list 1'!$E$15*Výstup!$G$6*(1+Výstup!$G$146)^(Výstup!H$46-2024))+IF($H$7="Tržní",'Pomocný list 1'!$F$15*Výstup!H62,'Pomocný list 1'!$F$15*Výstup!$H$6*(1+Výstup!$H$146)^(Výstup!H$46-2024))+IF($I$7="Tržní",'Pomocný list 1'!$G$15*Výstup!H62,'Pomocný list 1'!$G$15*Výstup!$I$6*(1+Výstup!$I$146)^(Výstup!H$46-2024)) -> 1525308.409 | I66: =IF($E$7="Tržní",'Pomocný list 1'!$C$15*Výstup!I62,'Pomocný list 1'!$C$15*Výstup!$E$6*(1+Výstup!$E$146)^(Výstup!I$46-2024))+IF($F$7="Tržní",'Pomocný list 1'!$D$15*Výstup!I62,'Pomocný list 1'!$D$15*Výstup!$F$6*(1+Výstup!$F$146)^(Výstup!I$46-2024))+IF($G$7="Tržní",'Pomocný list 1'!$E$15*Výstup!I62,'Pomocný list 1'!$E$15*Výstup!$G$6*(1+Výstup!$G$146)^(Výstup!I$46-2024))+IF($H$7="Tržní",'Pomocný list 1'!$F$15*Výstup!I62,'Pomocný list 1'!$F$15*Výstup!$H$6*(1+Výstup!$H$146)^(Výstup!I$46-2024))+IF($I$7="Tržní",'Pomocný list 1'!$G$15*Výstup!I62,'Pomocný list 1'!$G$15*Výstup!$I$6*(1+Výstup!$I$146)^(Výstup!I$46-2024)) -> 1545808.96 | J66: =IF($E$7="Tržní",'Pomocný list 1'!$C$15*Výstup!J62,'Pomocný list 1'!$C$15*Výstup!$E$6*(1+Výstup!$E$146)^(Výstup!J$46-2024))+IF($F$7="Tržní",'Pomocný list 1'!$D$15*Výstup!J62,'Pomocný list 1'!$D$15*Výstup!$F$6*(1+Výstup!$F$146)^(Výstup!J$46-2024))+IF($G$7="Tržní",'Pomocný list 1'!$E$15*Výstup!J62,'Pomocný list 1'!$E$15*Výstup!$G$6*(1+Výstup!$G$146)^(Výstup!J$46-2024))+IF($H$7="Tržní",'Pomocný list 1'!$F$15*Výstup!J62,'Pomocný list 1'!$F$15*Výstup!$H$6*(1+Výstup!$H$146)^(Výstup!J$46-2024))+IF($I$7="Tržní",'Pomocný list 1'!$G$15*Výstup!J62,'Pomocný list 1'!$G$15*Výstup!$I$6*(1+Výstup!$I$146)^(Výstup!J$46-2024)) -> 1566719.522 | K66: =IF($E$7="Tržní",'Pomocný list 1'!$C$15*Výstup!K62,'Pomocný list 1'!$C$15*Výstup!$E$6*(1+Výstup!$E$146)^(Výstup!K$46-2024))+IF($F$7="Tržní",'Pomocný list 1'!$D$15*Výstup!K62,'Pomocný list 1'!$D$15*Výstup!$F$6*(1+Výstup!$F$146)^(Výstup!K$46-2024))+IF($G$7="Tržní",'Pomocný list 1'!$E$15*Výstup!K62,'Pomocný list 1'!$E$15*Výstup!$G$6*(1+Výstup!$G$146)^(Výstup!K$46-2024))+IF($H$7="Tržní",'Pomocný list 1'!$F$15*Výstup!K62,'Pomocný list 1'!$F$15*Výstup!$H$6*(1+Výstup!$H$146)^(Výstup!K$46-2024))+IF($I$7="Tržní",'Pomocný list 1'!$G$15*Výstup!K62,'Pomocný list 1'!$G$15*Výstup!$I$6*(1+Výstup!$I$146)^(Výstup!K$46-2024)) -> 1588048.295 | L66: =IF($E$7="Tržní",'Pomocný list 1'!$C$15*Výstup!L62,'Pomocný list 1'!$C$15*Výstup!$E$6*(1+Výstup!$E$146)^(Výstup!L$46-2024))+IF($F$7="Tržní",'Pomocný list 1'!$D$15*Výstup!L62,'Pomocný list 1'!$D$15*Výstup!$F$6*(1+Výstup!$F$146)^(Výstup!L$46-2024))+IF($G$7="Tržní",'Pomocný list 1'!$E$15*Výstup!L62,'Pomocný list 1'!$E$15*Výstup!$G$6*(1+Výstup!$G$146)^(Výstup!L$46-2024))+IF($H$7="Tržní",'Pomocný list 1'!$F$15*Výstup!L62,'Pomocný list 1'!$F$15*Výstup!$H$6*(1+Výstup!$H$146)^(Výstup!L$46-2024))+IF($I$7="Tržní",'Pomocný list 1'!$G$15*Výstup!L62,'Pomocný list 1'!$G$15*Výstup!$I$6*(1+Výstup!$I$146)^(Výstup!L$46-2024)) -> 1609803.644 | M66: =IF($E$7="Tržní",'Pomocný list 1'!$C$15*Výstup!M62,'Pomocný list 1'!$C$15*Výstup!$E$6*(1+Výstup!$E$146)^(Výstup!M$46-2024))+IF($F$7="Tržní",'Pomocný list 1'!$D$15*Výstup!M62,'Pomocný list 1'!$D$15*Výstup!$F$6*(1+Výstup!$F$146)^(Výstup!M$46-2024))+IF($G$7="Tržní",'Pomocný list 1'!$E$15*Výstup!M62,'Pomocný list 1'!$E$15*Výstup!$G$6*(1+Výstup!$G$146)^(Výstup!M$46-2024))+IF($H$7="Tržní",'Pomocný list 1'!$F$15*Výstup!M62,'Pomocný list 1'!$F$15*Výstup!$H$6*(1+Výstup!$H$146)^(Výstup!M$46-2024))+IF($I$7="Tržní",'Pomocný list 1'!$G$15*Výstup!M62,'Pomocný list 1'!$G$15*Výstup!$I$6*(1+Výstup!$I$146)^(Výstup!M$46-2024)) -> 1631994.1 | N66: =IF($E$7="Tržní",'Pomocný list 1'!$C$15*Výstup!N62,'Pomocný list 1'!$C$15*Výstup!$E$6*(1+Výstup!$E$146)^(Výstup!N$46-2024))+IF($F$7="Tržní",'Pomocný list 1'!$D$15*Výstup!N62,'Pomocný list 1'!$D$15*Výstup!$F$6*(1+Výstup!$F$146)^(Výstup!N$46-2024))+IF($G$7="Tržní",'Pomocný list 1'!$E$15*Výstup!N62,'Pomocný list 1'!$E$15*Výstup!$G$6*(1+Výstup!$G$146)^(Výstup!N$46-2024))+IF($H$7="Tržní",'Pomocný list 1'!$F$15*Výstup!N62,'Pomocný list 1'!$F$15*Výstup!$H$6*(1+Výstup!$H$146)^(Výstup!N$46-2024))+IF($I$7="Tržní",'Pomocný list 1'!$G$15*Výstup!N62,'Pomocný list 1'!$G$15*Výstup!$I$6*(1+Výstup!$I$146)^(Výstup!N$46-2024)) -> 1654628.365 | O66: =IF($E$7="Tržní",'Pomocný list 1'!$C$15*Výstup!O62,'Pomocný list 1'!$C$15*Výstup!$E$6*(1+Výstup!$E$146)^(Výstup!O$46-2024))+IF($F$7="Tržní",'Pomocný list 1'!$D$15*Výstup!O62,'Pomocný list 1'!$D$15*Výstup!$F$6*(1+Výstup!$F$146)^(Výstup!O$46-2024))+IF($G$7="Tržní",'Pomocný list 1'!$E$15*Výstup!O62,'Pomocný list 1'!$E$15*Výstup!$G$6*(1+Výstup!$G$146)^(Výstup!O$46-2024))+IF($H$7="Tržní",'Pomocný list 1'!$F$15*Výstup!O62,'Pomocný list 1'!$F$15*Výstup!$H$6*(1+Výstup!$H$146)^(Výstup!O$46-2024))+IF($I$7="Tržní",'Pomocný list 1'!$G$15*Výstup!O62,'Pomocný list 1'!$G$15*Výstup!$I$6*(1+Výstup!$I$146)^(Výstup!O$46-2024)) -> 1677715.315 | P66: =IF($E$7="Tržní",'Pomocný list 1'!$C$15*Výstup!P62,'Pomocný list 1'!$C$15*Výstup!$E$6*(1+Výstup!$E$146)^(Výstup!P$46-2024))+IF($F$7="Tržní",'Pomocný list 1'!$D$15*Výstup!P62,'Pomocný list 1'!$D$15*Výstup!$F$6*(1+Výstup!$F$146)^(Výstup!P$46-2024))+IF($G$7="Tržní",'Pomocný list 1'!$E$15*Výstup!P62,'Pomocný list 1'!$E$15*Výstup!$G$6*(1+Výstup!$G$146)^(Výstup!P$46-2024))+IF($H$7="Tržní",'Pomocný list 1'!$F$15*Výstup!P62,'Pomocný list 1'!$F$15*Výstup!$H$6*(1+Výstup!$H$146)^(Výstup!P$46-2024))+IF($I$7="Tržní",'Pomocný list 1'!$G$15*Výstup!P62,'Pomocný list 1'!$G$15*Výstup!$I$6*(1+Výstup!$I$146)^(Výstup!P$46-2024)) -> 1701264.005 | Q66: =IF($E$7="Tržní",'Pomocný list 1'!$C$15*Výstup!Q62,'Pomocný list 1'!$C$15*Výstup!$E$6*(1+Výstup!$E$146)^(Výstup!Q$46-2024))+IF($F$7="Tržní",'Pomocný list 1'!$D$15*Výstup!Q62,'Pomocný list 1'!$D$15*Výstup!$F$6*(1+Výstup!$F$146)^(Výstup!Q$46-2024))+IF($G$7="Tržní",'Pomocný list 1'!$E$15*Výstup!Q62,'Pomocný list 1'!$E$15*Výstup!$G$6*(1+Výstup!$G$146)^(Výstup!Q$46-2024))+IF($H$7="Tržní",'Pomocný list 1'!$F$15*Výstup!Q62,'Pomocný list 1'!$F$15*Výstup!$H$6*(1+Výstup!$H$146)^(Výstup!Q$46-2024))+IF($I$7="Tržní",'Pomocný list 1'!$G$15*Výstup!Q62,'Pomocný list 1'!$G$15*Výstup!$I$6*(1+Výstup!$I$146)^(Výstup!Q$46-2024)) -> 1725283.668 | R66: =IF($E$7="Tržní",'Pomocný list 1'!$C$15*Výstup!R62,'Pomocný list 1'!$C$15*Výstup!$E$6*(1+Výstup!$E$146)^(Výstup!R$46-2024))+IF($F$7="Tržní",'Pomocný list 1'!$D$15*Výstup!R62,'Pomocný list 1'!$D$15*Výstup!$F$6*(1+Výstup!$F$146)^(Výstup!R$46-2024))+IF($G$7="Tržní",'Pomocný list 1'!$E$15*Výstup!R62,'Pomocný list 1'!$E$15*Výstup!$G$6*(1+Výstup!$G$146)^(Výstup!R$46-2024))+IF($H$7="Tržní",'Pomocný list 1'!$F$15*Výstup!R62,'Pomocný list 1'!$F$15*Výstup!$H$6*(1+Výstup!$H$146)^(Výstup!R$46-2024))+IF($I$7="Tržní",'Pomocný list 1'!$G$15*Výstup!R62,'Pomocný list 1'!$G$15*Výstup!$I$6*(1+Výstup!$I$146)^(Výstup!R$46-2024)) -> 1749783.724 | S66: =IF($E$7="Tržní",'Pomocný list 1'!$C$15*Výstup!S62,'Pomocný list 1'!$C$15*Výstup!$E$6*(1+Výstup!$E$146)^(Výstup!S$46-2024))+IF($F$7="Tržní",'Pomocný list 1'!$D$15*Výstup!S62,'Pomocný list 1'!$D$15*Výstup!$F$6*(1+Výstup!$F$146)^(Výstup!S$46-2024))+IF($G$7="Tržní",'Pomocný list 1'!$E$15*Výstup!S62,'Pomocný list 1'!$E$15*Výstup!$G$6*(1+Výstup!$G$146)^(Výstup!S$46-2024))+IF($H$7="Tržní",'Pomocný list 1'!$F$15*Výstup!S62,'Pomocný list 1'!$F$15*Výstup!$H$6*(1+Výstup!$H$146)^(Výstup!S$46-2024))+IF($I$7="Tržní",'Pomocný list 1'!$G$15*Výstup!S62,'Pomocný list 1'!$G$15*Výstup!$I$6*(1+Výstup!$I$146)^(Výstup!S$46-2024)) -> 1774773.782 | T66: =IF($E$7="Tržní",'Pomocný list 1'!$C$15*Výstup!T62,'Pomocný list 1'!$C$15*Výstup!$E$6*(1+Výstup!$E$146)^(Výstup!T$46-2024))+IF($F$7="Tržní",'Pomocný list 1'!$D$15*Výstup!T62,'Pomocný list 1'!$D$15*Výstup!$F$6*(1+Výstup!$F$146)^(Výstup!T$46-2024))+IF($G$7="Tržní",'Pomocný list 1'!$E$15*Výstup!T62,'Pomocný list 1'!$E$15*Výstup!$G$6*(1+Výstup!$G$146)^(Výstup!T$46-2024))+IF($H$7="Tržní",'Pomocný list 1'!$F$15*Výstup!T62,'Pomocný list 1'!$F$15*Výstup!$H$6*(1+Výstup!$H$146)^(Výstup!T$46-2024))+IF($I$7="Tržní",'Pomocný list 1'!$G$15*Výstup!T62,'Pomocný list 1'!$G$15*Výstup!$I$6*(1+Výstup!$I$146)^(Výstup!T$46-2024)) -> 1800263.64 | U66: =IF($E$7="Tržní",'Pomocný list 1'!$C$15*Výstup!U62,'Pomocný list 1'!$C$15*Výstup!$E$6*(1+Výstup!$E$146)^(Výstup!U$46-2024))+IF($F$7="Tržní",'Pomocný list 1'!$D$15*Výstup!U62,'Pomocný list 1'!$D$15*Výstup!$F$6*(1+Výstup!$F$146)^(Výstup!U$46-2024))+IF($G$7="Tržní",'Pomocný list 1'!$E$15*Výstup!U62,'Pomocný list 1'!$E$15*Výstup!$G$6*(1+Výstup!$G$146)^(Výstup!U$46-2024))+IF($H$7="Tržní",'Pomocný list 1'!$F$15*Výstup!U62,'Pomocný list 1'!$F$15*Výstup!$H$6*(1+Výstup!$H$146)^(Výstup!U$46-2024))+IF($I$7="Tržní",'Pomocný list 1'!$G$15*Výstup!U62,'Pomocný list 1'!$G$15*Výstup!$I$6*(1+Výstup!$I$146)^(Výstup!U$46-2024)) -> 1826263.296 | V66: =IF($E$7="Tržní",'Pomocný list 1'!$C$15*Výstup!V62,'Pomocný list 1'!$C$15*Výstup!$E$6*(1+Výstup!$E$146)^(Výstup!V$46-2024))+IF($F$7="Tržní",'Pomocný list 1'!$D$15*Výstup!V62,'Pomocný list 1'!$D$15*Výstup!$F$6*(1+Výstup!$F$146)^(Výstup!V$46-2024))+IF($G$7="Tržní",'Pomocný list 1'!$E$15*Výstup!V62,'Pomocný list 1'!$E$15*Výstup!$G$6*(1+Výstup!$G$146)^(Výstup!V$46-2024))+IF($H$7="Tržní",'Pomocný list 1'!$F$15*Výstup!V62,'Pomocný list 1'!$F$15*Výstup!$H$6*(1+Výstup!$H$146)^(Výstup!V$46-2024))+IF($I$7="Tržní",'Pomocný list 1'!$G$15*Výstup!V62,'Pomocný list 1'!$G$15*Výstup!$I$6*(1+Výstup!$I$146)^(Výstup!V$46-2024)) -> 1852782.945
D67: dekarbonizační | E67: náklady na PPA | F67: =IF($E$7="Tržní",'Pomocný list 1'!$C$15*Výstup!F63,'Pomocný list 1'!$C$15*Výstup!$E$6*(1+Výstup!$E$146)^(Výstup!F$46-2024))+IF($F$7="Tržní",'Pomocný list 1'!$D$15*Výstup!F63,'Pomocný list 1'!$D$15*Výstup!$F$6*(1+Výstup!$F$146)^(Výstup!F$46-2024))+IF($G$7="Tržní",'Pomocný list 1'!$E$15*Výstup!F63,'Pomocný list 1'!$E$15*Výstup!$G$6*(1+Výstup!$G$146)^(Výstup!F$46-2024))+IF($H$7="Tržní",'Pomocný list 1'!$F$15*Výstup!F63,'Pomocný list 1'!$F$15*Výstup!$H$6*(1+Výstup!$H$146)^(Výstup!F$46-2024))+IF($I$7="Tržní",'Pomocný list 1'!$G$15*Výstup!F63,'Pomocný list 1'!$G$15*Výstup!$I$6*(1+Výstup!$I$146)^(Výstup!F$46-2024)) -> 1485505.339 | G67: =IF($E$7="Tržní",'Pomocný list 1'!$C$15*Výstup!G63,'Pomocný list 1'!$C$15*Výstup!$E$6*(1+Výstup!$E$146)^(Výstup!G$46-2024))+IF($F$7="Tržní",'Pomocný list 1'!$D$15*Výstup!G63,'Pomocný list 1'!$D$15*Výstup!$F$6*(1+Výstup!$F$146)^(Výstup!G$46-2024))+IF($G$7="Tržní",'Pomocný list 1'!$E$15*Výstup!G63,'Pomocný list 1'!$E$15*Výstup!$G$6*(1+Výstup!$G$146)^(Výstup!G$46-2024))+IF($H$7="Tržní",'Pomocný list 1'!$F$15*Výstup!G63,'Pomocný list 1'!$F$15*Výstup!$H$6*(1+Výstup!$H$146)^(Výstup!G$46-2024))+IF($I$7="Tržní",'Pomocný list 1'!$G$15*Výstup!G63,'Pomocný list 1'!$G$15*Výstup!$I$6*(1+Výstup!$I$146)^(Výstup!G$46-2024)) -> 1505209.829 | H67: =IF($E$7="Tržní",'Pomocný list 1'!$C$15*Výstup!H63,'Pomocný list 1'!$C$15*Výstup!$E$6*(1+Výstup!$E$146)^(Výstup!H$46-2024))+IF($F$7="Tržní",'Pomocný list 1'!$D$15*Výstup!H63,'Pomocný list 1'!$D$15*Výstup!$F$6*(1+Výstup!$F$146)^(Výstup!H$46-2024))+IF($G$7="Tržní",'Pomocný list 1'!$E$15*Výstup!H63,'Pomocný list 1'!$E$15*Výstup!$G$6*(1+Výstup!$G$146)^(Výstup!H$46-2024))+IF($H$7="Tržní",'Pomocný list 1'!$F$15*Výstup!H63,'Pomocný list 1'!$F$15*Výstup!$H$6*(1+Výstup!$H$146)^(Výstup!H$46-2024))+IF($I$7="Tržní",'Pomocný list 1'!$G$15*Výstup!H63,'Pomocný list 1'!$G$15*Výstup!$I$6*(1+Výstup!$I$146)^(Výstup!H$46-2024)) -> 1525308.409 | I67: =IF($E$7="Tržní",'Pomocný list 1'!$C$15*Výstup!I63,'Pomocný list 1'!$C$15*Výstup!$E$6*(1+Výstup!$E$146)^(Výstup!I$46-2024))+IF($F$7="Tržní",'Pomocný list 1'!$D$15*Výstup!I63,'Pomocný list 1'!$D$15*Výstup!$F$6*(1+Výstup!$F$146)^(Výstup!I$46-2024))+IF($G$7="Tržní",'Pomocný list 1'!$E$15*Výstup!I63,'Pomocný list 1'!$E$15*Výstup!$G$6*(1+Výstup!$G$146)^(Výstup!I$46-2024))+IF($H$7="Tržní",'Pomocný list 1'!$F$15*Výstup!I63,'Pomocný list 1'!$F$15*Výstup!$H$6*(1+Výstup!$H$146)^(Výstup!I$46-2024))+IF($I$7="Tržní",'Pomocný list 1'!$G$15*Výstup!I63,'Pomocný list 1'!$G$15*Výstup!$I$6*(1+Výstup!$I$146)^(Výstup!I$46-2024)) -> 1545808.96 | J67: =IF($E$7="Tržní",'Pomocný list 1'!$C$15*Výstup!J63,'Pomocný list 1'!$C$15*Výstup!$E$6*(1+Výstup!$E$146)^(Výstup!J$46-2024))+IF($F$7="Tržní",'Pomocný list 1'!$D$15*Výstup!J63,'Pomocný list 1'!$D$15*Výstup!$F$6*(1+Výstup!$F$146)^(Výstup!J$46-2024))+IF($G$7="Tržní",'Pomocný list 1'!$E$15*Výstup!J63,'Pomocný list 1'!$E$15*Výstup!$G$6*(1+Výstup!$G$146)^(Výstup!J$46-2024))+IF($H$7="Tržní",'Pomocný list 1'!$F$15*Výstup!J63,'Pomocný list 1'!$F$15*Výstup!$H$6*(1+Výstup!$H$146)^(Výstup!J$46-2024))+IF($I$7="Tržní",'Pomocný list 1'!$G$15*Výstup!J63,'Pomocný list 1'!$G$15*Výstup!$I$6*(1+Výstup!$I$146)^(Výstup!J$46-2024)) -> 1566719.522 | K67: =IF($E$7="Tržní",'Pomocný list 1'!$C$15*Výstup!K63,'Pomocný list 1'!$C$15*Výstup!$E$6*(1+Výstup!$E$146)^(Výstup!K$46-2024))+IF($F$7="Tržní",'Pomocný list 1'!$D$15*Výstup!K63,'Pomocný list 1'!$D$15*Výstup!$F$6*(1+Výstup!$F$146)^(Výstup!K$46-2024))+IF($G$7="Tržní",'Pomocný list 1'!$E$15*Výstup!K63,'Pomocný list 1'!$E$15*Výstup!$G$6*(1+Výstup!$G$146)^(Výstup!K$46-2024))+IF($H$7="Tržní",'Pomocný list 1'!$F$15*Výstup!K63,'Pomocný list 1'!$F$15*Výstup!$H$6*(1+Výstup!$H$146)^(Výstup!K$46-2024))+IF($I$7="Tržní",'Pomocný list 1'!$G$15*Výstup!K63,'Pomocný list 1'!$G$15*Výstup!$I$6*(1+Výstup!$I$146)^(Výstup!K$46-2024)) -> 1588048.295 | L67: =IF($E$7="Tržní",'Pomocný list 1'!$C$15*Výstup!L63,'Pomocný list 1'!$C$15*Výstup!$E$6*(1+Výstup!$E$146)^(Výstup!L$46-2024))+IF($F$7="Tržní",'Pomocný list 1'!$D$15*Výstup!L63,'Pomocný list 1'!$D$15*Výstup!$F$6*(1+Výstup!$F$146)^(Výstup!L$46-2024))+IF($G$7="Tržní",'Pomocný list 1'!$E$15*Výstup!L63,'Pomocný list 1'!$E$15*Výstup!$G$6*(1+Výstup!$G$146)^(Výstup!L$46-2024))+IF($H$7="Tržní",'Pomocný list 1'!$F$15*Výstup!L63,'Pomocný list 1'!$F$15*Výstup!$H$6*(1+Výstup!$H$146)^(Výstup!L$46-2024))+IF($I$7="Tržní",'Pomocný list 1'!$G$15*Výstup!L63,'Pomocný list 1'!$G$15*Výstup!$I$6*(1+Výstup!$I$146)^(Výstup!L$46-2024)) -> 1609803.644 | M67: =IF($E$7="Tržní",'Pomocný list 1'!$C$15*Výstup!M63,'Pomocný list 1'!$C$15*Výstup!$E$6*(1+Výstup!$E$146)^(Výstup!M$46-2024))+IF($F$7="Tržní",'Pomocný list 1'!$D$15*Výstup!M63,'Pomocný list 1'!$D$15*Výstup!$F$6*(1+Výstup!$F$146)^(Výstup!M$46-2024))+IF($G$7="Tržní",'Pomocný list 1'!$E$15*Výstup!M63,'Pomocný list 1'!$E$15*Výstup!$G$6*(1+Výstup!$G$146)^(Výstup!M$46-2024))+IF($H$7="Tržní",'Pomocný list 1'!$F$15*Výstup!M63,'Pomocný list 1'!$F$15*Výstup!$H$6*(1+Výstup!$H$146)^(Výstup!M$46-2024))+IF($I$7="Tržní",'Pomocný list 1'!$G$15*Výstup!M63,'Pomocný list 1'!$G$15*Výstup!$I$6*(1+Výstup!$I$146)^(Výstup!M$46-2024)) -> 1631994.1 | N67: =IF($E$7="Tržní",'Pomocný list 1'!$C$15*Výstup!N63,'Pomocný list 1'!$C$15*Výstup!$E$6*(1+Výstup!$E$146)^(Výstup!N$46-2024))+IF($F$7="Tržní",'Pomocný list 1'!$D$15*Výstup!N63,'Pomocný list 1'!$D$15*Výstup!$F$6*(1+Výstup!$F$146)^(Výstup!N$46-2024))+IF($G$7="Tržní",'Pomocný list 1'!$E$15*Výstup!N63,'Pomocný list 1'!$E$15*Výstup!$G$6*(1+Výstup!$G$146)^(Výstup!N$46-2024))+IF($H$7="Tržní",'Pomocný list 1'!$F$15*Výstup!N63,'Pomocný list 1'!$F$15*Výstup!$H$6*(1+Výstup!$H$146)^(Výstup!N$46-2024))+IF($I$7="Tržní",'Pomocný list 1'!$G$15*Výstup!N63,'Pomocný list 1'!$G$15*Výstup!$I$6*(1+Výstup!$I$146)^(Výstup!N$46-2024)) -> 1654628.365 | O67: =IF($E$7="Tržní",'Pomocný list 1'!$C$15*Výstup!O63,'Pomocný list 1'!$C$15*Výstup!$E$6*(1+Výstup!$E$146)^(Výstup!O$46-2024))+IF($F$7="Tržní",'Pomocný list 1'!$D$15*Výstup!O63,'Pomocný list 1'!$D$15*Výstup!$F$6*(1+Výstup!$F$146)^(Výstup!O$46-2024))+IF($G$7="Tržní",'Pomocný list 1'!$E$15*Výstup!O63,'Pomocný list 1'!$E$15*Výstup!$G$6*(1+Výstup!$G$146)^(Výstup!O$46-2024))+IF($H$7="Tržní",'Pomocný list 1'!$F$15*Výstup!O63,'Pomocný list 1'!$F$15*Výstup!$H$6*(1+Výstup!$H$146)^(Výstup!O$46-2024))+IF($I$7="Tržní",'Pomocný list 1'!$G$15*Výstup!O63,'Pomocný list 1'!$G$15*Výstup!$I$6*(1+Výstup!$I$146)^(Výstup!O$46-2024)) -> 1677715.315 | P67: =IF($E$7="Tržní",'Pomocný list 1'!$C$15*Výstup!P63,'Pomocný list 1'!$C$15*Výstup!$E$6*(1+Výstup!$E$146)^(Výstup!P$46-2024))+IF($F$7="Tržní",'Pomocný list 1'!$D$15*Výstup!P63,'Pomocný list 1'!$D$15*Výstup!$F$6*(1+Výstup!$F$146)^(Výstup!P$46-2024))+IF($G$7="Tržní",'Pomocný list 1'!$E$15*Výstup!P63,'Pomocný list 1'!$E$15*Výstup!$G$6*(1+Výstup!$G$146)^(Výstup!P$46-2024))+IF($H$7="Tržní",'Pomocný list 1'!$F$15*Výstup!P63,'Pomocný list 1'!$F$15*Výstup!$H$6*(1+Výstup!$H$146)^(Výstup!P$46-2024))+IF($I$7="Tržní",'Pomocný list 1'!$G$15*Výstup!P63,'Pomocný list 1'!$G$15*Výstup!$I$6*(1+Výstup!$I$146)^(Výstup!P$46-2024)) -> 1701264.005 | Q67: =IF($E$7="Tržní",'Pomocný list 1'!$C$15*Výstup!Q63,'Pomocný list 1'!$C$15*Výstup!$E$6*(1+Výstup!$E$146)^(Výstup!Q$46-2024))+IF($F$7="Tržní",'Pomocný list 1'!$D$15*Výstup!Q63,'Pomocný list 1'!$D$15*Výstup!$F$6*(1+Výstup!$F$146)^(Výstup!Q$46-2024))+IF($G$7="Tržní",'Pomocný list 1'!$E$15*Výstup!Q63,'Pomocný list 1'!$E$15*Výstup!$G$6*(1+Výstup!$G$146)^(Výstup!Q$46-2024))+IF($H$7="Tržní",'Pomocný list 1'!$F$15*Výstup!Q63,'Pomocný list 1'!$F$15*Výstup!$H$6*(1+Výstup!$H$146)^(Výstup!Q$46-2024))+IF($I$7="Tržní",'Pomocný list 1'!$G$15*Výstup!Q63,'Pomocný list 1'!$G$15*Výstup!$I$6*(1+Výstup!$I$146)^(Výstup!Q$46-2024)) -> 1725283.668 | R67: =IF($E$7="Tržní",'Pomocný list 1'!$C$15*Výstup!R63,'Pomocný list 1'!$C$15*Výstup!$E$6*(1+Výstup!$E$146)^(Výstup!R$46-2024))+IF($F$7="Tržní",'Pomocný list 1'!$D$15*Výstup!R63,'Pomocný list 1'!$D$15*Výstup!$F$6*(1+Výstup!$F$146)^(Výstup!R$46-2024))+IF($G$7="Tržní",'Pomocný list 1'!$E$15*Výstup!R63,'Pomocný list 1'!$E$15*Výstup!$G$6*(1+Výstup!$G$146)^(Výstup!R$46-2024))+IF($H$7="Tržní",'Pomocný list 1'!$F$15*Výstup!R63,'Pomocný list 1'!$F$15*Výstup!$H$6*(1+Výstup!$H$146)^(Výstup!R$46-2024))+IF($I$7="Tržní",'Pomocný list 1'!$G$15*Výstup!R63,'Pomocný list 1'!$G$15*Výstup!$I$6*(1+Výstup!$I$146)^(Výstup!R$46-2024)) -> 1749783.724 | S67: =IF($E$7="Tržní",'Pomocný list 1'!$C$15*Výstup!S63,'Pomocný list 1'!$C$15*Výstup!$E$6*(1+Výstup!$E$146)^(Výstup!S$46-2024))+IF($F$7="Tržní",'Pomocný list 1'!$D$15*Výstup!S63,'Pomocný list 1'!$D$15*Výstup!$F$6*(1+Výstup!$F$146)^(Výstup!S$46-2024))+IF($G$7="Tržní",'Pomocný list 1'!$E$15*Výstup!S63,'Pomocný list 1'!$E$15*Výstup!$G$6*(1+Výstup!$G$146)^(Výstup!S$46-2024))+IF($H$7="Tržní",'Pomocný list 1'!$F$15*Výstup!S63,'Pomocný list 1'!$F$15*Výstup!$H$6*(1+Výstup!$H$146)^(Výstup!S$46-2024))+IF($I$7="Tržní",'Pomocný list 1'!$G$15*Výstup!S63,'Pomocný list 1'!$G$15*Výstup!$I$6*(1+Výstup!$I$146)^(Výstup!S$46-2024)) -> 1774773.782 | T67: =IF($E$7="Tržní",'Pomocný list 1'!$C$15*Výstup!T63,'Pomocný list 1'!$C$15*Výstup!$E$6*(1+Výstup!$E$146)^(Výstup!T$46-2024))+IF($F$7="Tržní",'Pomocný list 1'!$D$15*Výstup!T63,'Pomocný list 1'!$D$15*Výstup!$F$6*(1+Výstup!$F$146)^(Výstup!T$46-2024))+IF($G$7="Tržní",'Pomocný list 1'!$E$15*Výstup!T63,'Pomocný list 1'!$E$15*Výstup!$G$6*(1+Výstup!$G$146)^(Výstup!T$46-2024))+IF($H$7="Tržní",'Pomocný list 1'!$F$15*Výstup!T63,'Pomocný list 1'!$F$15*Výstup!$H$6*(1+Výstup!$H$146)^(Výstup!T$46-2024))+IF($I$7="Tržní",'Pomocný list 1'!$G$15*Výstup!T63,'Pomocný list 1'!$G$15*Výstup!$I$6*(1+Výstup!$I$146)^(Výstup!T$46-2024)) -> 1800263.64 | U67: =IF($E$7="Tržní",'Pomocný list 1'!$C$15*Výstup!U63,'Pomocný list 1'!$C$15*Výstup!$E$6*(1+Výstup!$E$146)^(Výstup!U$46-2024))+IF($F$7="Tržní",'Pomocný list 1'!$D$15*Výstup!U63,'Pomocný list 1'!$D$15*Výstup!$F$6*(1+Výstup!$F$146)^(Výstup!U$46-2024))+IF($G$7="Tržní",'Pomocný list 1'!$E$15*Výstup!U63,'Pomocný list 1'!$E$15*Výstup!$G$6*(1+Výstup!$G$146)^(Výstup!U$46-2024))+IF($H$7="Tržní",'Pomocný list 1'!$F$15*Výstup!U63,'Pomocný list 1'!$F$15*Výstup!$H$6*(1+Výstup!$H$146)^(Výstup!U$46-2024))+IF($I$7="Tržní",'Pomocný list 1'!$G$15*Výstup!U63,'Pomocný list 1'!$G$15*Výstup!$I$6*(1+Výstup!$I$146)^(Výstup!U$46-2024)) -> 1826263.296 | V67: =IF($E$7="Tržní",'Pomocný list 1'!$C$15*Výstup!V63,'Pomocný list 1'!$C$15*Výstup!$E$6*(1+Výstup!$E$146)^(Výstup!V$46-2024))+IF($F$7="Tržní",'Pomocný list 1'!$D$15*Výstup!V63,'Pomocný list 1'!$D$15*Výstup!$F$6*(1+Výstup!$F$146)^(Výstup!V$46-2024))+IF($G$7="Tržní",'Pomocný list 1'!$E$15*Výstup!V63,'Pomocný list 1'!$E$15*Výstup!$G$6*(1+Výstup!$G$146)^(Výstup!V$46-2024))+IF($H$7="Tržní",'Pomocný list 1'!$F$15*Výstup!V63,'Pomocný list 1'!$F$15*Výstup!$H$6*(1+Výstup!$H$146)^(Výstup!V$46-2024))+IF($I$7="Tržní",'Pomocný list 1'!$G$15*Výstup!V63,'Pomocný list 1'!$G$15*Výstup!$I$6*(1+Výstup!$I$146)^(Výstup!V$46-2024)) -> 1852782.945
K70: 2025 | R70: 2030 | Y70: 2035 | AF70: 2040
K71: Cenová charakteristika spotových cen | R71: Cenová charakteristika spotových cen | Y71: Cenová charakteristika spotových cen | AF71: Cenová charakteristika spotových cen
F72: Scénáře vývoje cen elektřiny | K72: měsíc | M72: den v týdnu | O72: hodina | R72: ='Pomocný list 1'!BO32 -> měsíc | T72: den v týdnu | V72: hodina | Y72: měsíc | AA72: den v týdnu | AC72: hodina | AF72: měsíc | AH72: den v týdnu | AJ72: hodina
F73: scenář | G73: respondentní | H73: progresivní | I73: dekarbonizační | K73: 1 | L73: ='Pomocný list 2'!AV3 -> 1.17033424 | M73: 1 | N73: ='Pomocný list 2'!AX3 -> 1.05809357 | O73: 1 | P73: ='Pomocný list 2'!AZ3 -> 0.7907983234 | R73: ='Pomocný list 1'!BO33 -> 1 | S73: ='Pomocný list 1'!BP33 -> 1.37033424 | T73: ='Pomocný list 1'!BQ33 -> 1 | U73: ='Pomocný list 1'!BR33 -> 1.05809357 | V73: ='Pomocný list 1'!BS33 -> 1 | W73: ='Pomocný list 1'!BT33 -> 0.826092441 | Y73: ='Pomocný list 1'!BV33 -> 1 | Z73: ='Pomocný list 1'!BW33 -> 1.57033424 | AA73: ='Pomocný list 1'!BX33 -> 1 | AB73: ='Pomocný list 1'!BY33 -> 1.05809357 | AC73: ='Pomocný list 1'!BZ33 -> 1 | AD73: ='Pomocný list 1'!CA33 -> 0.876092441 | AF73: ='Pomocný list 1'!CC33 -> 1 | AG73: ='Pomocný list 1'!CD33 -> 1.77033424 | AH73: ='Pomocný list 1'!CE33 -> 1 | AI73: ='Pomocný list 1'!CF33 -> 1.05809357 | AJ73: ='Pomocný list 1'!CG33 -> 1 | AK73: ='Pomocný list 1'!CH33 -> 0.926092441
F74: rok/jednotka | G74: €/MWh | H74: €/MWh | I74: €/MWh | K74: 2 | L74: ='Pomocný list 2'!AV4 -> 0.9574117888 | M74: 2 | N74: ='Pomocný list 2'!AX4 -> 1.105430504 | O74: 2 | P74: ='Pomocný list 2'!AZ4 -> 0.7451425469 | R74: ='Pomocný list 1'!BO34 -> 2 | S74: ='Pomocný list 1'!BP34 -> 1.057411789 | T74: ='Pomocný list 1'!BQ34 -> 2 | U74: ='Pomocný list 1'!BR34 -> 1.105430504 | V74: ='Pomocný list 1'!BS34 -> 2 | W74: ='Pomocný list 1'!BT34 -> 0.7804366645 | Y74: ='Pomocný list 1'!BV34 -> 2 | Z74: ='Pomocný list 1'!BW34 -> 1.157411789 | AA74: ='Pomocný list 1'!BX34 -> 2 | AB74: ='Pomocný list 1'!BY34 -> 1.105430504 | AC74: ='Pomocný list 1'!BZ34 -> 2 | AD74: ='Pomocný list 1'!CA34 -> 0.8304366645 | AF74: ='Pomocný list 1'!CC34 -> 2 | AG74: ='Pomocný list 1'!CD34 -> 1.257411789 | AH74: ='Pomocný list 1'!CE34 -> 2 | AI74: ='Pomocný list 1'!CF34 -> 1.105430504 | AJ74: ='Pomocný list 1'!CG34 -> 2 | AK74: ='Pomocný list 1'!CH34 -> 0.8804366645
F75: 2024 | G75: 138 | H75: 138 | I75: 138 | K75: 3 | L75: ='Pomocný list 2'!AV5 -> 0.8056128043 | M75: 3 | N75: ='Pomocný list 2'!AX5 -> 1.109689155 | O75: 3 | P75: ='Pomocný list 2'!AZ5 -> 0.711034209 | R75: ='Pomocný list 1'!BO35 -> 3 | S75: ='Pomocný list 1'!BP35 -> 0.7556128043 | T75: ='Pomocný list 1'!BQ35 -> 3 | U75: ='Pomocný list 1'!BR35 -> 1.109689155 | V75: ='Pomocný list 1'!BS35 -> 3 | W75: ='Pomocný list 1'!BT35 -> 0.7463283267 | Y75: ='Pomocný list 1'!BV35 -> 3 | Z75: ='Pomocný list 1'!BW35 -> 0.7056128043 | AA75: ='Pomocný list 1'!BX35 -> 3 | AB75: ='Pomocný list 1'!BY35 -> 1.109689155 | AC75: ='Pomocný list 1'!BZ35 -> 3 | AD75: ='Pomocný list 1'!CA35 -> 0.7963283267 | AF75: ='Pomocný list 1'!CC35 -> 3 | AG75: ='Pomocný list 1'!CD35 -> 0.6306128043 | AH75: ='Pomocný list 1'!CE35 -> 3 | AI75: ='Pomocný list 1'!CF35 -> 1.109689155 | AJ75: ='Pomocný list 1'!CG35 -> 3 | AK75: ='Pomocný list 1'!CH35 -> 0.8463283267
F76: 2025 | G76: 124 | H76: 124 | I76: 124 | K76: 4 | L76: ='Pomocný list 2'!AV6 -> 0.7642370938 | M76: 4 | N76: ='Pomocný list 2'!AX6 -> 1.097806091 | O76: 4 | P76: ='Pomocný list 2'!AZ6 -> 0.6893463234 | R76: ='Pomocný list 1'!BO36 -> 4 | S76: ='Pomocný list 1'!BP36 -> 0.7142370938 | T76: ='Pomocný list 1'!BQ36 -> 4 | U76: ='Pomocný list 1'!BR36 -> 1.097806091 | V76: ='Pomocný list 1'!BS36 -> 4 | W76: ='Pomocný list 1'!BT36 -> 0.7246404411 | Y76: ='Pomocný list 1'!BV36 -> 4 | Z76: ='Pomocný list 1'!BW36 -> 0.6642370938 | AA76: ='Pomocný list 1'!BX36 -> 4 | AB76: ='Pomocný list 1'!BY36 -> 1.097806091 | AC76: ='Pomocný list 1'!BZ36 -> 4 | AD76: ='Pomocný list 1'!CA36 -> 0.7746404411 | AF76: ='Pomocný list 1'!CC36 -> 4 | AG76: ='Pomocný list 1'!CD36 -> 0.5642370938 | AH76: ='Pomocný list 1'!CE36 -> 4 | AI76: ='Pomocný list 1'!CF36 -> 1.097806091 | AJ76: ='Pomocný list 1'!CG36 -> 4 | AK76: ='Pomocný list 1'!CH36 -> 0.8246404411
F77: 2026 | G77: 108 | H77: 108 | I77: 108 | K77: 5 | L77: ='Pomocný list 2'!AV7 -> 0.7856309323 | M77: 5 | N77: ='Pomocný list 2'!AX7 -> 1.054041103 | O77: 5 | P77: ='Pomocný list 2'!AZ7 -> 0.7040846974 | R77: ='Pomocný list 1'!BO37 -> 5 | S77: ='Pomocný list 1'!BP37 -> 0.6856309323 | T77: ='Pomocný list 1'!BQ37 -> 5 | U77: ='Pomocný list 1'!BR37 -> 1.054041103 | V77: ='Pomocný list 1'!BS37 -> 5 | W77: ='Pomocný list 1'!BT37 -> 0.739378815 | Y77: ='Pomocný list 1'!BV37 -> 5 | Z77: ='Pomocný list 1'!BW37 -> 0.5856309323 | AA77: ='Pomocný list 1'!BX37 -> 5 | AB77: ='Pomocný list 1'!BY37 -> 1.054041103 | AC77: ='Pomocný list 1'!BZ37 -> 5 | AD77: ='Pomocný list 1'!CA37 -> 0.789378815 | AF77: ='Pomocný list 1'!CC37 -> 5 | AG77: ='Pomocný list 1'!CD37 -> 0.4856309323 | AH77: ='Pomocný list 1'!CE37 -> 5 | AI77: ='Pomocný list 1'!CF37 -> 1.054041103 | AJ77: ='Pomocný list 1'!CG37 -> 5 | AK77: ='Pomocný list 1'!CH37 -> 0.839378815
F78: 2027 | G78: 96 | H78: 96 | I78: 96 | K78: 6 | L78: ='Pomocný list 2'!AV8 -> 0.9138819264 | M78: 6 | N78: ='Pomocný list 2'!AX8 -> 0.8606344625 | O78: 6 | P78: ='Pomocný list 2'!AZ8 -> 0.7654272013 | R78: ='Pomocný list 1'!BO38 -> 6 | S78: ='Pomocný list 1'!BP38 -> 0.8138819264 | T78: ='Pomocný list 1'!BQ38 -> 6 | U78: ='Pomocný list 1'!BR38 -> 0.8606344625 | V78: ='Pomocný list 1'!BS38 -> 6 | W78: ='Pomocný list 1'!BT38 -> 0.8007213189 | Y78: ='Pomocný list 1'!BV38 -> 6 | Z78: ='Pomocný list 1'!BW38 -> 0.7138819264 | AA78: ='Pomocný list 1'!BX38 -> 6 | AB78: ='Pomocný list 1'!BY38 -> 0.8606344625 | AC78: ='Pomocný list 1'!BZ38 -> 6 | AD78: ='Pomocný list 1'!CA38 -> 0.8507213189 | AF78: ='Pomocný list 1'!CC38 -> 6 | AG78: ='Pomocný list 1'!CD38 -> 0.6138819264 | AH78: ='Pomocný list 1'!CE38 -> 6 | AI78: ='Pomocný list 1'!CF38 -> 0.8606344625 | AJ78: ='Pomocný list 1'!CG38 -> 6 | AK78: ='Pomocný list 1'!CH38 -> 0.9007213189
F79: 2028 | G79: 97.87755102 | H79: 97.60544218 | I79: 152.8435374 | K79: 7 | L79: ='Pomocný list 2'!AV9 -> 1.03002146 | M79: 7 | N79: ='Pomocný list 2'!AX9 -> 0.7141300051 | O79: 7 | P79: ='Pomocný list 2'!AZ9 -> 0.9549081416 | R79: ='Pomocný list 1'!BO39 -> 7 | S79: ='Pomocný list 1'!BP39 -> 0.93002146 | T79: ='Pomocný list 1'!BQ39 -> 7 | U79: ='Pomocný list 1'!BR39 -> 0.7141300051 | V79: ='Pomocný list 1'!BS39 -> 7 | W79: ='Pomocný list 1'!BT39 -> 0.9902022592 | Y79: ='Pomocný list 1'!BV39 -> 7 | Z79: ='Pomocný list 1'!BW39 -> 0.83002146 | AA79: ='Pomocný list 1'!BX39 -> 7 | AB79: ='Pomocný list 1'!BY39 -> 0.7141300051 | AC79: ='Pomocný list 1'!BZ39 -> 7 | AD79: ='Pomocný list 1'!CA39 -> 0.9777022592 | AF79: ='Pomocný list 1'!CC39 -> 7 | AG79: ='Pomocný list 1'!CD39 -> 0.73002146 | AH79: ='Pomocný list 1'!CE39 -> 7 | AI79: ='Pomocný list 1'!CF39 -> 0.7141300051 | AJ79: ='Pomocný list 1'!CG39 -> 7 | AK79: ='Pomocný list 1'!CH39 -> 0.9652022592
F80: 2029 | G80: 99.75510204 | H80: 99.21088435 | I80: 209.6870748 | K80: 8 | L80: ='Pomocný list 2'!AV10 -> 1.018835563 | O80: 8 | P80: ='Pomocný list 2'!AZ10 -> 1.130081586 | R80: ='Pomocný list 1'!BO40 -> 8 | S80: ='Pomocný list 1'!BP40 -> 0.9188355628 | V80: ='Pomocný list 1'!BS40 -> 8 | W80: ='Pomocný list 1'!BT40 -> 1.165375703 | Y80: ='Pomocný list 1'!BV40 -> 8 | Z80: ='Pomocný list 1'!BW40 -> 0.8188355628 | AC80: ='Pomocný list 1'!BZ40 -> 8 | AD80: ='Pomocný list 1'!CA40 -> 1.152875703 | AF80: ='Pomocný list 1'!CC40 -> 8 | AG80: ='Pomocný list 1'!CD40 -> 0.7188355628 | AJ80: ='Pomocný list 1'!CG40 -> 8 | AK80: ='Pomocný list 1'!CH40 -> 1.140375703
F81: 2030 | G81: 101.6326531 | H81: 100.8163265 | I81: 266.5306122 | K81: 9 | L81: ='Pomocný list 2'!AV11 -> 1.112709274 | O81: 9 | P81: ='Pomocný list 2'!AZ11 -> 1.185646861 | R81: ='Pomocný list 1'!BO41 -> 9 | S81: ='Pomocný list 1'!BP41 -> 1.062709274 | V81: ='Pomocný list 1'!BS41 -> 9 | W81: ='Pomocný list 1'!BT41 -> 1.135646861 | Y81: ='Pomocný list 1'!BV41 -> 9 | Z81: ='Pomocný list 1'!BW41 -> 1.012709274 | AC81: ='Pomocný list 1'!BZ41 -> 9 | AD81: ='Pomocný list 1'!CA41 -> 1.085646861 | AF81: ='Pomocný list 1'!CC41 -> 9 | AG81: ='Pomocný list 1'!CD41 -> 0.9377092736 | AJ81: ='Pomocný list 1'!CG41 -> 9 | AK81: ='Pomocný list 1'!CH41 -> 1.035646861
F82: 2031 | G82: 105.6326531 | H82: 115.5918367 | I82: 291.5102041 | K82: 10 | L82: ='Pomocný list 2'!AV12 -> 1.09833893 | O82: 10 | P82: ='Pomocný list 2'!AZ12 -> 1.160591854 | R82: ='Pomocný list 1'!BO42 -> 10 | S82: ='Pomocný list 1'!BP42 -> 1.04833893 | V82: ='Pomocný list 1'!BS42 -> 10 | W82: ='Pomocný list 1'!BT42 -> 1.060591854 | Y82: ='Pomocný list 1'!BV42 -> 10 | Z82: ='Pomocný list 1'!BW42 -> 0.9983389303 | AC82: ='Pomocný list 1'!BZ42 -> 10 | AD82: ='Pomocný list 1'!CA42 -> 0.9605918542 | AF82: ='Pomocný list 1'!CC42 -> 10 | AG82: ='Pomocný list 1'!CD42 -> 1.04833893 | AJ82: ='Pomocný list 1'!CG42 -> 10 | AK82: ='Pomocný list 1'!CH42 -> 0.8605918542
F83: 2032 | G83: 109.6326531 | H83: 130.3673469 | I83: 316.4897959 | K83: 11 | L83: ='Pomocný list 2'!AV13 -> 1.191632653 | O83: 11 | P83: ='Pomocný list 2'!AZ13 -> 1.105807133 | R83: ='Pomocný list 1'!BO43 -> 11 | S83: ='Pomocný list 1'!BP43 -> 1.291632653 | V83: ='Pomocný list 1'!BS43 -> 11 | W83: ='Pomocný list 1'!BT43 -> 1.005807133 | Y83: ='Pomocný list 1'!BV43 -> 11 | Z83: ='Pomocný list 1'!BW43 -> 1.391632653 | AC83: ='Pomocný list 1'!BZ43 -> 11 | AD83: ='Pomocný list 1'!CA43 -> 0.9058071327 | AF83: ='Pomocný list 1'!CC43 -> 11 | AG83: ='Pomocný list 1'!CD43 -> 1.491632653 | AJ83: ='Pomocný list 1'!CG43 -> 11 | AK83: ='Pomocný list 1'!CH43 -> 0.8058071327
F84: 2033 | G84: 113.6326531 | H84: 145.1428571 | I84: 341.4693878 | K84: 12 | L84: ='Pomocný list 2'!AV14 -> 1.151625889 | O84: 12 | P84: ='Pomocný list 2'!AZ14 -> 1.086781129 | R84: ='Pomocný list 1'!BO44 -> 12 | S84: ='Pomocný list 1'!BP44 -> 1.351625889 | V84: ='Pomocný list 1'!BS44 -> 12 | W84: ='Pomocný list 1'!BT44 -> 0.9867811288 | Y84: ='Pomocný list 1'!BV44 -> 12 | Z84: ='Pomocný list 1'!BW44 -> 1.551625889 | AC84: ='Pomocný list 1'!BZ44 -> 12 | AD84: ='Pomocný list 1'!CA44 -> 0.8867811288 | AF84: ='Pomocný list 1'!CC44 -> 12 | AG84: ='Pomocný list 1'!CD44 -> 1.751625889 | AJ84: ='Pomocný list 1'!CG44 -> 12 | AK84: ='Pomocný list 1'!CH44 -> 0.7867811288
F85: 2034 | G85: 117.6326531 | H85: 159.9183673 | I85: 366.4489796 | O85: 13 | P85: ='Pomocný list 2'!AZ15 -> 1.05000476 | V85: ='Pomocný list 1'!BS45 -> 13 | W85: ='Pomocný list 1'!BT45 -> 0.9500047598 | AC85: ='Pomocný list 1'!BZ45 -> 13 | AD85: ='Pomocný list 1'!CA45 -> 0.8500047598 | AJ85: ='Pomocný list 1'!CG45 -> 13 | AK85: ='Pomocný list 1'!CH45 -> 0.7500047598
F86: 2035 | G86: 121.6326531 | H86: 174.6938776 | I86: 391.4285714 | O86: 14 | P86: ='Pomocný list 2'!AZ16 -> 1.013420127 | V86: ='Pomocný list 1'!BS46 -> 14 | W86: ='Pomocný list 1'!BT46 -> 0.9134201267 | AC86: ='Pomocný list 1'!BZ46 -> 14 | AD86: ='Pomocný list 1'!CA46 -> 0.8134201267 | AJ86: ='Pomocný list 1'!CG46 -> 14 | AK86: ='Pomocný list 1'!CH46 -> 0.7134201267
F87: 2036 | G87: 123.5918367 | H87: 177.6326531 | I87: 374.2857143 | O87: 15 | P87: ='Pomocný list 2'!AZ17 -> 0.986615429 | V87: ='Pomocný list 1'!BS47 -> 15 | W87: ='Pomocný list 1'!BT47 -> 0.936615429 | AC87: ='Pomocný list 1'!BZ47 -> 15 | AD87: ='Pomocný list 1'!CA47 -> 0.886615429 | AJ87: ='Pomocný list 1'!CG47 -> 15 | AK87: ='Pomocný list 1'!CH47 -> 0.836615429
F88: 2037 | G88: 125.5510204 | H88: 180.5714286 | I88: 357.1428571 | O88: 16 | P88: ='Pomocný list 2'!AZ18 -> 1.025638851 | V88: ='Pomocný list 1'!BS48 -> 16 | W88: ='Pomocný list 1'!BT48 -> 1.060932969 | AC88: ='Pomocný list 1'!BZ48 -> 16 | AD88: ='Pomocný list 1'!CA48 -> 1.048432969 | AJ88: ='Pomocný list 1'!CG48 -> 16 | AK88: ='Pomocný list 1'!CH48 -> 1.035932969
F89: 2038 | G89: 127.5102041 | H89: 183.5102041 | I89: 340 | L89: ='Pomocný list 1'!BI49 -> spotřební profil | M89: ='Pomocný list 1'!BJ49 -> 1.0553094 | O89: 17 | P89: ='Pomocný list 2'!AZ19 -> 1.086570106 | S89: ='Pomocný list 1'!BP49 -> spotřební profil | T89: ='Pomocný list 1'!BQ49 -> 1.048313556 | V89: ='Pomocný list 1'!BS49 -> 17 | W89: ='Pomocný list 1'!BT49 -> 1.121864223 | Z89: ='Pomocný list 1'!BW49 -> spotřební profil | AA89: ='Pomocný list 1'!BX49 -> 1.039001633 | AC89: ='Pomocný list 1'!BZ49 -> 17 | AD89: ='Pomocný list 1'!CA49 -> 1.109364223 | AG89: ='Pomocný list 1'!CD49 -> spotřební profil | AH89: ='Pomocný list 1'!CE49 -> 1.029980584 | AJ89: ='Pomocný list 1'!CG49 -> 17 | AK89: ='Pomocný list 1'!CH49 -> 1.096864223
F90: 2039 | G90: 129.4693878 | H90: 186.4489796 | I90: 322.8571429 | L90: ='Pomocný list 1'!BI50 -> reziduální profil | M90: =IF($H$16<1,0,'Pomocný list 1'!BJ50) -> 1.055892399 | O90: 18 | P90: ='Pomocný list 2'!AZ20 -> 1.187025599 | S90: ='Pomocný list 1'!BP50 -> reziduální profil | T90: =IF($H$16<1,0,'Pomocný list 1'!BQ50) -> 1.073789511 | V90: ='Pomocný list 1'!BS50 -> 18 | W90: ='Pomocný list 1'!BT50 -> 1.222319716 | Z90: ='Pomocný list 1'!BW50 -> reziduální profil | AA90: =IF($H$16<1,0,'Pomocný list 1'!BX50) -> 1.091868635 | AC90: ='Pomocný list 1'!BZ50 -> 18 | AD90: ='Pomocný list 1'!CA50 -> 1.272319716 | AG90: ='Pomocný list 1'!CD50 -> reziduální profil | AH90: =IF($H$16<1,0,'Pomocný list 1'!CE50) -> 1.111433665 | AJ90: ='Pomocný list 1'!CG50 -> 18 | AK90: ='Pomocný list 1'!CH50 -> 1.322319716
F91: 2040 | G91: 131.4285714 | H91: 189.3877551 | I91: 305.7142857 | L91: ='Pomocný list 1'!BI51 -> profil přebytků | M91: =IF($H$19<1,0,'Pomocný list 1'!BJ51) -> 0.9085612582 | O91: 19 | P91: ='Pomocný list 2'!AZ21 -> 1.252210943 | S91: ='Pomocný list 1'!BP51 -> profil přebytků | T91: =IF($H$19<1,0,'Pomocný list 1'!BQ51) -> 0.8521135738 | V91: ='Pomocný list 1'!BS51 -> 19 | W91: ='Pomocný list 1'!BT51 -> 1.287505061 | Z91: ='Pomocný list 1'!BW51 -> profil přebytků | AA91: =IF($H$19<1,0,'Pomocný list 1'!BX51) -> 0.7958195634 | AC91: ='Pomocný list 1'!BZ51 -> 19 | AD91: ='Pomocný list 1'!CA51 -> 1.337505061 | AG91: ='Pomocný list 1'!CD51 -> profil přebytků | AH91: =IF($H$19<1,0,'Pomocný list 1'!CE51) -> 0.7382482375 | AJ91: ='Pomocný list 1'!CG51 -> 19 | AK91: ='Pomocný list 1'!CH51 -> 1.387505061
O92: 20 | P92: ='Pomocný list 2'!AZ22 -> 1.281222316 | V92: ='Pomocný list 1'!BS52 -> 20 | W92: ='Pomocný list 1'!BT52 -> 1.316516434 | AC92: ='Pomocný list 1'!BZ52 -> 20 | AD92: ='Pomocný list 1'!CA52 -> 1.366516434 | AJ92: ='Pomocný list 1'!CG52 -> 20 | AK92: ='Pomocný list 1'!CH52 -> 1.416516434
O93: 21 | P93: ='Pomocný list 2'!AZ23 -> 1.196650084 | V93: ='Pomocný list 1'!BS53 -> 21 | W93: ='Pomocný list 1'!BT53 -> 1.231944201 | AC93: ='Pomocný list 1'!BZ53 -> 21 | AD93: ='Pomocný list 1'!CA53 -> 1.281944201 | AJ93: ='Pomocný list 1'!CG53 -> 21 | AK93: ='Pomocný list 1'!CH53 -> 1.331944201
O94: 22 | P94: ='Pomocný list 2'!AZ24 -> 1.064730539 | V94: ='Pomocný list 1'!BS54 -> 22 | W94: ='Pomocný list 1'!BT54 -> 1.100024656 | AC94: ='Pomocný list 1'!BZ54 -> 22 | AD94: ='Pomocný list 1'!CA54 -> 1.150024656 | AJ94: ='Pomocný list 1'!CG54 -> 22 | AK94: ='Pomocný list 1'!CH54 -> 1.200024656
O95: 23 | P95: ='Pomocný list 2'!AZ25 -> 0.9788316198 | V95: ='Pomocný list 1'!BS55 -> 23 | W95: ='Pomocný list 1'!BT55 -> 1.014125737 | AC95: ='Pomocný list 1'!BZ55 -> 23 | AD95: ='Pomocný list 1'!CA55 -> 1.064125737 | AJ95: ='Pomocný list 1'!CG55 -> 23 | AK95: ='Pomocný list 1'!CH55 -> 1.114125737
O96: 24 | P96: ='Pomocný list 2'!AZ26 -> 0.8440228555 | V96: ='Pomocný list 1'!BS56 -> 24 | W96: ='Pomocný list 1'!BT56 -> 0.8793169732 | AC96: ='Pomocný list 1'!BZ56 -> 24 | AD96: ='Pomocný list 1'!CA56 -> 0.9293169732 | AJ96: ='Pomocný list 1'!CG56 -> 24 | AK96: ='Pomocný list 1'!CH56 -> 0.9793169732
E146: =IF(E7="Fixní",0,E8) -> 0.02 | F146: =IF(F7="Fixní",0,F8) -> 0 | G146: 0.02 | H146: 0.02 | I146: 0

Sheet Pomocný list 1
BA2: Spotřeba | BO2: Reziduální spotřeba | BV2: Reziduální spotřeba | CC2: Reziduální spotřeba | CJ2: Reziduální spotřeba | CQ2: Reziduální spotřeba | CX2: Přebytky | DE2: Přebytky | DL2: Přebytky | DS2: Přebytky | DZ2: Přebytky
BA3: měsíc | BC3: den v týdnu | BE3: hodina | BO3: měsíc | BQ3: den v týdnu | BS3: hodina | BV3: měsíc | BX3: den v týdnu | BZ3: hodina | CC3: měsíc | CE3: den v týdnu | CG3: hodina | CJ3: měsíc | CL3: den v týdnu | CN3: hodina | CQ3: měsíc | CS3: den v týdnu | CU3: hodina | CX3: měsíc | CZ3: den v týdnu | DB3: hodina | DE3: měsíc | DG3: den v týdnu | DI3: hodina | DL3: měsíc | DN3: den v týdnu | DP3: hodina | DS3: měsíc | DU3: den v týdnu | DW3: hodina | DZ3: měsíc | EB3: den v týdnu | ED3: hodina
B4: Zdroj | C4: =Výstup!E4 -> PV | D4: =Výstup!F4 -> PV | E4: =Výstup!G4 -> Wind | F4: =Výstup!H4 -> PV | G4: =Výstup!I4 -> Wind | M4: maximum výroby (dle dospupných kapacit) | N4: =C5*C12+D5*D12+E5*E12+F5*F12+G5*G12 -> 31050 | O4: MWh | BA4: 1 | BB4: =SUMIFS($S$13:$S$8772,$Q$13:$Q$8772,BA4)/$S$11 -> 0.08550293181 | BC4: 1 | BD4: =SUMIFS($S$13:$S$8772,$P$13:$P$8772,BC4)/$S$11 -> 0.1670178322 | BE4: 1 | BF4: =SUMIFS($S$13:$S$8772,$O$13:$O$8772,BE4)/$S$11 -> 0.02999997737 | BO4: 1 | BP4: =IFERROR(SUMIFS($AO$13:$AO$8772,$Q$13:$Q$8772,BO4)/$AO$10,1/12) -> 0.07684404788 | BQ4: 1 | BR4: =IFERROR(SUMIFS($AO$13:$AO$8772,$P$13:$P$8772,BQ4)/$AO$10,1/7) -> 0.1728887444 | BS4: 1 | BT4: =IFERROR(SUMIFS($AO$13:$AO$8772,$O$13:$O$8772,BS4)/$AO$10,1/24) -> 0.04061451778 | BV4: 1 | BW4: =IFERROR(SUMIFS($AP$13:$AP$8772,$Q$13:$Q$8772,BV4)/$AP$10,1/12) -> 0.09857961047 | BX4: 1 | BY4: =IFERROR(SUMIFS($AP$13:$AP$8772,$P$13:$P$8772,BX4)/$AP$10,1/7) -> 0.1856020837 | BZ4: 1 | CA4: =IFERROR(SUMIFS($AP$13:$AP$8772,$O$13:$O$8772,BZ4)/$AP$10,1/24) -> 0.04015046283 | CC4: 1 | CD4: =IFERROR(SUMIFS($AQ$13:$AQ$8772,$Q$13:$Q$8772,CC4)/$AQ$10,1/12) -> 0.08471050152 | CE4: 1 | CF4: =IFERROR(SUMIFS($AP$13:$AP$8772,$P$13:$P$8772,CE4)/$AP$10,1/7) -> 0.1856020837 | CG4: 1 | CH4: =IFERROR(SUMIFS($AP$13:$AP$8772,$O$13:$O$8772,CG4)/$AP$10,1/24) -> 0.04015046283 | CJ4: 1 | CK4: =IFERROR(SUMIFS($AR$13:$AR$8772,$Q$13:$Q$8772,CJ4)/$AR$10,1/12) -> 0.08855364422 | CL4: 1 | CM4: =IFERROR(SUMIFS($AR$13:$AR$8772,$P$13:$P$8772,CL4)/$AR$10,1/7) -> 0.1735624765 | CN4: 1 | CO4: =IFERROR(SUMIFS($AR$13:$AR$8772,$O$13:$O$8772,CN4)/$AR$10,1/24) -> 0.04038140483 | CQ4: 1 | CR4: =IFERROR(SUMIFS($AS$13:$AS$8772,$Q$13:$Q$8772,CQ4)/$AS$10,1/12) -> 0.08545054372 | CS4: 1 | CT4: =IFERROR(SUMIFS($AS$13:$AS$8772,$P$13:$P$8772,CS4)/$AS$10,1/7) -> 0.1899518283 | CU4: 1 | CV4: =IFERROR(SUMIFS($AS$13:$AS$8772,$O$13:$O$8772,CU4)/$AS$10,24) -> 0.03976231577 | CX4: 1 | CY4: =IFERROR(SUMIFS($AT$13:$AT$8772,$Q$13:$Q$8772,CX4)/$AT$10,12) -> 0.06172406485 | CZ4: 1 | DA4: =IFERROR(SUMIFS($AT$13:$AT$8772,$P$13:$P$8772,CZ4)/$AT$10,1/7) -> 0.06347796268 | DB4: 1 | DC4: =IFERROR(SUMIFS($AT$13:$AT$8772,$O$13:$O$8772,DB4)/$AT$10,1/24) -> 0.0200900146 | DE4: 1 | DF4: =IFERROR(SUMIFS($AU$13:$AU$8772,$Q$13:$Q$8772,DE4)/$AU$10,1/12) -> 0.04281033208 | DG4: 1 | DH4: =IFERROR(SUMIFS($AU$13:$AU$8772,$P$13:$P$8772,DG4)/$AU$10,1/7) -> 0.06172507632 | DI4: 1 | DJ4: =IFERROR(SUMIFS($AU$13:$AU$8772,$O$13:$O$8772,DI4)/$AU$10,1/24) -> 0.0225700365 | DL4: 1 | DM4: =IFERROR(SUMIFS($AV$13:$AV$8772,$Q$13:$Q$8772,DL4)/$AV$10,1/12) -> 0.06431726013 | DN4: 1 | DO4: =IFERROR(SUMIFS($AV$13:$AV$8772,$P$13:$P$8772,DN4)/$AV$10,1/7) -> 0.09548549883 | DP4: 1 | DQ4: =IFERROR(SUMIFS($AV$13:$AV$8772,$O$13:$O$8772,DP4)/$AV$10,1/24) -> 0.02293876766 | DS4: 1 | DT4: =IFERROR(SUMIFS($AW$13:$AW$8772,$Q$13:$Q$8772,DS4)/$AW$10,1/12) -> 0.0483555338 | DU4: 1 | DV4: =IFERROR(SUMIFS($AW$13:$AW$8772,$P$13:$P$8772,DU4)/$AW$10,1/7) -> 0.06414539431 | DW4: 1 | DX4: =IFERROR(SUMIFS($AW$13:$AW$8772,$O$13:$O$8772,DW4)/$AW$10,1/24) -> 0.02098572687 | DZ4: 1 | EA4: =IFERROR(SUMIFS($AX$13:$AX$8772,$Q$13:$Q$8772,DZ4)/$AX$10,1/12) -> 0.05989258875 | EB4: 1 | EC4: =IFERROR(SUMIFS($AX$13:$AX$8772,$P$13:$P$8772,EB4)/$AX$10,1/7) -> 0.08209020325 | ED4: 1 | EE4: =IFERROR(SUMIFS($AX$13:$AX$8772,$O$13:$O$8772,ED4)/$AX$10,1/24) -> 0.02520488627
B5: =Výstup!D5 -> Průměrný roční výnos energie (kWh/kWp) | C5: =Výstup!E5 -> 950 | D5: =Výstup!F5 -> 1050 | E5: =Výstup!G5 -> 2000 | F5: =Výstup!H5 -> 1050 | G5: =Výstup!I5 -> 2300 | M5: spotřeba | N5: =SUM(S13:S8772) -> 24000 | O5: MWh | BA5: 2 | BB5: =SUMIFS($S$13:$S$8772,$Q$13:$Q$8772,BA5)/$S$11 -> 0.07357646717 | BC5: 2 | BD5: =SUMIFS($S$13:$S$8772,$P$13:$P$8772,BC5)/$S$11 -> 0.1599218466 | BE5: 2 | BF5: =SUMIFS($S$13:$S$8772,$O$13:$O$8772,BE5)/$S$11 -> 0.02972101713 | BO5: 2 | BP5: =IFERROR(SUMIFS($AO$13:$AO$8772,$Q$13:$Q$8772,BO5)/$AO$10,1/12) -> 0.06706096577 | BQ5: 2 | BR5: =IFERROR(SUMIFS($AO$13:$AO$8772,$P$13:$P$8772,BQ5)/$AO$10,1/7) -> 0.1632690902 | BS5: 2 | BT5: =IFERROR(SUMIFS($AO$13:$AO$8772,$O$13:$O$8772,BS5)/$AO$10,1/24) -> 0.04028789753 | BV5: 2 | BW5: =IFERROR(SUMIFS($AP$13:$AP$8772,$Q$13:$Q$8772,BV5)/$AP$10,1/12) -> 0.04857956834 | BX5: 2 | BY5: =IFERROR(SUMIFS($AP$13:$AP$8772,$P$13:$P$8772,BX5)/$AP$10,1/7) -> 0.1709860037 | BZ5: 2 | CA5: =IFERROR(SUMIFS($AP$13:$AP$8772,$O$13:$O$8772,BZ5)/$AP$10,1/24) -> 0.03976634949 | CC5: 2 | CD5: =IFERROR(SUMIFS($AQ$13:$AQ$8772,$Q$13:$Q$8772,CC5)/$AQ$10,1/12) -> 0.04608382921 | CE5: 2 | CF5: =IFERROR(SUMIFS($AP$13:$AP$8772,$P$13:$P$8772,CE5)/$AP$10,1/7) -> 0.1709860037 | CG5: 2 | CH5: =IFERROR(SUMIFS($AP$13:$AP$8772,$O$13:$O$8772,CG5)/$AP$10,1/24) -> 0.03976634949 | CJ5: 2 | CK5: =IFERROR(SUMIFS($AR$13:$AR$8772,$Q$13:$Q$8772,CJ5)/$AR$10,1/12) -> 0.04810692926 | CL5: 2 | CM5: =IFERROR(SUMIFS($AR$13:$AR$8772,$P$13:$P$8772,CL5)/$AR$10,1/7) -> 0.1590378911 | CN5: 2 | CO5: =IFERROR(SUMIFS($AR$13:$AR$8772,$O$13:$O$8772,CN5)/$AR$10,1/24) -> 0.04021030894 | CQ5: 2 | CR5: =IFERROR(SUMIFS($AS$13:$AS$8772,$Q$13:$Q$8772,CQ5)/$AS$10,1/12) -> 0.05192689661 | CS5: 2 | CT5: =IFERROR(SUMIFS($AS$13:$AS$8772,$P$13:$P$8772,CS5)/$AS$10,1/7) -> 0.1696083628 | CU5: 2 | CV5: =IFERROR(SUMIFS($AS$13:$AS$8772,$O$13:$O$8772,CU5)/$AS$10,24) -> 0.03962051097 | CX5: 2 | CY5: =IFERROR(SUMIFS($AT$13:$AT$8772,$Q$13:$Q$8772,CX5)/$AT$10,12) -> 0.08393465925 | CZ5: 2 | DA5: =IFERROR(SUMIFS($AT$13:$AT$8772,$P$13:$P$8772,CZ5)/$AT$10,1/7) -> 0.07023950489 | DB5: 2 | DC5: =IFERROR(SUMIFS($AT$13:$AT$8772,$O$13:$O$8772,DB5)/$AT$10,1/24) -> 0.02005922576 | DE5: 2 | DF5: =IFERROR(SUMIFS($AU$13:$AU$8772,$Q$13:$Q$8772,DE5)/$AU$10,1/12) -> 0.1757580637 | DG5: 2 | DH5: =IFERROR(SUMIFS($AU$13:$AU$8772,$P$13:$P$8772,DG5)/$AU$10,1/7) -> 0.07376510945 | DI5: 2 | DJ5: =IFERROR(SUMIFS($AU$13:$AU$8772,$O$13:$O$8772,DI5)/$AU$10,1/24) -> 0.02228539832 | DL5: 2 | DM5: =IFERROR(SUMIFS($AV$13:$AV$8772,$Q$13:$Q$8772,DL5)/$AV$10,1/12) -> 0.1025252051 | DN5: 2 | DO5: =IFERROR(SUMIFS($AV$13:$AV$8772,$P$13:$P$8772,DN5)/$AV$10,1/7) -> 0.09007928521 | DP5: 2 | DQ5: =IFERROR(SUMIFS($AV$13:$AV$8772,$O$13:$O$8772,DP5)/$AV$10,1/24) -> 0.02159383174 | DS5: 2 | DT5: =IFERROR(SUMIFS($AW$13:$AW$8772,$Q$13:$Q$8772,DS5)/$AW$10,1/12) -> 0.1060887804 | DU5: 2 | DV5: =IFERROR(SUMIFS($AW$13:$AW$8772,$P$13:$P$8772,DU5)/$AW$10,1/7) -> 0.09852144441 | DW5: 2 | DX5: =IFERROR(SUMIFS($AW$13:$AW$8772,$O$13:$O$8772,DW5)/$AW$10,1/24) -> 0.02052642663 | DZ5: 2 | EA5: =IFERROR(SUMIFS($AX$13:$AX$8772,$Q$13:$Q$8772,DZ5)/$AX$10,1/12) -> 0.1181500347 | EB5: 2 | EC5: =IFERROR(SUMIFS($AX$13:$AX$8772,$P$13:$P$8772,EB5)/$AX$10,1/7) -> 0.09666374725 | ED5: 2 | EE5: =IFERROR(SUMIFS($AX$13:$AX$8772,$O$13:$O$8772,ED5)/$AX$10,1/24) -> 0.0249069172
B6: cena PPA | C6: =Výstup!E6 -> 85 | D6: =Výstup!F6 -> 95 | E6: =Výstup!G6 -> 100 | F6: =Výstup!H6 -> - | G6: =Výstup!I6 -> 125 | BA6: 3 | BB6: 0.08267829919 | BC6: 3 | BD6: 0.159203489 | BE6: 3 | BF6: 0.02920058758 | BO6: 3 | BP6: 0.06682888045 | BQ6: 3 | BR6: 0.1608161408 | BS6: 3 | BT6: 0.03928890666 | BV6: 3 | BW6: 0.07647985949 | BX6: 3 | BY6: 0.1522410326 | BZ6: 3 | CA6: 0.03882286839 | CC6: 3 | CD6: 0.07672816916 | CE6: 3 | CF6: 0.1522410326 | CG6: 3 | CH6: =IFERROR(SUMIFS($AP$13:$AP$8772,$O$13:$O$8772,CG6)/$AP$10,1/24) -> 0.03882286839 | CJ6: 3 | CK6: 0.07220662125 | CL6: 3 | CM6: 0.1649550255 | CN6: 3 | CO6: 0.03951343825 | CQ6: 3 | CR6: 0.05823063522 | CS6: 3 | CT6: 0.1639059759 | CU6: 3 | CV6: 0.03889307762 | CX6: 3 | CY6: 0.1298478082 | CZ6: 3 | DA6: 0.06882990955 | DB6: 3 | DC6: 0.02040987844 | DE6: 3 | DF6: 0.1002882272 | DG6: 3 | DH6: 0.1166467543 | DI6: 3 | DJ6: 0.02218826149 | DL6: 3 | DM6: 0.09079720004 | DN6: 3 | DO6: 0.06536929373 | DP6: 3 | DQ6: 0.02085820456 | DS6: 3 | DT6: 0.1217449997 | DU6: 3 | DV6: 0.08570748648 | DW6: 3 | DX6: 0.02111236493 | DZ6: 3 | EA6: 0.1044077934 | EB6: 3 | EC6: 0.08168662233 | ED6: 3 | EE6: 0.02448148461
B7: Cenový mechanismus | C7: =Výstup!E7 -> Eskalace | D7: =Výstup!F7 -> Fixní | E7: =Výstup!G7 -> Eskalace | F7: =Výstup!H7 -> Tržní | G7: =Výstup!I7 -> Fixní | AN7: kontrola | AO7: =$N$5-AO10+AT10-W10-AB10 -> -3.183231456e-11 | AP7: =$N$5-AP10+AU10-X10-AC10 -> 3.456079867e-11 | AQ7: 5.456968211e-11 | AR7: 2.819433575e-11 | AS7: 1.273292582e-11 | BA7: 4 | BB7: 0.07860121064 | BC7: 4 | BD7: 0.1584513522 | BE7: 4 | BF7: 0.02940512345 | BO7: 4 | BP7: 0.07499556396 | BQ7: 4 | BR7: 0.1702978652 | BS7: 4 | BT7: 0.04033388371 | BV7: 4 | BW7: 0.07095393224 | BX7: 4 | BY7: 0.1624996878 | BZ7: 4 | CA7: 0.03946898079 | CC7: 4 | CD7: 0.08269084082 | CE7: 4 | CF7: 0.1624996878 | CG7: 4 | CH7: 0.03946898079 | CJ7: 4 | CK7: 0.07054477465 | CL7: 4 | CM7: 0.1670248444 | CN7: 4 | CO7: 0.0398914596 | CQ7: 4 | CR7: 0.07399031896 | CS7: 4 | CT7: 0.1624346743 | CU7: 4 | CV7: 0.03999320797 | CX7: 4 | CY7: 0.1190935594 | CZ7: 4 | DA7: 0.07625164871 | DB7: 4 | DC7: 0.01932644497 | DE7: 4 | DF7: 0.08232491743 | DG7: 4 | DH7: 0.0782143606 | DI7: 4 | DJ7: 0.02166506987 | DL7: 4 | DM7: 0.07711661715 | DN7: 4 | DO7: 0.08312724466 | DP7: 4 | DQ7: 0.0209636959 | DS7: 4 | DT7: 0.1349462876 | DU7: 4 | DV7: 0.06117974701 | DW7: 4 | DX7: 0.02116093884 | DZ7: 4 | EA7: 0.1196887121 | EB7: 4 | EC7: 0.08250779787 | ED7: 4 | EE7: 0.02421032013
B8: Eskalace | C8: =Výstup!E8 -> 0.02 | D8: =Výstup!F8 -> - | E8: =Výstup!G8 -> 0.02 | F8: =Výstup!H8 -> 0.02 | G8: =Výstup!I8 -> 0.03 | V8: Hodnota výrobního profilu | W8: =SUMPRODUCT($AM$13:$AM$8772,W13:W8772)/W10 -> 1.021898391 | X8: 1.018575081 | Y8: 1.031157424 | Z8: 0.9789548404 | AA8: 1.012812593 | AB8: 1.017643272 | AC8: 1.019475709 | AD8: 1.011254981 | AE8: 1.018090836 | AF8: 1.012445193 | BA8: 5 | BB8: 0.08798931379 | BC8: 5 | BD8: 0.1522601573 | BE8: 5 | BF8: 0.03017612795 | BO8: 5 | BP8: 0.07913417255 | BQ8: 5 | BR8: 0.1579066902 | BS8: 5 | BT8: 0.04243872938 | BV8: 5 | BW8: 0.08179939361 | BX8: 5 | BY8: 0.1441854695 | BZ8: 5 | CA8: 0.04133399904 | CC8: 5 | CD8: 0.08275772951 | CE8: 5 | CF8: 0.1441854695 | CG8: 5 | CH8: 0.04133399904 | CJ8: 5 | CK8: 0.07418879543 | CL8: 5 | CM8: 0.1511640425 | CN8: 5 | CO8: 0.04132203322 | CQ8: 5 | CR8: 0.08753136076 | CS8: 5 | CT8: 0.1449985589 | CU8: 5 | CV8: 0.04213661482 | CX8: 5 | CY8: 0.1105598253 | CZ8: 5 | DA8: 0.109639262 | DB8: 5 | DC8: 0.01713702221 | DE8: 5 | DF8: 0.09135889863 | DG8: 5 | DH8: 0.09816478614 | DI8: 5 | DJ8: 0.01962228167 | DL8: 5 | DM8: 0.1252611649 | DN8: 5 | DO8: 0.06784708797 | DP8: 5 | DQ8: 0.01960090473 | DS8: 5 | DT8: 0.1301862013 | DU8: 5 | DV8: 0.08552618932 | DW8: 5 | DX8: 0.0201487156 | DZ8: 5 | EA8: 0.09775934328 | EB8: 5 | EC8: 0.105423082 | ED8: 5 | EE8: 0.0222185631
BA9: 6 | BB9: 0.08564818141 | BC9: 6 | BD9: 0.09888405384 | BE9: 6 | BF9: 0.03292037242 | BO9: 6 | BP9: 0.0969158646 | BQ9: 6 | BR9: 0.08170100844 | BS9: 6 | BT9: 0.04767314783 | BV9: 6 | BW9: 0.08886037425 | BX9: 6 | BY9: 0.08045624111 | BZ9: 6 | CA9: 0.04641026681 | CC9: 6 | CD9: 0.09933432747 | CE9: 6 | CF9: 0.08045624111 | CG9: 6 | CH9: 0.04641026681 | CJ9: 6 | CK9: 0.08212391432 | CL9: 6 | CM9: 0.09300597997 | CN9: 6 | CO9: 0.04527542813 | CQ9: 6 | CR9: 0.1107492301 | CS9: 6 | CT9: 0.07796001523 | CU9: 6 | CV9: 0.04707403299 | CX9: 6 | CY9: 0.0488757013 | CZ9: 6 | DA9: 0.3160234666 | DB9: 6 | DC9: 0.01233597144 | DE9: 6 | DF9: 0.06630087829 | DG9: 6 | DH9: 0.3283158436 | DI9: 6 | DJ9: 0.01514069171 | DL9: 6 | DM9: 0.06070004809 | DN9: 6 | DO9: 0.3050259814 | DP9: 6 | DQ9: 0.01481873686 | DS9: 6 | DT9: 0.06004983235 | DU9: 6 | DV9: 0.2835503997 | DW9: 6 | DX9: 0.01461369106 | DZ9: 6 | EA9: 0.05866638937 | EB9: 6 | EC9: 0.2941162132 | ED9: 6 | EE9: 0.01544541064
V10: Suma výroby (MWh) | W10: =SUM(W13:W8772) -> 8754.874489 | X10: 8112.244518 | Y10: 8358.561542 | Z10: 6823.644122 | AA10: 9189.6064 | AB10: 7678.508465 | AC10: 7088.556093 | AD10: 7053.912536 | AE10: 7025.520947 | AF10: 7025.5922 | AN10: Roční suma (MWh) | AO10: =SUM(AO13:AO8772) -> 10495.62696 | AP10: =SUM(AP13:AP8772) -> 11127.73798 | AQ10: 10939.9817 | AR10: 11977.16314 | AS10: 10325.24911 | AT10: =SUM(AT13:AT8772) -> 2929.00991 | AU10: =SUM(AU13:AU8772) -> 2328.538592 | AV10: =SUM(AV13:AV8772) -> 2352.455781 | AW10: =SUM(AW13:AW8772) -> 1826.328209 | AX10: =SUM(AX13:AX8772) -> 2540.44771 | BA10: 7 | BB10: 0.08176817366 | BC10: 7 | BD10: 0.1042612687 | BE10: 7 | BF10: 0.03673726955 | BO10: 7 | BP10: 0.08885753711 | BQ10: 7 | BR10: 0.09312046059 | BS10: 7 | BT10: 0.05197517014 | BV10: 7 | BW10: 0.07984141502 | BX10: 7 | BY10: 0.1040294815 | BZ10: 7 | CA10: 0.05118282918 | CC10: 7 | CD10: 0.07890154344 | CE10: 7 | CF10: 0.1040294815 | CG10: 7 | CH10: 0.05118282918 | CJ10: 7 | CK10: 0.08058194474 | CL10: 7 | CM10: 0.09124974001 | CN10: 7 | CO10: 0.04794690696 | CQ10: 7 | CR10: 0.08500835586 | CS10: 7 | CT10: 0.09114058465 | CU10: 7 | CV10: 0.05160170747 | CX10: 7 | CY10: 0.08006428836 | CZ10: 7 | DA10: 0.2955382456 | DB10: 7 | DC10: 0.008691117149 | DE10: 7 | DF10: 0.08878320657 | DG10: 7 | DH10: 0.2431680696 | DI10: 7 | DJ10: 0.01096923094 | DL10: 7 | DM10: 0.09797574917 | DN10: 7 | DO10: 0.2930656082 | DP10: 7 | DQ10: 0.01059602422 | DS10: 7 | DT10: 0.09051147509 | DU10: 7 | DV10: 0.3213693388 | DW10: 7 | DX10: 0.01063491818 | DZ10: 7 | EA10: 0.08452830932 | EB10: 7 | EC10: 0.2575123342 | ED10: 7 | EE10: 0.009490276664
B11: Schéma dodávky | C11: =Výstup!E10 -> Pay as produced | D11: =Výstup!F10 -> Pay as produced | E11: =Výstup!G10 -> Pay as produced | F11: =Výstup!H10 -> Pay as produced | G11: =Výstup!I10 -> Pay as contracted | S11: =SUM(S13:S8772) -> 24000 | V11: Modeový rok | W11: 1992 | X11: 2004 | Y11: 1999 | Z11: 2014 | AA11: 1988 | AB11: =W11 -> 1992 | AC11: =X11 -> 2004 | AD11: =Y11 -> 1999 | AE11: =Z11 -> 2014 | AF11: =AA11 -> 1988 | AG11: =W11 -> 1992 | AH11: =X11 -> 2004 | AI11: =Y11 -> 1999 | AJ11: =Z11 -> 2014 | AK11: =AA11 -> 1988 | AL11: =SUM(AM13:AM8772) -> 8760.294072 | AN11: Modelový rok | AO11: =W11 -> 1992 | AP11: =X11 -> 2004 | AQ11: 1999 | AR11: 2014 | AS11: 1988 | AT11: =W11 -> 1992 | AU11: =X11 -> 2004 | AV11: =Y11 -> 1999 | AW11: =Z11 -> 2014 | AX11: =AA11 -> 1988 | BA11: 8 | BB11: 0.08223227204 | BE11: 8 | BF11: 0.04293356036 | BO11: 8 | BP11: 0.08201229998 | BS11: 8 | BT11: 0.04848094308 | BV11: 8 | BW11: 0.07587859254 | BZ11: 8 | CA11: 0.04889109289 | CC11: 8 | CD11: 0.08251632893 | CG11: 8 | CH11: 0.04889109289 | CJ11: 8 | CK11: 0.08542680486 | CN11: 8 | CO11: 0.04212476153 | CQ11: 8 | CR11: 0.09186339879 | CU11: 8 | CV11: 0.04926455737 | CX11: 8 | CY11: 0.09667209874 | DB11: 8 | DC11: 0.01199784075 | DE11: 8 | DF11: 0.09156496071 | DI11: 8 | DJ11: 0.01269381031 | DL11: 8 | DM11: 0.08341043688 | DP11: 8 | DQ11: 0.01210668848 | DS11: 8 | DT11: 0.05798755526 | DW11: 8 | DX11: 0.0157887775 | DZ11: 8 | EA11: 0.07915251046 | ED11: 8 | EE11: 0.008678870613
B12: maximální kapacita | C12: =Výstup!E11 -> 2 | D12: =Výstup!F11 -> 5 | E12: =Výstup!G11 -> 4 | F12: =Výstup!H11 -> 2 | G12: =Výstup!I11 -> 6 | H12: MW | S12: Spotřeba (MWh) | V12: Hodina v roce | W12: Výroba VtE (MWh) | AB12: Výroba FVE (MWh) | AG12: Saldo (MWh) | AL12: Hodina v roce | AM12: Cenová charakteristika | AN12: Hodina v roce | AO12: Reziduální spotřeba (MWh) | AT12: Přebytky (MWh) | BA12: 9 | BB12: 0.07402829331 | BE12: 9 | BF12: 0.04785754023 | BO12: 9 | BP12: 0.05852813675 | BS12: 9 | BT12: 0.03617175333 | BV12: 9 | BW12: 0.06411851273 | BZ12: 9 | CA12: 0.03680515357 | CC12: 9 | CD12: 0.0788662172 | CG12: 9 | CH12: 0.03680515357 | CJ12: 9 | CK12: 0.08099528521 | CN12: 9 | CO12: 0.03201030082 | CQ12: 9 | CR12: 0.06670247248 | CU12: 9 | CV12: 0.03642912586 | CX12: 9 | CY12: 0.1225139909 | DB12: 9 | DC12: 0.03959434506 | DE12: 9 | DF12: 0.124209047 | DI12: 9 | DJ12: 0.03699089462 | DL12: 9 | DM12: 0.1024723304 | DP12: 9 | DQ12: 0.03712591375 | DS12: 9 | DT12: 0.0721664919 | DW12: 9 | DX12: 0.0514120269 | DZ12: 9 | EA12: 0.08917361506 | ED12: 9 | EE12: 0.03517679289
B13: nakoupená kapacita | C13: =Výstup!E12 -> 2 | D13: =Výstup!F12 -> 5 | E13: =Výstup!G12 -> 4 | F13: =Výstup!H12 -> 0 | G13: =Výstup!I12 -> 0 | H13: MW | N13: 2017-01-01 | O13: 1 | P13: =WEEKDAY(N13,2) -> 7 | Q13: =MONTH(N13:N8772) -> 1 | S13: 1.972983188 | V13: 1 | W13: =IF($D$4="Wind",IF($D$11="Pay as produced",INDEX('Pomocný list 3'!$O$4:$O$262971,$V13+8760*('Pomocný list 1'!W$11-1986))/2000*'Pomocný list 1'!$D$5*'Pomocný list 1'!$D$13,$D$13),0)+IF($E$4="Wind",IF($E$11="Pay as produced",INDEX('Pomocný list 3'!$O$4:$O$262971,$V13+8760*('Pomocný list 1'!W$11-1986))/2000*'Pomocný list 1'!$E$5*'Pomocný list 1'!$E$13,$E$13),0)+IF($F$4="Wind",IF($F$11="Pay as produced",INDEX('Pomocný list 3'!$O$4:$O$262971,$V13+8760*('Pomocný list 1'!W$11-1986))/2000*'Pomocný list 1'!$F$5*'Pomocný list 1'!$F$13,$F$13),0)+IF($G$4="Wind",IF($G$11="Pay as produced",INDEX('Pomocný list 3'!$O$4:$O$262971,$V13+8760*('Pomocný list 1'!W$11-1986))/2000*'Pomocný list 1'!$G$5*'Pomocný list 1'!$G$13,$G$13),0)+IF($C$4="Wind",IF($C$11="Pay as produced",INDEX('Pomocný list 3'!$O$4:$O$262971,$V13+8760*('Pomocný list 1'!W$11-1986))/2000*'Pomocný list 1'!$C$5*'Pomocný list 1'!$C$13,$C$13),0) -> 2.572854798 | X13: =IF($D$4="Wind",IF($D$11="Pay as produced",INDEX('Pomocný list 3'!$O$4:$O$262971,$V13+8760*('Pomocný list 1'!X$11-1986))/2000*'Pomocný list 1'!$D$5*'Pomocný list 1'!$D$13,$D$13),0)+IF($E$4="Wind",IF($E$11="Pay as produced",INDEX('Pomocný list 3'!$O$4:$O$262971,$V13+8760*('Pomocný list 1'!X$11-1986))/2000*'Pomocný list 1'!$E$5*'Pomocný list 1'!$E$13,$E$13),0)+IF($F$4="Wind",IF($F$11="Pay as produced",INDEX('Pomocný list 3'!$O$4:$O$262971,$V13+8760*('Pomocný list 1'!X$11-1986))/2000*'Pomocný list 1'!$F$5*'Pomocný list 1'!$F$13,$F$13),0)+IF($G$4="Wind",IF($G$11="Pay as produced",INDEX('Pomocný list 3'!$O$4:$O$262971,$V13+8760*('Pomocný list 1'!X$11-1986))/2000*'Pomocný list 1'!$G$5*'Pomocný list 1'!$G$13,$G$13),0)+IF($C$4="Wind",IF($C$11="Pay as produced",INDEX('Pomocný list 3'!$O$4:$O$262971,$V13+8760*('Pomocný list 1'!X$11-1986))/2000*'Pomocný list 1'!$C$5*'Pomocný list 1'!$C$13,$C$13),0) -> 0.9541027933 | Y13: =IF($D$4="Wind",IF($D$11="Pay as produced",INDEX('Pomocný list 3'!$O$4:$O$262971,$V13+8760*('Pomocný list 1'!Y$11-1986))/2000*'Pomocný list 1'!$D$5*'Pomocný list 1'!$D$13,$D$13),0)+IF($E$4="Wind",IF($E$11="Pay as produced",INDEX('Pomocný list 3'!$O$4:$O$262971,$V13+8760*('Pomocný list 1'!Y$11-1986))/2000*'Pomocný list 1'!$E$5*'Pomocný list 1'!$E$13,$E$13),0)+IF($F$4="Wind",IF($F$11="Pay as produced",INDEX('Pomocný list 3'!$O$4:$O$262971,$V13+8760*('Pomocný list 1'!Y$11-1986))/2000*'Pomocný list 1'!$F$5*'Pomocný list 1'!$F$13,$F$13),0)+IF($G$4="Wind",IF($G$11="Pay as produced",INDEX('Pomocný list 3'!$O$4:$O$262971,$V13+8760*('Pomocný list 1'!Y$11-1986))/2000*'Pomocný list 1'!$G$5*'Pomocný list 1'!$G$13,$G$13),0)+IF($C$4="Wind",IF($C$11="Pay as produced",INDEX('Pomocný list 3'!$O$4:$O$262971,$V13+8760*('Pomocný list 1'!Y$11-1986))/2000*'Pomocný list 1'!$C$5*'Pomocný list 1'!$C$13,$C$13),0) -> 0.7688970036 | Z13: =IF($D$4="Wind",IF($D$11="Pay as produced",INDEX('Pomocný list 3'!$O$4:$O$262971,$V13+8760*('Pomocný list 1'!Z$11-1986))/2000*'Pomocný list 1'!$D$5*'Pomocný list 1'!$D$13,$D$13),0)+IF($E$4="Wind",IF($E$11="Pay as produced",INDEX('Pomocný list 3'!$O$4:$O$262971,$V13+8760*('Pomocný list 1'!Z$11-1986))/2000*'Pomocný list 1'!$E$5*'Pomocný list 1'!$E$13,$E$13),0)+IF($F$4="Wind",IF($F$11="Pay as produced",INDEX('Pomocný list 3'!$O$4:$O$262971,$V13+8760*('Pomocný list 1'!Z$11-1986))/2000*'Pomocný list 1'!$F$5*'Pomocný list 1'!$F$13,$F$13),0)+IF($G$4="Wind",IF($G$11="Pay as produced",INDEX('Pomocný list 3'!$O$4:$O$262971,$V13+8760*('Pomocný list 1'!Z$11-1986))/2000*'Pomocný list 1'!$G$5*'Pomocný list 1'!$G$13,$G$13),0)+IF($C$4="Wind",IF($C$11="Pay as produced",INDEX('Pomocný list 3'!$O$4:$O$262971,$V13+8760*('Pomocný list 1'!Z$11-1986))/2000*'Pomocný list 1'!$C$5*'Pomocný list 1'!$C$13,$C$13),0) -> 2.829561741 | AA13: =IF($D$4="Wind",IF($D$11="Pay as produced",INDEX('Pomocný list 3'!$O$4:$O$262971,$V13+8760*('Pomocný list 1'!AA$11-1986))/2000*'Pomocný list 1'!$D$5*'Pomocný list 1'!$D$13,$D$13),0)+IF($E$4="Wind",IF($E$11="Pay as produced",INDEX('Pomocný list 3'!$O$4:$O$262971,$V13+8760*('Pomocný list 1'!AA$11-1986))/2000*'Pomocný list 1'!$E$5*'Pomocný list 1'!$E$13,$E$13),0)+IF($F$4="Wind",IF($F$11="Pay as produced",INDEX('Pomocný list 3'!$O$4:$O$262971,$V13+8760*('Pomocný list 1'!AA$11-1986))/2000*'Pomocný list 1'!$F$5*'Pomocný list 1'!$F$13,$F$13),0)+IF($G$4="Wind",IF($G$11="Pay as produced",INDEX('Pomocný list 3'!$O$4:$O$262971,$V13+8760*('Pomocný list 1'!AA$11-1986))/2000*'Pomocný list 1'!$G$5*'Pomocný list 1'!$G$13,$G$13),0)+IF($C$4="Wind",IF($C$11="Pay as produced",INDEX('Pomocný list 3'!$O$4:$O$262971,$V13+8760*('Pomocný list 1'!AA$11-1986))/2000*'Pomocný list 1'!$C$5*'Pomocný list 1'!$C$13,$C$13),0) -> 0.8808215277 | AB13: =IF($D$4="PV",IF($D$11="Pay as produced",INDEX('Pomocný list 3'!$K$4:$K$262971,$V13+8760*('Pomocný list 1'!AB$11-1986))/1000*'Pomocný list 1'!$D$5*'Pomocný list 1'!$D$13,$D$13),0)+IF($E$4="PV",IF($E$11="Pay as produced",INDEX('Pomocný list 3'!$K$4:$K$262971,$V13+8760*('Pomocný list 1'!AB$11-1986))/1000*'Pomocný list 1'!$E$5*'Pomocný list 1'!$E$13,$E$13),0)+IF($F$4="PV",IF($F$11="Pay as produced",INDEX('Pomocný list 3'!$K$4:$K$262971,$V13+8760*('Pomocný list 1'!AB$11-1986))/1000*'Pomocný list 1'!$F$5*'Pomocný list 1'!$F$13,$F$13),0)+IF($G$4="PV",IF($G$11="Pay as produced",INDEX('Pomocný list 3'!$K$4:$K$262971,$V13+8760*('Pomocný list 1'!AB$11-1986))/1000*'Pomocný list 1'!$G$5*'Pomocný list 1'!$G$13,$G$13),0)+IF($C$4="PV",IF($C$11="Pay as produced",INDEX('Pomocný list 3'!$K$4:$K$262971,$V13+8760*('Pomocný list 1'!AB$11-1986))/1000*'Pomocný list 1'!$C$5*'Pomocný list 1'!$C$13,$C$13),0) -> 0 | AC13: =IF($D$4="PV",IF($D$11="Pay as produced",INDEX('Pomocný list 3'!$K$4:$K$262971,$V13+8760*('Pomocný list 1'!AC$11-1986))/1000*'Pomocný list 1'!$D$5*'Pomocný list 1'!$D$13,$D$13),0)+IF($E$4="PV",IF($E$11="Pay as produced",INDEX('Pomocný list 3'!$K$4:$K$262971,$V13+8760*('Pomocný list 1'!AC$11-1986))/1000*'Pomocný list 1'!$E$5*'Pomocný list 1'!$E$13,$E$13),0)+IF($F$4="PV",IF($F$11="Pay as produced",INDEX('Pomocný list 3'!$K$4:$K$262971,$V13+8760*('Pomocný list 1'!AC$11-1986))/1000*'Pomocný list 1'!$F$5*'Pomocný list 1'!$F$13,$F$13),0)+IF($G$4="PV",IF($G$11="Pay as produced",INDEX('Pomocný list 3'!$K$4:$K$262971,$V13+8760*('Pomocný list 1'!AC$11-1986))/1000*'Pomocný list 1'!$G$5*'Pomocný list 1'!$G$13,$G$13),0)+IF($C$4="PV",IF($C$11="Pay as produced",INDEX('Pomocný list 3'!$K$4:$K$262971,$V13+8760*('Pomocný list 1'!AC$11-1986))/1000*'Pomocný list 1'!$C$5*'Pomocný list 1'!$C$13,$C$13),0) -> 0 | AD13: =IF($D$4="PV",IF($D$11="Pay as produced",INDEX('Pomocný list 3'!$K$4:$K$262971,$V13+8760*('Pomocný list 1'!AD$11-1986))/1000*'Pomocný list 1'!$D$5*'Pomocný list 1'!$D$13,$D$13),0)+IF($E$4="PV",IF($E$11="Pay as produced",INDEX('Pomocný list 3'!$K$4:$K$262971,$V13+8760*('Pomocný list 1'!AD$11-1986))/1000*'Pomocný list 1'!$E$5*'Pomocný list 1'!$E$13,$E$13),0)+IF($F$4="PV",IF($F$11="Pay as produced",INDEX('Pomocný list 3'!$K$4:$K$262971,$V13+8760*('Pomocný list 1'!AD$11-1986))/1000*'Pomocný list 1'!$F$5*'Pomocný list 1'!$F$13,$F$13),0)+IF($G$4="PV",IF($G$11="Pay as produced",INDEX('Pomocný list 3'!$K$4:$K$262971,$V13+8760*('Pomocný list 1'!AD$11-1986))/1000*'Pomocný list 1'!$G$5*'Pomocný list 1'!$G$13,$G$13),0)+IF($C$4="PV",IF($C$11="Pay as produced",INDEX('Pomocný list 3'!$K$4:$K$262971,$V13+8760*('Pomocný list 1'!AD$11-1986))/1000*'Pomocný list 1'!$C$5*'Pomocný list 1'!$C$13,$C$13),0) -> 0 | AE13: =IF($D$4="PV",IF($D$11="Pay as produced",INDEX('Pomocný list 3'!$K$4:$K$262971,$V13+8760*('Pomocný list 1'!AE$11-1986))/1000*'Pomocný list 1'!$D$5*'Pomocný list 1'!$D$13,$D$13),0)+IF($E$4="PV",IF($E$11="Pay as produced",INDEX('Pomocný list 3'!$K$4:$K$262971,$V13+8760*('Pomocný list 1'!AE$11-1986))/1000*'Pomocný list 1'!$E$5*'Pomocný list 1'!$E$13,$E$13),0)+IF($F$4="PV",IF($F$11="Pay as produced",INDEX('Pomocný list 3'!$K$4:$K$262971,$V13+8760*('Pomocný list 1'!AE$11-1986))/1000*'Pomocný list 1'!$F$5*'Pomocný list 1'!$F$13,$F$13),0)+IF($G$4="PV",IF($G$11="Pay as produced",INDEX('Pomocný list 3'!$K$4:$K$262971,$V13+8760*('Pomocný list 1'!AE$11-1986))/1000*'Pomocný list 1'!$G$5*'Pomocný list 1'!$G$13,$G$13),0)+IF($C$4="PV",IF($C$11="Pay as produced",INDEX('Pomocný list 3'!$K$4:$K$262971,$V13+8760*('Pomocný list 1'!AE$11-1986))/1000*'Pomocný list 1'!$C$5*'Pomocný list 1'!$C$13,$C$13),0) -> 0 | AF13: =IF($D$4="PV",IF($D$11="Pay as produced",INDEX('Pomocný list 3'!$K$4:$K$262971,$V13+8760*('Pomocný list 1'!AF$11-1986))/1000*'Pomocný list 1'!$D$5*'Pomocný list 1'!$D$13,$D$13),0)+IF($E$4="PV",IF($E$11="Pay as produced",INDEX('Pomocný list 3'!$K$4:$K$262971,$V13+8760*('Pomocný list 1'!AF$11-1986))/1000*'Pomocný list 1'!$E$5*'Pomocný list 1'!$E$13,$E$13),0)+IF($F$4="PV",IF($F$11="Pay as produced",INDEX('Pomocný list 3'!$K$4:$K$262971,$V13+8760*('Pomocný list 1'!AF$11-1986))/1000*'Pomocný list 1'!$F$5*'Pomocný list 1'!$F$13,$F$13),0)+IF($G$4="PV",IF($G$11="Pay as produced",INDEX('Pomocný list 3'!$K$4:$K$262971,$V13+8760*('Pomocný list 1'!AF$11-1986))/1000*'Pomocný list 1'!$G$5*'Pomocný list 1'!$G$13,$G$13),0)+IF($C$4="PV",IF($C$11="Pay as produced",INDEX('Pomocný list 3'!$K$4:$K$262971,$V13+8760*('Pomocný list 1'!AF$11-1986))/1000*'Pomocný list 1'!$C$5*'Pomocný list 1'!$C$13,$C$13),0) -> 0 | AG13: =W13-$S13+AB13 -> 0.5998716101 | AH13: =X13-$S13+AC13 -> -1.018880395 | AI13: =Y13-$S13+AD13 -> -1.204086184 | AJ13: =Z13-$S13+AE13 -> 0.8565785536 | AK13: =AA13-$S13+AF13 -> -1.09216166 | AL13: 1 | AM13: 0.361617694 | AN13: 1 | AO13: =IF(AG13<0,-AG13,0) -> 0 | AP13: =IF(AH13<0,-AH13,0) -> 1.018880395 | AQ13: =IF(AI13<0,-AI13,0) -> 1.204086184 | AR13: =IF(AJ13<0,-AJ13,0) -> 0 | AS13: =IF(AK13<0,-AK13,0) -> 1.09216166 | AT13: =IF(AG13>0,AG13,0) -> 0.5998716101 | AU13: =IF(AH13>0,AH13,0) -> 0 | AV13: =IF(AI13>0,AI13,0) -> 0 | AW13: =IF(AJ13>0,AJ13,0) -> 0.8565785536 | AX13: =IF(AK13>0,AK13,0) -> 0 | BA13: 10 | BB13: 0.08198332707 | BE13: 10 | BF13: 0.05187309458 | BO13: 10 | BP13: 0.08840211591 | BS13: 10 | BT13: 0.02818244631 | BV13: 10 | BW13: 0.08133148526 | BZ13: 10 | CA13: 0.02888244467 | CC13: 10 | CD13: 0.07099278775 | CG13: 10 | CH13: 0.02888244467 | CJ13: 10 | CK13: 0.09224567178 | CN13: 10 | CO13: 0.02700599862 | CQ13: 10 | CR13: 0.09129193572 | CU13: 10 | CV13: 0.02906003757 | CX13: 10 | CY13: 0.0760980033 | DB13: 10 | DC13: 0.07522152744 | DE13: 10 | DF13: 0.0630341805 | DI13: 10 | DJ13: 0.07360537532 | DL13: 10 | DM13: 0.07147160217 | DP13: 10 | DQ13: 0.07507929794 | DS13: 10 | DT13: 0.05807721123 | DW13: 10 | DX13: 0.08888583577 | DZ13: 10 | EA13: 0.09694824908 | ED13: 10 | EE13: 0.07529631268
N14: 2017-01-01 | O14: 2 | P14: =WEEKDAY(N14,2) -> 7 | Q14: 1 | S14: 1.934456857 | V14: 2 | W14: =IF($D$4="Wind",IF($D$11="Pay as produced",INDEX('Pomocný list 3'!$O$4:$O$262971,$V14+8760*('Pomocný list 1'!W$11-1986))/2000*'Pomocný list 1'!$D$5*'Pomocný list 1'!$D$13,$D$13),0)+IF($E$4="Wind",IF($E$11="Pay as produced",INDEX('Pomocný list 3'!$O$4:$O$262971,$V14+8760*('Pomocný list 1'!W$11-1986))/2000*'Pomocný list 1'!$E$5*'Pomocný list 1'!$E$13,$E$13),0)+IF($F$4="Wind",IF($F$11="Pay as produced",INDEX('Pomocný list 3'!$O$4:$O$262971,$V14+8760*('Pomocný list 1'!W$11-1986))/2000*'Pomocný list 1'!$F$5*'Pomocný list 1'!$F$13,$F$13),0)+IF($G$4="Wind",IF($G$11="Pay as produced",INDEX('Pomocný list 3'!$O$4:$O$262971,$V14+8760*('Pomocný list 1'!W$11-1986))/2000*'Pomocný list 1'!$G$5*'Pomocný list 1'!$G$13,$G$13),0)+IF($C$4="Wind",IF($C$11="Pay as produced",INDEX('Pomocný list 3'!$O$4:$O$262971,$V14+8760*('Pomocný list 1'!W$11-1986))/2000*'Pomocný list 1'!$C$5*'Pomocný list 1'!$C$13,$C$13),0) -> 2.623699239 | X14: =IF($D$4="Wind",IF($D$11="Pay as produced",INDEX('Pomocný list 3'!$O$4:$O$262971,$V14+8760*('Pomocný list 1'!X$11-1986))/2000*'Pomocný list 1'!$D$5*'Pomocný list 1'!$D$13,$D$13),0)+IF($E$4="Wind",IF($E$11="Pay as produced",INDEX('Pomocný list 3'!$O$4:$O$262971,$V14+8760*('Pomocný list 1'!X$11-1986))/2000*'Pomocný list 1'!$E$5*'Pomocný list 1'!$E$13,$E$13),0)+IF($F$4="Wind",IF($F$11="Pay as produced",INDEX('Pomocný list 3'!$O$4:$O$262971,$V14+8760*('Pomocný list 1'!X$11-1986))/2000*'Pomocný list 1'!$F$5*'Pomocný list 1'!$F$13,$F$13),0)+IF($G$4="Wind",IF($G$11="Pay as produced",INDEX('Pomocný list 3'!$O$4:$O$262971,$V14+8760*('Pomocný list 1'!X$11-1986))/2000*'Pomocný list 1'!$G$5*'Pomocný list 1'!$G$13,$G$13),0)+IF($C$4="Wind",IF($C$11="Pay as produced",INDEX('Pomocný list 3'!$O$4:$O$262971,$V14+8760*('Pomocný list 1'!X$11-1986))/2000*'Pomocný list 1'!$C$5*'Pomocný list 1'!$C$13,$C$13),0) -> 1.069402112 | Y14: =IF($D$4="Wind",IF($D$11="Pay as produced",INDEX('Pomocný list 3'!$O$4:$O$262971,$V14+8760*('Pomocný list 1'!Y$11-1986))/2000*'Pomocný list 1'!$D$5*'Pomocný list 1'!$D$13,$D$13),0)+IF($E$4="Wind",IF($E$11="Pay as produced",INDEX('Pomocný list 3'!$O$4:$O$262971,$V14+8760*('Pomocný list 1'!Y$11-1986))/2000*'Pomocný list 1'!$E$5*'Pomocný list 1'!$E$13,$E$13),0)+IF($F$4="Wind",IF($F$11="Pay as produced",INDEX('Pomocný list 3'!$O$4:$O$262971,$V14+8760*('Pomocný list 1'!Y$11-1986))/2000*'Pomocný list 1'!$F$5*'Pomocný list 1'!$F$13,$F$13),0)+IF($G$4="Wind",IF($G$11="Pay as produced",INDEX('Pomocný list 3'!$O$4:$O$262971,$V14+8760*('Pomocný list 1'!Y$11-1986))/2000*'Pomocný list 1'!$G$5*'Pomocný list 1'!$G$13,$G$13),0)+IF($C$4="Wind",IF($C$11="Pay as produced",INDEX('Pomocný list 3'!$O$4:$O$262971,$V14+8760*('Pomocný list 1'!Y$11-1986))/2000*'Pomocný list 1'!$C$5*'Pomocný list 1'!$C$13,$C$13),0) -> 0.6461805523 | Z14: =IF($D$4="Wind",IF($D$11="Pay as produced",INDEX('Pomocný list 3'!$O$4:$O$262971,$V14+8760*('Pomocný list 1'!Z$11-1986))/2000*'Pomocný list 1'!$D$5*'Pomocný list 1'!$D$13,$D$13),0)+IF($E$4="Wind",IF($E$11="Pay as produced",INDEX('Pomocný list 3'!$O$4:$O$262971,$V14+8760*('Pomocný list 1'!Z$11-1986))/2000*'Pomocný list 1'!$E$5*'Pomocný list 1'!$E$13,$E$13),0)+IF($F$4="Wind",IF($F$11="Pay as produced",INDEX('Pomocný list 3'!$O$4:$O$262971,$V14+8760*('Pomocný list 1'!Z$11-1986))/2000*'Pomocný list 1'!$F$5*'Pomocný list 1'!$F$13,$F$13),0)+IF($G$4="Wind",IF($G$11="Pay as produced",INDEX('Pomocný list 3'!$O$4:$O$262971,$V14+8760*('Pomocný list 1'!Z$11-1986))/2000*'Pomocný list 1'!$G$5*'Pomocný list 1'!$G$13,$G$13),0)+IF($C$4="Wind",IF($C$11="Pay as produced",INDEX('Pomocný list 3'!$O$4:$O$262971,$V14+8760*('Pomocný list 1'!Z$11-1986))/2000*'Pomocný list 1'!$C$5*'Pomocný list 1'!$C$13,$C$13),0) -> 2.985099002 | AA14: =IF($D$4="Wind",IF($D$11="Pay as produced",INDEX('Pomocný list 3'!$O$4:$O$262971,$V14+8760*('Pomocný list 1'!AA$11-1986))/2000*'Pomocný list 1'!$D$5*'Pomocný list 1'!$D$13,$D$13),0)+IF($E$4="Wind",IF($E$11="Pay as produced",INDEX('Pomocný list 3'!$O$4:$O$262971,$V14+8760*('Pomocný list 1'!AA$11-1986))/2000*'Pomocný list 1'!$E$5*'Pomocný list 1'!$E$13,$E$13),0)+IF($F$4="Wind",IF($F$11="Pay as produced",INDEX('Pomocný list 3'!$O$4:$O$262971,$V14+8760*('Pomocný list 1'!AA$11-1986))/2000*'Pomocný list 1'!$F$5*'Pomocný list 1'!$F$13,$F$13),0)+IF($G$4="Wind",IF($G$11="Pay as produced",INDEX('Pomocný list 3'!$O$4:$O$262971,$V14+8760*('Pomocný list 1'!AA$11-1986))/2000*'Pomocný list 1'!$G$5*'Pomocný list 1'!$G$13,$G$13),0)+IF($C$4="Wind",IF($C$11="Pay as produced",INDEX('Pomocný list 3'!$O$4:$O$262971,$V14+8760*('Pomocný list 1'!AA$11-1986))/2000*'Pomocný list 1'!$C$5*'Pomocný list 1'!$C$13,$C$13),0) -> 0.8656905781 | AB14: =IF($D$4="PV",IF($D$11="Pay as produced",INDEX('Pomocný list 3'!$K$4:$K$262971,$V14+8760*('Pomocný list 1'!AB$11-1986))/1000*'Pomocný list 1'!$D$5*'Pomocný list 1'!$D$13,$D$13),0)+IF($E$4="PV",IF($E$11="Pay as produced",INDEX('Pomocný list 3'!$K$4:$K$262971,$V14+8760*('Pomocný list 1'!AB$11-1986))/1000*'Pomocný list 1'!$E$5*'Pomocný list 1'!$E$13,$E$13),0)+IF($F$4="PV",IF($F$11="Pay as produced",INDEX('Pomocný list 3'!$K$4:$K$262971,$V14+8760*('Pomocný list 1'!AB$11-1986))/1000*'Pomocný list 1'!$F$5*'Pomocný list 1'!$F$13,$F$13),0)+IF($G$4="PV",IF($G$11="Pay as produced",INDEX('Pomocný list 3'!$K$4:$K$262971,$V14+8760*('Pomocný list 1'!AB$11-1986))/1000*'Pomocný list 1'!$G$5*'Pomocný list 1'!$G$13,$G$13),0)+IF($C$4="PV",IF($C$11="Pay as produced",INDEX('Pomocný list 3'!$K$4:$K$262971,$V14+8760*('Pomocný list 1'!AB$11-1986))/1000*'Pomocný list 1'!$C$5*'Pomocný list 1'!$C$13,$C$13),0) -> 0 | AC14: =IF($D$4="PV",IF($D$11="Pay as produced",INDEX('Pomocný list 3'!$K$4:$K$262971,$V14+8760*('Pomocný list 1'!AC$11-1986))/1000*'Pomocný list 1'!$D$5*'Pomocný list 1'!$D$13,$D$13),0)+IF($E$4="PV",IF($E$11="Pay as produced",INDEX('Pomocný list 3'!$K$4:$K$262971,$V14+8760*('Pomocný list 1'!AC$11-1986))/1000*'Pomocný list 1'!$E$5*'Pomocný list 1'!$E$13,$E$13),0)+IF($F$4="PV",IF($F$11="Pay as produced",INDEX('Pomocný list 3'!$K$4:$K$262971,$V14+8760*('Pomocný list 1'!AC$11-1986))/1000*'Pomocný list 1'!$F$5*'Pomocný list 1'!$F$13,$F$13),0)+IF($G$4="PV",IF($G$11="Pay as produced",INDEX('Pomocný list 3'!$K$4:$K$262971,$V14+8760*('Pomocný list 1'!AC$11-1986))/1000*'Pomocný list 1'!$G$5*'Pomocný list 1'!$G$13,$G$13),0)+IF($C$4="PV",IF($C$11="Pay as produced",INDEX('Pomocný list 3'!$K$4:$K$262971,$V14+8760*('Pomocný list 1'!AC$11-1986))/1000*'Pomocný list 1'!$C$5*'Pomocný list 1'!$C$13,$C$13),0) -> 0 | AD14: =IF($D$4="PV",IF($D$11="Pay as produced",INDEX('Pomocný list 3'!$K$4:$K$262971,$V14+8760*('Pomocný list 1'!AD$11-1986))/1000*'Pomocný list 1'!$D$5*'Pomocný list 1'!$D$13,$D$13),0)+IF($E$4="PV",IF($E$11="Pay as produced",INDEX('Pomocný list 3'!$K$4:$K$262971,$V14+8760*('Pomocný list 1'!AD$11-1986))/1000*'Pomocný list 1'!$E$5*'Pomocný list 1'!$E$13,$E$13),0)+IF($F$4="PV",IF($F$11="Pay as produced",INDEX('Pomocný list 3'!$K$4:$K$262971,$V14+8760*('Pomocný list 1'!AD$11-1986))/1000*'Pomocný list 1'!$F$5*'Pomocný list 1'!$F$13,$F$13),0)+IF($G$4="PV",IF($G$11="Pay as produced",INDEX('Pomocný list 3'!$K$4:$K$262971,$V14+8760*('Pomocný list 1'!AD$11-1986))/1000*'Pomocný list 1'!$G$5*'Pomocný list 1'!$G$13,$G$13),0)+IF($C$4="PV",IF($C$11="Pay as produced",INDEX('Pomocný list 3'!$K$4:$K$262971,$V14+8760*('Pomocný list 1'!AD$11-1986))/1000*'Pomocný list 1'!$C$5*'Pomocný list 1'!$C$13,$C$13),0) -> 0 | AE14: =IF($D$4="PV",IF($D$11="Pay as produced",INDEX('Pomocný list 3'!$K$4:$K$262971,$V14+8760*('Pomocný list 1'!AE$11-1986))/1000*'Pomocný list 1'!$D$5*'Pomocný list 1'!$D$13,$D$13),0)+IF($E$4="PV",IF($E$11="Pay as produced",INDEX('Pomocný list 3'!$K$4:$K$262971,$V14+8760*('Pomocný list 1'!AE$11-1986))/1000*'Pomocný list 1'!$E$5*'Pomocný list 1'!$E$13,$E$13),0)+IF($F$4="PV",IF($F$11="Pay as produced",INDEX('Pomocný list 3'!$K$4:$K$262971,$V14+8760*('Pomocný list 1'!AE$11-1986))/1000*'Pomocný list 1'!$F$5*'Pomocný list 1'!$F$13,$F$13),0)+IF($G$4="PV",IF($G$11="Pay as produced",INDEX('Pomocný list 3'!$K$4:$K$262971,$V14+8760*('Pomocný list 1'!AE$11-1986))/1000*'Pomocný list 1'!$G$5*'Pomocný list 1'!$G$13,$G$13),0)+IF($C$4="PV",IF($C$11="Pay as produced",INDEX('Pomocný list 3'!$K$4:$K$262971,$V14+8760*('Pomocný list 1'!AE$11-1986))/1000*'Pomocný list 1'!$C$5*'Pomocný list 1'!$C$13,$C$13),0) -> 0 | AF14: =IF($D$4="PV",IF($D$11="Pay as produced",INDEX('Pomocný list 3'!$K$4:$K$262971,$V14+8760*('Pomocný list 1'!AF$11-1986))/1000*'Pomocný list 1'!$D$5*'Pomocný list 1'!$D$13,$D$13),0)+IF($E$4="PV",IF($E$11="Pay as produced",INDEX('Pomocný list 3'!$K$4:$K$262971,$V14+8760*('Pomocný list 1'!AF$11-1986))/1000*'Pomocný list 1'!$E$5*'Pomocný list 1'!$E$13,$E$13),0)+IF($F$4="PV",IF($F$11="Pay as produced",INDEX('Pomocný list 3'!$K$4:$K$262971,$V14+8760*('Pomocný list 1'!AF$11-1986))/1000*'Pomocný list 1'!$F$5*'Pomocný list 1'!$F$13,$F$13),0)+IF($G$4="PV",IF($G$11="Pay as produced",INDEX('Pomocný list 3'!$K$4:$K$262971,$V14+8760*('Pomocný list 1'!AF$11-1986))/1000*'Pomocný list 1'!$G$5*'Pomocný list 1'!$G$13,$G$13),0)+IF($C$4="PV",IF($C$11="Pay as produced",INDEX('Pomocný list 3'!$K$4:$K$262971,$V14+8760*('Pomocný list 1'!AF$11-1986))/1000*'Pomocný list 1'!$C$5*'Pomocný list 1'!$C$13,$C$13),0) -> 0 | AG14: 0.6892423822 | AH14: -0.8650547441 | AI14: -1.288276304 | AJ14: 1.050642146 | AK14: -1.068766278 | AL14: 2 | AM14: 0.2428991083 | AN14: 2 | AO14: =IF(AG14<0,-AG14,0) -> 0 | AP14: =IF(AH14<0,-AH14,0) -> 0.8650547441 | AQ14: =IF(AI14<0,-AI14,0) -> 1.288276304 | AR14: =IF(AJ14<0,-AJ14,0) -> 0 | AS14: =IF(AK14<0,-AK14,0) -> 1.068766278 | AT14: =IF(AG14>0,AG14,0) -> 0.6892423822 | AU14: =IF(AH14>0,AH14,0) -> 0 | AV14: =IF(AI14>0,AI14,0) -> 0 | AW14: =IF(AJ14>0,AJ14,0) -> 1.050642146 | AX14: =IF(AK14>0,AK14,0) -> 0 | BA14: 11 | BB14: 0.09287647558 | BE14: 11 | BF14: 0.05223342344 | BO14: 11 | BP14: 0.09310913438 | BS14: 11 | BT14: 0.02361386369 | BV14: 11 | BW14: 0.1032899302 | BZ14: 11 | CA14: 0.02449377561 | CC14: 11 | CD14: 0.1409401309 | CG14: 11 | CH14: 0.02449377561 | CJ14: 11 | CK14: 0.1319604905 | CN14: 11 | CO14: 0.02427867044 | CQ14: 11 | CR14: 0.115527005 | CU14: 11 | CV14: 0.02442943593 | CX14: 11 | CY14: 0.0402535706 | DB14: 11 | DC14: 0.1129812204 | DE14: 11 | DF14: 0.0382327408 | DI14: 11 | DJ14: 0.115045518 | DL14: 11 | DM14: 0.01901756478 | DP14: 11 | DQ14: 0.1156983777 | DS14: 11 | DT14: 0.02866044198 | DW14: 11 | DX14: 0.1302345359 | DZ14: 11 | EA14: 0.03298300221 | ED14: 11 | EE14: 0.1133181351
B15: Průměrná výroba zdroje za rok (MWh) | C15: =IF(C11="Pay as produced",C13*AVERAGE(C17:C21),C13*8760) -> 1905.831816 | D15: =IF(D11="Pay as produced",D13*AVERAGE(D17:D21),D13*8760) -> 5266.114228 | E15: 8232.287835 | F15: 0 | G15: 0 | N15: 2017-01-01 | O15: 3 | P15: 7 | Q15: 1 | S15: 1.948760045 | V15: 3 | W15: =IF($D$4="Wind",IF($D$11="Pay as produced",INDEX('Pomocný list 3'!$O$4:$O$262971,$V15+8760*('Pomocný list 1'!W$11-1986))/2000*'Pomocný list 1'!$D$5*'Pomocný list 1'!$D$13,$D$13),0)+IF($E$4="Wind",IF($E$11="Pay as produced",INDEX('Pomocný list 3'!$O$4:$O$262971,$V15+8760*('Pomocný list 1'!W$11-1986))/2000*'Pomocný list 1'!$E$5*'Pomocný list 1'!$E$13,$E$13),0)+IF($F$4="Wind",IF($F$11="Pay as produced",INDEX('Pomocný list 3'!$O$4:$O$262971,$V15+8760*('Pomocný list 1'!W$11-1986))/2000*'Pomocný list 1'!$F$5*'Pomocný list 1'!$F$13,$F$13),0)+IF($G$4="Wind",IF($G$11="Pay as produced",INDEX('Pomocný list 3'!$O$4:$O$262971,$V15+8760*('Pomocný list 1'!W$11-1986))/2000*'Pomocný list 1'!$G$5*'Pomocný list 1'!$G$13,$G$13),0)+IF($C$4="Wind",IF($C$11="Pay as produced",INDEX('Pomocný list 3'!$O$4:$O$262971,$V15+8760*('Pomocný list 1'!W$11-1986))/2000*'Pomocný list 1'!$C$5*'Pomocný list 1'!$C$13,$C$13),0) -> 2.697351361 | X15: =IF($D$4="Wind",IF($D$11="Pay as produced",INDEX('Pomocný list 3'!$O$4:$O$262971,$V15+8760*('Pomocný list 1'!X$11-1986))/2000*'Pomocný list 1'!$D$5*'Pomocný list 1'!$D$13,$D$13),0)+IF($E$4="Wind",IF($E$11="Pay as produced",INDEX('Pomocný list 3'!$O$4:$O$262971,$V15+8760*('Pomocný list 1'!X$11-1986))/2000*'Pomocný list 1'!$E$5*'Pomocný list 1'!$E$13,$E$13),0)+IF($F$4="Wind",IF($F$11="Pay as produced",INDEX('Pomocný list 3'!$O$4:$O$262971,$V15+8760*('Pomocný list 1'!X$11-1986))/2000*'Pomocný list 1'!$F$5*'Pomocný list 1'!$F$13,$F$13),0)+IF($G$4="Wind",IF($G$11="Pay as produced",INDEX('Pomocný list 3'!$O$4:$O$262971,$V15+8760*('Pomocný list 1'!X$11-1986))/2000*'Pomocný list 1'!$G$5*'Pomocný list 1'!$G$13,$G$13),0)+IF($C$4="Wind",IF($C$11="Pay as produced",INDEX('Pomocný list 3'!$O$4:$O$262971,$V15+8760*('Pomocný list 1'!X$11-1986))/2000*'Pomocný list 1'!$C$5*'Pomocný list 1'!$C$13,$C$13),0) -> 1.227312856 | Y15: =IF($D$4="Wind",IF($D$11="Pay as produced",INDEX('Pomocný list 3'!$O$4:$O$262971,$V15+8760*('Pomocný list 1'!Y$11-1986))/2000*'Pomocný list 1'!$D$5*'Pomocný list 1'!$D$13,$D$13),0)+IF($E$4="Wind",IF($E$11="Pay as produced",INDEX('Pomocný list 3'!$O$4:$O$262971,$V15+8760*('Pomocný list 1'!Y$11-1986))/2000*'Pomocný list 1'!$E$5*'Pomocný list 1'!$E$13,$E$13),0)+IF($F$4="Wind",IF($F$11="Pay as produced",INDEX('Pomocný list 3'!$O$4:$O$262971,$V15+8760*('Pomocný list 1'!Y$11-1986))/2000*'Pomocný list 1'!$F$5*'Pomocný list 1'!$F$13,$F$13),0)+IF($G$4="Wind",IF($G$11="Pay as produced",INDEX('Pomocný list 3'!$O$4:$O$262971,$V15+8760*('Pomocný list 1'!Y$11-1986))/2000*'Pomocný list 1'!$G$5*'Pomocný list 1'!$G$13,$G$13),0)+IF($C$4="Wind",IF($C$11="Pay as produced",INDEX('Pomocný list 3'!$O$4:$O$262971,$V15+8760*('Pomocný list 1'!Y$11-1986))/2000*'Pomocný list 1'!$C$5*'Pomocný list 1'!$C$13,$C$13),0) -> 0.5437870431 | Z15: =IF($D$4="Wind",IF($D$11="Pay as produced",INDEX('Pomocný list 3'!$O$4:$O$262971,$V15+8760*('Pomocný list 1'!Z$11-1986))/2000*'Pomocný list 1'!$D$5*'Pomocný list 1'!$D$13,$D$13),0)+IF($E$4="Wind",IF($E$11="Pay as produced",INDEX('Pomocný list 3'!$O$4:$O$262971,$V15+8760*('Pomocný list 1'!Z$11-1986))/2000*'Pomocný list 1'!$E$5*'Pomocný list 1'!$E$13,$E$13),0)+IF($F$4="Wind",IF($F$11="Pay as produced",INDEX('Pomocný list 3'!$O$4:$O$262971,$V15+8760*('Pomocný list 1'!Z$11-1986))/2000*'Pomocný list 1'!$F$5*'Pomocný list 1'!$F$13,$F$13),0)+IF($G$4="Wind",IF($G$11="Pay as produced",INDEX('Pomocný list 3'!$O$4:$O$262971,$V15+8760*('Pomocný list 1'!Z$11-1986))/2000*'Pomocný list 1'!$G$5*'Pomocný list 1'!$G$13,$G$13),0)+IF($C$4="Wind",IF($C$11="Pay as produced",INDEX('Pomocný list 3'!$O$4:$O$262971,$V15+8760*('Pomocný list 1'!Z$11-1986))/2000*'Pomocný list 1'!$C$5*'Pomocný list 1'!$C$13,$C$13),0) -> 3.085675314 | AA15: =IF($D$4="Wind",IF($D$11="Pay as produced",INDEX('Pomocný list 3'!$O$4:$O$262971,$V15+8760*('Pomocný list 1'!AA$11-1986))/2000*'Pomocný list 1'!$D$5*'Pomocný list 1'!$D$13,$D$13),0)+IF($E$4="Wind",IF($E$11="Pay as produced",INDEX('Pomocný list 3'!$O$4:$O$262971,$V15+8760*('Pomocný list 1'!AA$11-1986))/2000*'Pomocný list 1'!$E$5*'Pomocný list 1'!$E$13,$E$13),0)+IF($F$4="Wind",IF($F$11="Pay as produced",INDEX('Pomocný list 3'!$O$4:$O$262971,$V15+8760*('Pomocný list 1'!AA$11-1986))/2000*'Pomocný list 1'!$F$5*'Pomocný list 1'!$F$13,$F$13),0)+IF($G$4="Wind",IF($G$11="Pay as produced",INDEX('Pomocný list 3'!$O$4:$O$262971,$V15+8760*('Pomocný list 1'!AA$11-1986))/2000*'Pomocný list 1'!$G$5*'Pomocný list 1'!$G$13,$G$13),0)+IF($C$4="Wind",IF($C$11="Pay as produced",INDEX('Pomocný list 3'!$O$4:$O$262971,$V15+8760*('Pomocný list 1'!AA$11-1986))/2000*'Pomocný list 1'!$C$5*'Pomocný list 1'!$C$13,$C$13),0) -> 0.7945231952 | AB15: =IF($D$4="PV",IF($D$11="Pay as produced",INDEX('Pomocný list 3'!$K$4:$K$262971,$V15+8760*('Pomocný list 1'!AB$11-1986))/1000*'Pomocný list 1'!$D$5*'Pomocný list 1'!$D$13,$D$13),0)+IF($E$4="PV",IF($E$11="Pay as produced",INDEX('Pomocný list 3'!$K$4:$K$262971,$V15+8760*('Pomocný list 1'!AB$11-1986))/1000*'Pomocný list 1'!$E$5*'Pomocný list 1'!$E$13,$E$13),0)+IF($F$4="PV",IF($F$11="Pay as produced",INDEX('Pomocný list 3'!$K$4:$K$262971,$V15+8760*('Pomocný list 1'!AB$11-1986))/1000*'Pomocný list 1'!$F$5*'Pomocný list 1'!$F$13,$F$13),0)+IF($G$4="PV",IF($G$11="Pay as produced",INDEX('Pomocný list 3'!$K$4:$K$262971,$V15+8760*('Pomocný list 1'!AB$11-1986))/1000*'Pomocný list 1'!$G$5*'Pomocný list 1'!$G$13,$G$13),0)+IF($C$4="PV",IF($C$11="Pay as produced",INDEX('Pomocný list 3'!$K$4:$K$262971,$V15+8760*('Pomocný list 1'!AB$11-1986))/1000*'Pomocný list 1'!$C$5*'Pomocný list 1'!$C$13,$C$13),0) -> 0 | AC15: =IF($D$4="PV",IF($D$11="Pay as produced",INDEX('Pomocný list 3'!$K$4:$K$262971,$V15+8760*('Pomocný list 1'!AC$11-1986))/1000*'Pomocný list 1'!$D$5*'Pomocný list 1'!$D$13,$D$13),0)+IF($E$4="PV",IF($E$11="Pay as produced",INDEX('Pomocný list 3'!$K$4:$K$262971,$V15+8760*('Pomocný list 1'!AC$11-1986))/1000*'Pomocný list 1'!$E$5*'Pomocný list 1'!$E$13,$E$13),0)+IF($F$4="PV",IF($F$11="Pay as produced",INDEX('Pomocný list 3'!$K$4:$K$262971,$V15+8760*('Pomocný list 1'!AC$11-1986))/1000*'Pomocný list 1'!$F$5*'Pomocný list 1'!$F$13,$F$13),0)+IF($G$4="PV",IF($G$11="Pay as produced",INDEX('Pomocný list 3'!$K$4:$K$262971,$V15+8760*('Pomocný list 1'!AC$11-1986))/1000*'Pomocný list 1'!$G$5*'Pomocný list 1'!$G$13,$G$13),0)+IF($C$4="PV",IF($C$11="Pay as produced",INDEX('Pomocný list 3'!$K$4:$K$262971,$V15+8760*('Pomocný list 1'!AC$11-1986))/1000*'Pomocný list 1'!$C$5*'Pomocný list 1'!$C$13,$C$13),0) -> 0 | AD15: =IF($D$4="PV",IF($D$11="Pay as produced",INDEX('Pomocný list 3'!$K$4:$K$262971,$V15+8760*('Pomocný list 1'!AD$11-1986))/1000*'Pomocný list 1'!$D$5*'Pomocný list 1'!$D$13,$D$13),0)+IF($E$4="PV",IF($E$11="Pay as produced",INDEX('Pomocný list 3'!$K$4:$K$262971,$V15+8760*('Pomocný list 1'!AD$11-1986))/1000*'Pomocný list 1'!$E$5*'Pomocný list 1'!$E$13,$E$13),0)+IF($F$4="PV",IF($F$11="Pay as produced",INDEX('Pomocný list 3'!$K$4:$K$262971,$V15+8760*('Pomocný list 1'!AD$11-1986))/1000*'Pomocný list 1'!$F$5*'Pomocný list 1'!$F$13,$F$13),0)+IF($G$4="PV",IF($G$11="Pay as produced",INDEX('Pomocný list 3'!$K$4:$K$262971,$V15+8760*('Pomocný list 1'!AD$11-1986))/1000*'Pomocný list 1'!$G$5*'Pomocný list 1'!$G$13,$G$13),0)+IF($C$4="PV",IF($C$11="Pay as produced",INDEX('Pomocný list 3'!$K$4:$K$262971,$V15+8760*('Pomocný list 1'!AD$11-1986))/1000*'Pomocný list 1'!$C$5*'Pomocný list 1'!$C$13,$C$13),0) -> 0 | AE15: =IF($D$4="PV",IF($D$11="Pay as produced",INDEX('Pomocný list 3'!$K$4:$K$262971,$V15+8760*('Pomocný list 1'!AE$11-1986))/1000*'Pomocný list 1'!$D$5*'Pomocný list 1'!$D$13,$D$13),0)+IF($E$4="PV",IF($E$11="Pay as produced",INDEX('Pomocný list 3'!$K$4:$K$262971,$V15+8760*('Pomocný list 1'!AE$11-1986))/1000*'Pomocný list 1'!$E$5*'Pomocný list 1'!$E$13,$E$13),0)+IF($F$4="PV",IF($F$11="Pay as produced",INDEX('Pomocný list 3'!$K$4:$K$262971,$V15+8760*('Pomocný list 1'!AE$11-1986))/1000*'Pomocný list 1'!$F$5*'Pomocný list 1'!$F$13,$F$13),0)+IF($G$4="PV",IF($G$11="Pay as produced",INDEX('Pomocný list 3'!$K$4:$K$262971,$V15+8760*('Pomocný list 1'!AE$11-1986))/1000*'Pomocný list 1'!$G$5*'Pomocný list 1'!$G$13,$G$13),0)+IF($C$4="PV",IF($C$11="Pay as produced",INDEX('Pomocný list 3'!$K$4:$K$262971,$V15+8760*('Pomocný list 1'!AE$11-1986))/1000*'Pomocný list 1'!$C$5*'Pomocný list 1'!$C$13,$C$13),0) -> 0 | AF15: =IF($D$4="PV",IF($D$11="Pay as produced",INDEX('Pomocný list 3'!$K$4:$K$262971,$V15+8760*('Pomocný list 1'!AF$11-1986))/1000*'Pomocný list 1'!$D$5*'Pomocný list 1'!$D$13,$D$13),0)+IF($E$4="PV",IF($E$11="Pay as produced",INDEX('Pomocný list 3'!$K$4:$K$262971,$V15+8760*('Pomocný list 1'!AF$11-1986))/1000*'Pomocný list 1'!$E$5*'Pomocný list 1'!$E$13,$E$13),0)+IF($F$4="PV",IF($F$11="Pay as produced",INDEX('Pomocný list 3'!$K$4:$K$262971,$V15+8760*('Pomocný list 1'!AF$11-1986))/1000*'Pomocný list 1'!$F$5*'Pomocný list 1'!$F$13,$F$13),0)+IF($G$4="PV",IF($G$11="Pay as produced",INDEX('Pomocný list 3'!$K$4:$K$262971,$V15+8760*('Pomocný list 1'!AF$11-1986))/1000*'Pomocný list 1'!$G$5*'Pomocný list 1'!$G$13,$G$13),0)+IF($C$4="PV",IF($C$11="Pay as produced",INDEX('Pomocný list 3'!$K$4:$K$262971,$V15+8760*('Pomocný list 1'!AF$11-1986))/1000*'Pomocný list 1'!$C$5*'Pomocný list 1'!$C$13,$C$13),0) -> 0 | AG15: 0.7485913155 | AH15: -0.7214471896 | AI15: -1.404973002 | AJ15: 1.136915269 | AK15: -1.15423685 | AL15: 3 | AM15: 0.2408076963 | AN15: 3 | AO15: 0 | AP15: 0.7214471896 | AQ15: 1.404973002 | AR15: 0 | AS15: 1.15423685 | AT15: 0.7485913155 | AU15: 0 | AV15: 0 | AW15: 1.136915269 | AX15: 0 | BA15: 12 | BB15: 0.09311505431 | BE15: 12 | BF15: 0.05524193086 | BO15: 12 | BP15: 0.1273112807 | BS15: 12 | BT15: 0.02398110331 | BV15: 12 | BW15: 0.1302873258 | BZ15: 12 | CA15: 0.02575675274 | CC15: 12 | CD15: 0.07547759408 | CG15: 12 | CH15: 0.02575675274 | CJ15: 12 | CK15: 0.09306512374 | CN15: 12 | CO15: 0.02583763588 | CQ15: 12 | CR15: 0.08172784681 | CU15: 12 | CV15: 0.02530376448 | CX15: 12 | CY15: 0.03036242975 | DB15: 12 | DC15: 0.1168638493 | DE15: 12 | DF15: 0.03533454712 | DI15: 12 | DJ15: 0.1157333922 | DL15: 12 | DM15: 0.1049348213 | DP15: 12 | DQ15: 0.1181106019 | DS15: 12 | DT15: 0.09122518945 | DW15: 12 | DX15: 0.1224321903 | DZ15: 12 | EA15: 0.05864945219 | ED15: 12 | EE15: 0.1187210944
N16: 2017-01-01 | O16: 4 | P16: 7 | Q16: 1 | S16: 1.961415401 | V16: 4 | W16: =IF($D$4="Wind",IF($D$11="Pay as produced",INDEX('Pomocný list 3'!$O$4:$O$262971,$V16+8760*('Pomocný list 1'!W$11-1986))/2000*'Pomocný list 1'!$D$5*'Pomocný list 1'!$D$13,$D$13),0)+IF($E$4="Wind",IF($E$11="Pay as produced",INDEX('Pomocný list 3'!$O$4:$O$262971,$V16+8760*('Pomocný list 1'!W$11-1986))/2000*'Pomocný list 1'!$E$5*'Pomocný list 1'!$E$13,$E$13),0)+IF($F$4="Wind",IF($F$11="Pay as produced",INDEX('Pomocný list 3'!$O$4:$O$262971,$V16+8760*('Pomocný list 1'!W$11-1986))/2000*'Pomocný list 1'!$F$5*'Pomocný list 1'!$F$13,$F$13),0)+IF($G$4="Wind",IF($G$11="Pay as produced",INDEX('Pomocný list 3'!$O$4:$O$262971,$V16+8760*('Pomocný list 1'!W$11-1986))/2000*'Pomocný list 1'!$G$5*'Pomocný list 1'!$G$13,$G$13),0)+IF($C$4="Wind",IF($C$11="Pay as produced",INDEX('Pomocný list 3'!$O$4:$O$262971,$V16+8760*('Pomocný list 1'!W$11-1986))/2000*'Pomocný list 1'!$C$5*'Pomocný list 1'!$C$13,$C$13),0) -> 2.544484267 | X16: =IF($D$4="Wind",IF($D$11="Pay as produced",INDEX('Pomocný list 3'!$O$4:$O$262971,$V16+8760*('Pomocný list 1'!X$11-1986))/2000*'Pomocný list 1'!$D$5*'Pomocný list 1'!$D$13,$D$13),0)+IF($E$4="Wind",IF($E$11="Pay as produced",INDEX('Pomocný list 3'!$O$4:$O$262971,$V16+8760*('Pomocný list 1'!X$11-1986))/2000*'Pomocný list 1'!$E$5*'Pomocný list 1'!$E$13,$E$13),0)+IF($F$4="Wind",IF($F$11="Pay as produced",INDEX('Pomocný list 3'!$O$4:$O$262971,$V16+8760*('Pomocný list 1'!X$11-1986))/2000*'Pomocný list 1'!$F$5*'Pomocný list 1'!$F$13,$F$13),0)+IF($G$4="Wind",IF($G$11="Pay as produced",INDEX('Pomocný list 3'!$O$4:$O$262971,$V16+8760*('Pomocný list 1'!X$11-1986))/2000*'Pomocný list 1'!$G$5*'Pomocný list 1'!$G$13,$G$13),0)+IF($C$4="Wind",IF($C$11="Pay as produced",INDEX('Pomocný list 3'!$O$4:$O$262971,$V16+8760*('Pomocný list 1'!X$11-1986))/2000*'Pomocný list 1'!$C$5*'Pomocný list 1'!$C$13,$C$13),0) -> 1.434028329 | Y16: =IF($D$4="Wind",IF($D$11="Pay as produced",INDEX('Pomocný list 3'!$O$4:$O$262971,$V16+8760*('Pomocný list 1'!Y$11-1986))/2000*'Pomocný list 1'!$D$5*'Pomocný list 1'!$D$13,$D$13),0)+IF($E$4="Wind",IF($E$11="Pay as produced",INDEX('Pomocný list 3'!$O$4:$O$262971,$V16+8760*('Pomocný list 1'!Y$11-1986))/2000*'Pomocný list 1'!$E$5*'Pomocný list 1'!$E$13,$E$13),0)+IF($F$4="Wind",IF($F$11="Pay as produced",INDEX('Pomocný list 3'!$O$4:$O$262971,$V16+8760*('Pomocný list 1'!Y$11-1986))/2000*'Pomocný list 1'!$F$5*'Pomocný list 1'!$F$13,$F$13),0)+IF($G$4="Wind",IF($G$11="Pay as produced",INDEX('Pomocný list 3'!$O$4:$O$262971,$V16+8760*('Pomocný list 1'!Y$11-1986))/2000*'Pomocný list 1'!$G$5*'Pomocný list 1'!$G$13,$G$13),0)+IF($C$4="Wind",IF($C$11="Pay as produced",INDEX('Pomocný list 3'!$O$4:$O$262971,$V16+8760*('Pomocný list 1'!Y$11-1986))/2000*'Pomocný list 1'!$C$5*'Pomocný list 1'!$C$13,$C$13),0) -> 0.4423206754 | Z16: =IF($D$4="Wind",IF($D$11="Pay as produced",INDEX('Pomocný list 3'!$O$4:$O$262971,$V16+8760*('Pomocný list 1'!Z$11-1986))/2000*'Pomocný list 1'!$D$5*'Pomocný list 1'!$D$13,$D$13),0)+IF($E$4="Wind",IF($E$11="Pay as produced",INDEX('Pomocný list 3'!$O$4:$O$262971,$V16+8760*('Pomocný list 1'!Z$11-1986))/2000*'Pomocný list 1'!$E$5*'Pomocný list 1'!$E$13,$E$13),0)+IF($F$4="Wind",IF($F$11="Pay as produced",INDEX('Pomocný list 3'!$O$4:$O$262971,$V16+8760*('Pomocný list 1'!Z$11-1986))/2000*'Pomocný list 1'!$F$5*'Pomocný list 1'!$F$13,$F$13),0)+IF($G$4="Wind",IF($G$11="Pay as produced",INDEX('Pomocný list 3'!$O$4:$O$262971,$V16+8760*('Pomocný list 1'!Z$11-1986))/2000*'Pomocný list 1'!$G$5*'Pomocný list 1'!$G$13,$G$13),0)+IF($C$4="Wind",IF($C$11="Pay as produced",INDEX('Pomocný list 3'!$O$4:$O$262971,$V16+8760*('Pomocný list 1'!Z$11-1986))/2000*'Pomocný list 1'!$C$5*'Pomocný list 1'!$C$13,$C$13),0) -> 3.126209941 | AA16: =IF($D$4="Wind",IF($D$11="Pay as produced",INDEX('Pomocný list 3'!$O$4:$O$262971,$V16+8760*('Pomocný list 1'!AA$11-1986))/2000*'Pomocný list 1'!$D$5*'Pomocný list 1'!$D$13,$D$13),0)+IF($E$4="Wind",IF($E$11="Pay as produced",INDEX('Pomocný list 3'!$O$4:$O$262971,$V16+8760*('Pomocný list 1'!AA$11-1986))/2000*'Pomocný list 1'!$E$5*'Pomocný list 1'!$E$13,$E$13),0)+IF($F$4="Wind",IF($F$11="Pay as produced",INDEX('Pomocný list 3'!$O$4:$O$262971,$V16+8760*('Pomocný list 1'!AA$11-1986))/2000*'Pomocný list 1'!$F$5*'Pomocný list 1'!$F$13,$F$13),0)+IF($G$4="Wind",IF($G$11="Pay as produced",INDEX('Pomocný list 3'!$O$4:$O$262971,$V16+8760*('Pomocný list 1'!AA$11-1986))/2000*'Pomocný list 1'!$G$5*'Pomocný list 1'!$G$13,$G$13),0)+IF($C$4="Wind",IF($C$11="Pay as produced",INDEX('Pomocný list 3'!$O$4:$O$262971,$V16+8760*('Pomocný list 1'!AA$11-1986))/2000*'Pomocný list 1'!$C$5*'Pomocný list 1'!$C$13,$C$13),0) -> 0.7050725815 | AB16: =IF($D$4="PV",IF($D$11="Pay as produced",INDEX('Pomocný list 3'!$K$4:$K$262971,$V16+8760*('Pomocný list 1'!AB$11-1986))/1000*'Pomocný list 1'!$D$5*'Pomocný list 1'!$D$13,$D$13),0)+IF($E$4="PV",IF($E$11="Pay as produced",INDEX('Pomocný list 3'!$K$4:$K$262971,$V16+8760*('Pomocný list 1'!AB$11-1986))/1000*'Pomocný list 1'!$E$5*'Pomocný list 1'!$E$13,$E$13),0)+IF($F$4="PV",IF($F$11="Pay as produced",INDEX('Pomocný list 3'!$K$4:$K$262971,$V16+8760*('Pomocný list 1'!AB$11-1986))/1000*'Pomocný list 1'!$F$5*'Pomocný list 1'!$F$13,$F$13),0)+IF($G$4="PV",IF($G$11="Pay as produced",INDEX('Pomocný list 3'!$K$4:$K$262971,$V16+8760*('Pomocný list 1'!AB$11-1986))/1000*'Pomocný list 1'!$G$5*'Pomocný list 1'!$G$13,$G$13),0)+IF($C$4="PV",IF($C$11="Pay as produced",INDEX('Pomocný list 3'!$K$4:$K$262971,$V16+8760*('Pomocný list 1'!AB$11-1986))/1000*'Pomocný list 1'!$C$5*'Pomocný list 1'!$C$13,$C$13),0) -> 0 | AC16: =IF($D$4="PV",IF($D$11="Pay as produced",INDEX('Pomocný list 3'!$K$4:$K$262971,$V16+8760*('Pomocný list 1'!AC$11-1986))/1000*'Pomocný list 1'!$D$5*'Pomocný list 1'!$D$13,$D$13),0)+IF($E$4="PV",IF($E$11="Pay as produced",INDEX('Pomocný list 3'!$K$4:$K$262971,$V16+8760*('Pomocný list 1'!AC$11-1986))/1000*'Pomocný list 1'!$E$5*'Pomocný list 1'!$E$13,$E$13),0)+IF($F$4="PV",IF($F$11="Pay as produced",INDEX('Pomocný list 3'!$K$4:$K$262971,$V16+8760*('Pomocný list 1'!AC$11-1986))/1000*'Pomocný list 1'!$F$5*'Pomocný list 1'!$F$13,$F$13),0)+IF($G$4="PV",IF($G$11="Pay as produced",INDEX('Pomocný list 3'!$K$4:$K$262971,$V16+8760*('Pomocný list 1'!AC$11-1986))/1000*'Pomocný list 1'!$G$5*'Pomocný list 1'!$G$13,$G$13),0)+IF($C$4="PV",IF($C$11="Pay as produced",INDEX('Pomocný list 3'!$K$4:$K$262971,$V16+8760*('Pomocný list 1'!AC$11-1986))/1000*'Pomocný list 1'!$C$5*'Pomocný list 1'!$C$13,$C$13),0) -> 0 | AD16: =IF($D$4="PV",IF($D$11="Pay as produced",INDEX('Pomocný list 3'!$K$4:$K$262971,$V16+8760*('Pomocný list 1'!AD$11-1986))/1000*'Pomocný list 1'!$D$5*'Pomocný list 1'!$D$13,$D$13),0)+IF($E$4="PV",IF($E$11="Pay as produced",INDEX('Pomocný list 3'!$K$4:$K$262971,$V16+8760*('Pomocný list 1'!AD$11-1986))/1000*'Pomocný list 1'!$E$5*'Pomocný list 1'!$E$13,$E$13),0)+IF($F$4="PV",IF($F$11="Pay as produced",INDEX('Pomocný list 3'!$K$4:$K$262971,$V16+8760*('Pomocný list 1'!AD$11-1986))/1000*'Pomocný list 1'!$F$5*'Pomocný list 1'!$F$13,$F$13),0)+IF($G$4="PV",IF($G$11="Pay as produced",INDEX('Pomocný list 3'!$K$4:$K$262971,$V16+8760*('Pomocný list 1'!AD$11-1986))/1000*'Pomocný list 1'!$G$5*'Pomocný list 1'!$G$13,$G$13),0)+IF($C$4="PV",IF($C$11="Pay as produced",INDEX('Pomocný list 3'!$K$4:$K$262971,$V16+8760*('Pomocný list 1'!AD$11-1986))/1000*'Pomocný list 1'!$C$5*'Pomocný list 1'!$C$13,$C$13),0) -> 0 | AE16: =IF($D$4="PV",IF($D$11="Pay as produced",INDEX('Pomocný list 3'!$K$4:$K$262971,$V16+8760*('Pomocný list 1'!AE$11-1986))/1000*'Pomocný list 1'!$D$5*'Pomocný list 1'!$D$13,$D$13),0)+IF($E$4="PV",IF($E$11="Pay as produced",INDEX('Pomocný list 3'!$K$4:$K$262971,$V16+8760*('Pomocný list 1'!AE$11-1986))/1000*'Pomocný list 1'!$E$5*'Pomocný list 1'!$E$13,$E$13),0)+IF($F$4="PV",IF($F$11="Pay as produced",INDEX('Pomocný list 3'!$K$4:$K$262971,$V16+8760*('Pomocný list 1'!AE$11-1986))/1000*'Pomocný list 1'!$F$5*'Pomocný list 1'!$F$13,$F$13),0)+IF($G$4="PV",IF($G$11="Pay as produced",INDEX('Pomocný list 3'!$K$4:$K$262971,$V16+8760*('Pomocný list 1'!AE$11-1986))/1000*'Pomocný list 1'!$G$5*'Pomocný list 1'!$G$13,$G$13),0)+IF($C$4="PV",IF($C$11="Pay as produced",INDEX('Pomocný list 3'!$K$4:$K$262971,$V16+8760*('Pomocný list 1'!AE$11-1986))/1000*'Pomocný list 1'!$C$5*'Pomocný list 1'!$C$13,$C$13),0) -> 0 | AF16: =IF($D$4="PV",IF($D$11="Pay as produced",INDEX('Pomocný list 3'!$K$4:$K$262971,$V16+8760*('Pomocný list 1'!AF$11-1986))/1000*'Pomocný list 1'!$D$5*'Pomocný list 1'!$D$13,$D$13),0)+IF($E$4="PV",IF($E$11="Pay as produced",INDEX('Pomocný list 3'!$K$4:$K$262971,$V16+8760*('Pomocný list 1'!AF$11-1986))/1000*'Pomocný list 1'!$E$5*'Pomocný list 1'!$E$13,$E$13),0)+IF($F$4="PV",IF($F$11="Pay as produced",INDEX('Pomocný list 3'!$K$4:$K$262971,$V16+8760*('Pomocný list 1'!AF$11-1986))/1000*'Pomocný list 1'!$F$5*'Pomocný list 1'!$F$13,$F$13),0)+IF($G$4="PV",IF($G$11="Pay as produced",INDEX('Pomocný list 3'!$K$4:$K$262971,$V16+8760*('Pomocný list 1'!AF$11-1986))/1000*'Pomocný list 1'!$G$5*'Pomocný list 1'!$G$13,$G$13),0)+IF($C$4="PV",IF($C$11="Pay as produced",INDEX('Pomocný list 3'!$K$4:$K$262971,$V16+8760*('Pomocný list 1'!AF$11-1986))/1000*'Pomocný list 1'!$C$5*'Pomocný list 1'!$C$13,$C$13),0) -> 0 | AG16: 0.583068866 | AH16: -0.5273870728 | AI16: -1.519094726 | AJ16: 1.16479454 | AK16: -1.25634282 | AL16: 4 | AM16: 0.1595382481 | AN16: 4 | AO16: 0 | AP16: 0.5273870728 | AQ16: 1.519094726 | AR16: 0 | AS16: 1.25634282 | AT16: 0.583068866 | AU16: 0 | AV16: 0 | AW16: 1.16479454 | AX16: 0 | BE16: 13 | BF16: 0.0548151504 | BS16: 13 | BT16: 0.02464429908 | BZ16: 13 | CA16: 0.02634325113 | CG16: 13 | CH16: 0.02634325113 | CN16: 13 | CO16: 0.02718571558 | CU16: 13 | CV16: 0.02611880816 | DB16: 13 | DC16: 0.1233112553 | DI16: 13 | DJ16: 0.1215142889 | DP16: 13 | DQ16: 0.117388611 | DW16: 13 | DX16: 0.1251878553 | ED16: 13 | EE16: 0.1199685141
B17: =TRANSPOSE(W11:AA11) -> 1992 | C17: =IF(C$4="PV",'Pomocný list 3'!$K262972*'Pomocný list 1'!C$5/1000,'Pomocný list 3'!$O262972*'Pomocný list 1'!C$5/2000) -> 1021.54045 | D17: =IF(D$4="PV",'Pomocný list 3'!$K262972*'Pomocný list 1'!D$5/1000,'Pomocný list 3'!$O262972*'Pomocný list 1'!D$5/2000) -> 1129.071023 | E17: =IF(E$4="PV",'Pomocný list 3'!$K262972*'Pomocný list 1'!E$5/1000,'Pomocný list 3'!$O262972*'Pomocný list 1'!E$5/2000) -> 2184.205826 | F17: =IF(F$4="PV",'Pomocný list 3'!$K262972*'Pomocný list 1'!F$5/1000,'Pomocný list 3'!$O262972*'Pomocný list 1'!F$5/2000) -> 1129.071023 | G17: =IF(G$4="PV",'Pomocný list 3'!$K262972*'Pomocný list 1'!G$5/1000,'Pomocný list 3'!$O262972*'Pomocný list 1'!G$5/2000) -> 2511.8367 | N17: 2017-01-01 | O17: 5 | P17: 7 | Q17: 1 | S17: 1.941344798 | V17: 5 | W17: =IF($D$4="Wind",IF($D$11="Pay as produced",INDEX('Pomocný list 3'!$O$4:$O$262971,$V17+8760*('Pomocný list 1'!W$11-1986))/2000*'Pomocný list 1'!$D$5*'Pomocný list 1'!$D$13,$D$13),0)+IF($E$4="Wind",IF($E$11="Pay as produced",INDEX('Pomocný list 3'!$O$4:$O$262971,$V17+8760*('Pomocný list 1'!W$11-1986))/2000*'Pomocný list 1'!$E$5*'Pomocný list 1'!$E$13,$E$13),0)+IF($F$4="Wind",IF($F$11="Pay as produced",INDEX('Pomocný list 3'!$O$4:$O$262971,$V17+8760*('Pomocný list 1'!W$11-1986))/2000*'Pomocný list 1'!$F$5*'Pomocný list 1'!$F$13,$F$13),0)+IF($G$4="Wind",IF($G$11="Pay as produced",INDEX('Pomocný list 3'!$O$4:$O$262971,$V17+8760*('Pomocný list 1'!W$11-1986))/2000*'Pomocný list 1'!$G$5*'Pomocný list 1'!$G$13,$G$13),0)+IF($C$4="Wind",IF($C$11="Pay as produced",INDEX('Pomocný list 3'!$O$4:$O$262971,$V17+8760*('Pomocný list 1'!W$11-1986))/2000*'Pomocný list 1'!$C$5*'Pomocný list 1'!$C$13,$C$13),0) -> 2.301424847 | X17: =IF($D$4="Wind",IF($D$11="Pay as produced",INDEX('Pomocný list 3'!$O$4:$O$262971,$V17+8760*('Pomocný list 1'!X$11-1986))/2000*'Pomocný list 1'!$D$5*'Pomocný list 1'!$D$13,$D$13),0)+IF($E$4="Wind",IF($E$11="Pay as produced",INDEX('Pomocný list 3'!$O$4:$O$262971,$V17+8760*('Pomocný list 1'!X$11-1986))/2000*'Pomocný list 1'!$E$5*'Pomocný list 1'!$E$13,$E$13),0)+IF($F$4="Wind",IF($F$11="Pay as produced",INDEX('Pomocný list 3'!$O$4:$O$262971,$V17+8760*('Pomocný list 1'!X$11-1986))/2000*'Pomocný list 1'!$F$5*'Pomocný list 1'!$F$13,$F$13),0)+IF($G$4="Wind",IF($G$11="Pay as produced",INDEX('Pomocný list 3'!$O$4:$O$262971,$V17+8760*('Pomocný list 1'!X$11-1986))/2000*'Pomocný list 1'!$G$5*'Pomocný list 1'!$G$13,$G$13),0)+IF($C$4="Wind",IF($C$11="Pay as produced",INDEX('Pomocný list 3'!$O$4:$O$262971,$V17+8760*('Pomocný list 1'!X$11-1986))/2000*'Pomocný list 1'!$C$5*'Pomocný list 1'!$C$13,$C$13),0) -> 1.818903315 | Y17: =IF($D$4="Wind",IF($D$11="Pay as produced",INDEX('Pomocný list 3'!$O$4:$O$262971,$V17+8760*('Pomocný list 1'!Y$11-1986))/2000*'Pomocný list 1'!$D$5*'Pomocný list 1'!$D$13,$D$13),0)+IF($E$4="Wind",IF($E$11="Pay as produced",INDEX('Pomocný list 3'!$O$4:$O$262971,$V17+8760*('Pomocný list 1'!Y$11-1986))/2000*'Pomocný list 1'!$E$5*'Pomocný list 1'!$E$13,$E$13),0)+IF($F$4="Wind",IF($F$11="Pay as produced",INDEX('Pomocný list 3'!$O$4:$O$262971,$V17+8760*('Pomocný list 1'!Y$11-1986))/2000*'Pomocný list 1'!$F$5*'Pomocný list 1'!$F$13,$F$13),0)+IF($G$4="Wind",IF($G$11="Pay as produced",INDEX('Pomocný list 3'!$O$4:$O$262971,$V17+8760*('Pomocný list 1'!Y$11-1986))/2000*'Pomocný list 1'!$G$5*'Pomocný list 1'!$G$13,$G$13),0)+IF($C$4="Wind",IF($C$11="Pay as produced",INDEX('Pomocný list 3'!$O$4:$O$262971,$V17+8760*('Pomocný list 1'!Y$11-1986))/2000*'Pomocný list 1'!$C$5*'Pomocný list 1'!$C$13,$C$13),0) -> 0.3563561138 | Z17: =IF($D$4="Wind",IF($D$11="Pay as produced",INDEX('Pomocný list 3'!$O$4:$O$262971,$V17+8760*('Pomocný list 1'!Z$11-1986))/2000*'Pomocný list 1'!$D$5*'Pomocný list 1'!$D$13,$D$13),0)+IF($E$4="Wind",IF($E$11="Pay as produced",INDEX('Pomocný list 3'!$O$4:$O$262971,$V17+8760*('Pomocný list 1'!Z$11-1986))/2000*'Pomocný list 1'!$E$5*'Pomocný list 1'!$E$13,$E$13),0)+IF($F$4="Wind",IF($F$11="Pay as produced",INDEX('Pomocný list 3'!$O$4:$O$262971,$V17+8760*('Pomocný list 1'!Z$11-1986))/2000*'Pomocný list 1'!$F$5*'Pomocný list 1'!$F$13,$F$13),0)+IF($G$4="Wind",IF($G$11="Pay as produced",INDEX('Pomocný list 3'!$O$4:$O$262971,$V17+8760*('Pomocný list 1'!Z$11-1986))/2000*'Pomocný list 1'!$G$5*'Pomocný list 1'!$G$13,$G$13),0)+IF($C$4="Wind",IF($C$11="Pay as produced",INDEX('Pomocný list 3'!$O$4:$O$262971,$V17+8760*('Pomocný list 1'!Z$11-1986))/2000*'Pomocný list 1'!$C$5*'Pomocný list 1'!$C$13,$C$13),0) -> 3.109892251 | AA17: =IF($D$4="Wind",IF($D$11="Pay as produced",INDEX('Pomocný list 3'!$O$4:$O$262971,$V17+8760*('Pomocný list 1'!AA$11-1986))/2000*'Pomocný list 1'!$D$5*'Pomocný list 1'!$D$13,$D$13),0)+IF($E$4="Wind",IF($E$11="Pay as produced",INDEX('Pomocný list 3'!$O$4:$O$262971,$V17+8760*('Pomocný list 1'!AA$11-1986))/2000*'Pomocný list 1'!$E$5*'Pomocný list 1'!$E$13,$E$13),0)+IF($F$4="Wind",IF($F$11="Pay as produced",INDEX('Pomocný list 3'!$O$4:$O$262971,$V17+8760*('Pomocný list 1'!AA$11-1986))/2000*'Pomocný list 1'!$F$5*'Pomocný list 1'!$F$13,$F$13),0)+IF($G$4="Wind",IF($G$11="Pay as produced",INDEX('Pomocný list 3'!$O$4:$O$262971,$V17+8760*('Pomocný list 1'!AA$11-1986))/2000*'Pomocný list 1'!$G$5*'Pomocný list 1'!$G$13,$G$13),0)+IF($C$4="Wind",IF($C$11="Pay as produced",INDEX('Pomocný list 3'!$O$4:$O$262971,$V17+8760*('Pomocný list 1'!AA$11-1986))/2000*'Pomocný list 1'!$C$5*'Pomocný list 1'!$C$13,$C$13),0) -> 0.6258946959 | AB17: =IF($D$4="PV",IF($D$11="Pay as produced",INDEX('Pomocný list 3'!$K$4:$K$262971,$V17+8760*('Pomocný list 1'!AB$11-1986))/1000*'Pomocný list 1'!$D$5*'Pomocný list 1'!$D$13,$D$13),0)+IF($E$4="PV",IF($E$11="Pay as produced",INDEX('Pomocný list 3'!$K$4:$K$262971,$V17+8760*('Pomocný list 1'!AB$11-1986))/1000*'Pomocný list 1'!$E$5*'Pomocný list 1'!$E$13,$E$13),0)+IF($F$4="PV",IF($F$11="Pay as produced",INDEX('Pomocný list 3'!$K$4:$K$262971,$V17+8760*('Pomocný list 1'!AB$11-1986))/1000*'Pomocný list 1'!$F$5*'Pomocný list 1'!$F$13,$F$13),0)+IF($G$4="PV",IF($G$11="Pay as produced",INDEX('Pomocný list 3'!$K$4:$K$262971,$V17+8760*('Pomocný list 1'!AB$11-1986))/1000*'Pomocný list 1'!$G$5*'Pomocný list 1'!$G$13,$G$13),0)+IF($C$4="PV",IF($C$11="Pay as produced",INDEX('Pomocný list 3'!$K$4:$K$262971,$V17+8760*('Pomocný list 1'!AB$11-1986))/1000*'Pomocný list 1'!$C$5*'Pomocný list 1'!$C$13,$C$13),0) -> 0 | AC17: =IF($D$4="PV",IF($D$11="Pay as produced",INDEX('Pomocný list 3'!$K$4:$K$262971,$V17+8760*('Pomocný list 1'!AC$11-1986))/1000*'Pomocný list 1'!$D$5*'Pomocný list 1'!$D$13,$D$13),0)+IF($E$4="PV",IF($E$11="Pay as produced",INDEX('Pomocný list 3'!$K$4:$K$262971,$V17+8760*('Pomocný list 1'!AC$11-1986))/1000*'Pomocný list 1'!$E$5*'Pomocný list 1'!$E$13,$E$13),0)+IF($F$4="PV",IF($F$11="Pay as produced",INDEX('Pomocný list 3'!$K$4:$K$262971,$V17+8760*('Pomocný list 1'!AC$11-1986))/1000*'Pomocný list 1'!$F$5*'Pomocný list 1'!$F$13,$F$13),0)+IF($G$4="PV",IF($G$11="Pay as produced",INDEX('Pomocný list 3'!$K$4:$K$262971,$V17+8760*('Pomocný list 1'!AC$11-1986))/1000*'Pomocný list 1'!$G$5*'Pomocný list 1'!$G$13,$G$13),0)+IF($C$4="PV",IF($C$11="Pay as produced",INDEX('Pomocný list 3'!$K$4:$K$262971,$V17+8760*('Pomocný list 1'!AC$11-1986))/1000*'Pomocný list 1'!$C$5*'Pomocný list 1'!$C$13,$C$13),0) -> 0 | AD17: =IF($D$4="PV",IF($D$11="Pay as produced",INDEX('Pomocný list 3'!$K$4:$K$262971,$V17+8760*('Pomocný list 1'!AD$11-1986))/1000*'Pomocný list 1'!$D$5*'Pomocný list 1'!$D$13,$D$13),0)+IF($E$4="PV",IF($E$11="Pay as produced",INDEX('Pomocný list 3'!$K$4:$K$262971,$V17+8760*('Pomocný list 1'!AD$11-1986))/1000*'Pomocný list 1'!$E$5*'Pomocný list 1'!$E$13,$E$13),0)+IF($F$4="PV",IF($F$11="Pay as produced",INDEX('Pomocný list 3'!$K$4:$K$262971,$V17+8760*('Pomocný list 1'!AD$11-1986))/1000*'Pomocný list 1'!$F$5*'Pomocný list 1'!$F$13,$F$13),0)+IF($G$4="PV",IF($G$11="Pay as produced",INDEX('Pomocný list 3'!$K$4:$K$262971,$V17+8760*('Pomocný list 1'!AD$11-1986))/1000*'Pomocný list 1'!$G$5*'Pomocný list 1'!$G$13,$G$13),0)+IF($C$4="PV",IF($C$11="Pay as produced",INDEX('Pomocný list 3'!$K$4:$K$262971,$V17+8760*('Pomocný list 1'!AD$11-1986))/1000*'Pomocný list 1'!$C$5*'Pomocný list 1'!$C$13,$C$13),0) -> 0 | AE17: =IF($D$4="PV",IF($D$11="Pay as produced",INDEX('Pomocný list 3'!$K$4:$K$262971,$V17+8760*('Pomocný list 1'!AE$11-1986))/1000*'Pomocný list 1'!$D$5*'Pomocný list 1'!$D$13,$D$13),0)+IF($E$4="PV",IF($E$11="Pay as produced",INDEX('Pomocný list 3'!$K$4:$K$262971,$V17+8760*('Pomocný list 1'!AE$11-1986))/1000*'Pomocný list 1'!$E$5*'Pomocný list 1'!$E$13,$E$13),0)+IF($F$4="PV",IF($F$11="Pay as produced",INDEX('Pomocný list 3'!$K$4:$K$262971,$V17+8760*('Pomocný list 1'!AE$11-1986))/1000*'Pomocný list 1'!$F$5*'Pomocný list 1'!$F$13,$F$13),0)+IF($G$4="PV",IF($G$11="Pay as produced",INDEX('Pomocný list 3'!$K$4:$K$262971,$V17+8760*('Pomocný list 1'!AE$11-1986))/1000*'Pomocný list 1'!$G$5*'Pomocný list 1'!$G$13,$G$13),0)+IF($C$4="PV",IF($C$11="Pay as produced",INDEX('Pomocný list 3'!$K$4:$K$262971,$V17+8760*('Pomocný list 1'!AE$11-1986))/1000*'Pomocný list 1'!$C$5*'Pomocný list 1'!$C$13,$C$13),0) -> 0 | AF17: =IF($D$4="PV",IF($D$11="Pay as produced",INDEX('Pomocný list 3'!$K$4:$K$262971,$V17+8760*('Pomocný list 1'!AF$11-1986))/1000*'Pomocný list 1'!$D$5*'Pomocný list 1'!$D$13,$D$13),0)+IF($E$4="PV",IF($E$11="Pay as produced",INDEX('Pomocný list 3'!$K$4:$K$262971,$V17+8760*('Pomocný list 1'!AF$11-1986))/1000*'Pomocný list 1'!$E$5*'Pomocný list 1'!$E$13,$E$13),0)+IF($F$4="PV",IF($F$11="Pay as produced",INDEX('Pomocný list 3'!$K$4:$K$262971,$V17+8760*('Pomocný list 1'!AF$11-1986))/1000*'Pomocný list 1'!$F$5*'Pomocný list 1'!$F$13,$F$13),0)+IF($G$4="PV",IF($G$11="Pay as produced",INDEX('Pomocný list 3'!$K$4:$K$262971,$V17+8760*('Pomocný list 1'!AF$11-1986))/1000*'Pomocný list 1'!$G$5*'Pomocný list 1'!$G$13,$G$13),0)+IF($C$4="PV",IF($C$11="Pay as produced",INDEX('Pomocný list 3'!$K$4:$K$262971,$V17+8760*('Pomocný list 1'!AF$11-1986))/1000*'Pomocný list 1'!$C$5*'Pomocný list 1'!$C$13,$C$13),0) -> 0 | AG17: 0.3600800494 | AH17: -0.1224414822 | AI17: -1.584988684 | AJ17: 1.168547453 | AK17: -1.315450102 | AL17: 5 | AM17: 0.1532688215 | AN17: 5 | AO17: 0 | AP17: 0.1224414822 | AQ17: 1.584988684 | AR17: 0 | AS17: 1.315450102 | AT17: 0.3600800494 | AU17: 0 | AV17: 0 | AW17: 1.168547453 | AX17: 0 | BC17: =SUMPRODUCT(BB4:BB15,$BI$4:$BI$15)*SUMPRODUCT(BD4:BD10,$BK$4:$BK$10)*SUMPRODUCT(BF4:BF27,$BM$4:$BM$27) -> 0 | BE17: 14 | BF17: 0.05441059096 | BS17: 14 | BT17: 0.02609580624 | BZ17: 14 | CA17: 0.02853272342 | CG17: 14 | CH17: 0.02853272342 | CN17: 14 | CO17: 0.03004823488 | CU17: 14 | CV17: 0.02646318502 | DB17: 14 | DC17: 0.1130017439 | DI17: 14 | DJ17: 0.1080063903 | DP17: 14 | DQ17: 0.1059795571 | DW17: 14 | DX17: 0.1026349367 | ED17: 14 | EE17: 0.1035132181
B18: 2004 | C18: =IF(C$4="PV",'Pomocný list 3'!$K262973*'Pomocný list 1'!C$5/1000,'Pomocný list 3'!$O262973*'Pomocný list 1'!C$5/2000) -> 942.9150009 | D18: =IF(D$4="PV",'Pomocný list 3'!$K262973*'Pomocný list 1'!D$5/1000,'Pomocný list 3'!$O262973*'Pomocný list 1'!D$5/2000) -> 1042.169212 | E18: =IF(E$4="PV",'Pomocný list 3'!$K262973*'Pomocný list 1'!E$5/1000,'Pomocný list 3'!$O262973*'Pomocný list 1'!E$5/2000) -> 2030.221963 | F18: =IF(F$4="PV",'Pomocný list 3'!$K262973*'Pomocný list 1'!F$5/1000,'Pomocný list 3'!$O262973*'Pomocný list 1'!F$5/2000) -> 1042.169212 | G18: =IF(G$4="PV",'Pomocný list 3'!$K262973*'Pomocný list 1'!G$5/1000,'Pomocný list 3'!$O262973*'Pomocný list 1'!G$5/2000) -> 2334.755257 | N18: 2017-01-01 | O18: 6 | P18: 7 | Q18: 1 | S18: 1.965040634 | V18: 6 | W18: =IF($D$4="Wind",IF($D$11="Pay as produced",INDEX('Pomocný list 3'!$O$4:$O$262971,$V18+8760*('Pomocný list 1'!W$11-1986))/2000*'Pomocný list 1'!$D$5*'Pomocný list 1'!$D$13,$D$13),0)+IF($E$4="Wind",IF($E$11="Pay as produced",INDEX('Pomocný list 3'!$O$4:$O$262971,$V18+8760*('Pomocný list 1'!W$11-1986))/2000*'Pomocný list 1'!$E$5*'Pomocný list 1'!$E$13,$E$13),0)+IF($F$4="Wind",IF($F$11="Pay as produced",INDEX('Pomocný list 3'!$O$4:$O$262971,$V18+8760*('Pomocný list 1'!W$11-1986))/2000*'Pomocný list 1'!$F$5*'Pomocný list 1'!$F$13,$F$13),0)+IF($G$4="Wind",IF($G$11="Pay as produced",INDEX('Pomocný list 3'!$O$4:$O$262971,$V18+8760*('Pomocný list 1'!W$11-1986))/2000*'Pomocný list 1'!$G$5*'Pomocný list 1'!$G$13,$G$13),0)+IF($C$4="Wind",IF($C$11="Pay as produced",INDEX('Pomocný list 3'!$O$4:$O$262971,$V18+8760*('Pomocný list 1'!W$11-1986))/2000*'Pomocný list 1'!$C$5*'Pomocný list 1'!$C$13,$C$13),0) -> 1.909429413 | X18: =IF($D$4="Wind",IF($D$11="Pay as produced",INDEX('Pomocný list 3'!$O$4:$O$262971,$V18+8760*('Pomocný list 1'!X$11-1986))/2000*'Pomocný list 1'!$D$5*'Pomocný list 1'!$D$13,$D$13),0)+IF($E$4="Wind",IF($E$11="Pay as produced",INDEX('Pomocný list 3'!$O$4:$O$262971,$V18+8760*('Pomocný list 1'!X$11-1986))/2000*'Pomocný list 1'!$E$5*'Pomocný list 1'!$E$13,$E$13),0)+IF($F$4="Wind",IF($F$11="Pay as produced",INDEX('Pomocný list 3'!$O$4:$O$262971,$V18+8760*('Pomocný list 1'!X$11-1986))/2000*'Pomocný list 1'!$F$5*'Pomocný list 1'!$F$13,$F$13),0)+IF($G$4="Wind",IF($G$11="Pay as produced",INDEX('Pomocný list 3'!$O$4:$O$262971,$V18+8760*('Pomocný list 1'!X$11-1986))/2000*'Pomocný list 1'!$G$5*'Pomocný list 1'!$G$13,$G$13),0)+IF($C$4="Wind",IF($C$11="Pay as produced",INDEX('Pomocný list 3'!$O$4:$O$262971,$V18+8760*('Pomocný list 1'!X$11-1986))/2000*'Pomocný list 1'!$C$5*'Pomocný list 1'!$C$13,$C$13),0) -> 2.269234494 | Y18: =IF($D$4="Wind",IF($D$11="Pay as produced",INDEX('Pomocný list 3'!$O$4:$O$262971,$V18+8760*('Pomocný list 1'!Y$11-1986))/2000*'Pomocný list 1'!$D$5*'Pomocný list 1'!$D$13,$D$13),0)+IF($E$4="Wind",IF($E$11="Pay as produced",INDEX('Pomocný list 3'!$O$4:$O$262971,$V18+8760*('Pomocný list 1'!Y$11-1986))/2000*'Pomocný list 1'!$E$5*'Pomocný list 1'!$E$13,$E$13),0)+IF($F$4="Wind",IF($F$11="Pay as produced",INDEX('Pomocný list 3'!$O$4:$O$262971,$V18+8760*('Pomocný list 1'!Y$11-1986))/2000*'Pomocný list 1'!$F$5*'Pomocný list 1'!$F$13,$F$13),0)+IF($G$4="Wind",IF($G$11="Pay as produced",INDEX('Pomocný list 3'!$O$4:$O$262971,$V18+8760*('Pomocný list 1'!Y$11-1986))/2000*'Pomocný list 1'!$G$5*'Pomocný list 1'!$G$13,$G$13),0)+IF($C$4="Wind",IF($C$11="Pay as produced",INDEX('Pomocný list 3'!$O$4:$O$262971,$V18+8760*('Pomocný list 1'!Y$11-1986))/2000*'Pomocný list 1'!$C$5*'Pomocný list 1'!$C$13,$C$13),0) -> 0.2974269989 | Z18: =IF($D$4="Wind",IF($D$11="Pay as produced",INDEX('Pomocný list 3'!$O$4:$O$262971,$V18+8760*('Pomocný list 1'!Z$11-1986))/2000*'Pomocný list 1'!$D$5*'Pomocný list 1'!$D$13,$D$13),0)+IF($E$4="Wind",IF($E$11="Pay as produced",INDEX('Pomocný list 3'!$O$4:$O$262971,$V18+8760*('Pomocný list 1'!Z$11-1986))/2000*'Pomocný list 1'!$E$5*'Pomocný list 1'!$E$13,$E$13),0)+IF($F$4="Wind",IF($F$11="Pay as produced",INDEX('Pomocný list 3'!$O$4:$O$262971,$V18+8760*('Pomocný list 1'!Z$11-1986))/2000*'Pomocný list 1'!$F$5*'Pomocný list 1'!$F$13,$F$13),0)+IF($G$4="Wind",IF($G$11="Pay as produced",INDEX('Pomocný list 3'!$O$4:$O$262971,$V18+8760*('Pomocný list 1'!Z$11-1986))/2000*'Pomocný list 1'!$G$5*'Pomocný list 1'!$G$13,$G$13),0)+IF($C$4="Wind",IF($C$11="Pay as produced",INDEX('Pomocný list 3'!$O$4:$O$262971,$V18+8760*('Pomocný list 1'!Z$11-1986))/2000*'Pomocný list 1'!$C$5*'Pomocný list 1'!$C$13,$C$13),0) -> 3.089161366 | AA18: =IF($D$4="Wind",IF($D$11="Pay as produced",INDEX('Pomocný list 3'!$O$4:$O$262971,$V18+8760*('Pomocný list 1'!AA$11-1986))/2000*'Pomocný list 1'!$D$5*'Pomocný list 1'!$D$13,$D$13),0)+IF($E$4="Wind",IF($E$11="Pay as produced",INDEX('Pomocný list 3'!$O$4:$O$262971,$V18+8760*('Pomocný list 1'!AA$11-1986))/2000*'Pomocný list 1'!$E$5*'Pomocný list 1'!$E$13,$E$13),0)+IF($F$4="Wind",IF($F$11="Pay as produced",INDEX('Pomocný list 3'!$O$4:$O$262971,$V18+8760*('Pomocný list 1'!AA$11-1986))/2000*'Pomocný list 1'!$F$5*'Pomocný list 1'!$F$13,$F$13),0)+IF($G$4="Wind",IF($G$11="Pay as produced",INDEX('Pomocný list 3'!$O$4:$O$262971,$V18+8760*('Pomocný list 1'!AA$11-1986))/2000*'Pomocný list 1'!$G$5*'Pomocný list 1'!$G$13,$G$13),0)+IF($C$4="Wind",IF($C$11="Pay as produced",INDEX('Pomocný list 3'!$O$4:$O$262971,$V18+8760*('Pomocný list 1'!AA$11-1986))/2000*'Pomocný list 1'!$C$5*'Pomocný list 1'!$C$13,$C$13),0) -> 0.6185888207 | AB18: =IF($D$4="PV",IF($D$11="Pay as produced",INDEX('Pomocný list 3'!$K$4:$K$262971,$V18+8760*('Pomocný list 1'!AB$11-1986))/1000*'Pomocný list 1'!$D$5*'Pomocný list 1'!$D$13,$D$13),0)+IF($E$4="PV",IF($E$11="Pay as produced",INDEX('Pomocný list 3'!$K$4:$K$262971,$V18+8760*('Pomocný list 1'!AB$11-1986))/1000*'Pomocný list 1'!$E$5*'Pomocný list 1'!$E$13,$E$13),0)+IF($F$4="PV",IF($F$11="Pay as produced",INDEX('Pomocný list 3'!$K$4:$K$262971,$V18+8760*('Pomocný list 1'!AB$11-1986))/1000*'Pomocný list 1'!$F$5*'Pomocný list 1'!$F$13,$F$13),0)+IF($G$4="PV",IF($G$11="Pay as produced",INDEX('Pomocný list 3'!$K$4:$K$262971,$V18+8760*('Pomocný list 1'!AB$11-1986))/1000*'Pomocný list 1'!$G$5*'Pomocný list 1'!$G$13,$G$13),0)+IF($C$4="PV",IF($C$11="Pay as produced",INDEX('Pomocný list 3'!$K$4:$K$262971,$V18+8760*('Pomocný list 1'!AB$11-1986))/1000*'Pomocný list 1'!$C$5*'Pomocný list 1'!$C$13,$C$13),0) -> 0 | AC18: =IF($D$4="PV",IF($D$11="Pay as produced",INDEX('Pomocný list 3'!$K$4:$K$262971,$V18+8760*('Pomocný list 1'!AC$11-1986))/1000*'Pomocný list 1'!$D$5*'Pomocný list 1'!$D$13,$D$13),0)+IF($E$4="PV",IF($E$11="Pay as produced",INDEX('Pomocný list 3'!$K$4:$K$262971,$V18+8760*('Pomocný list 1'!AC$11-1986))/1000*'Pomocný list 1'!$E$5*'Pomocný list 1'!$E$13,$E$13),0)+IF($F$4="PV",IF($F$11="Pay as produced",INDEX('Pomocný list 3'!$K$4:$K$262971,$V18+8760*('Pomocný list 1'!AC$11-1986))/1000*'Pomocný list 1'!$F$5*'Pomocný list 1'!$F$13,$F$13),0)+IF($G$4="PV",IF($G$11="Pay as produced",INDEX('Pomocný list 3'!$K$4:$K$262971,$V18+8760*('Pomocný list 1'!AC$11-1986))/1000*'Pomocný list 1'!$G$5*'Pomocný list 1'!$G$13,$G$13),0)+IF($C$4="PV",IF($C$11="Pay as produced",INDEX('Pomocný list 3'!$K$4:$K$262971,$V18+8760*('Pomocný list 1'!AC$11-1986))/1000*'Pomocný list 1'!$C$5*'Pomocný list 1'!$C$13,$C$13),0) -> 0 | AD18: =IF($D$4="PV",IF($D$11="Pay as produced",INDEX('Pomocný list 3'!$K$4:$K$262971,$V18+8760*('Pomocný list 1'!AD$11-1986))/1000*'Pomocný list 1'!$D$5*'Pomocný list 1'!$D$13,$D$13),0)+IF($E$4="PV",IF($E$11="Pay as produced",INDEX('Pomocný list 3'!$K$4:$K$262971,$V18+8760*('Pomocný list 1'!AD$11-1986))/1000*'Pomocný list 1'!$E$5*'Pomocný list 1'!$E$13,$E$13),0)+IF($F$4="PV",IF($F$11="Pay as produced",INDEX('Pomocný list 3'!$K$4:$K$262971,$V18+8760*('Pomocný list 1'!AD$11-1986))/1000*'Pomocný list 1'!$F$5*'Pomocný list 1'!$F$13,$F$13),0)+IF($G$4="PV",IF($G$11="Pay as produced",INDEX('Pomocný list 3'!$K$4:$K$262971,$V18+8760*('Pomocný list 1'!AD$11-1986))/1000*'Pomocný list 1'!$G$5*'Pomocný list 1'!$G$13,$G$13),0)+IF($C$4="PV",IF($C$11="Pay as produced",INDEX('Pomocný list 3'!$K$4:$K$262971,$V18+8760*('Pomocný list 1'!AD$11-1986))/1000*'Pomocný list 1'!$C$5*'Pomocný list 1'!$C$13,$C$13),0) -> 0 | AE18: =IF($D$4="PV",IF($D$11="Pay as produced",INDEX('Pomocný list 3'!$K$4:$K$262971,$V18+8760*('Pomocný list 1'!AE$11-1986))/1000*'Pomocný list 1'!$D$5*'Pomocný list 1'!$D$13,$D$13),0)+IF($E$4="PV",IF($E$11="Pay as produced",INDEX('Pomocný list 3'!$K$4:$K$262971,$V18+8760*('Pomocný list 1'!AE$11-1986))/1000*'Pomocný list 1'!$E$5*'Pomocný list 1'!$E$13,$E$13),0)+IF($F$4="PV",IF($F$11="Pay as produced",INDEX('Pomocný list 3'!$K$4:$K$262971,$V18+8760*('Pomocný list 1'!AE$11-1986))/1000*'Pomocný list 1'!$F$5*'Pomocný list 1'!$F$13,$F$13),0)+IF($G$4="PV",IF($G$11="Pay as produced",INDEX('Pomocný list 3'!$K$4:$K$262971,$V18+8760*('Pomocný list 1'!AE$11-1986))/1000*'Pomocný list 1'!$G$5*'Pomocný list 1'!$G$13,$G$13),0)+IF($C$4="PV",IF($C$11="Pay as produced",INDEX('Pomocný list 3'!$K$4:$K$262971,$V18+8760*('Pomocný list 1'!AE$11-1986))/1000*'Pomocný list 1'!$C$5*'Pomocný list 1'!$C$13,$C$13),0) -> 0 | AF18: =IF($D$4="PV",IF($D$11="Pay as produced",INDEX('Pomocný list 3'!$K$4:$K$262971,$V18+8760*('Pomocný list 1'!AF$11-1986))/1000*'Pomocný list 1'!$D$5*'Pomocný list 1'!$D$13,$D$13),0)+IF($E$4="PV",IF($E$11="Pay as produced",INDEX('Pomocný list 3'!$K$4:$K$262971,$V18+8760*('Pomocný list 1'!AF$11-1986))/1000*'Pomocný list 1'!$E$5*'Pomocný list 1'!$E$13,$E$13),0)+IF($F$4="PV",IF($F$11="Pay as produced",INDEX('Pomocný list 3'!$K$4:$K$262971,$V18+8760*('Pomocný list 1'!AF$11-1986))/1000*'Pomocný list 1'!$F$5*'Pomocný list 1'!$F$13,$F$13),0)+IF($G$4="PV",IF($G$11="Pay as produced",INDEX('Pomocný list 3'!$K$4:$K$262971,$V18+8760*('Pomocný list 1'!AF$11-1986))/1000*'Pomocný list 1'!$G$5*'Pomocný list 1'!$G$13,$G$13),0)+IF($C$4="PV",IF($C$11="Pay as produced",INDEX('Pomocný list 3'!$K$4:$K$262971,$V18+8760*('Pomocný list 1'!AF$11-1986))/1000*'Pomocný list 1'!$C$5*'Pomocný list 1'!$C$13,$C$13),0) -> 0 | AG18: -0.05561122027 | AH18: 0.30419386 | AI18: -1.667613635 | AJ18: 1.124120733 | AK18: -1.346451813 | AL18: 6 | AM18: 0.1642498712 | AN18: 6 | AO18: 0.05561122027 | AP18: 0 | AQ18: 1.667613635 | AR18: 0 | AS18: 1.346451813 | AT18: 0 | AU18: 0.30419386 | AV18: 0 | AW18: 1.124120733 | AX18: 0 | BE18: 15 | BF18: 0.0523463659 | BS18: 15 | BT18: 0.02798632348 | BZ18: 15 | CA18: 0.0313465559 | CG18: 15 | CH18: 0.0313465559 | CN18: 15 | CO18: 0.03451527934 | CU18: 15 | CV18: 0.02993241231 | DB18: 15 | DC18: 0.09678266034 | DI18: 15 | DJ18: 0.09274197866 | DP18: 15 | DQ18: 0.0897068745 | DW18: 15 | DX18: 0.080799624 | ED18: 15 | EE18: 0.08912827061
B19: 1999 | C19: =IF(C$4="PV",'Pomocný list 3'!$K262974*'Pomocný list 1'!C$5/1000,'Pomocný list 3'!$O262974*'Pomocný list 1'!C$5/2000) -> 934.5020701 | D19: =IF(D$4="PV",'Pomocný list 3'!$K262974*'Pomocný list 1'!D$5/1000,'Pomocný list 3'!$O262974*'Pomocný list 1'!D$5/2000) -> 1032.870709 | E19: =IF(E$4="PV",'Pomocný list 3'!$K262974*'Pomocný list 1'!E$5/1000,'Pomocný list 3'!$O262974*'Pomocný list 1'!E$5/2000) -> 2079.375093 | F19: =IF(F$4="PV",'Pomocný list 3'!$K262974*'Pomocný list 1'!F$5/1000,'Pomocný list 3'!$O262974*'Pomocný list 1'!F$5/2000) -> 1032.870709 | G19: =IF(G$4="PV",'Pomocný list 3'!$K262974*'Pomocný list 1'!G$5/1000,'Pomocný list 3'!$O262974*'Pomocný list 1'!G$5/2000) -> 2391.281357 | N19: 2017-01-01 | O19: 7 | P19: 7 | Q19: 1 | S19: 1.951297708 | V19: 7 | W19: =IF($D$4="Wind",IF($D$11="Pay as produced",INDEX('Pomocný list 3'!$O$4:$O$262971,$V19+8760*('Pomocný list 1'!W$11-1986))/2000*'Pomocný list 1'!$D$5*'Pomocný list 1'!$D$13,$D$13),0)+IF($E$4="Wind",IF($E$11="Pay as produced",INDEX('Pomocný list 3'!$O$4:$O$262971,$V19+8760*('Pomocný list 1'!W$11-1986))/2000*'Pomocný list 1'!$E$5*'Pomocný list 1'!$E$13,$E$13),0)+IF($F$4="Wind",IF($F$11="Pay as produced",INDEX('Pomocný list 3'!$O$4:$O$262971,$V19+8760*('Pomocný list 1'!W$11-1986))/2000*'Pomocný list 1'!$F$5*'Pomocný list 1'!$F$13,$F$13),0)+IF($G$4="Wind",IF($G$11="Pay as produced",INDEX('Pomocný list 3'!$O$4:$O$262971,$V19+8760*('Pomocný list 1'!W$11-1986))/2000*'Pomocný list 1'!$G$5*'Pomocný list 1'!$G$13,$G$13),0)+IF($C$4="Wind",IF($C$11="Pay as produced",INDEX('Pomocný list 3'!$O$4:$O$262971,$V19+8760*('Pomocný list 1'!W$11-1986))/2000*'Pomocný list 1'!$C$5*'Pomocný list 1'!$C$13,$C$13),0) -> 1.564903625 | X19: =IF($D$4="Wind",IF($D$11="Pay as produced",INDEX('Pomocný list 3'!$O$4:$O$262971,$V19+8760*('Pomocný list 1'!X$11-1986))/2000*'Pomocný list 1'!$D$5*'Pomocný list 1'!$D$13,$D$13),0)+IF($E$4="Wind",IF($E$11="Pay as produced",INDEX('Pomocný list 3'!$O$4:$O$262971,$V19+8760*('Pomocný list 1'!X$11-1986))/2000*'Pomocný list 1'!$E$5*'Pomocný list 1'!$E$13,$E$13),0)+IF($F$4="Wind",IF($F$11="Pay as produced",INDEX('Pomocný list 3'!$O$4:$O$262971,$V19+8760*('Pomocný list 1'!X$11-1986))/2000*'Pomocný list 1'!$F$5*'Pomocný list 1'!$F$13,$F$13),0)+IF($G$4="Wind",IF($G$11="Pay as produced",INDEX('Pomocný list 3'!$O$4:$O$262971,$V19+8760*('Pomocný list 1'!X$11-1986))/2000*'Pomocný list 1'!$G$5*'Pomocný list 1'!$G$13,$G$13),0)+IF($C$4="Wind",IF($C$11="Pay as produced",INDEX('Pomocný list 3'!$O$4:$O$262971,$V19+8760*('Pomocný list 1'!X$11-1986))/2000*'Pomocný list 1'!$C$5*'Pomocný list 1'!$C$13,$C$13),0) -> 2.62941043 | Y19: =IF($D$4="Wind",IF($D$11="Pay as produced",INDEX('Pomocný list 3'!$O$4:$O$262971,$V19+8760*('Pomocný list 1'!Y$11-1986))/2000*'Pomocný list 1'!$D$5*'Pomocný list 1'!$D$13,$D$13),0)+IF($E$4="Wind",IF($E$11="Pay as produced",INDEX('Pomocný list 3'!$O$4:$O$262971,$V19+8760*('Pomocný list 1'!Y$11-1986))/2000*'Pomocný list 1'!$E$5*'Pomocný list 1'!$E$13,$E$13),0)+IF($F$4="Wind",IF($F$11="Pay as produced",INDEX('Pomocný list 3'!$O$4:$O$262971,$V19+8760*('Pomocný list 1'!Y$11-1986))/2000*'Pomocný list 1'!$F$5*'Pomocný list 1'!$F$13,$F$13),0)+IF($G$4="Wind",IF($G$11="Pay as produced",INDEX('Pomocný list 3'!$O$4:$O$262971,$V19+8760*('Pomocný list 1'!Y$11-1986))/2000*'Pomocný list 1'!$G$5*'Pomocný list 1'!$G$13,$G$13),0)+IF($C$4="Wind",IF($C$11="Pay as produced",INDEX('Pomocný list 3'!$O$4:$O$262971,$V19+8760*('Pomocný list 1'!Y$11-1986))/2000*'Pomocný list 1'!$C$5*'Pomocný list 1'!$C$13,$C$13),0) -> 0.2403150814 | Z19: =IF($D$4="Wind",IF($D$11="Pay as produced",INDEX('Pomocný list 3'!$O$4:$O$262971,$V19+8760*('Pomocný list 1'!Z$11-1986))/2000*'Pomocný list 1'!$D$5*'Pomocný list 1'!$D$13,$D$13),0)+IF($E$4="Wind",IF($E$11="Pay as produced",INDEX('Pomocný list 3'!$O$4:$O$262971,$V19+8760*('Pomocný list 1'!Z$11-1986))/2000*'Pomocný list 1'!$E$5*'Pomocný list 1'!$E$13,$E$13),0)+IF($F$4="Wind",IF($F$11="Pay as produced",INDEX('Pomocný list 3'!$O$4:$O$262971,$V19+8760*('Pomocný list 1'!Z$11-1986))/2000*'Pomocný list 1'!$F$5*'Pomocný list 1'!$F$13,$F$13),0)+IF($G$4="Wind",IF($G$11="Pay as produced",INDEX('Pomocný list 3'!$O$4:$O$262971,$V19+8760*('Pomocný list 1'!Z$11-1986))/2000*'Pomocný list 1'!$G$5*'Pomocný list 1'!$G$13,$G$13),0)+IF($C$4="Wind",IF($C$11="Pay as produced",INDEX('Pomocný list 3'!$O$4:$O$262971,$V19+8760*('Pomocný list 1'!Z$11-1986))/2000*'Pomocný list 1'!$C$5*'Pomocný list 1'!$C$13,$C$13),0) -> 3.110522707 | AA19: =IF($D$4="Wind",IF($D$11="Pay as produced",INDEX('Pomocný list 3'!$O$4:$O$262971,$V19+8760*('Pomocný list 1'!AA$11-1986))/2000*'Pomocný list 1'!$D$5*'Pomocný list 1'!$D$13,$D$13),0)+IF($E$4="Wind",IF($E$11="Pay as produced",INDEX('Pomocný list 3'!$O$4:$O$262971,$V19+8760*('Pomocný list 1'!AA$11-1986))/2000*'Pomocný list 1'!$E$5*'Pomocný list 1'!$E$13,$E$13),0)+IF($F$4="Wind",IF($F$11="Pay as produced",INDEX('Pomocný list 3'!$O$4:$O$262971,$V19+8760*('Pomocný list 1'!AA$11-1986))/2000*'Pomocný list 1'!$F$5*'Pomocný list 1'!$F$13,$F$13),0)+IF($G$4="Wind",IF($G$11="Pay as produced",INDEX('Pomocný list 3'!$O$4:$O$262971,$V19+8760*('Pomocný list 1'!AA$11-1986))/2000*'Pomocný list 1'!$G$5*'Pomocný list 1'!$G$13,$G$13),0)+IF($C$4="Wind",IF($C$11="Pay as produced",INDEX('Pomocný list 3'!$O$4:$O$262971,$V19+8760*('Pomocný list 1'!AA$11-1986))/2000*'Pomocný list 1'!$C$5*'Pomocný list 1'!$C$13,$C$13),0) -> 0.6791867904 | AB19: =IF($D$4="PV",IF($D$11="Pay as produced",INDEX('Pomocný list 3'!$K$4:$K$262971,$V19+8760*('Pomocný list 1'!AB$11-1986))/1000*'Pomocný list 1'!$D$5*'Pomocný list 1'!$D$13,$D$13),0)+IF($E$4="PV",IF($E$11="Pay as produced",INDEX('Pomocný list 3'!$K$4:$K$262971,$V19+8760*('Pomocný list 1'!AB$11-1986))/1000*'Pomocný list 1'!$E$5*'Pomocný list 1'!$E$13,$E$13),0)+IF($F$4="PV",IF($F$11="Pay as produced",INDEX('Pomocný list 3'!$K$4:$K$262971,$V19+8760*('Pomocný list 1'!AB$11-1986))/1000*'Pomocný list 1'!$F$5*'Pomocný list 1'!$F$13,$F$13),0)+IF($G$4="PV",IF($G$11="Pay as produced",INDEX('Pomocný list 3'!$K$4:$K$262971,$V19+8760*('Pomocný list 1'!AB$11-1986))/1000*'Pomocný list 1'!$G$5*'Pomocný list 1'!$G$13,$G$13),0)+IF($C$4="PV",IF($C$11="Pay as produced",INDEX('Pomocný list 3'!$K$4:$K$262971,$V19+8760*('Pomocný list 1'!AB$11-1986))/1000*'Pomocný list 1'!$C$5*'Pomocný list 1'!$C$13,$C$13),0) -> 0 | AC19: =IF($D$4="PV",IF($D$11="Pay as produced",INDEX('Pomocný list 3'!$K$4:$K$262971,$V19+8760*('Pomocný list 1'!AC$11-1986))/1000*'Pomocný list 1'!$D$5*'Pomocný list 1'!$D$13,$D$13),0)+IF($E$4="PV",IF($E$11="Pay as produced",INDEX('Pomocný list 3'!$K$4:$K$262971,$V19+8760*('Pomocný list 1'!AC$11-1986))/1000*'Pomocný list 1'!$E$5*'Pomocný list 1'!$E$13,$E$13),0)+IF($F$4="PV",IF($F$11="Pay as produced",INDEX('Pomocný list 3'!$K$4:$K$262971,$V19+8760*('Pomocný list 1'!AC$11-1986))/1000*'Pomocný list 1'!$F$5*'Pomocný list 1'!$F$13,$F$13),0)+IF($G$4="PV",IF($G$11="Pay as produced",INDEX('Pomocný list 3'!$K$4:$K$262971,$V19+8760*('Pomocný list 1'!AC$11-1986))/1000*'Pomocný list 1'!$G$5*'Pomocný list 1'!$G$13,$G$13),0)+IF($C$4="PV",IF($C$11="Pay as produced",INDEX('Pomocný list 3'!$K$4:$K$262971,$V19+8760*('Pomocný list 1'!AC$11-1986))/1000*'Pomocný list 1'!$C$5*'Pomocný list 1'!$C$13,$C$13),0) -> 0 | AD19: =IF($D$4="PV",IF($D$11="Pay as produced",INDEX('Pomocný list 3'!$K$4:$K$262971,$V19+8760*('Pomocný list 1'!AD$11-1986))/1000*'Pomocný list 1'!$D$5*'Pomocný list 1'!$D$13,$D$13),0)+IF($E$4="PV",IF($E$11="Pay as produced",INDEX('Pomocný list 3'!$K$4:$K$262971,$V19+8760*('Pomocný list 1'!AD$11-1986))/1000*'Pomocný list 1'!$E$5*'Pomocný list 1'!$E$13,$E$13),0)+IF($F$4="PV",IF($F$11="Pay as produced",INDEX('Pomocný list 3'!$K$4:$K$262971,$V19+8760*('Pomocný list 1'!AD$11-1986))/1000*'Pomocný list 1'!$F$5*'Pomocný list 1'!$F$13,$F$13),0)+IF($G$4="PV",IF($G$11="Pay as produced",INDEX('Pomocný list 3'!$K$4:$K$262971,$V19+8760*('Pomocný list 1'!AD$11-1986))/1000*'Pomocný list 1'!$G$5*'Pomocný list 1'!$G$13,$G$13),0)+IF($C$4="PV",IF($C$11="Pay as produced",INDEX('Pomocný list 3'!$K$4:$K$262971,$V19+8760*('Pomocný list 1'!AD$11-1986))/1000*'Pomocný list 1'!$C$5*'Pomocný list 1'!$C$13,$C$13),0) -> 0 | AE19: =IF($D$4="PV",IF($D$11="Pay as produced",INDEX('Pomocný list 3'!$K$4:$K$262971,$V19+8760*('Pomocný list 1'!AE$11-1986))/1000*'Pomocný list 1'!$D$5*'Pomocný list 1'!$D$13,$D$13),0)+IF($E$4="PV",IF($E$11="Pay as produced",INDEX('Pomocný list 3'!$K$4:$K$262971,$V19+8760*('Pomocný list 1'!AE$11-1986))/1000*'Pomocný list 1'!$E$5*'Pomocný list 1'!$E$13,$E$13),0)+IF($F$4="PV",IF($F$11="Pay as produced",INDEX('Pomocný list 3'!$K$4:$K$262971,$V19+8760*('Pomocný list 1'!AE$11-1986))/1000*'Pomocný list 1'!$F$5*'Pomocný list 1'!$F$13,$F$13),0)+IF($G$4="PV",IF($G$11="Pay as produced",INDEX('Pomocný list 3'!$K$4:$K$262971,$V19+8760*('Pomocný list 1'!AE$11-1986))/1000*'Pomocný list 1'!$G$5*'Pomocný list 1'!$G$13,$G$13),0)+IF($C$4="PV",IF($C$11="Pay as produced",INDEX('Pomocný list 3'!$K$4:$K$262971,$V19+8760*('Pomocný list 1'!AE$11-1986))/1000*'Pomocný list 1'!$C$5*'Pomocný list 1'!$C$13,$C$13),0) -> 0 | AF19: =IF($D$4="PV",IF($D$11="Pay as produced",INDEX('Pomocný list 3'!$K$4:$K$262971,$V19+8760*('Pomocný list 1'!AF$11-1986))/1000*'Pomocný list 1'!$D$5*'Pomocný list 1'!$D$13,$D$13),0)+IF($E$4="PV",IF($E$11="Pay as produced",INDEX('Pomocný list 3'!$K$4:$K$262971,$V19+8760*('Pomocný list 1'!AF$11-1986))/1000*'Pomocný list 1'!$E$5*'Pomocný list 1'!$E$13,$E$13),0)+IF($F$4="PV",IF($F$11="Pay as produced",INDEX('Pomocný list 3'!$K$4:$K$262971,$V19+8760*('Pomocný list 1'!AF$11-1986))/1000*'Pomocný list 1'!$F$5*'Pomocný list 1'!$F$13,$F$13),0)+IF($G$4="PV",IF($G$11="Pay as produced",INDEX('Pomocný list 3'!$K$4:$K$262971,$V19+8760*('Pomocný list 1'!AF$11-1986))/1000*'Pomocný list 1'!$G$5*'Pomocný list 1'!$G$13,$G$13),0)+IF($C$4="PV",IF($C$11="Pay as produced",INDEX('Pomocný list 3'!$K$4:$K$262971,$V19+8760*('Pomocný list 1'!AF$11-1986))/1000*'Pomocný list 1'!$C$5*'Pomocný list 1'!$C$13,$C$13),0) -> 0 | AG19: -0.3863940826 | AH19: 0.6781127226 | AI19: -1.710982626 | AJ19: 1.159224999 | AK19: -1.272110918 | AL19: 7 | AM19: 0.1634956396 | AN19: 7 | AO19: 0.3863940826 | AP19: 0 | AQ19: 1.710982626 | AR19: 0 | AS19: 1.272110918 | AT19: 0 | AU19: 0.6781127226 | AV19: 0 | AW19: 1.159224999 | AX19: 0 | BE19: 16 | BF19: 0.05264461128 | BS19: 16 | BT19: 0.03728876616 | BZ19: 16 | CA19: 0.03957607834 | CG19: 16 | CH19: 0.03957607834 | CN19: 16 | CO19: 0.04505007861 | CU19: 16 | CV19: 0.03894711275 | DB19: 16 | DC19: 0.05864236739 | DI19: 16 | DJ19: 0.05226738172 | DP19: 16 | DQ19: 0.05362100114 | DW19: 16 | DX19: 0.04082867967 | ED19: 16 | EE19: 0.04988680711
B20: 2014 | C20: =IF(C$4="PV",'Pomocný list 3'!$K262975*'Pomocný list 1'!C$5/1000,'Pomocný list 3'!$O262975*'Pomocný list 1'!C$5/2000) -> 931.3691311 | D20: =IF(D$4="PV",'Pomocný list 3'!$K262975*'Pomocný list 1'!D$5/1000,'Pomocný list 3'!$O262975*'Pomocný list 1'!D$5/2000) -> 1029.407987 | E20: =IF(E$4="PV",'Pomocný list 3'!$K262975*'Pomocný list 1'!E$5/1000,'Pomocný list 3'!$O262975*'Pomocný list 1'!E$5/2000) -> 1692.391944 | F20: =IF(F$4="PV",'Pomocný list 3'!$K262975*'Pomocný list 1'!F$5/1000,'Pomocný list 3'!$O262975*'Pomocný list 1'!F$5/2000) -> 1029.407987 | G20: =IF(G$4="PV",'Pomocný list 3'!$K262975*'Pomocný list 1'!G$5/1000,'Pomocný list 3'!$O262975*'Pomocný list 1'!G$5/2000) -> 1946.250736 | N20: 2017-01-01 | O20: 8 | P20: 7 | Q20: 1 | S20: 2.007324024 | V20: 8 | W20: =IF($D$4="Wind",IF($D$11="Pay as produced",INDEX('Pomocný list 3'!$O$4:$O$262971,$V20+8760*('Pomocný list 1'!W$11-1986))/2000*'Pomocný list 1'!$D$5*'Pomocný list 1'!$D$13,$D$13),0)+IF($E$4="Wind",IF($E$11="Pay as produced",INDEX('Pomocný list 3'!$O$4:$O$262971,$V20+8760*('Pomocný list 1'!W$11-1986))/2000*'Pomocný list 1'!$E$5*'Pomocný list 1'!$E$13,$E$13),0)+IF($F$4="Wind",IF($F$11="Pay as produced",INDEX('Pomocný list 3'!$O$4:$O$262971,$V20+8760*('Pomocný list 1'!W$11-1986))/2000*'Pomocný list 1'!$F$5*'Pomocný list 1'!$F$13,$F$13),0)+IF($G$4="Wind",IF($G$11="Pay as produced",INDEX('Pomocný list 3'!$O$4:$O$262971,$V20+8760*('Pomocný list 1'!W$11-1986))/2000*'Pomocný list 1'!$G$5*'Pomocný list 1'!$G$13,$G$13),0)+IF($C$4="Wind",IF($C$11="Pay as produced",INDEX('Pomocný list 3'!$O$4:$O$262971,$V20+8760*('Pomocný list 1'!W$11-1986))/2000*'Pomocný list 1'!$C$5*'Pomocný list 1'!$C$13,$C$13),0) -> 1.171795622 | X20: =IF($D$4="Wind",IF($D$11="Pay as produced",INDEX('Pomocný list 3'!$O$4:$O$262971,$V20+8760*('Pomocný list 1'!X$11-1986))/2000*'Pomocný list 1'!$D$5*'Pomocný list 1'!$D$13,$D$13),0)+IF($E$4="Wind",IF($E$11="Pay as produced",INDEX('Pomocný list 3'!$O$4:$O$262971,$V20+8760*('Pomocný list 1'!X$11-1986))/2000*'Pomocný list 1'!$E$5*'Pomocný list 1'!$E$13,$E$13),0)+IF($F$4="Wind",IF($F$11="Pay as produced",INDEX('Pomocný list 3'!$O$4:$O$262971,$V20+8760*('Pomocný list 1'!X$11-1986))/2000*'Pomocný list 1'!$F$5*'Pomocný list 1'!$F$13,$F$13),0)+IF($G$4="Wind",IF($G$11="Pay as produced",INDEX('Pomocný list 3'!$O$4:$O$262971,$V20+8760*('Pomocný list 1'!X$11-1986))/2000*'Pomocný list 1'!$G$5*'Pomocný list 1'!$G$13,$G$13),0)+IF($C$4="Wind",IF($C$11="Pay as produced",INDEX('Pomocný list 3'!$O$4:$O$262971,$V20+8760*('Pomocný list 1'!X$11-1986))/2000*'Pomocný list 1'!$C$5*'Pomocný list 1'!$C$13,$C$13),0) -> 2.769037943 | Y20: =IF($D$4="Wind",IF($D$11="Pay as produced",INDEX('Pomocný list 3'!$O$4:$O$262971,$V20+8760*('Pomocný list 1'!Y$11-1986))/2000*'Pomocný list 1'!$D$5*'Pomocný list 1'!$D$13,$D$13),0)+IF($E$4="Wind",IF($E$11="Pay as produced",INDEX('Pomocný list 3'!$O$4:$O$262971,$V20+8760*('Pomocný list 1'!Y$11-1986))/2000*'Pomocný list 1'!$E$5*'Pomocný list 1'!$E$13,$E$13),0)+IF($F$4="Wind",IF($F$11="Pay as produced",INDEX('Pomocný list 3'!$O$4:$O$262971,$V20+8760*('Pomocný list 1'!Y$11-1986))/2000*'Pomocný list 1'!$F$5*'Pomocný list 1'!$F$13,$F$13),0)+IF($G$4="Wind",IF($G$11="Pay as produced",INDEX('Pomocný list 3'!$O$4:$O$262971,$V20+8760*('Pomocný list 1'!Y$11-1986))/2000*'Pomocný list 1'!$G$5*'Pomocný list 1'!$G$13,$G$13),0)+IF($C$4="Wind",IF($C$11="Pay as produced",INDEX('Pomocný list 3'!$O$4:$O$262971,$V20+8760*('Pomocný list 1'!Y$11-1986))/2000*'Pomocný list 1'!$C$5*'Pomocný list 1'!$C$13,$C$13),0) -> 0.1317282669 | Z20: =IF($D$4="Wind",IF($D$11="Pay as produced",INDEX('Pomocný list 3'!$O$4:$O$262971,$V20+8760*('Pomocný list 1'!Z$11-1986))/2000*'Pomocný list 1'!$D$5*'Pomocný list 1'!$D$13,$D$13),0)+IF($E$4="Wind",IF($E$11="Pay as produced",INDEX('Pomocný list 3'!$O$4:$O$262971,$V20+8760*('Pomocný list 1'!Z$11-1986))/2000*'Pomocný list 1'!$E$5*'Pomocný list 1'!$E$13,$E$13),0)+IF($F$4="Wind",IF($F$11="Pay as produced",INDEX('Pomocný list 3'!$O$4:$O$262971,$V20+8760*('Pomocný list 1'!Z$11-1986))/2000*'Pomocný list 1'!$F$5*'Pomocný list 1'!$F$13,$F$13),0)+IF($G$4="Wind",IF($G$11="Pay as produced",INDEX('Pomocný list 3'!$O$4:$O$262971,$V20+8760*('Pomocný list 1'!Z$11-1986))/2000*'Pomocný list 1'!$G$5*'Pomocný list 1'!$G$13,$G$13),0)+IF($C$4="Wind",IF($C$11="Pay as produced",INDEX('Pomocný list 3'!$O$4:$O$262971,$V20+8760*('Pomocný list 1'!Z$11-1986))/2000*'Pomocný list 1'!$C$5*'Pomocný list 1'!$C$13,$C$13),0) -> 3.12810131 | AA20: =IF($D$4="Wind",IF($D$11="Pay as produced",INDEX('Pomocný list 3'!$O$4:$O$262971,$V20+8760*('Pomocný list 1'!AA$11-1986))/2000*'Pomocný list 1'!$D$5*'Pomocný list 1'!$D$13,$D$13),0)+IF($E$4="Wind",IF($E$11="Pay as produced",INDEX('Pomocný list 3'!$O$4:$O$262971,$V20+8760*('Pomocný list 1'!AA$11-1986))/2000*'Pomocný list 1'!$E$5*'Pomocný list 1'!$E$13,$E$13),0)+IF($F$4="Wind",IF($F$11="Pay as produced",INDEX('Pomocný list 3'!$O$4:$O$262971,$V20+8760*('Pomocný list 1'!AA$11-1986))/2000*'Pomocný list 1'!$F$5*'Pomocný list 1'!$F$13,$F$13),0)+IF($G$4="Wind",IF($G$11="Pay as produced",INDEX('Pomocný list 3'!$O$4:$O$262971,$V20+8760*('Pomocný list 1'!AA$11-1986))/2000*'Pomocný list 1'!$G$5*'Pomocný list 1'!$G$13,$G$13),0)+IF($C$4="Wind",IF($C$11="Pay as produced",INDEX('Pomocný list 3'!$O$4:$O$262971,$V20+8760*('Pomocný list 1'!AA$11-1986))/2000*'Pomocný list 1'!$C$5*'Pomocný list 1'!$C$13,$C$13),0) -> 0.7069268646 | AB20: =IF($D$4="PV",IF($D$11="Pay as produced",INDEX('Pomocný list 3'!$K$4:$K$262971,$V20+8760*('Pomocný list 1'!AB$11-1986))/1000*'Pomocný list 1'!$D$5*'Pomocný list 1'!$D$13,$D$13),0)+IF($E$4="PV",IF($E$11="Pay as produced",INDEX('Pomocný list 3'!$K$4:$K$262971,$V20+8760*('Pomocný list 1'!AB$11-1986))/1000*'Pomocný list 1'!$E$5*'Pomocný list 1'!$E$13,$E$13),0)+IF($F$4="PV",IF($F$11="Pay as produced",INDEX('Pomocný list 3'!$K$4:$K$262971,$V20+8760*('Pomocný list 1'!AB$11-1986))/1000*'Pomocný list 1'!$F$5*'Pomocný list 1'!$F$13,$F$13),0)+IF($G$4="PV",IF($G$11="Pay as produced",INDEX('Pomocný list 3'!$K$4:$K$262971,$V20+8760*('Pomocný list 1'!AB$11-1986))/1000*'Pomocný list 1'!$G$5*'Pomocný list 1'!$G$13,$G$13),0)+IF($C$4="PV",IF($C$11="Pay as produced",INDEX('Pomocný list 3'!$K$4:$K$262971,$V20+8760*('Pomocný list 1'!AB$11-1986))/1000*'Pomocný list 1'!$C$5*'Pomocný list 1'!$C$13,$C$13),0) -> 0 | AC20: =IF($D$4="PV",IF($D$11="Pay as produced",INDEX('Pomocný list 3'!$K$4:$K$262971,$V20+8760*('Pomocný list 1'!AC$11-1986))/1000*'Pomocný list 1'!$D$5*'Pomocný list 1'!$D$13,$D$13),0)+IF($E$4="PV",IF($E$11="Pay as produced",INDEX('Pomocný list 3'!$K$4:$K$262971,$V20+8760*('Pomocný list 1'!AC$11-1986))/1000*'Pomocný list 1'!$E$5*'Pomocný list 1'!$E$13,$E$13),0)+IF($F$4="PV",IF($F$11="Pay as produced",INDEX('Pomocný list 3'!$K$4:$K$262971,$V20+8760*('Pomocný list 1'!AC$11-1986))/1000*'Pomocný list 1'!$F$5*'Pomocný list 1'!$F$13,$F$13),0)+IF($G$4="PV",IF($G$11="Pay as produced",INDEX('Pomocný list 3'!$K$4:$K$262971,$V20+8760*('Pomocný list 1'!AC$11-1986))/1000*'Pomocný list 1'!$G$5*'Pomocný list 1'!$G$13,$G$13),0)+IF($C$4="PV",IF($C$11="Pay as produced",INDEX('Pomocný list 3'!$K$4:$K$262971,$V20+8760*('Pomocný list 1'!AC$11-1986))/1000*'Pomocný list 1'!$C$5*'Pomocný list 1'!$C$13,$C$13),0) -> 0 | AD20: =IF($D$4="PV",IF($D$11="Pay as produced",INDEX('Pomocný list 3'!$K$4:$K$262971,$V20+8760*('Pomocný list 1'!AD$11-1986))/1000*'Pomocný list 1'!$D$5*'Pomocný list 1'!$D$13,$D$13),0)+IF($E$4="PV",IF($E$11="Pay as produced",INDEX('Pomocný list 3'!$K$4:$K$262971,$V20+8760*('Pomocný list 1'!AD$11-1986))/1000*'Pomocný list 1'!$E$5*'Pomocný list 1'!$E$13,$E$13),0)+IF($F$4="PV",IF($F$11="Pay as produced",INDEX('Pomocný list 3'!$K$4:$K$262971,$V20+8760*('Pomocný list 1'!AD$11-1986))/1000*'Pomocný list 1'!$F$5*'Pomocný list 1'!$F$13,$F$13),0)+IF($G$4="PV",IF($G$11="Pay as produced",INDEX('Pomocný list 3'!$K$4:$K$262971,$V20+8760*('Pomocný list 1'!AD$11-1986))/1000*'Pomocný list 1'!$G$5*'Pomocný list 1'!$G$13,$G$13),0)+IF($C$4="PV",IF($C$11="Pay as produced",INDEX('Pomocný list 3'!$K$4:$K$262971,$V20+8760*('Pomocný list 1'!AD$11-1986))/1000*'Pomocný list 1'!$C$5*'Pomocný list 1'!$C$13,$C$13),0) -> 0 | AE20: =IF($D$4="PV",IF($D$11="Pay as produced",INDEX('Pomocný list 3'!$K$4:$K$262971,$V20+8760*('Pomocný list 1'!AE$11-1986))/1000*'Pomocný list 1'!$D$5*'Pomocný list 1'!$D$13,$D$13),0)+IF($E$4="PV",IF($E$11="Pay as produced",INDEX('Pomocný list 3'!$K$4:$K$262971,$V20+8760*('Pomocný list 1'!AE$11-1986))/1000*'Pomocný list 1'!$E$5*'Pomocný list 1'!$E$13,$E$13),0)+IF($F$4="PV",IF($F$11="Pay as produced",INDEX('Pomocný list 3'!$K$4:$K$262971,$V20+8760*('Pomocný list 1'!AE$11-1986))/1000*'Pomocný list 1'!$F$5*'Pomocný list 1'!$F$13,$F$13),0)+IF($G$4="PV",IF($G$11="Pay as produced",INDEX('Pomocný list 3'!$K$4:$K$262971,$V20+8760*('Pomocný list 1'!AE$11-1986))/1000*'Pomocný list 1'!$G$5*'Pomocný list 1'!$G$13,$G$13),0)+IF($C$4="PV",IF($C$11="Pay as produced",INDEX('Pomocný list 3'!$K$4:$K$262971,$V20+8760*('Pomocný list 1'!AE$11-1986))/1000*'Pomocný list 1'!$C$5*'Pomocný list 1'!$C$13,$C$13),0) -> 0.1652821595 | AF20: =IF($D$4="PV",IF($D$11="Pay as produced",INDEX('Pomocný list 3'!$K$4:$K$262971,$V20+8760*('Pomocný list 1'!AF$11-1986))/1000*'Pomocný list 1'!$D$5*'Pomocný list 1'!$D$13,$D$13),0)+IF($E$4="PV",IF($E$11="Pay as produced",INDEX('Pomocný list 3'!$K$4:$K$262971,$V20+8760*('Pomocný list 1'!AF$11-1986))/1000*'Pomocný list 1'!$E$5*'Pomocný list 1'!$E$13,$E$13),0)+IF($F$4="PV",IF($F$11="Pay as produced",INDEX('Pomocný list 3'!$K$4:$K$262971,$V20+8760*('Pomocný list 1'!AF$11-1986))/1000*'Pomocný list 1'!$F$5*'Pomocný list 1'!$F$13,$F$13),0)+IF($G$4="PV",IF($G$11="Pay as produced",INDEX('Pomocný list 3'!$K$4:$K$262971,$V20+8760*('Pomocný list 1'!AF$11-1986))/1000*'Pomocný list 1'!$G$5*'Pomocný list 1'!$G$13,$G$13),0)+IF($C$4="PV",IF($C$11="Pay as produced",INDEX('Pomocný list 3'!$K$4:$K$262971,$V20+8760*('Pomocný list 1'!AF$11-1986))/1000*'Pomocný list 1'!$C$5*'Pomocný list 1'!$C$13,$C$13),0) -> 0 | AG20: -0.835528402 | AH20: 0.7617139194 | AI20: -1.875595757 | AJ20: 1.286059446 | AK20: -1.300397159 | AL20: 8 | AM20: 0.1757280583 | AN20: 8 | AO20: 0.835528402 | AP20: 0 | AQ20: 1.875595757 | AR20: 0 | AS20: 1.300397159 | AT20: 0 | AU20: 0.7617139194 | AV20: 0 | AW20: 1.286059446 | AX20: 0 | BE20: 17 | BF20: 0.05123481615 | BS20: 17 | BT20: 0.04827739126 | BZ20: 17 | CA20: 0.04775854127 | CG20: 17 | CH20: 0.04775854127 | CN20: 17 | CO20: 0.05356807857 | CU20: 17 | CV20: 0.04918482009 | DB20: 17 | DC20: 0.03311684284 | DI20: 17 | DJ20: 0.02616594646 | DP20: 17 | DQ20: 0.02672375539 | DW20: 17 | DX20: 0.01834828565 | ED20: 17 | EE20: 0.02490187171
B21: 1988 | C21: =IF(C$4="PV",'Pomocný list 3'!$K262976*'Pomocný list 1'!C$5/1000,'Pomocný list 3'!$O262976*'Pomocný list 1'!C$5/2000) -> 934.2528876 | D21: =IF(D$4="PV",'Pomocný list 3'!$K262976*'Pomocný list 1'!D$5/1000,'Pomocný list 3'!$O262976*'Pomocný list 1'!D$5/2000) -> 1032.595297 | E21: =IF(E$4="PV",'Pomocný list 3'!$K262976*'Pomocný list 1'!E$5/1000,'Pomocný list 3'!$O262976*'Pomocný list 1'!E$5/2000) -> 2304.164967 | F21: =IF(F$4="PV",'Pomocný list 3'!$K262976*'Pomocný list 1'!F$5/1000,'Pomocný list 3'!$O262976*'Pomocný list 1'!F$5/2000) -> 1032.595297 | G21: =IF(G$4="PV",'Pomocný list 3'!$K262976*'Pomocný list 1'!G$5/1000,'Pomocný list 3'!$O262976*'Pomocný list 1'!G$5/2000) -> 2649.789713 | N21: 2017-01-01 | O21: 9 | P21: 7 | Q21: 1 | S21: 2.01948503 | V21: 9 | W21: =IF($D$4="Wind",IF($D$11="Pay as produced",INDEX('Pomocný list 3'!$O$4:$O$262971,$V21+8760*('Pomocný list 1'!W$11-1986))/2000*'Pomocný list 1'!$D$5*'Pomocný list 1'!$D$13,$D$13),0)+IF($E$4="Wind",IF($E$11="Pay as produced",INDEX('Pomocný list 3'!$O$4:$O$262971,$V21+8760*('Pomocný list 1'!W$11-1986))/2000*'Pomocný list 1'!$E$5*'Pomocný list 1'!$E$13,$E$13),0)+IF($F$4="Wind",IF($F$11="Pay as produced",INDEX('Pomocný list 3'!$O$4:$O$262971,$V21+8760*('Pomocný list 1'!W$11-1986))/2000*'Pomocný list 1'!$F$5*'Pomocný list 1'!$F$13,$F$13),0)+IF($G$4="Wind",IF($G$11="Pay as produced",INDEX('Pomocný list 3'!$O$4:$O$262971,$V21+8760*('Pomocný list 1'!W$11-1986))/2000*'Pomocný list 1'!$G$5*'Pomocný list 1'!$G$13,$G$13),0)+IF($C$4="Wind",IF($C$11="Pay as produced",INDEX('Pomocný list 3'!$O$4:$O$262971,$V21+8760*('Pomocný list 1'!W$11-1986))/2000*'Pomocný list 1'!$C$5*'Pomocný list 1'!$C$13,$C$13),0) -> 0.8108038002 | X21: =IF($D$4="Wind",IF($D$11="Pay as produced",INDEX('Pomocný list 3'!$O$4:$O$262971,$V21+8760*('Pomocný list 1'!X$11-1986))/2000*'Pomocný list 1'!$D$5*'Pomocný list 1'!$D$13,$D$13),0)+IF($E$4="Wind",IF($E$11="Pay as produced",INDEX('Pomocný list 3'!$O$4:$O$262971,$V21+8760*('Pomocný list 1'!X$11-1986))/2000*'Pomocný list 1'!$E$5*'Pomocný list 1'!$E$13,$E$13),0)+IF($F$4="Wind",IF($F$11="Pay as produced",INDEX('Pomocný list 3'!$O$4:$O$262971,$V21+8760*('Pomocný list 1'!X$11-1986))/2000*'Pomocný list 1'!$F$5*'Pomocný list 1'!$F$13,$F$13),0)+IF($G$4="Wind",IF($G$11="Pay as produced",INDEX('Pomocný list 3'!$O$4:$O$262971,$V21+8760*('Pomocný list 1'!X$11-1986))/2000*'Pomocný list 1'!$G$5*'Pomocný list 1'!$G$13,$G$13),0)+IF($C$4="Wind",IF($C$11="Pay as produced",INDEX('Pomocný list 3'!$O$4:$O$262971,$V21+8760*('Pomocný list 1'!X$11-1986))/2000*'Pomocný list 1'!$C$5*'Pomocný list 1'!$C$13,$C$13),0) -> 2.644244695 | Y21: =IF($D$4="Wind",IF($D$11="Pay as produced",INDEX('Pomocný list 3'!$O$4:$O$262971,$V21+8760*('Pomocný list 1'!Y$11-1986))/2000*'Pomocný list 1'!$D$5*'Pomocný list 1'!$D$13,$D$13),0)+IF($E$4="Wind",IF($E$11="Pay as produced",INDEX('Pomocný list 3'!$O$4:$O$262971,$V21+8760*('Pomocný list 1'!Y$11-1986))/2000*'Pomocný list 1'!$E$5*'Pomocný list 1'!$E$13,$E$13),0)+IF($F$4="Wind",IF($F$11="Pay as produced",INDEX('Pomocný list 3'!$O$4:$O$262971,$V21+8760*('Pomocný list 1'!Y$11-1986))/2000*'Pomocný list 1'!$F$5*'Pomocný list 1'!$F$13,$F$13),0)+IF($G$4="Wind",IF($G$11="Pay as produced",INDEX('Pomocný list 3'!$O$4:$O$262971,$V21+8760*('Pomocný list 1'!Y$11-1986))/2000*'Pomocný list 1'!$G$5*'Pomocný list 1'!$G$13,$G$13),0)+IF($C$4="Wind",IF($C$11="Pay as produced",INDEX('Pomocný list 3'!$O$4:$O$262971,$V21+8760*('Pomocný list 1'!Y$11-1986))/2000*'Pomocný list 1'!$C$5*'Pomocný list 1'!$C$13,$C$13),0) -> 0.04513324909 | Z21: =IF($D$4="Wind",IF($D$11="Pay as produced",INDEX('Pomocný list 3'!$O$4:$O$262971,$V21+8760*('Pomocný list 1'!Z$11-1986))/2000*'Pomocný list 1'!$D$5*'Pomocný list 1'!$D$13,$D$13),0)+IF($E$4="Wind",IF($E$11="Pay as produced",INDEX('Pomocný list 3'!$O$4:$O$262971,$V21+8760*('Pomocný list 1'!Z$11-1986))/2000*'Pomocný list 1'!$E$5*'Pomocný list 1'!$E$13,$E$13),0)+IF($F$4="Wind",IF($F$11="Pay as produced",INDEX('Pomocný list 3'!$O$4:$O$262971,$V21+8760*('Pomocný list 1'!Z$11-1986))/2000*'Pomocný list 1'!$F$5*'Pomocný list 1'!$F$13,$F$13),0)+IF($G$4="Wind",IF($G$11="Pay as produced",INDEX('Pomocný list 3'!$O$4:$O$262971,$V21+8760*('Pomocný list 1'!Z$11-1986))/2000*'Pomocný list 1'!$G$5*'Pomocný list 1'!$G$13,$G$13),0)+IF($C$4="Wind",IF($C$11="Pay as produced",INDEX('Pomocný list 3'!$O$4:$O$262971,$V21+8760*('Pomocný list 1'!Z$11-1986))/2000*'Pomocný list 1'!$C$5*'Pomocný list 1'!$C$13,$C$13),0) -> 2.970413081 | AA21: =IF($D$4="Wind",IF($D$11="Pay as produced",INDEX('Pomocný list 3'!$O$4:$O$262971,$V21+8760*('Pomocný list 1'!AA$11-1986))/2000*'Pomocný list 1'!$D$5*'Pomocný list 1'!$D$13,$D$13),0)+IF($E$4="Wind",IF($E$11="Pay as produced",INDEX('Pomocný list 3'!$O$4:$O$262971,$V21+8760*('Pomocný list 1'!AA$11-1986))/2000*'Pomocný list 1'!$E$5*'Pomocný list 1'!$E$13,$E$13),0)+IF($F$4="Wind",IF($F$11="Pay as produced",INDEX('Pomocný list 3'!$O$4:$O$262971,$V21+8760*('Pomocný list 1'!AA$11-1986))/2000*'Pomocný list 1'!$F$5*'Pomocný list 1'!$F$13,$F$13),0)+IF($G$4="Wind",IF($G$11="Pay as produced",INDEX('Pomocný list 3'!$O$4:$O$262971,$V21+8760*('Pomocný list 1'!AA$11-1986))/2000*'Pomocný list 1'!$G$5*'Pomocný list 1'!$G$13,$G$13),0)+IF($C$4="Wind",IF($C$11="Pay as produced",INDEX('Pomocný list 3'!$O$4:$O$262971,$V21+8760*('Pomocný list 1'!AA$11-1986))/2000*'Pomocný list 1'!$C$5*'Pomocný list 1'!$C$13,$C$13),0) -> 0.7301795738 | AB21: =IF($D$4="PV",IF($D$11="Pay as produced",INDEX('Pomocný list 3'!$K$4:$K$262971,$V21+8760*('Pomocný list 1'!AB$11-1986))/1000*'Pomocný list 1'!$D$5*'Pomocný list 1'!$D$13,$D$13),0)+IF($E$4="PV",IF($E$11="Pay as produced",INDEX('Pomocný list 3'!$K$4:$K$262971,$V21+8760*('Pomocný list 1'!AB$11-1986))/1000*'Pomocný list 1'!$E$5*'Pomocný list 1'!$E$13,$E$13),0)+IF($F$4="PV",IF($F$11="Pay as produced",INDEX('Pomocný list 3'!$K$4:$K$262971,$V21+8760*('Pomocný list 1'!AB$11-1986))/1000*'Pomocný list 1'!$F$5*'Pomocný list 1'!$F$13,$F$13),0)+IF($G$4="PV",IF($G$11="Pay as produced",INDEX('Pomocný list 3'!$K$4:$K$262971,$V21+8760*('Pomocný list 1'!AB$11-1986))/1000*'Pomocný list 1'!$G$5*'Pomocný list 1'!$G$13,$G$13),0)+IF($C$4="PV",IF($C$11="Pay as produced",INDEX('Pomocný list 3'!$K$4:$K$262971,$V21+8760*('Pomocný list 1'!AB$11-1986))/1000*'Pomocný list 1'!$C$5*'Pomocný list 1'!$C$13,$C$13),0) -> 0.3474298454 | AC21: =IF($D$4="PV",IF($D$11="Pay as produced",INDEX('Pomocný list 3'!$K$4:$K$262971,$V21+8760*('Pomocný list 1'!AC$11-1986))/1000*'Pomocný list 1'!$D$5*'Pomocný list 1'!$D$13,$D$13),0)+IF($E$4="PV",IF($E$11="Pay as produced",INDEX('Pomocný list 3'!$K$4:$K$262971,$V21+8760*('Pomocný list 1'!AC$11-1986))/1000*'Pomocný list 1'!$E$5*'Pomocný list 1'!$E$13,$E$13),0)+IF($F$4="PV",IF($F$11="Pay as produced",INDEX('Pomocný list 3'!$K$4:$K$262971,$V21+8760*('Pomocný list 1'!AC$11-1986))/1000*'Pomocný list 1'!$F$5*'Pomocný list 1'!$F$13,$F$13),0)+IF($G$4="PV",IF($G$11="Pay as produced",INDEX('Pomocný list 3'!$K$4:$K$262971,$V21+8760*('Pomocný list 1'!AC$11-1986))/1000*'Pomocný list 1'!$G$5*'Pomocný list 1'!$G$13,$G$13),0)+IF($C$4="PV",IF($C$11="Pay as produced",INDEX('Pomocný list 3'!$K$4:$K$262971,$V21+8760*('Pomocný list 1'!AC$11-1986))/1000*'Pomocný list 1'!$C$5*'Pomocný list 1'!$C$13,$C$13),0) -> 0.3373105295 | AD21: =IF($D$4="PV",IF($D$11="Pay as produced",INDEX('Pomocný list 3'!$K$4:$K$262971,$V21+8760*('Pomocný list 1'!AD$11-1986))/1000*'Pomocný list 1'!$D$5*'Pomocný list 1'!$D$13,$D$13),0)+IF($E$4="PV",IF($E$11="Pay as produced",INDEX('Pomocný list 3'!$K$4:$K$262971,$V21+8760*('Pomocný list 1'!AD$11-1986))/1000*'Pomocný list 1'!$E$5*'Pomocný list 1'!$E$13,$E$13),0)+IF($F$4="PV",IF($F$11="Pay as produced",INDEX('Pomocný list 3'!$K$4:$K$262971,$V21+8760*('Pomocný list 1'!AD$11-1986))/1000*'Pomocný list 1'!$F$5*'Pomocný list 1'!$F$13,$F$13),0)+IF($G$4="PV",IF($G$11="Pay as produced",INDEX('Pomocný list 3'!$K$4:$K$262971,$V21+8760*('Pomocný list 1'!AD$11-1986))/1000*'Pomocný list 1'!$G$5*'Pomocný list 1'!$G$13,$G$13),0)+IF($C$4="PV",IF($C$11="Pay as produced",INDEX('Pomocný list 3'!$K$4:$K$262971,$V21+8760*('Pomocný list 1'!AD$11-1986))/1000*'Pomocný list 1'!$C$5*'Pomocný list 1'!$C$13,$C$13),0) -> 0.4889018499 | AE21: =IF($D$4="PV",IF($D$11="Pay as produced",INDEX('Pomocný list 3'!$K$4:$K$262971,$V21+8760*('Pomocný list 1'!AE$11-1986))/1000*'Pomocný list 1'!$D$5*'Pomocný list 1'!$D$13,$D$13),0)+IF($E$4="PV",IF($E$11="Pay as produced",INDEX('Pomocný list 3'!$K$4:$K$262971,$V21+8760*('Pomocný list 1'!AE$11-1986))/1000*'Pomocný list 1'!$E$5*'Pomocný list 1'!$E$13,$E$13),0)+IF($F$4="PV",IF($F$11="Pay as produced",INDEX('Pomocný list 3'!$K$4:$K$262971,$V21+8760*('Pomocný list 1'!AE$11-1986))/1000*'Pomocný list 1'!$F$5*'Pomocný list 1'!$F$13,$F$13),0)+IF($G$4="PV",IF($G$11="Pay as produced",INDEX('Pomocný list 3'!$K$4:$K$262971,$V21+8760*('Pomocný list 1'!AE$11-1986))/1000*'Pomocný list 1'!$G$5*'Pomocný list 1'!$G$13,$G$13),0)+IF($C$4="PV",IF($C$11="Pay as produced",INDEX('Pomocný list 3'!$K$4:$K$262971,$V21+8760*('Pomocný list 1'!AE$11-1986))/1000*'Pomocný list 1'!$C$5*'Pomocný list 1'!$C$13,$C$13),0) -> 0.2799677395 | AF21: =IF($D$4="PV",IF($D$11="Pay as produced",INDEX('Pomocný list 3'!$K$4:$K$262971,$V21+8760*('Pomocný list 1'!AF$11-1986))/1000*'Pomocný list 1'!$D$5*'Pomocný list 1'!$D$13,$D$13),0)+IF($E$4="PV",IF($E$11="Pay as produced",INDEX('Pomocný list 3'!$K$4:$K$262971,$V21+8760*('Pomocný list 1'!AF$11-1986))/1000*'Pomocný list 1'!$E$5*'Pomocný list 1'!$E$13,$E$13),0)+IF($F$4="PV",IF($F$11="Pay as produced",INDEX('Pomocný list 3'!$K$4:$K$262971,$V21+8760*('Pomocný list 1'!AF$11-1986))/1000*'Pomocný list 1'!$F$5*'Pomocný list 1'!$F$13,$F$13),0)+IF($G$4="PV",IF($G$11="Pay as produced",INDEX('Pomocný list 3'!$K$4:$K$262971,$V21+8760*('Pomocný list 1'!AF$11-1986))/1000*'Pomocný list 1'!$G$5*'Pomocný list 1'!$G$13,$G$13),0)+IF($C$4="PV",IF($C$11="Pay as produced",INDEX('Pomocný list 3'!$K$4:$K$262971,$V21+8760*('Pomocný list 1'!AF$11-1986))/1000*'Pomocný list 1'!$C$5*'Pomocný list 1'!$C$13,$C$13),0) -> 0.3798116563 | AG21: -0.8612513842 | AH21: 0.9620701945 | AI21: -1.485449931 | AJ21: 1.23089579 | AK21: -0.9094937997 | AL21: 9 | AM21: 0.08118368974 | AN21: 9 | AO21: 0.8612513842 | AP21: 0 | AQ21: 1.485449931 | AR21: 0 | AS21: 0.9094937997 | AT21: 0 | AU21: 0.9620701945 | AV21: 0 | AW21: 1.23089579 | AX21: 0 | BE21: 18 | BF21: 0.04686198693 | BS21: 18 | BT21: 0.05609340898 | BZ21: 18 | CA21: 0.05440299624 | CG21: 18 | CH21: 0.05440299624 | CN21: 18 | CO21: 0.05817197166 | CU21: 18 | CV21: 0.05601295642 | DB21: 18 | DC21: 0.01364706472 | DI21: 18 | DJ21: 0.01098780122 | DP21: 18 | DQ21: 0.01181091043 | DW21: 18 | DX21: 0.007414424771 | ED21: 18 | EE21: 0.01015945242
N22: 2017-01-01 | O22: 10 | P22: 7 | Q22: 1 | S22: 2.130548962 | V22: 10 | W22: =IF($D$4="Wind",IF($D$11="Pay as produced",INDEX('Pomocný list 3'!$O$4:$O$262971,$V22+8760*('Pomocný list 1'!W$11-1986))/2000*'Pomocný list 1'!$D$5*'Pomocný list 1'!$D$13,$D$13),0)+IF($E$4="Wind",IF($E$11="Pay as produced",INDEX('Pomocný list 3'!$O$4:$O$262971,$V22+8760*('Pomocný list 1'!W$11-1986))/2000*'Pomocný list 1'!$E$5*'Pomocný list 1'!$E$13,$E$13),0)+IF($F$4="Wind",IF($F$11="Pay as produced",INDEX('Pomocný list 3'!$O$4:$O$262971,$V22+8760*('Pomocný list 1'!W$11-1986))/2000*'Pomocný list 1'!$F$5*'Pomocný list 1'!$F$13,$F$13),0)+IF($G$4="Wind",IF($G$11="Pay as produced",INDEX('Pomocný list 3'!$O$4:$O$262971,$V22+8760*('Pomocný list 1'!W$11-1986))/2000*'Pomocný list 1'!$G$5*'Pomocný list 1'!$G$13,$G$13),0)+IF($C$4="Wind",IF($C$11="Pay as produced",INDEX('Pomocný list 3'!$O$4:$O$262971,$V22+8760*('Pomocný list 1'!W$11-1986))/2000*'Pomocný list 1'!$C$5*'Pomocný list 1'!$C$13,$C$13),0) -> 0.7259147229 | X22: =IF($D$4="Wind",IF($D$11="Pay as produced",INDEX('Pomocný list 3'!$O$4:$O$262971,$V22+8760*('Pomocný list 1'!X$11-1986))/2000*'Pomocný list 1'!$D$5*'Pomocný list 1'!$D$13,$D$13),0)+IF($E$4="Wind",IF($E$11="Pay as produced",INDEX('Pomocný list 3'!$O$4:$O$262971,$V22+8760*('Pomocný list 1'!X$11-1986))/2000*'Pomocný list 1'!$E$5*'Pomocný list 1'!$E$13,$E$13),0)+IF($F$4="Wind",IF($F$11="Pay as produced",INDEX('Pomocný list 3'!$O$4:$O$262971,$V22+8760*('Pomocný list 1'!X$11-1986))/2000*'Pomocný list 1'!$F$5*'Pomocný list 1'!$F$13,$F$13),0)+IF($G$4="Wind",IF($G$11="Pay as produced",INDEX('Pomocný list 3'!$O$4:$O$262971,$V22+8760*('Pomocný list 1'!X$11-1986))/2000*'Pomocný list 1'!$G$5*'Pomocný list 1'!$G$13,$G$13),0)+IF($C$4="Wind",IF($C$11="Pay as produced",INDEX('Pomocný list 3'!$O$4:$O$262971,$V22+8760*('Pomocný list 1'!X$11-1986))/2000*'Pomocný list 1'!$C$5*'Pomocný list 1'!$C$13,$C$13),0) -> 2.446911894 | Y22: =IF($D$4="Wind",IF($D$11="Pay as produced",INDEX('Pomocný list 3'!$O$4:$O$262971,$V22+8760*('Pomocný list 1'!Y$11-1986))/2000*'Pomocný list 1'!$D$5*'Pomocný list 1'!$D$13,$D$13),0)+IF($E$4="Wind",IF($E$11="Pay as produced",INDEX('Pomocný list 3'!$O$4:$O$262971,$V22+8760*('Pomocný list 1'!Y$11-1986))/2000*'Pomocný list 1'!$E$5*'Pomocný list 1'!$E$13,$E$13),0)+IF($F$4="Wind",IF($F$11="Pay as produced",INDEX('Pomocný list 3'!$O$4:$O$262971,$V22+8760*('Pomocný list 1'!Y$11-1986))/2000*'Pomocný list 1'!$F$5*'Pomocný list 1'!$F$13,$F$13),0)+IF($G$4="Wind",IF($G$11="Pay as produced",INDEX('Pomocný list 3'!$O$4:$O$262971,$V22+8760*('Pomocný list 1'!Y$11-1986))/2000*'Pomocný list 1'!$G$5*'Pomocný list 1'!$G$13,$G$13),0)+IF($C$4="Wind",IF($C$11="Pay as produced",INDEX('Pomocný list 3'!$O$4:$O$262971,$V22+8760*('Pomocný list 1'!Y$11-1986))/2000*'Pomocný list 1'!$C$5*'Pomocný list 1'!$C$13,$C$13),0) -> 0.005933705715 | Z22: =IF($D$4="Wind",IF($D$11="Pay as produced",INDEX('Pomocný list 3'!$O$4:$O$262971,$V22+8760*('Pomocný list 1'!Z$11-1986))/2000*'Pomocný list 1'!$D$5*'Pomocný list 1'!$D$13,$D$13),0)+IF($E$4="Wind",IF($E$11="Pay as produced",INDEX('Pomocný list 3'!$O$4:$O$262971,$V22+8760*('Pomocný list 1'!Z$11-1986))/2000*'Pomocný list 1'!$E$5*'Pomocný list 1'!$E$13,$E$13),0)+IF($F$4="Wind",IF($F$11="Pay as produced",INDEX('Pomocný list 3'!$O$4:$O$262971,$V22+8760*('Pomocný list 1'!Z$11-1986))/2000*'Pomocný list 1'!$F$5*'Pomocný list 1'!$F$13,$F$13),0)+IF($G$4="Wind",IF($G$11="Pay as produced",INDEX('Pomocný list 3'!$O$4:$O$262971,$V22+8760*('Pomocný list 1'!Z$11-1986))/2000*'Pomocný list 1'!$G$5*'Pomocný list 1'!$G$13,$G$13),0)+IF($C$4="Wind",IF($C$11="Pay as produced",INDEX('Pomocný list 3'!$O$4:$O$262971,$V22+8760*('Pomocný list 1'!Z$11-1986))/2000*'Pomocný list 1'!$C$5*'Pomocný list 1'!$C$13,$C$13),0) -> 2.746489861 | AA22: =IF($D$4="Wind",IF($D$11="Pay as produced",INDEX('Pomocný list 3'!$O$4:$O$262971,$V22+8760*('Pomocný list 1'!AA$11-1986))/2000*'Pomocný list 1'!$D$5*'Pomocný list 1'!$D$13,$D$13),0)+IF($E$4="Wind",IF($E$11="Pay as produced",INDEX('Pomocný list 3'!$O$4:$O$262971,$V22+8760*('Pomocný list 1'!AA$11-1986))/2000*'Pomocný list 1'!$E$5*'Pomocný list 1'!$E$13,$E$13),0)+IF($F$4="Wind",IF($F$11="Pay as produced",INDEX('Pomocný list 3'!$O$4:$O$262971,$V22+8760*('Pomocný list 1'!AA$11-1986))/2000*'Pomocný list 1'!$F$5*'Pomocný list 1'!$F$13,$F$13),0)+IF($G$4="Wind",IF($G$11="Pay as produced",INDEX('Pomocný list 3'!$O$4:$O$262971,$V22+8760*('Pomocný list 1'!AA$11-1986))/2000*'Pomocný list 1'!$G$5*'Pomocný list 1'!$G$13,$G$13),0)+IF($C$4="Wind",IF($C$11="Pay as produced",INDEX('Pomocný list 3'!$O$4:$O$262971,$V22+8760*('Pomocný list 1'!AA$11-1986))/2000*'Pomocný list 1'!$C$5*'Pomocný list 1'!$C$13,$C$13),0) -> 0.8132885395 | AB22: =IF($D$4="PV",IF($D$11="Pay as produced",INDEX('Pomocný list 3'!$K$4:$K$262971,$V22+8760*('Pomocný list 1'!AB$11-1986))/1000*'Pomocný list 1'!$D$5*'Pomocný list 1'!$D$13,$D$13),0)+IF($E$4="PV",IF($E$11="Pay as produced",INDEX('Pomocný list 3'!$K$4:$K$262971,$V22+8760*('Pomocný list 1'!AB$11-1986))/1000*'Pomocný list 1'!$E$5*'Pomocný list 1'!$E$13,$E$13),0)+IF($F$4="PV",IF($F$11="Pay as produced",INDEX('Pomocný list 3'!$K$4:$K$262971,$V22+8760*('Pomocný list 1'!AB$11-1986))/1000*'Pomocný list 1'!$F$5*'Pomocný list 1'!$F$13,$F$13),0)+IF($G$4="PV",IF($G$11="Pay as produced",INDEX('Pomocný list 3'!$K$4:$K$262971,$V22+8760*('Pomocný list 1'!AB$11-1986))/1000*'Pomocný list 1'!$G$5*'Pomocný list 1'!$G$13,$G$13),0)+IF($C$4="PV",IF($C$11="Pay as produced",INDEX('Pomocný list 3'!$K$4:$K$262971,$V22+8760*('Pomocný list 1'!AB$11-1986))/1000*'Pomocný list 1'!$C$5*'Pomocný list 1'!$C$13,$C$13),0) -> 0.890499798 | AC22: =IF($D$4="PV",IF($D$11="Pay as produced",INDEX('Pomocný list 3'!$K$4:$K$262971,$V22+8760*('Pomocný list 1'!AC$11-1986))/1000*'Pomocný list 1'!$D$5*'Pomocný list 1'!$D$13,$D$13),0)+IF($E$4="PV",IF($E$11="Pay as produced",INDEX('Pomocný list 3'!$K$4:$K$262971,$V22+8760*('Pomocný list 1'!AC$11-1986))/1000*'Pomocný list 1'!$E$5*'Pomocný list 1'!$E$13,$E$13),0)+IF($F$4="PV",IF($F$11="Pay as produced",INDEX('Pomocný list 3'!$K$4:$K$262971,$V22+8760*('Pomocný list 1'!AC$11-1986))/1000*'Pomocný list 1'!$F$5*'Pomocný list 1'!$F$13,$F$13),0)+IF($G$4="PV",IF($G$11="Pay as produced",INDEX('Pomocný list 3'!$K$4:$K$262971,$V22+8760*('Pomocný list 1'!AC$11-1986))/1000*'Pomocný list 1'!$G$5*'Pomocný list 1'!$G$13,$G$13),0)+IF($C$4="PV",IF($C$11="Pay as produced",INDEX('Pomocný list 3'!$K$4:$K$262971,$V22+8760*('Pomocný list 1'!AC$11-1986))/1000*'Pomocný list 1'!$C$5*'Pomocný list 1'!$C$13,$C$13),0) -> 0.8635149556 | AD22: =IF($D$4="PV",IF($D$11="Pay as produced",INDEX('Pomocný list 3'!$K$4:$K$262971,$V22+8760*('Pomocný list 1'!AD$11-1986))/1000*'Pomocný list 1'!$D$5*'Pomocný list 1'!$D$13,$D$13),0)+IF($E$4="PV",IF($E$11="Pay as produced",INDEX('Pomocný list 3'!$K$4:$K$262971,$V22+8760*('Pomocný list 1'!AD$11-1986))/1000*'Pomocný list 1'!$E$5*'Pomocný list 1'!$E$13,$E$13),0)+IF($F$4="PV",IF($F$11="Pay as produced",INDEX('Pomocný list 3'!$K$4:$K$262971,$V22+8760*('Pomocný list 1'!AD$11-1986))/1000*'Pomocný list 1'!$F$5*'Pomocný list 1'!$F$13,$F$13),0)+IF($G$4="PV",IF($G$11="Pay as produced",INDEX('Pomocný list 3'!$K$4:$K$262971,$V22+8760*('Pomocný list 1'!AD$11-1986))/1000*'Pomocný list 1'!$G$5*'Pomocný list 1'!$G$13,$G$13),0)+IF($C$4="PV",IF($C$11="Pay as produced",INDEX('Pomocný list 3'!$K$4:$K$262971,$V22+8760*('Pomocný list 1'!AD$11-1986))/1000*'Pomocný list 1'!$C$5*'Pomocný list 1'!$C$13,$C$13),0) -> 1.0827668 | AE22: =IF($D$4="PV",IF($D$11="Pay as produced",INDEX('Pomocný list 3'!$K$4:$K$262971,$V22+8760*('Pomocný list 1'!AE$11-1986))/1000*'Pomocný list 1'!$D$5*'Pomocný list 1'!$D$13,$D$13),0)+IF($E$4="PV",IF($E$11="Pay as produced",INDEX('Pomocný list 3'!$K$4:$K$262971,$V22+8760*('Pomocný list 1'!AE$11-1986))/1000*'Pomocný list 1'!$E$5*'Pomocný list 1'!$E$13,$E$13),0)+IF($F$4="PV",IF($F$11="Pay as produced",INDEX('Pomocný list 3'!$K$4:$K$262971,$V22+8760*('Pomocný list 1'!AE$11-1986))/1000*'Pomocný list 1'!$F$5*'Pomocný list 1'!$F$13,$F$13),0)+IF($G$4="PV",IF($G$11="Pay as produced",INDEX('Pomocný list 3'!$K$4:$K$262971,$V22+8760*('Pomocný list 1'!AE$11-1986))/1000*'Pomocný list 1'!$G$5*'Pomocný list 1'!$G$13,$G$13),0)+IF($C$4="PV",IF($C$11="Pay as produced",INDEX('Pomocný list 3'!$K$4:$K$262971,$V22+8760*('Pomocný list 1'!AE$11-1986))/1000*'Pomocný list 1'!$C$5*'Pomocný list 1'!$C$13,$C$13),0) -> 0.7615380047 | AF22: =IF($D$4="PV",IF($D$11="Pay as produced",INDEX('Pomocný list 3'!$K$4:$K$262971,$V22+8760*('Pomocný list 1'!AF$11-1986))/1000*'Pomocný list 1'!$D$5*'Pomocný list 1'!$D$13,$D$13),0)+IF($E$4="PV",IF($E$11="Pay as produced",INDEX('Pomocný list 3'!$K$4:$K$262971,$V22+8760*('Pomocný list 1'!AF$11-1986))/1000*'Pomocný list 1'!$E$5*'Pomocný list 1'!$E$13,$E$13),0)+IF($F$4="PV",IF($F$11="Pay as produced",INDEX('Pomocný list 3'!$K$4:$K$262971,$V22+8760*('Pomocný list 1'!AF$11-1986))/1000*'Pomocný list 1'!$F$5*'Pomocný list 1'!$F$13,$F$13),0)+IF($G$4="PV",IF($G$11="Pay as produced",INDEX('Pomocný list 3'!$K$4:$K$262971,$V22+8760*('Pomocný list 1'!AF$11-1986))/1000*'Pomocný list 1'!$G$5*'Pomocný list 1'!$G$13,$G$13),0)+IF($C$4="PV",IF($C$11="Pay as produced",INDEX('Pomocný list 3'!$K$4:$K$262971,$V22+8760*('Pomocný list 1'!AF$11-1986))/1000*'Pomocný list 1'!$C$5*'Pomocný list 1'!$C$13,$C$13),0) -> 0.708352112 | AG22: -0.5141344408 | AH22: 1.179877888 | AI22: -1.041848456 | AJ22: 1.377478904 | AK22: -0.6089083101 | AL22: 10 | AM22: 0.1887410793 | AN22: 10 | AO22: 0.5141344408 | AP22: 0 | AQ22: 1.041848456 | AR22: 0 | AS22: 0.6089083101 | AT22: 0 | AU22: 1.179877888 | AV22: 0 | AW22: 1.377478904 | AX22: 0 | BE22: 19 | BF22: 0.04537916122 | BS22: 19 | BT22: 0.06778853035 | BZ22: 19 | CA22: 0.06566387825 | CG22: 19 | CH22: 0.06566387825 | CN22: 19 | CO22: 0.06520018471 | CU22: 19 | CV22: 0.0667703858 | DB22: 19 | DC22: 0.00863186729 | DI22: 19 | DJ22: 0.01082312627 | DP22: 19 | DQ22: 0.01088931687 | DW22: 19 | DX22: 0.00767845391 | ED22: 19 | EE22: 0.008926657576
N23: 2017-01-01 | O23: 11 | P23: 7 | Q23: 1 | S23: 2.120266485 | V23: 11 | W23: =IF($D$4="Wind",IF($D$11="Pay as produced",INDEX('Pomocný list 3'!$O$4:$O$262971,$V23+8760*('Pomocný list 1'!W$11-1986))/2000*'Pomocný list 1'!$D$5*'Pomocný list 1'!$D$13,$D$13),0)+IF($E$4="Wind",IF($E$11="Pay as produced",INDEX('Pomocný list 3'!$O$4:$O$262971,$V23+8760*('Pomocný list 1'!W$11-1986))/2000*'Pomocný list 1'!$E$5*'Pomocný list 1'!$E$13,$E$13),0)+IF($F$4="Wind",IF($F$11="Pay as produced",INDEX('Pomocný list 3'!$O$4:$O$262971,$V23+8760*('Pomocný list 1'!W$11-1986))/2000*'Pomocný list 1'!$F$5*'Pomocný list 1'!$F$13,$F$13),0)+IF($G$4="Wind",IF($G$11="Pay as produced",INDEX('Pomocný list 3'!$O$4:$O$262971,$V23+8760*('Pomocný list 1'!W$11-1986))/2000*'Pomocný list 1'!$G$5*'Pomocný list 1'!$G$13,$G$13),0)+IF($C$4="Wind",IF($C$11="Pay as produced",INDEX('Pomocný list 3'!$O$4:$O$262971,$V23+8760*('Pomocný list 1'!W$11-1986))/2000*'Pomocný list 1'!$C$5*'Pomocný list 1'!$C$13,$C$13),0) -> 0.7245796391 | X23: =IF($D$4="Wind",IF($D$11="Pay as produced",INDEX('Pomocný list 3'!$O$4:$O$262971,$V23+8760*('Pomocný list 1'!X$11-1986))/2000*'Pomocný list 1'!$D$5*'Pomocný list 1'!$D$13,$D$13),0)+IF($E$4="Wind",IF($E$11="Pay as produced",INDEX('Pomocný list 3'!$O$4:$O$262971,$V23+8760*('Pomocný list 1'!X$11-1986))/2000*'Pomocný list 1'!$E$5*'Pomocný list 1'!$E$13,$E$13),0)+IF($F$4="Wind",IF($F$11="Pay as produced",INDEX('Pomocný list 3'!$O$4:$O$262971,$V23+8760*('Pomocný list 1'!X$11-1986))/2000*'Pomocný list 1'!$F$5*'Pomocný list 1'!$F$13,$F$13),0)+IF($G$4="Wind",IF($G$11="Pay as produced",INDEX('Pomocný list 3'!$O$4:$O$262971,$V23+8760*('Pomocný list 1'!X$11-1986))/2000*'Pomocný list 1'!$G$5*'Pomocný list 1'!$G$13,$G$13),0)+IF($C$4="Wind",IF($C$11="Pay as produced",INDEX('Pomocný list 3'!$O$4:$O$262971,$V23+8760*('Pomocný list 1'!X$11-1986))/2000*'Pomocný list 1'!$C$5*'Pomocný list 1'!$C$13,$C$13),0) -> 2.301721532 | Y23: =IF($D$4="Wind",IF($D$11="Pay as produced",INDEX('Pomocný list 3'!$O$4:$O$262971,$V23+8760*('Pomocný list 1'!Y$11-1986))/2000*'Pomocný list 1'!$D$5*'Pomocný list 1'!$D$13,$D$13),0)+IF($E$4="Wind",IF($E$11="Pay as produced",INDEX('Pomocný list 3'!$O$4:$O$262971,$V23+8760*('Pomocný list 1'!Y$11-1986))/2000*'Pomocný list 1'!$E$5*'Pomocný list 1'!$E$13,$E$13),0)+IF($F$4="Wind",IF($F$11="Pay as produced",INDEX('Pomocný list 3'!$O$4:$O$262971,$V23+8760*('Pomocný list 1'!Y$11-1986))/2000*'Pomocný list 1'!$F$5*'Pomocný list 1'!$F$13,$F$13),0)+IF($G$4="Wind",IF($G$11="Pay as produced",INDEX('Pomocný list 3'!$O$4:$O$262971,$V23+8760*('Pomocný list 1'!Y$11-1986))/2000*'Pomocný list 1'!$G$5*'Pomocný list 1'!$G$13,$G$13),0)+IF($C$4="Wind",IF($C$11="Pay as produced",INDEX('Pomocný list 3'!$O$4:$O$262971,$V23+8760*('Pomocný list 1'!Y$11-1986))/2000*'Pomocný list 1'!$C$5*'Pomocný list 1'!$C$13,$C$13),0) -> 0.0007417132143 | Z23: =IF($D$4="Wind",IF($D$11="Pay as produced",INDEX('Pomocný list 3'!$O$4:$O$262971,$V23+8760*('Pomocný list 1'!Z$11-1986))/2000*'Pomocný list 1'!$D$5*'Pomocný list 1'!$D$13,$D$13),0)+IF($E$4="Wind",IF($E$11="Pay as produced",INDEX('Pomocný list 3'!$O$4:$O$262971,$V23+8760*('Pomocný list 1'!Z$11-1986))/2000*'Pomocný list 1'!$E$5*'Pomocný list 1'!$E$13,$E$13),0)+IF($F$4="Wind",IF($F$11="Pay as produced",INDEX('Pomocný list 3'!$O$4:$O$262971,$V23+8760*('Pomocný list 1'!Z$11-1986))/2000*'Pomocný list 1'!$F$5*'Pomocný list 1'!$F$13,$F$13),0)+IF($G$4="Wind",IF($G$11="Pay as produced",INDEX('Pomocný list 3'!$O$4:$O$262971,$V23+8760*('Pomocný list 1'!Z$11-1986))/2000*'Pomocný list 1'!$G$5*'Pomocný list 1'!$G$13,$G$13),0)+IF($C$4="Wind",IF($C$11="Pay as produced",INDEX('Pomocný list 3'!$O$4:$O$262971,$V23+8760*('Pomocný list 1'!Z$11-1986))/2000*'Pomocný list 1'!$C$5*'Pomocný list 1'!$C$13,$C$13),0) -> 2.558688075 | AA23: =IF($D$4="Wind",IF($D$11="Pay as produced",INDEX('Pomocný list 3'!$O$4:$O$262971,$V23+8760*('Pomocný list 1'!AA$11-1986))/2000*'Pomocný list 1'!$D$5*'Pomocný list 1'!$D$13,$D$13),0)+IF($E$4="Wind",IF($E$11="Pay as produced",INDEX('Pomocný list 3'!$O$4:$O$262971,$V23+8760*('Pomocný list 1'!AA$11-1986))/2000*'Pomocný list 1'!$E$5*'Pomocný list 1'!$E$13,$E$13),0)+IF($F$4="Wind",IF($F$11="Pay as produced",INDEX('Pomocný list 3'!$O$4:$O$262971,$V23+8760*('Pomocný list 1'!AA$11-1986))/2000*'Pomocný list 1'!$F$5*'Pomocný list 1'!$F$13,$F$13),0)+IF($G$4="Wind",IF($G$11="Pay as produced",INDEX('Pomocný list 3'!$O$4:$O$262971,$V23+8760*('Pomocný list 1'!AA$11-1986))/2000*'Pomocný list 1'!$G$5*'Pomocný list 1'!$G$13,$G$13),0)+IF($C$4="Wind",IF($C$11="Pay as produced",INDEX('Pomocný list 3'!$O$4:$O$262971,$V23+8760*('Pomocný list 1'!AA$11-1986))/2000*'Pomocný list 1'!$C$5*'Pomocný list 1'!$C$13,$C$13),0) -> 0.9377851025 | AB23: =IF($D$4="PV",IF($D$11="Pay as produced",INDEX('Pomocný list 3'!$K$4:$K$262971,$V23+8760*('Pomocný list 1'!AB$11-1986))/1000*'Pomocný list 1'!$D$5*'Pomocný list 1'!$D$13,$D$13),0)+IF($E$4="PV",IF($E$11="Pay as produced",INDEX('Pomocný list 3'!$K$4:$K$262971,$V23+8760*('Pomocný list 1'!AB$11-1986))/1000*'Pomocný list 1'!$E$5*'Pomocný list 1'!$E$13,$E$13),0)+IF($F$4="PV",IF($F$11="Pay as produced",INDEX('Pomocný list 3'!$K$4:$K$262971,$V23+8760*('Pomocný list 1'!AB$11-1986))/1000*'Pomocný list 1'!$F$5*'Pomocný list 1'!$F$13,$F$13),0)+IF($G$4="PV",IF($G$11="Pay as produced",INDEX('Pomocný list 3'!$K$4:$K$262971,$V23+8760*('Pomocný list 1'!AB$11-1986))/1000*'Pomocný list 1'!$G$5*'Pomocný list 1'!$G$13,$G$13),0)+IF($C$4="PV",IF($C$11="Pay as produced",INDEX('Pomocný list 3'!$K$4:$K$262971,$V23+8760*('Pomocný list 1'!AB$11-1986))/1000*'Pomocný list 1'!$C$5*'Pomocný list 1'!$C$13,$C$13),0) -> 1.007730539 | AC23: =IF($D$4="PV",IF($D$11="Pay as produced",INDEX('Pomocný list 3'!$K$4:$K$262971,$V23+8760*('Pomocný list 1'!AC$11-1986))/1000*'Pomocný list 1'!$D$5*'Pomocný list 1'!$D$13,$D$13),0)+IF($E$4="PV",IF($E$11="Pay as produced",INDEX('Pomocný list 3'!$K$4:$K$262971,$V23+8760*('Pomocný list 1'!AC$11-1986))/1000*'Pomocný list 1'!$E$5*'Pomocný list 1'!$E$13,$E$13),0)+IF($F$4="PV",IF($F$11="Pay as produced",INDEX('Pomocný list 3'!$K$4:$K$262971,$V23+8760*('Pomocný list 1'!AC$11-1986))/1000*'Pomocný list 1'!$F$5*'Pomocný list 1'!$F$13,$F$13),0)+IF($G$4="PV",IF($G$11="Pay as produced",INDEX('Pomocný list 3'!$K$4:$K$262971,$V23+8760*('Pomocný list 1'!AC$11-1986))/1000*'Pomocný list 1'!$G$5*'Pomocný list 1'!$G$13,$G$13),0)+IF($C$4="PV",IF($C$11="Pay as produced",INDEX('Pomocný list 3'!$K$4:$K$262971,$V23+8760*('Pomocný list 1'!AC$11-1986))/1000*'Pomocný list 1'!$C$5*'Pomocný list 1'!$C$13,$C$13),0) -> 1.106378537 | AD23: =IF($D$4="PV",IF($D$11="Pay as produced",INDEX('Pomocný list 3'!$K$4:$K$262971,$V23+8760*('Pomocný list 1'!AD$11-1986))/1000*'Pomocný list 1'!$D$5*'Pomocný list 1'!$D$13,$D$13),0)+IF($E$4="PV",IF($E$11="Pay as produced",INDEX('Pomocný list 3'!$K$4:$K$262971,$V23+8760*('Pomocný list 1'!AD$11-1986))/1000*'Pomocný list 1'!$E$5*'Pomocný list 1'!$E$13,$E$13),0)+IF($F$4="PV",IF($F$11="Pay as produced",INDEX('Pomocný list 3'!$K$4:$K$262971,$V23+8760*('Pomocný list 1'!AD$11-1986))/1000*'Pomocný list 1'!$F$5*'Pomocný list 1'!$F$13,$F$13),0)+IF($G$4="PV",IF($G$11="Pay as produced",INDEX('Pomocný list 3'!$K$4:$K$262971,$V23+8760*('Pomocný list 1'!AD$11-1986))/1000*'Pomocný list 1'!$G$5*'Pomocný list 1'!$G$13,$G$13),0)+IF($C$4="PV",IF($C$11="Pay as produced",INDEX('Pomocný list 3'!$K$4:$K$262971,$V23+8760*('Pomocný list 1'!AD$11-1986))/1000*'Pomocný list 1'!$C$5*'Pomocný list 1'!$C$13,$C$13),0) -> 1.534762909 | AE23: =IF($D$4="PV",IF($D$11="Pay as produced",INDEX('Pomocný list 3'!$K$4:$K$262971,$V23+8760*('Pomocný list 1'!AE$11-1986))/1000*'Pomocný list 1'!$D$5*'Pomocný list 1'!$D$13,$D$13),0)+IF($E$4="PV",IF($E$11="Pay as produced",INDEX('Pomocný list 3'!$K$4:$K$262971,$V23+8760*('Pomocný list 1'!AE$11-1986))/1000*'Pomocný list 1'!$E$5*'Pomocný list 1'!$E$13,$E$13),0)+IF($F$4="PV",IF($F$11="Pay as produced",INDEX('Pomocný list 3'!$K$4:$K$262971,$V23+8760*('Pomocný list 1'!AE$11-1986))/1000*'Pomocný list 1'!$F$5*'Pomocný list 1'!$F$13,$F$13),0)+IF($G$4="PV",IF($G$11="Pay as produced",INDEX('Pomocný list 3'!$K$4:$K$262971,$V23+8760*('Pomocný list 1'!AE$11-1986))/1000*'Pomocný list 1'!$G$5*'Pomocný list 1'!$G$13,$G$13),0)+IF($C$4="PV",IF($C$11="Pay as produced",INDEX('Pomocný list 3'!$K$4:$K$262971,$V23+8760*('Pomocný list 1'!AE$11-1986))/1000*'Pomocný list 1'!$C$5*'Pomocný list 1'!$C$13,$C$13),0) -> 1.319107063 | AF23: =IF($D$4="PV",IF($D$11="Pay as produced",INDEX('Pomocný list 3'!$K$4:$K$262971,$V23+8760*('Pomocný list 1'!AF$11-1986))/1000*'Pomocný list 1'!$D$5*'Pomocný list 1'!$D$13,$D$13),0)+IF($E$4="PV",IF($E$11="Pay as produced",INDEX('Pomocný list 3'!$K$4:$K$262971,$V23+8760*('Pomocný list 1'!AF$11-1986))/1000*'Pomocný list 1'!$E$5*'Pomocný list 1'!$E$13,$E$13),0)+IF($F$4="PV",IF($F$11="Pay as produced",INDEX('Pomocný list 3'!$K$4:$K$262971,$V23+8760*('Pomocný list 1'!AF$11-1986))/1000*'Pomocný list 1'!$F$5*'Pomocný list 1'!$F$13,$F$13),0)+IF($G$4="PV",IF($G$11="Pay as produced",INDEX('Pomocný list 3'!$K$4:$K$262971,$V23+8760*('Pomocný list 1'!AF$11-1986))/1000*'Pomocný list 1'!$G$5*'Pomocný list 1'!$G$13,$G$13),0)+IF($C$4="PV",IF($C$11="Pay as produced",INDEX('Pomocný list 3'!$K$4:$K$262971,$V23+8760*('Pomocný list 1'!AF$11-1986))/1000*'Pomocný list 1'!$C$5*'Pomocný list 1'!$C$13,$C$13),0) -> 0.8601418503 | AG23: -0.3879563065 | AH23: 1.287833584 | AI23: -0.5847618622 | AJ23: 1.757528654 | AK23: -0.322339532 | AL23: 11 | AM23: 0.3542307655 | AN23: 11 | AO23: 0.3879563065 | AP23: 0 | AQ23: 0.5847618622 | AR23: 0 | AS23: 0.322339532 | AT23: 0 | AU23: 1.287833584 | AV23: 0 | AW23: 1.757528654 | AX23: 0 | BE23: 20 | BF23: 0.04106378918 | BS23: 20 | BT23: 0.06204532126 | BZ23: 20 | CA23: 0.06052197134 | CG23: 20 | CH23: 0.06052197134 | CN23: 20 | CO23: 0.05930828805 | CU23: 20 | CV23: 0.06083386741 | DB23: 20 | DC23: 0.01111210509 | DI23: 20 | DJ23: 0.01359381714 | DP23: 20 | DQ23: 0.01404692361 | DW23: 20 | DX23: 0.01142593325 | ED23: 20 | EE23: 0.01336966958
N24: 2017-01-01 | O24: 12 | P24: 7 | Q24: 1 | S24: 2.100920928 | V24: 12 | W24: =IF($D$4="Wind",IF($D$11="Pay as produced",INDEX('Pomocný list 3'!$O$4:$O$262971,$V24+8760*('Pomocný list 1'!W$11-1986))/2000*'Pomocný list 1'!$D$5*'Pomocný list 1'!$D$13,$D$13),0)+IF($E$4="Wind",IF($E$11="Pay as produced",INDEX('Pomocný list 3'!$O$4:$O$262971,$V24+8760*('Pomocný list 1'!W$11-1986))/2000*'Pomocný list 1'!$E$5*'Pomocný list 1'!$E$13,$E$13),0)+IF($F$4="Wind",IF($F$11="Pay as produced",INDEX('Pomocný list 3'!$O$4:$O$262971,$V24+8760*('Pomocný list 1'!W$11-1986))/2000*'Pomocný list 1'!$F$5*'Pomocný list 1'!$F$13,$F$13),0)+IF($G$4="Wind",IF($G$11="Pay as produced",INDEX('Pomocný list 3'!$O$4:$O$262971,$V24+8760*('Pomocný list 1'!W$11-1986))/2000*'Pomocný list 1'!$G$5*'Pomocný list 1'!$G$13,$G$13),0)+IF($C$4="Wind",IF($C$11="Pay as produced",INDEX('Pomocný list 3'!$O$4:$O$262971,$V24+8760*('Pomocný list 1'!W$11-1986))/2000*'Pomocný list 1'!$C$5*'Pomocný list 1'!$C$13,$C$13),0) -> 0.685899295 | X24: =IF($D$4="Wind",IF($D$11="Pay as produced",INDEX('Pomocný list 3'!$O$4:$O$262971,$V24+8760*('Pomocný list 1'!X$11-1986))/2000*'Pomocný list 1'!$D$5*'Pomocný list 1'!$D$13,$D$13),0)+IF($E$4="Wind",IF($E$11="Pay as produced",INDEX('Pomocný list 3'!$O$4:$O$262971,$V24+8760*('Pomocný list 1'!X$11-1986))/2000*'Pomocný list 1'!$E$5*'Pomocný list 1'!$E$13,$E$13),0)+IF($F$4="Wind",IF($F$11="Pay as produced",INDEX('Pomocný list 3'!$O$4:$O$262971,$V24+8760*('Pomocný list 1'!X$11-1986))/2000*'Pomocný list 1'!$F$5*'Pomocný list 1'!$F$13,$F$13),0)+IF($G$4="Wind",IF($G$11="Pay as produced",INDEX('Pomocný list 3'!$O$4:$O$262971,$V24+8760*('Pomocný list 1'!X$11-1986))/2000*'Pomocný list 1'!$G$5*'Pomocný list 1'!$G$13,$G$13),0)+IF($C$4="Wind",IF($C$11="Pay as produced",INDEX('Pomocný list 3'!$O$4:$O$262971,$V24+8760*('Pomocný list 1'!X$11-1986))/2000*'Pomocný list 1'!$C$5*'Pomocný list 1'!$C$13,$C$13),0) -> 2.05406349 | Y24: =IF($D$4="Wind",IF($D$11="Pay as produced",INDEX('Pomocný list 3'!$O$4:$O$262971,$V24+8760*('Pomocný list 1'!Y$11-1986))/2000*'Pomocný list 1'!$D$5*'Pomocný list 1'!$D$13,$D$13),0)+IF($E$4="Wind",IF($E$11="Pay as produced",INDEX('Pomocný list 3'!$O$4:$O$262971,$V24+8760*('Pomocný list 1'!Y$11-1986))/2000*'Pomocný list 1'!$E$5*'Pomocný list 1'!$E$13,$E$13),0)+IF($F$4="Wind",IF($F$11="Pay as produced",INDEX('Pomocný list 3'!$O$4:$O$262971,$V24+8760*('Pomocný list 1'!Y$11-1986))/2000*'Pomocný list 1'!$F$5*'Pomocný list 1'!$F$13,$F$13),0)+IF($G$4="Wind",IF($G$11="Pay as produced",INDEX('Pomocný list 3'!$O$4:$O$262971,$V24+8760*('Pomocný list 1'!Y$11-1986))/2000*'Pomocný list 1'!$G$5*'Pomocný list 1'!$G$13,$G$13),0)+IF($C$4="Wind",IF($C$11="Pay as produced",INDEX('Pomocný list 3'!$O$4:$O$262971,$V24+8760*('Pomocný list 1'!Y$11-1986))/2000*'Pomocný list 1'!$C$5*'Pomocný list 1'!$C$13,$C$13),0) -> 0.001001312839 | Z24: =IF($D$4="Wind",IF($D$11="Pay as produced",INDEX('Pomocný list 3'!$O$4:$O$262971,$V24+8760*('Pomocný list 1'!Z$11-1986))/2000*'Pomocný list 1'!$D$5*'Pomocný list 1'!$D$13,$D$13),0)+IF($E$4="Wind",IF($E$11="Pay as produced",INDEX('Pomocný list 3'!$O$4:$O$262971,$V24+8760*('Pomocný list 1'!Z$11-1986))/2000*'Pomocný list 1'!$E$5*'Pomocný list 1'!$E$13,$E$13),0)+IF($F$4="Wind",IF($F$11="Pay as produced",INDEX('Pomocný list 3'!$O$4:$O$262971,$V24+8760*('Pomocný list 1'!Z$11-1986))/2000*'Pomocný list 1'!$F$5*'Pomocný list 1'!$F$13,$F$13),0)+IF($G$4="Wind",IF($G$11="Pay as produced",INDEX('Pomocný list 3'!$O$4:$O$262971,$V24+8760*('Pomocný list 1'!Z$11-1986))/2000*'Pomocný list 1'!$G$5*'Pomocný list 1'!$G$13,$G$13),0)+IF($C$4="Wind",IF($C$11="Pay as produced",INDEX('Pomocný list 3'!$O$4:$O$262971,$V24+8760*('Pomocný list 1'!Z$11-1986))/2000*'Pomocný list 1'!$C$5*'Pomocný list 1'!$C$13,$C$13),0) -> 2.49523451 | AA24: =IF($D$4="Wind",IF($D$11="Pay as produced",INDEX('Pomocný list 3'!$O$4:$O$262971,$V24+8760*('Pomocný list 1'!AA$11-1986))/2000*'Pomocný list 1'!$D$5*'Pomocný list 1'!$D$13,$D$13),0)+IF($E$4="Wind",IF($E$11="Pay as produced",INDEX('Pomocný list 3'!$O$4:$O$262971,$V24+8760*('Pomocný list 1'!AA$11-1986))/2000*'Pomocný list 1'!$E$5*'Pomocný list 1'!$E$13,$E$13),0)+IF($F$4="Wind",IF($F$11="Pay as produced",INDEX('Pomocný list 3'!$O$4:$O$262971,$V24+8760*('Pomocný list 1'!AA$11-1986))/2000*'Pomocný list 1'!$F$5*'Pomocný list 1'!$F$13,$F$13),0)+IF($G$4="Wind",IF($G$11="Pay as produced",INDEX('Pomocný list 3'!$O$4:$O$262971,$V24+8760*('Pomocný list 1'!AA$11-1986))/2000*'Pomocný list 1'!$G$5*'Pomocný list 1'!$G$13,$G$13),0)+IF($C$4="Wind",IF($C$11="Pay as produced",INDEX('Pomocný list 3'!$O$4:$O$262971,$V24+8760*('Pomocný list 1'!AA$11-1986))/2000*'Pomocný list 1'!$C$5*'Pomocný list 1'!$C$13,$C$13),0) -> 1.053900306 | AB24: =IF($D$4="PV",IF($D$11="Pay as produced",INDEX('Pomocný list 3'!$K$4:$K$262971,$V24+8760*('Pomocný list 1'!AB$11-1986))/1000*'Pomocný list 1'!$D$5*'Pomocný list 1'!$D$13,$D$13),0)+IF($E$4="PV",IF($E$11="Pay as produced",INDEX('Pomocný list 3'!$K$4:$K$262971,$V24+8760*('Pomocný list 1'!AB$11-1986))/1000*'Pomocný list 1'!$E$5*'Pomocný list 1'!$E$13,$E$13),0)+IF($F$4="PV",IF($F$11="Pay as produced",INDEX('Pomocný list 3'!$K$4:$K$262971,$V24+8760*('Pomocný list 1'!AB$11-1986))/1000*'Pomocný list 1'!$F$5*'Pomocný list 1'!$F$13,$F$13),0)+IF($G$4="PV",IF($G$11="Pay as produced",INDEX('Pomocný list 3'!$K$4:$K$262971,$V24+8760*('Pomocný list 1'!AB$11-1986))/1000*'Pomocný list 1'!$G$5*'Pomocný list 1'!$G$13,$G$13),0)+IF($C$4="PV",IF($C$11="Pay as produced",INDEX('Pomocný list 3'!$K$4:$K$262971,$V24+8760*('Pomocný list 1'!AB$11-1986))/1000*'Pomocný list 1'!$C$5*'Pomocný list 1'!$C$13,$C$13),0) -> 1.103005432 | AC24: =IF($D$4="PV",IF($D$11="Pay as produced",INDEX('Pomocný list 3'!$K$4:$K$262971,$V24+8760*('Pomocný list 1'!AC$11-1986))/1000*'Pomocný list 1'!$D$5*'Pomocný list 1'!$D$13,$D$13),0)+IF($E$4="PV",IF($E$11="Pay as produced",INDEX('Pomocný list 3'!$K$4:$K$262971,$V24+8760*('Pomocný list 1'!AC$11-1986))/1000*'Pomocný list 1'!$E$5*'Pomocný list 1'!$E$13,$E$13),0)+IF($F$4="PV",IF($F$11="Pay as produced",INDEX('Pomocný list 3'!$K$4:$K$262971,$V24+8760*('Pomocný list 1'!AC$11-1986))/1000*'Pomocný list 1'!$F$5*'Pomocný list 1'!$F$13,$F$13),0)+IF($G$4="PV",IF($G$11="Pay as produced",INDEX('Pomocný list 3'!$K$4:$K$262971,$V24+8760*('Pomocný list 1'!AC$11-1986))/1000*'Pomocný list 1'!$G$5*'Pomocný list 1'!$G$13,$G$13),0)+IF($C$4="PV",IF($C$11="Pay as produced",INDEX('Pomocný list 3'!$K$4:$K$262971,$V24+8760*('Pomocný list 1'!AC$11-1986))/1000*'Pomocný list 1'!$C$5*'Pomocný list 1'!$C$13,$C$13),0) -> 0.9950660622 | AD24: =IF($D$4="PV",IF($D$11="Pay as produced",INDEX('Pomocný list 3'!$K$4:$K$262971,$V24+8760*('Pomocný list 1'!AD$11-1986))/1000*'Pomocný list 1'!$D$5*'Pomocný list 1'!$D$13,$D$13),0)+IF($E$4="PV",IF($E$11="Pay as produced",INDEX('Pomocný list 3'!$K$4:$K$262971,$V24+8760*('Pomocný list 1'!AD$11-1986))/1000*'Pomocný list 1'!$E$5*'Pomocný list 1'!$E$13,$E$13),0)+IF($F$4="PV",IF($F$11="Pay as produced",INDEX('Pomocný list 3'!$K$4:$K$262971,$V24+8760*('Pomocný list 1'!AD$11-1986))/1000*'Pomocný list 1'!$F$5*'Pomocný list 1'!$F$13,$F$13),0)+IF($G$4="PV",IF($G$11="Pay as produced",INDEX('Pomocný list 3'!$K$4:$K$262971,$V24+8760*('Pomocný list 1'!AD$11-1986))/1000*'Pomocný list 1'!$G$5*'Pomocný list 1'!$G$13,$G$13),0)+IF($C$4="PV",IF($C$11="Pay as produced",INDEX('Pomocný list 3'!$K$4:$K$262971,$V24+8760*('Pomocný list 1'!AD$11-1986))/1000*'Pomocný list 1'!$C$5*'Pomocný list 1'!$C$13,$C$13),0) -> 2.094698388 | AE24: =IF($D$4="PV",IF($D$11="Pay as produced",INDEX('Pomocný list 3'!$K$4:$K$262971,$V24+8760*('Pomocný list 1'!AE$11-1986))/1000*'Pomocný list 1'!$D$5*'Pomocný list 1'!$D$13,$D$13),0)+IF($E$4="PV",IF($E$11="Pay as produced",INDEX('Pomocný list 3'!$K$4:$K$262971,$V24+8760*('Pomocný list 1'!AE$11-1986))/1000*'Pomocný list 1'!$E$5*'Pomocný list 1'!$E$13,$E$13),0)+IF($F$4="PV",IF($F$11="Pay as produced",INDEX('Pomocný list 3'!$K$4:$K$262971,$V24+8760*('Pomocný list 1'!AE$11-1986))/1000*'Pomocný list 1'!$F$5*'Pomocný list 1'!$F$13,$F$13),0)+IF($G$4="PV",IF($G$11="Pay as produced",INDEX('Pomocný list 3'!$K$4:$K$262971,$V24+8760*('Pomocný list 1'!AE$11-1986))/1000*'Pomocný list 1'!$G$5*'Pomocný list 1'!$G$13,$G$13),0)+IF($C$4="PV",IF($C$11="Pay as produced",INDEX('Pomocný list 3'!$K$4:$K$262971,$V24+8760*('Pomocný list 1'!AE$11-1986))/1000*'Pomocný list 1'!$C$5*'Pomocný list 1'!$C$13,$C$13),0) -> 1.182354826 | AF24: =IF($D$4="PV",IF($D$11="Pay as produced",INDEX('Pomocný list 3'!$K$4:$K$262971,$V24+8760*('Pomocný list 1'!AF$11-1986))/1000*'Pomocný list 1'!$D$5*'Pomocný list 1'!$D$13,$D$13),0)+IF($E$4="PV",IF($E$11="Pay as produced",INDEX('Pomocný list 3'!$K$4:$K$262971,$V24+8760*('Pomocný list 1'!AF$11-1986))/1000*'Pomocný list 1'!$E$5*'Pomocný list 1'!$E$13,$E$13),0)+IF($F$4="PV",IF($F$11="Pay as produced",INDEX('Pomocný list 3'!$K$4:$K$262971,$V24+8760*('Pomocný list 1'!AF$11-1986))/1000*'Pomocný list 1'!$F$5*'Pomocný list 1'!$F$13,$F$13),0)+IF($G$4="PV",IF($G$11="Pay as produced",INDEX('Pomocný list 3'!$K$4:$K$262971,$V24+8760*('Pomocný list 1'!AF$11-1986))/1000*'Pomocný list 1'!$G$5*'Pomocný list 1'!$G$13,$G$13),0)+IF($C$4="PV",IF($C$11="Pay as produced",INDEX('Pomocný list 3'!$K$4:$K$262971,$V24+8760*('Pomocný list 1'!AF$11-1986))/1000*'Pomocný list 1'!$C$5*'Pomocný list 1'!$C$13,$C$13),0) -> 1.472861157 | AG24: -0.3120162011 | AH24: 0.9482086246 | AI24: -0.005221226306 | AJ24: 1.576668408 | AK24: 0.4258405354 | AL24: 12 | AM24: 0.3264828332 | AN24: 12 | AO24: 0.3120162011 | AP24: 0 | AQ24: 0.005221226306 | AR24: 0 | AS24: 0 | AT24: 0 | AU24: 0.9482086246 | AV24: 0 | AW24: 1.576668408 | AX24: 0.4258405354 | BE24: 21 | BF24: 0.036630192 | BS24: 21 | BT24: 0.05370419564 | BZ24: 21 | CA24: 0.05243693101 | CG24: 21 | CH24: 0.05243693101 | CN24: 21 | CO24: 0.05128759811 | CU24: 21 | CV24: 0.05235586187 | DB24: 21 | DC24: 0.0136444912 | DI24: 21 | DJ24: 0.01543514226 | DP24: 21 | DQ24: 0.01672132049 | DW24: 21 | DX24: 0.01386434096 | ED24: 21 | EE24: 0.01664548528
N25: 2017-01-01 | O25: 13 | P25: 7 | Q25: 1 | S25: 1.992559442 | V25: 13 | W25: =IF($D$4="Wind",IF($D$11="Pay as produced",INDEX('Pomocný list 3'!$O$4:$O$262971,$V25+8760*('Pomocný list 1'!W$11-1986))/2000*'Pomocný list 1'!$D$5*'Pomocný list 1'!$D$13,$D$13),0)+IF($E$4="Wind",IF($E$11="Pay as produced",INDEX('Pomocný list 3'!$O$4:$O$262971,$V25+8760*('Pomocný list 1'!W$11-1986))/2000*'Pomocný list 1'!$E$5*'Pomocný list 1'!$E$13,$E$13),0)+IF($F$4="Wind",IF($F$11="Pay as produced",INDEX('Pomocný list 3'!$O$4:$O$262971,$V25+8760*('Pomocný list 1'!W$11-1986))/2000*'Pomocný list 1'!$F$5*'Pomocný list 1'!$F$13,$F$13),0)+IF($G$4="Wind",IF($G$11="Pay as produced",INDEX('Pomocný list 3'!$O$4:$O$262971,$V25+8760*('Pomocný list 1'!W$11-1986))/2000*'Pomocný list 1'!$G$5*'Pomocný list 1'!$G$13,$G$13),0)+IF($C$4="Wind",IF($C$11="Pay as produced",INDEX('Pomocný list 3'!$O$4:$O$262971,$V25+8760*('Pomocný list 1'!W$11-1986))/2000*'Pomocný list 1'!$C$5*'Pomocný list 1'!$C$13,$C$13),0) -> 0.633756856 | X25: =IF($D$4="Wind",IF($D$11="Pay as produced",INDEX('Pomocný list 3'!$O$4:$O$262971,$V25+8760*('Pomocný list 1'!X$11-1986))/2000*'Pomocný list 1'!$D$5*'Pomocný list 1'!$D$13,$D$13),0)+IF($E$4="Wind",IF($E$11="Pay as produced",INDEX('Pomocný list 3'!$O$4:$O$262971,$V25+8760*('Pomocný list 1'!X$11-1986))/2000*'Pomocný list 1'!$E$5*'Pomocný list 1'!$E$13,$E$13),0)+IF($F$4="Wind",IF($F$11="Pay as produced",INDEX('Pomocný list 3'!$O$4:$O$262971,$V25+8760*('Pomocný list 1'!X$11-1986))/2000*'Pomocný list 1'!$F$5*'Pomocný list 1'!$F$13,$F$13),0)+IF($G$4="Wind",IF($G$11="Pay as produced",INDEX('Pomocný list 3'!$O$4:$O$262971,$V25+8760*('Pomocný list 1'!X$11-1986))/2000*'Pomocný list 1'!$G$5*'Pomocný list 1'!$G$13,$G$13),0)+IF($C$4="Wind",IF($C$11="Pay as produced",INDEX('Pomocný list 3'!$O$4:$O$262971,$V25+8760*('Pomocný list 1'!X$11-1986))/2000*'Pomocný list 1'!$C$5*'Pomocný list 1'!$C$13,$C$13),0) -> 2.050874123 | Y25: =IF($D$4="Wind",IF($D$11="Pay as produced",INDEX('Pomocný list 3'!$O$4:$O$262971,$V25+8760*('Pomocný list 1'!Y$11-1986))/2000*'Pomocný list 1'!$D$5*'Pomocný list 1'!$D$13,$D$13),0)+IF($E$4="Wind",IF($E$11="Pay as produced",INDEX('Pomocný list 3'!$O$4:$O$262971,$V25+8760*('Pomocný list 1'!Y$11-1986))/2000*'Pomocný list 1'!$E$5*'Pomocný list 1'!$E$13,$E$13),0)+IF($F$4="Wind",IF($F$11="Pay as produced",INDEX('Pomocný list 3'!$O$4:$O$262971,$V25+8760*('Pomocný list 1'!Y$11-1986))/2000*'Pomocný list 1'!$F$5*'Pomocný list 1'!$F$13,$F$13),0)+IF($G$4="Wind",IF($G$11="Pay as produced",INDEX('Pomocný list 3'!$O$4:$O$262971,$V25+8760*('Pomocný list 1'!Y$11-1986))/2000*'Pomocný list 1'!$G$5*'Pomocný list 1'!$G$13,$G$13),0)+IF($C$4="Wind",IF($C$11="Pay as produced",INDEX('Pomocný list 3'!$O$4:$O$262971,$V25+8760*('Pomocný list 1'!Y$11-1986))/2000*'Pomocný list 1'!$C$5*'Pomocný list 1'!$C$13,$C$13),0) -> 0.005377420804 | Z25: =IF($D$4="Wind",IF($D$11="Pay as produced",INDEX('Pomocný list 3'!$O$4:$O$262971,$V25+8760*('Pomocný list 1'!Z$11-1986))/2000*'Pomocný list 1'!$D$5*'Pomocný list 1'!$D$13,$D$13),0)+IF($E$4="Wind",IF($E$11="Pay as produced",INDEX('Pomocný list 3'!$O$4:$O$262971,$V25+8760*('Pomocný list 1'!Z$11-1986))/2000*'Pomocný list 1'!$E$5*'Pomocný list 1'!$E$13,$E$13),0)+IF($F$4="Wind",IF($F$11="Pay as produced",INDEX('Pomocný list 3'!$O$4:$O$262971,$V25+8760*('Pomocný list 1'!Z$11-1986))/2000*'Pomocný list 1'!$F$5*'Pomocný list 1'!$F$13,$F$13),0)+IF($G$4="Wind",IF($G$11="Pay as produced",INDEX('Pomocný list 3'!$O$4:$O$262971,$V25+8760*('Pomocný list 1'!Z$11-1986))/2000*'Pomocný list 1'!$G$5*'Pomocný list 1'!$G$13,$G$13),0)+IF($C$4="Wind",IF($C$11="Pay as produced",INDEX('Pomocný list 3'!$O$4:$O$262971,$V25+8760*('Pomocný list 1'!Z$11-1986))/2000*'Pomocný list 1'!$C$5*'Pomocný list 1'!$C$13,$C$13),0) -> 2.485258467 | AA25: =IF($D$4="Wind",IF($D$11="Pay as produced",INDEX('Pomocný list 3'!$O$4:$O$262971,$V25+8760*('Pomocný list 1'!AA$11-1986))/2000*'Pomocný list 1'!$D$5*'Pomocný list 1'!$D$13,$D$13),0)+IF($E$4="Wind",IF($E$11="Pay as produced",INDEX('Pomocný list 3'!$O$4:$O$262971,$V25+8760*('Pomocný list 1'!AA$11-1986))/2000*'Pomocný list 1'!$E$5*'Pomocný list 1'!$E$13,$E$13),0)+IF($F$4="Wind",IF($F$11="Pay as produced",INDEX('Pomocný list 3'!$O$4:$O$262971,$V25+8760*('Pomocný list 1'!AA$11-1986))/2000*'Pomocný list 1'!$F$5*'Pomocný list 1'!$F$13,$F$13),0)+IF($G$4="Wind",IF($G$11="Pay as produced",INDEX('Pomocný list 3'!$O$4:$O$262971,$V25+8760*('Pomocný list 1'!AA$11-1986))/2000*'Pomocný list 1'!$G$5*'Pomocný list 1'!$G$13,$G$13),0)+IF($C$4="Wind",IF($C$11="Pay as produced",INDEX('Pomocný list 3'!$O$4:$O$262971,$V25+8760*('Pomocný list 1'!AA$11-1986))/2000*'Pomocný list 1'!$C$5*'Pomocný list 1'!$C$13,$C$13),0) -> 1.125327289 | AB25: =IF($D$4="PV",IF($D$11="Pay as produced",INDEX('Pomocný list 3'!$K$4:$K$262971,$V25+8760*('Pomocný list 1'!AB$11-1986))/1000*'Pomocný list 1'!$D$5*'Pomocný list 1'!$D$13,$D$13),0)+IF($E$4="PV",IF($E$11="Pay as produced",INDEX('Pomocný list 3'!$K$4:$K$262971,$V25+8760*('Pomocný list 1'!AB$11-1986))/1000*'Pomocný list 1'!$E$5*'Pomocný list 1'!$E$13,$E$13),0)+IF($F$4="PV",IF($F$11="Pay as produced",INDEX('Pomocný list 3'!$K$4:$K$262971,$V25+8760*('Pomocný list 1'!AB$11-1986))/1000*'Pomocný list 1'!$F$5*'Pomocný list 1'!$F$13,$F$13),0)+IF($G$4="PV",IF($G$11="Pay as produced",INDEX('Pomocný list 3'!$K$4:$K$262971,$V25+8760*('Pomocný list 1'!AB$11-1986))/1000*'Pomocný list 1'!$G$5*'Pomocný list 1'!$G$13,$G$13),0)+IF($C$4="PV",IF($C$11="Pay as produced",INDEX('Pomocný list 3'!$K$4:$K$262971,$V25+8760*('Pomocný list 1'!AB$11-1986))/1000*'Pomocný list 1'!$C$5*'Pomocný list 1'!$C$13,$C$13),0) -> 1.14010959 | AC25: =IF($D$4="PV",IF($D$11="Pay as produced",INDEX('Pomocný list 3'!$K$4:$K$262971,$V25+8760*('Pomocný list 1'!AC$11-1986))/1000*'Pomocný list 1'!$D$5*'Pomocný list 1'!$D$13,$D$13),0)+IF($E$4="PV",IF($E$11="Pay as produced",INDEX('Pomocný list 3'!$K$4:$K$262971,$V25+8760*('Pomocný list 1'!AC$11-1986))/1000*'Pomocný list 1'!$E$5*'Pomocný list 1'!$E$13,$E$13),0)+IF($F$4="PV",IF($F$11="Pay as produced",INDEX('Pomocný list 3'!$K$4:$K$262971,$V25+8760*('Pomocný list 1'!AC$11-1986))/1000*'Pomocný list 1'!$F$5*'Pomocný list 1'!$F$13,$F$13),0)+IF($G$4="PV",IF($G$11="Pay as produced",INDEX('Pomocný list 3'!$K$4:$K$262971,$V25+8760*('Pomocný list 1'!AC$11-1986))/1000*'Pomocný list 1'!$G$5*'Pomocný list 1'!$G$13,$G$13),0)+IF($C$4="PV",IF($C$11="Pay as produced",INDEX('Pomocný list 3'!$K$4:$K$262971,$V25+8760*('Pomocný list 1'!AC$11-1986))/1000*'Pomocný list 1'!$C$5*'Pomocný list 1'!$C$13,$C$13),0) -> 0.6307706902 | AD25: =IF($D$4="PV",IF($D$11="Pay as produced",INDEX('Pomocný list 3'!$K$4:$K$262971,$V25+8760*('Pomocný list 1'!AD$11-1986))/1000*'Pomocný list 1'!$D$5*'Pomocný list 1'!$D$13,$D$13),0)+IF($E$4="PV",IF($E$11="Pay as produced",INDEX('Pomocný list 3'!$K$4:$K$262971,$V25+8760*('Pomocný list 1'!AD$11-1986))/1000*'Pomocný list 1'!$E$5*'Pomocný list 1'!$E$13,$E$13),0)+IF($F$4="PV",IF($F$11="Pay as produced",INDEX('Pomocný list 3'!$K$4:$K$262971,$V25+8760*('Pomocný list 1'!AD$11-1986))/1000*'Pomocný list 1'!$F$5*'Pomocný list 1'!$F$13,$F$13),0)+IF($G$4="PV",IF($G$11="Pay as produced",INDEX('Pomocný list 3'!$K$4:$K$262971,$V25+8760*('Pomocný list 1'!AD$11-1986))/1000*'Pomocný list 1'!$G$5*'Pomocný list 1'!$G$13,$G$13),0)+IF($C$4="PV",IF($C$11="Pay as produced",INDEX('Pomocný list 3'!$K$4:$K$262971,$V25+8760*('Pomocný list 1'!AD$11-1986))/1000*'Pomocný list 1'!$C$5*'Pomocný list 1'!$C$13,$C$13),0) -> 2.663844059 | AE25: =IF($D$4="PV",IF($D$11="Pay as produced",INDEX('Pomocný list 3'!$K$4:$K$262971,$V25+8760*('Pomocný list 1'!AE$11-1986))/1000*'Pomocný list 1'!$D$5*'Pomocný list 1'!$D$13,$D$13),0)+IF($E$4="PV",IF($E$11="Pay as produced",INDEX('Pomocný list 3'!$K$4:$K$262971,$V25+8760*('Pomocný list 1'!AE$11-1986))/1000*'Pomocný list 1'!$E$5*'Pomocný list 1'!$E$13,$E$13),0)+IF($F$4="PV",IF($F$11="Pay as produced",INDEX('Pomocný list 3'!$K$4:$K$262971,$V25+8760*('Pomocný list 1'!AE$11-1986))/1000*'Pomocný list 1'!$F$5*'Pomocný list 1'!$F$13,$F$13),0)+IF($G$4="PV",IF($G$11="Pay as produced",INDEX('Pomocný list 3'!$K$4:$K$262971,$V25+8760*('Pomocný list 1'!AE$11-1986))/1000*'Pomocný list 1'!$G$5*'Pomocný list 1'!$G$13,$G$13),0)+IF($C$4="PV",IF($C$11="Pay as produced",INDEX('Pomocný list 3'!$K$4:$K$262971,$V25+8760*('Pomocný list 1'!AE$11-1986))/1000*'Pomocný list 1'!$C$5*'Pomocný list 1'!$C$13,$C$13),0) -> 0.7353369544 | AF25: =IF($D$4="PV",IF($D$11="Pay as produced",INDEX('Pomocný list 3'!$K$4:$K$262971,$V25+8760*('Pomocný list 1'!AF$11-1986))/1000*'Pomocný list 1'!$D$5*'Pomocný list 1'!$D$13,$D$13),0)+IF($E$4="PV",IF($E$11="Pay as produced",INDEX('Pomocný list 3'!$K$4:$K$262971,$V25+8760*('Pomocný list 1'!AF$11-1986))/1000*'Pomocný list 1'!$E$5*'Pomocný list 1'!$E$13,$E$13),0)+IF($F$4="PV",IF($F$11="Pay as produced",INDEX('Pomocný list 3'!$K$4:$K$262971,$V25+8760*('Pomocný list 1'!AF$11-1986))/1000*'Pomocný list 1'!$F$5*'Pomocný list 1'!$F$13,$F$13),0)+IF($G$4="PV",IF($G$11="Pay as produced",INDEX('Pomocný list 3'!$K$4:$K$262971,$V25+8760*('Pomocný list 1'!AF$11-1986))/1000*'Pomocný list 1'!$G$5*'Pomocný list 1'!$G$13,$G$13),0)+IF($C$4="PV",IF($C$11="Pay as produced",INDEX('Pomocný list 3'!$K$4:$K$262971,$V25+8760*('Pomocný list 1'!AF$11-1986))/1000*'Pomocný list 1'!$C$5*'Pomocný list 1'!$C$13,$C$13),0) -> 1.14010959 | AG25: -0.2186929958 | AH25: 0.6890853719 | AI25: 0.6766620385 | AJ25: 1.22803598 | AK25: 0.272877437 | AL25: 13 | AM25: 0.345434845 | AN25: 13 | AO25: 0.2186929958 | AP25: 0 | AQ25: 0 | AR25: 0 | AS25: 0 | AT25: 0 | AU25: 0.6890853719 | AV25: 0.6766620385 | AW25: 1.22803598 | AX25: 0.272877437 | BE25: 22 | BF25: 0.03270448435 | BS25: 22 | BT25: 0.04530370806 | BZ25: 22 | CA25: 0.04470262841 | CG25: 22 | CH25: 0.04470262841 | CN25: 22 | CO25: 0.04394764484 | CU25: 22 | CV25: 0.04412276458 | DB25: 22 | DC25: 0.01636140223 | DI25: 22 | DJ25: 0.01852769938 | DP25: 22 | DQ25: 0.02027151073 | DW25: 22 | DX25: 0.0170122436 | ED25: 22 | EE25: 0.020408247
N26: 2017-01-01 | O26: 14 | P26: 7 | Q26: 1 | S26: 2.026405928 | V26: 14 | W26: =IF($D$4="Wind",IF($D$11="Pay as produced",INDEX('Pomocný list 3'!$O$4:$O$262971,$V26+8760*('Pomocný list 1'!W$11-1986))/2000*'Pomocný list 1'!$D$5*'Pomocný list 1'!$D$13,$D$13),0)+IF($E$4="Wind",IF($E$11="Pay as produced",INDEX('Pomocný list 3'!$O$4:$O$262971,$V26+8760*('Pomocný list 1'!W$11-1986))/2000*'Pomocný list 1'!$E$5*'Pomocný list 1'!$E$13,$E$13),0)+IF($F$4="Wind",IF($F$11="Pay as produced",INDEX('Pomocný list 3'!$O$4:$O$262971,$V26+8760*('Pomocný list 1'!W$11-1986))/2000*'Pomocný list 1'!$F$5*'Pomocný list 1'!$F$13,$F$13),0)+IF($G$4="Wind",IF($G$11="Pay as produced",INDEX('Pomocný list 3'!$O$4:$O$262971,$V26+8760*('Pomocný list 1'!W$11-1986))/2000*'Pomocný list 1'!$G$5*'Pomocný list 1'!$G$13,$G$13),0)+IF($C$4="Wind",IF($C$11="Pay as produced",INDEX('Pomocný list 3'!$O$4:$O$262971,$V26+8760*('Pomocný list 1'!W$11-1986))/2000*'Pomocný list 1'!$C$5*'Pomocný list 1'!$C$13,$C$13),0) -> 0.5822077876 | X26: =IF($D$4="Wind",IF($D$11="Pay as produced",INDEX('Pomocný list 3'!$O$4:$O$262971,$V26+8760*('Pomocný list 1'!X$11-1986))/2000*'Pomocný list 1'!$D$5*'Pomocný list 1'!$D$13,$D$13),0)+IF($E$4="Wind",IF($E$11="Pay as produced",INDEX('Pomocný list 3'!$O$4:$O$262971,$V26+8760*('Pomocný list 1'!X$11-1986))/2000*'Pomocný list 1'!$E$5*'Pomocný list 1'!$E$13,$E$13),0)+IF($F$4="Wind",IF($F$11="Pay as produced",INDEX('Pomocný list 3'!$O$4:$O$262971,$V26+8760*('Pomocný list 1'!X$11-1986))/2000*'Pomocný list 1'!$F$5*'Pomocný list 1'!$F$13,$F$13),0)+IF($G$4="Wind",IF($G$11="Pay as produced",INDEX('Pomocný list 3'!$O$4:$O$262971,$V26+8760*('Pomocný list 1'!X$11-1986))/2000*'Pomocný list 1'!$G$5*'Pomocný list 1'!$G$13,$G$13),0)+IF($C$4="Wind",IF($C$11="Pay as produced",INDEX('Pomocný list 3'!$O$4:$O$262971,$V26+8760*('Pomocný list 1'!X$11-1986))/2000*'Pomocný list 1'!$C$5*'Pomocný list 1'!$C$13,$C$13),0) -> 2.148223983 | Y26: =IF($D$4="Wind",IF($D$11="Pay as produced",INDEX('Pomocný list 3'!$O$4:$O$262971,$V26+8760*('Pomocný list 1'!Y$11-1986))/2000*'Pomocný list 1'!$D$5*'Pomocný list 1'!$D$13,$D$13),0)+IF($E$4="Wind",IF($E$11="Pay as produced",INDEX('Pomocný list 3'!$O$4:$O$262971,$V26+8760*('Pomocný list 1'!Y$11-1986))/2000*'Pomocný list 1'!$E$5*'Pomocný list 1'!$E$13,$E$13),0)+IF($F$4="Wind",IF($F$11="Pay as produced",INDEX('Pomocný list 3'!$O$4:$O$262971,$V26+8760*('Pomocný list 1'!Y$11-1986))/2000*'Pomocný list 1'!$F$5*'Pomocný list 1'!$F$13,$F$13),0)+IF($G$4="Wind",IF($G$11="Pay as produced",INDEX('Pomocný list 3'!$O$4:$O$262971,$V26+8760*('Pomocný list 1'!Y$11-1986))/2000*'Pomocný list 1'!$G$5*'Pomocný list 1'!$G$13,$G$13),0)+IF($C$4="Wind",IF($C$11="Pay as produced",INDEX('Pomocný list 3'!$O$4:$O$262971,$V26+8760*('Pomocný list 1'!Y$11-1986))/2000*'Pomocný list 1'!$C$5*'Pomocný list 1'!$C$13,$C$13),0) -> 0.01995208547 | Z26: =IF($D$4="Wind",IF($D$11="Pay as produced",INDEX('Pomocný list 3'!$O$4:$O$262971,$V26+8760*('Pomocný list 1'!Z$11-1986))/2000*'Pomocný list 1'!$D$5*'Pomocný list 1'!$D$13,$D$13),0)+IF($E$4="Wind",IF($E$11="Pay as produced",INDEX('Pomocný list 3'!$O$4:$O$262971,$V26+8760*('Pomocný list 1'!Z$11-1986))/2000*'Pomocný list 1'!$E$5*'Pomocný list 1'!$E$13,$E$13),0)+IF($F$4="Wind",IF($F$11="Pay as produced",INDEX('Pomocný list 3'!$O$4:$O$262971,$V26+8760*('Pomocný list 1'!Z$11-1986))/2000*'Pomocný list 1'!$F$5*'Pomocný list 1'!$F$13,$F$13),0)+IF($G$4="Wind",IF($G$11="Pay as produced",INDEX('Pomocný list 3'!$O$4:$O$262971,$V26+8760*('Pomocný list 1'!Z$11-1986))/2000*'Pomocný list 1'!$G$5*'Pomocný list 1'!$G$13,$G$13),0)+IF($C$4="Wind",IF($C$11="Pay as produced",INDEX('Pomocný list 3'!$O$4:$O$262971,$V26+8760*('Pomocný list 1'!Z$11-1986))/2000*'Pomocný list 1'!$C$5*'Pomocný list 1'!$C$13,$C$13),0) -> 2.466159352 | AA26: =IF($D$4="Wind",IF($D$11="Pay as produced",INDEX('Pomocný list 3'!$O$4:$O$262971,$V26+8760*('Pomocný list 1'!AA$11-1986))/2000*'Pomocný list 1'!$D$5*'Pomocný list 1'!$D$13,$D$13),0)+IF($E$4="Wind",IF($E$11="Pay as produced",INDEX('Pomocný list 3'!$O$4:$O$262971,$V26+8760*('Pomocný list 1'!AA$11-1986))/2000*'Pomocný list 1'!$E$5*'Pomocný list 1'!$E$13,$E$13),0)+IF($F$4="Wind",IF($F$11="Pay as produced",INDEX('Pomocný list 3'!$O$4:$O$262971,$V26+8760*('Pomocný list 1'!AA$11-1986))/2000*'Pomocný list 1'!$F$5*'Pomocný list 1'!$F$13,$F$13),0)+IF($G$4="Wind",IF($G$11="Pay as produced",INDEX('Pomocný list 3'!$O$4:$O$262971,$V26+8760*('Pomocný list 1'!AA$11-1986))/2000*'Pomocný list 1'!$G$5*'Pomocný list 1'!$G$13,$G$13),0)+IF($C$4="Wind",IF($C$11="Pay as produced",INDEX('Pomocný list 3'!$O$4:$O$262971,$V26+8760*('Pomocný list 1'!AA$11-1986))/2000*'Pomocný list 1'!$C$5*'Pomocný list 1'!$C$13,$C$13),0) -> 1.192266906 | AB26: =IF($D$4="PV",IF($D$11="Pay as produced",INDEX('Pomocný list 3'!$K$4:$K$262971,$V26+8760*('Pomocný list 1'!AB$11-1986))/1000*'Pomocný list 1'!$D$5*'Pomocný list 1'!$D$13,$D$13),0)+IF($E$4="PV",IF($E$11="Pay as produced",INDEX('Pomocný list 3'!$K$4:$K$262971,$V26+8760*('Pomocný list 1'!AB$11-1986))/1000*'Pomocný list 1'!$E$5*'Pomocný list 1'!$E$13,$E$13),0)+IF($F$4="PV",IF($F$11="Pay as produced",INDEX('Pomocný list 3'!$K$4:$K$262971,$V26+8760*('Pomocný list 1'!AB$11-1986))/1000*'Pomocný list 1'!$F$5*'Pomocný list 1'!$F$13,$F$13),0)+IF($G$4="PV",IF($G$11="Pay as produced",INDEX('Pomocný list 3'!$K$4:$K$262971,$V26+8760*('Pomocný list 1'!AB$11-1986))/1000*'Pomocný list 1'!$G$5*'Pomocný list 1'!$G$13,$G$13),0)+IF($C$4="PV",IF($C$11="Pay as produced",INDEX('Pomocný list 3'!$K$4:$K$262971,$V26+8760*('Pomocný list 1'!AB$11-1986))/1000*'Pomocný list 1'!$C$5*'Pomocný list 1'!$C$13,$C$13),0) -> 1.214317906 | AC26: =IF($D$4="PV",IF($D$11="Pay as produced",INDEX('Pomocný list 3'!$K$4:$K$262971,$V26+8760*('Pomocný list 1'!AC$11-1986))/1000*'Pomocný list 1'!$D$5*'Pomocný list 1'!$D$13,$D$13),0)+IF($E$4="PV",IF($E$11="Pay as produced",INDEX('Pomocný list 3'!$K$4:$K$262971,$V26+8760*('Pomocný list 1'!AC$11-1986))/1000*'Pomocný list 1'!$E$5*'Pomocný list 1'!$E$13,$E$13),0)+IF($F$4="PV",IF($F$11="Pay as produced",INDEX('Pomocný list 3'!$K$4:$K$262971,$V26+8760*('Pomocný list 1'!AC$11-1986))/1000*'Pomocný list 1'!$F$5*'Pomocný list 1'!$F$13,$F$13),0)+IF($G$4="PV",IF($G$11="Pay as produced",INDEX('Pomocný list 3'!$K$4:$K$262971,$V26+8760*('Pomocný list 1'!AC$11-1986))/1000*'Pomocný list 1'!$G$5*'Pomocný list 1'!$G$13,$G$13),0)+IF($C$4="PV",IF($C$11="Pay as produced",INDEX('Pomocný list 3'!$K$4:$K$262971,$V26+8760*('Pomocný list 1'!AC$11-1986))/1000*'Pomocný list 1'!$C$5*'Pomocný list 1'!$C$13,$C$13),0) -> 0.5489166684 | AD26: =IF($D$4="PV",IF($D$11="Pay as produced",INDEX('Pomocný list 3'!$K$4:$K$262971,$V26+8760*('Pomocný list 1'!AD$11-1986))/1000*'Pomocný list 1'!$D$5*'Pomocný list 1'!$D$13,$D$13),0)+IF($E$4="PV",IF($E$11="Pay as produced",INDEX('Pomocný list 3'!$K$4:$K$262971,$V26+8760*('Pomocný list 1'!AD$11-1986))/1000*'Pomocný list 1'!$E$5*'Pomocný list 1'!$E$13,$E$13),0)+IF($F$4="PV",IF($F$11="Pay as produced",INDEX('Pomocný list 3'!$K$4:$K$262971,$V26+8760*('Pomocný list 1'!AD$11-1986))/1000*'Pomocný list 1'!$F$5*'Pomocný list 1'!$F$13,$F$13),0)+IF($G$4="PV",IF($G$11="Pay as produced",INDEX('Pomocný list 3'!$K$4:$K$262971,$V26+8760*('Pomocný list 1'!AD$11-1986))/1000*'Pomocný list 1'!$G$5*'Pomocný list 1'!$G$13,$G$13),0)+IF($C$4="PV",IF($C$11="Pay as produced",INDEX('Pomocný list 3'!$K$4:$K$262971,$V26+8760*('Pomocný list 1'!AD$11-1986))/1000*'Pomocný list 1'!$C$5*'Pomocný list 1'!$C$13,$C$13),0) -> 2.328691952 | AE26: =IF($D$4="PV",IF($D$11="Pay as produced",INDEX('Pomocný list 3'!$K$4:$K$262971,$V26+8760*('Pomocný list 1'!AE$11-1986))/1000*'Pomocný list 1'!$D$5*'Pomocný list 1'!$D$13,$D$13),0)+IF($E$4="PV",IF($E$11="Pay as produced",INDEX('Pomocný list 3'!$K$4:$K$262971,$V26+8760*('Pomocný list 1'!AE$11-1986))/1000*'Pomocný list 1'!$E$5*'Pomocný list 1'!$E$13,$E$13),0)+IF($F$4="PV",IF($F$11="Pay as produced",INDEX('Pomocný list 3'!$K$4:$K$262971,$V26+8760*('Pomocný list 1'!AE$11-1986))/1000*'Pomocný list 1'!$F$5*'Pomocný list 1'!$F$13,$F$13),0)+IF($G$4="PV",IF($G$11="Pay as produced",INDEX('Pomocný list 3'!$K$4:$K$262971,$V26+8760*('Pomocný list 1'!AE$11-1986))/1000*'Pomocný list 1'!$G$5*'Pomocný list 1'!$G$13,$G$13),0)+IF($C$4="PV",IF($C$11="Pay as produced",INDEX('Pomocný list 3'!$K$4:$K$262971,$V26+8760*('Pomocný list 1'!AE$11-1986))/1000*'Pomocný list 1'!$C$5*'Pomocný list 1'!$C$13,$C$13),0) -> 0.3145697821 | AF26: =IF($D$4="PV",IF($D$11="Pay as produced",INDEX('Pomocný list 3'!$K$4:$K$262971,$V26+8760*('Pomocný list 1'!AF$11-1986))/1000*'Pomocný list 1'!$D$5*'Pomocný list 1'!$D$13,$D$13),0)+IF($E$4="PV",IF($E$11="Pay as produced",INDEX('Pomocný list 3'!$K$4:$K$262971,$V26+8760*('Pomocný list 1'!AF$11-1986))/1000*'Pomocný list 1'!$E$5*'Pomocný list 1'!$E$13,$E$13),0)+IF($F$4="PV",IF($F$11="Pay as produced",INDEX('Pomocný list 3'!$K$4:$K$262971,$V26+8760*('Pomocný list 1'!AF$11-1986))/1000*'Pomocný list 1'!$F$5*'Pomocný list 1'!$F$13,$F$13),0)+IF($G$4="PV",IF($G$11="Pay as produced",INDEX('Pomocný list 3'!$K$4:$K$262971,$V26+8760*('Pomocný list 1'!AF$11-1986))/1000*'Pomocný list 1'!$G$5*'Pomocný list 1'!$G$13,$G$13),0)+IF($C$4="PV",IF($C$11="Pay as produced",INDEX('Pomocný list 3'!$K$4:$K$262971,$V26+8760*('Pomocný list 1'!AF$11-1986))/1000*'Pomocný list 1'!$C$5*'Pomocný list 1'!$C$13,$C$13),0) -> 0.9208577457 | AG26: -0.2298802337 | AH26: 0.6707347234 | AI26: 0.3222381099 | AJ26: 0.7543232064 | AK26: 0.08671872437 | AL26: 14 | AM26: 0.3883490045 | AN26: 14 | AO26: 0.2298802337 | AP26: 0 | AQ26: 0 | AR26: 0 | AS26: 0 | AT26: 0 | AU26: 0.6707347234 | AV26: 0.3222381099 | AW26: 0.7543232064 | AX26: 0.08671872437 | BE26: 23 | BF26: 0.0325158638 | BS26: 23 | BT26: 0.04529561902 | BZ26: 23 | CA26: 0.0446102768 | CG26: 23 | CH26: 0.0446102768 | CN26: 23 | CO26: 0.04408126281 | CU26: 23 | CV26: 0.04413738476 | DB26: 23 | DC26: 0.01788781685 | DI26: 23 | DJ26: 0.02014503274 | DP26: 23 | DQ26: 0.02124891816 | DW26: 23 | DX26: 0.01812558913 | ED26: 23 | EE26: 0.02234925689
N27: 2017-01-01 | O27: 15 | P27: 7 | Q27: 1 | S27: 2.021198776 | V27: 15 | W27: =IF($D$4="Wind",IF($D$11="Pay as produced",INDEX('Pomocný list 3'!$O$4:$O$262971,$V27+8760*('Pomocný list 1'!W$11-1986))/2000*'Pomocný list 1'!$D$5*'Pomocný list 1'!$D$13,$D$13),0)+IF($E$4="Wind",IF($E$11="Pay as produced",INDEX('Pomocný list 3'!$O$4:$O$262971,$V27+8760*('Pomocný list 1'!W$11-1986))/2000*'Pomocný list 1'!$E$5*'Pomocný list 1'!$E$13,$E$13),0)+IF($F$4="Wind",IF($F$11="Pay as produced",INDEX('Pomocný list 3'!$O$4:$O$262971,$V27+8760*('Pomocný list 1'!W$11-1986))/2000*'Pomocný list 1'!$F$5*'Pomocný list 1'!$F$13,$F$13),0)+IF($G$4="Wind",IF($G$11="Pay as produced",INDEX('Pomocný list 3'!$O$4:$O$262971,$V27+8760*('Pomocný list 1'!W$11-1986))/2000*'Pomocný list 1'!$G$5*'Pomocný list 1'!$G$13,$G$13),0)+IF($C$4="Wind",IF($C$11="Pay as produced",INDEX('Pomocný list 3'!$O$4:$O$262971,$V27+8760*('Pomocný list 1'!W$11-1986))/2000*'Pomocný list 1'!$C$5*'Pomocný list 1'!$C$13,$C$13),0) -> 0.6145464837 | X27: =IF($D$4="Wind",IF($D$11="Pay as produced",INDEX('Pomocný list 3'!$O$4:$O$262971,$V27+8760*('Pomocný list 1'!X$11-1986))/2000*'Pomocný list 1'!$D$5*'Pomocný list 1'!$D$13,$D$13),0)+IF($E$4="Wind",IF($E$11="Pay as produced",INDEX('Pomocný list 3'!$O$4:$O$262971,$V27+8760*('Pomocný list 1'!X$11-1986))/2000*'Pomocný list 1'!$E$5*'Pomocný list 1'!$E$13,$E$13),0)+IF($F$4="Wind",IF($F$11="Pay as produced",INDEX('Pomocný list 3'!$O$4:$O$262971,$V27+8760*('Pomocný list 1'!X$11-1986))/2000*'Pomocný list 1'!$F$5*'Pomocný list 1'!$F$13,$F$13),0)+IF($G$4="Wind",IF($G$11="Pay as produced",INDEX('Pomocný list 3'!$O$4:$O$262971,$V27+8760*('Pomocný list 1'!X$11-1986))/2000*'Pomocný list 1'!$G$5*'Pomocný list 1'!$G$13,$G$13),0)+IF($C$4="Wind",IF($C$11="Pay as produced",INDEX('Pomocný list 3'!$O$4:$O$262971,$V27+8760*('Pomocný list 1'!X$11-1986))/2000*'Pomocný list 1'!$C$5*'Pomocný list 1'!$C$13,$C$13),0) -> 2.341069418 | Y27: =IF($D$4="Wind",IF($D$11="Pay as produced",INDEX('Pomocný list 3'!$O$4:$O$262971,$V27+8760*('Pomocný list 1'!Y$11-1986))/2000*'Pomocný list 1'!$D$5*'Pomocný list 1'!$D$13,$D$13),0)+IF($E$4="Wind",IF($E$11="Pay as produced",INDEX('Pomocný list 3'!$O$4:$O$262971,$V27+8760*('Pomocný list 1'!Y$11-1986))/2000*'Pomocný list 1'!$E$5*'Pomocný list 1'!$E$13,$E$13),0)+IF($F$4="Wind",IF($F$11="Pay as produced",INDEX('Pomocný list 3'!$O$4:$O$262971,$V27+8760*('Pomocný list 1'!Y$11-1986))/2000*'Pomocný list 1'!$F$5*'Pomocný list 1'!$F$13,$F$13),0)+IF($G$4="Wind",IF($G$11="Pay as produced",INDEX('Pomocný list 3'!$O$4:$O$262971,$V27+8760*('Pomocný list 1'!Y$11-1986))/2000*'Pomocný list 1'!$G$5*'Pomocný list 1'!$G$13,$G$13),0)+IF($C$4="Wind",IF($C$11="Pay as produced",INDEX('Pomocný list 3'!$O$4:$O$262971,$V27+8760*('Pomocný list 1'!Y$11-1986))/2000*'Pomocný list 1'!$C$5*'Pomocný list 1'!$C$13,$C$13),0) -> 0.07673023202 | Z27: =IF($D$4="Wind",IF($D$11="Pay as produced",INDEX('Pomocný list 3'!$O$4:$O$262971,$V27+8760*('Pomocný list 1'!Z$11-1986))/2000*'Pomocný list 1'!$D$5*'Pomocný list 1'!$D$13,$D$13),0)+IF($E$4="Wind",IF($E$11="Pay as produced",INDEX('Pomocný list 3'!$O$4:$O$262971,$V27+8760*('Pomocný list 1'!Z$11-1986))/2000*'Pomocný list 1'!$E$5*'Pomocný list 1'!$E$13,$E$13),0)+IF($F$4="Wind",IF($F$11="Pay as produced",INDEX('Pomocný list 3'!$O$4:$O$262971,$V27+8760*('Pomocný list 1'!Z$11-1986))/2000*'Pomocný list 1'!$F$5*'Pomocný list 1'!$F$13,$F$13),0)+IF($G$4="Wind",IF($G$11="Pay as produced",INDEX('Pomocný list 3'!$O$4:$O$262971,$V27+8760*('Pomocný list 1'!Z$11-1986))/2000*'Pomocný list 1'!$G$5*'Pomocný list 1'!$G$13,$G$13),0)+IF($C$4="Wind",IF($C$11="Pay as produced",INDEX('Pomocný list 3'!$O$4:$O$262971,$V27+8760*('Pomocný list 1'!Z$11-1986))/2000*'Pomocný list 1'!$C$5*'Pomocný list 1'!$C$13,$C$13),0) -> 2.40626601 | AA27: =IF($D$4="Wind",IF($D$11="Pay as produced",INDEX('Pomocný list 3'!$O$4:$O$262971,$V27+8760*('Pomocný list 1'!AA$11-1986))/2000*'Pomocný list 1'!$D$5*'Pomocný list 1'!$D$13,$D$13),0)+IF($E$4="Wind",IF($E$11="Pay as produced",INDEX('Pomocný list 3'!$O$4:$O$262971,$V27+8760*('Pomocný list 1'!AA$11-1986))/2000*'Pomocný list 1'!$E$5*'Pomocný list 1'!$E$13,$E$13),0)+IF($F$4="Wind",IF($F$11="Pay as produced",INDEX('Pomocný list 3'!$O$4:$O$262971,$V27+8760*('Pomocný list 1'!AA$11-1986))/2000*'Pomocný list 1'!$F$5*'Pomocný list 1'!$F$13,$F$13),0)+IF($G$4="Wind",IF($G$11="Pay as produced",INDEX('Pomocný list 3'!$O$4:$O$262971,$V27+8760*('Pomocný list 1'!AA$11-1986))/2000*'Pomocný list 1'!$G$5*'Pomocný list 1'!$G$13,$G$13),0)+IF($C$4="Wind",IF($C$11="Pay as produced",INDEX('Pomocný list 3'!$O$4:$O$262971,$V27+8760*('Pomocný list 1'!AA$11-1986))/2000*'Pomocný list 1'!$C$5*'Pomocný list 1'!$C$13,$C$13),0) -> 1.30923508 | AB27: =IF($D$4="PV",IF($D$11="Pay as produced",INDEX('Pomocný list 3'!$K$4:$K$262971,$V27+8760*('Pomocný list 1'!AB$11-1986))/1000*'Pomocný list 1'!$D$5*'Pomocný list 1'!$D$13,$D$13),0)+IF($E$4="PV",IF($E$11="Pay as produced",INDEX('Pomocný list 3'!$K$4:$K$262971,$V27+8760*('Pomocný list 1'!AB$11-1986))/1000*'Pomocný list 1'!$E$5*'Pomocný list 1'!$E$13,$E$13),0)+IF($F$4="PV",IF($F$11="Pay as produced",INDEX('Pomocný list 3'!$K$4:$K$262971,$V27+8760*('Pomocný list 1'!AB$11-1986))/1000*'Pomocný list 1'!$F$5*'Pomocný list 1'!$F$13,$F$13),0)+IF($G$4="PV",IF($G$11="Pay as produced",INDEX('Pomocný list 3'!$K$4:$K$262971,$V27+8760*('Pomocný list 1'!AB$11-1986))/1000*'Pomocný list 1'!$G$5*'Pomocný list 1'!$G$13,$G$13),0)+IF($C$4="PV",IF($C$11="Pay as produced",INDEX('Pomocný list 3'!$K$4:$K$262971,$V27+8760*('Pomocný list 1'!AB$11-1986))/1000*'Pomocný list 1'!$C$5*'Pomocný list 1'!$C$13,$C$13),0) -> 1.103005432 | AC27: =IF($D$4="PV",IF($D$11="Pay as produced",INDEX('Pomocný list 3'!$K$4:$K$262971,$V27+8760*('Pomocný list 1'!AC$11-1986))/1000*'Pomocný list 1'!$D$5*'Pomocný list 1'!$D$13,$D$13),0)+IF($E$4="PV",IF($E$11="Pay as produced",INDEX('Pomocný list 3'!$K$4:$K$262971,$V27+8760*('Pomocný list 1'!AC$11-1986))/1000*'Pomocný list 1'!$E$5*'Pomocný list 1'!$E$13,$E$13),0)+IF($F$4="PV",IF($F$11="Pay as produced",INDEX('Pomocný list 3'!$K$4:$K$262971,$V27+8760*('Pomocný list 1'!AC$11-1986))/1000*'Pomocný list 1'!$F$5*'Pomocný list 1'!$F$13,$F$13),0)+IF($G$4="PV",IF($G$11="Pay as produced",INDEX('Pomocný list 3'!$K$4:$K$262971,$V27+8760*('Pomocný list 1'!AC$11-1986))/1000*'Pomocný list 1'!$G$5*'Pomocný list 1'!$G$13,$G$13),0)+IF($C$4="PV",IF($C$11="Pay as produced",INDEX('Pomocný list 3'!$K$4:$K$262971,$V27+8760*('Pomocný list 1'!AC$11-1986))/1000*'Pomocný list 1'!$C$5*'Pomocný list 1'!$C$13,$C$13),0) -> 0.5127120049 | AD27: =IF($D$4="PV",IF($D$11="Pay as produced",INDEX('Pomocný list 3'!$K$4:$K$262971,$V27+8760*('Pomocný list 1'!AD$11-1986))/1000*'Pomocný list 1'!$D$5*'Pomocný list 1'!$D$13,$D$13),0)+IF($E$4="PV",IF($E$11="Pay as produced",INDEX('Pomocný list 3'!$K$4:$K$262971,$V27+8760*('Pomocný list 1'!AD$11-1986))/1000*'Pomocný list 1'!$E$5*'Pomocný list 1'!$E$13,$E$13),0)+IF($F$4="PV",IF($F$11="Pay as produced",INDEX('Pomocný list 3'!$K$4:$K$262971,$V27+8760*('Pomocný list 1'!AD$11-1986))/1000*'Pomocný list 1'!$F$5*'Pomocný list 1'!$F$13,$F$13),0)+IF($G$4="PV",IF($G$11="Pay as produced",INDEX('Pomocný list 3'!$K$4:$K$262971,$V27+8760*('Pomocný list 1'!AD$11-1986))/1000*'Pomocný list 1'!$G$5*'Pomocný list 1'!$G$13,$G$13),0)+IF($C$4="PV",IF($C$11="Pay as produced",INDEX('Pomocný list 3'!$K$4:$K$262971,$V27+8760*('Pomocný list 1'!AD$11-1986))/1000*'Pomocný list 1'!$C$5*'Pomocný list 1'!$C$13,$C$13),0) -> 1.740522332 | AE27: =IF($D$4="PV",IF($D$11="Pay as produced",INDEX('Pomocný list 3'!$K$4:$K$262971,$V27+8760*('Pomocný list 1'!AE$11-1986))/1000*'Pomocný list 1'!$D$5*'Pomocný list 1'!$D$13,$D$13),0)+IF($E$4="PV",IF($E$11="Pay as produced",INDEX('Pomocný list 3'!$K$4:$K$262971,$V27+8760*('Pomocný list 1'!AE$11-1986))/1000*'Pomocný list 1'!$E$5*'Pomocný list 1'!$E$13,$E$13),0)+IF($F$4="PV",IF($F$11="Pay as produced",INDEX('Pomocný list 3'!$K$4:$K$262971,$V27+8760*('Pomocný list 1'!AE$11-1986))/1000*'Pomocný list 1'!$F$5*'Pomocný list 1'!$F$13,$F$13),0)+IF($G$4="PV",IF($G$11="Pay as produced",INDEX('Pomocný list 3'!$K$4:$K$262971,$V27+8760*('Pomocný list 1'!AE$11-1986))/1000*'Pomocný list 1'!$G$5*'Pomocný list 1'!$G$13,$G$13),0)+IF($C$4="PV",IF($C$11="Pay as produced",INDEX('Pomocný list 3'!$K$4:$K$262971,$V27+8760*('Pomocný list 1'!AE$11-1986))/1000*'Pomocný list 1'!$C$5*'Pomocný list 1'!$C$13,$C$13),0) -> 0.1888938965 | AF27: =IF($D$4="PV",IF($D$11="Pay as produced",INDEX('Pomocný list 3'!$K$4:$K$262971,$V27+8760*('Pomocný list 1'!AF$11-1986))/1000*'Pomocný list 1'!$D$5*'Pomocný list 1'!$D$13,$D$13),0)+IF($E$4="PV",IF($E$11="Pay as produced",INDEX('Pomocný list 3'!$K$4:$K$262971,$V27+8760*('Pomocný list 1'!AF$11-1986))/1000*'Pomocný list 1'!$E$5*'Pomocný list 1'!$E$13,$E$13),0)+IF($F$4="PV",IF($F$11="Pay as produced",INDEX('Pomocný list 3'!$K$4:$K$262971,$V27+8760*('Pomocný list 1'!AF$11-1986))/1000*'Pomocný list 1'!$F$5*'Pomocný list 1'!$F$13,$F$13),0)+IF($G$4="PV",IF($G$11="Pay as produced",INDEX('Pomocný list 3'!$K$4:$K$262971,$V27+8760*('Pomocný list 1'!AF$11-1986))/1000*'Pomocný list 1'!$G$5*'Pomocný list 1'!$G$13,$G$13),0)+IF($C$4="PV",IF($C$11="Pay as produced",INDEX('Pomocný list 3'!$K$4:$K$262971,$V27+8760*('Pomocný list 1'!AF$11-1986))/1000*'Pomocný list 1'!$C$5*'Pomocný list 1'!$C$13,$C$13),0) -> 0.6746210591 | AG27: -0.3036468606 | AH27: 0.8325826473 | AI27: -0.2039462115 | AJ27: 0.5739611305 | AK27: -0.0373426366 | AL27: 15 | AM27: 0.5054490228 | AN27: 15 | AO27: 0.3036468606 | AP27: 0 | AQ27: 0.2039462115 | AR27: 0 | AS27: 0.0373426366 | AT27: 0 | AU27: 0.8325826473 | AV27: 0 | AW27: 0.5739611305 | AX27: 0 | BE27: 24 | BF27: 0.03100833571 | BS27: 24 | BT27: 0.04243426774 | BZ27: 24 | CA27: 0.04195818333 | CG27: 24 | CH27: 0.04195818333 | CN27: 24 | CO27: 0.04167884206 | CU27: 24 | CV27: 0.04136002107 | DB27: 24 | DC27: 0.01892296148 | DI27: 24 | DJ27: 0.02128143398 | DP27: 24 | DQ27: 0.02210025509 | DW27: 24 | DX27: 0.01874348462 | ED27: 24 | EE27: 0.02359348528
N28: 2017-01-01 | O28: 16 | P28: 7 | Q28: 1 | S28: 2.023835308 | V28: 16 | W28: =IF($D$4="Wind",IF($D$11="Pay as produced",INDEX('Pomocný list 3'!$O$4:$O$262971,$V28+8760*('Pomocný list 1'!W$11-1986))/2000*'Pomocný list 1'!$D$5*'Pomocný list 1'!$D$13,$D$13),0)+IF($E$4="Wind",IF($E$11="Pay as produced",INDEX('Pomocný list 3'!$O$4:$O$262971,$V28+8760*('Pomocný list 1'!W$11-1986))/2000*'Pomocný list 1'!$E$5*'Pomocný list 1'!$E$13,$E$13),0)+IF($F$4="Wind",IF($F$11="Pay as produced",INDEX('Pomocný list 3'!$O$4:$O$262971,$V28+8760*('Pomocný list 1'!W$11-1986))/2000*'Pomocný list 1'!$F$5*'Pomocný list 1'!$F$13,$F$13),0)+IF($G$4="Wind",IF($G$11="Pay as produced",INDEX('Pomocný list 3'!$O$4:$O$262971,$V28+8760*('Pomocný list 1'!W$11-1986))/2000*'Pomocný list 1'!$G$5*'Pomocný list 1'!$G$13,$G$13),0)+IF($C$4="Wind",IF($C$11="Pay as produced",INDEX('Pomocný list 3'!$O$4:$O$262971,$V28+8760*('Pomocný list 1'!W$11-1986))/2000*'Pomocný list 1'!$C$5*'Pomocný list 1'!$C$13,$C$13),0) -> 0.5555431975 | X28: =IF($D$4="Wind",IF($D$11="Pay as produced",INDEX('Pomocný list 3'!$O$4:$O$262971,$V28+8760*('Pomocný list 1'!X$11-1986))/2000*'Pomocný list 1'!$D$5*'Pomocný list 1'!$D$13,$D$13),0)+IF($E$4="Wind",IF($E$11="Pay as produced",INDEX('Pomocný list 3'!$O$4:$O$262971,$V28+8760*('Pomocný list 1'!X$11-1986))/2000*'Pomocný list 1'!$E$5*'Pomocný list 1'!$E$13,$E$13),0)+IF($F$4="Wind",IF($F$11="Pay as produced",INDEX('Pomocný list 3'!$O$4:$O$262971,$V28+8760*('Pomocný list 1'!X$11-1986))/2000*'Pomocný list 1'!$F$5*'Pomocný list 1'!$F$13,$F$13),0)+IF($G$4="Wind",IF($G$11="Pay as produced",INDEX('Pomocný list 3'!$O$4:$O$262971,$V28+8760*('Pomocný list 1'!X$11-1986))/2000*'Pomocný list 1'!$G$5*'Pomocný list 1'!$G$13,$G$13),0)+IF($C$4="Wind",IF($C$11="Pay as produced",INDEX('Pomocný list 3'!$O$4:$O$262971,$V28+8760*('Pomocný list 1'!X$11-1986))/2000*'Pomocný list 1'!$C$5*'Pomocný list 1'!$C$13,$C$13),0) -> 2.540182331 | Y28: =IF($D$4="Wind",IF($D$11="Pay as produced",INDEX('Pomocný list 3'!$O$4:$O$262971,$V28+8760*('Pomocný list 1'!Y$11-1986))/2000*'Pomocný list 1'!$D$5*'Pomocný list 1'!$D$13,$D$13),0)+IF($E$4="Wind",IF($E$11="Pay as produced",INDEX('Pomocný list 3'!$O$4:$O$262971,$V28+8760*('Pomocný list 1'!Y$11-1986))/2000*'Pomocný list 1'!$E$5*'Pomocný list 1'!$E$13,$E$13),0)+IF($F$4="Wind",IF($F$11="Pay as produced",INDEX('Pomocný list 3'!$O$4:$O$262971,$V28+8760*('Pomocný list 1'!Y$11-1986))/2000*'Pomocný list 1'!$F$5*'Pomocný list 1'!$F$13,$F$13),0)+IF($G$4="Wind",IF($G$11="Pay as produced",INDEX('Pomocný list 3'!$O$4:$O$262971,$V28+8760*('Pomocný list 1'!Y$11-1986))/2000*'Pomocný list 1'!$G$5*'Pomocný list 1'!$G$13,$G$13),0)+IF($C$4="Wind",IF($C$11="Pay as produced",INDEX('Pomocný list 3'!$O$4:$O$262971,$V28+8760*('Pomocný list 1'!Y$11-1986))/2000*'Pomocný list 1'!$C$5*'Pomocný list 1'!$C$13,$C$13),0) -> 0.1930679497 | Z28: =IF($D$4="Wind",IF($D$11="Pay as produced",INDEX('Pomocný list 3'!$O$4:$O$262971,$V28+8760*('Pomocný list 1'!Z$11-1986))/2000*'Pomocný list 1'!$D$5*'Pomocný list 1'!$D$13,$D$13),0)+IF($E$4="Wind",IF($E$11="Pay as produced",INDEX('Pomocný list 3'!$O$4:$O$262971,$V28+8760*('Pomocný list 1'!Z$11-1986))/2000*'Pomocný list 1'!$E$5*'Pomocný list 1'!$E$13,$E$13),0)+IF($F$4="Wind",IF($F$11="Pay as produced",INDEX('Pomocný list 3'!$O$4:$O$262971,$V28+8760*('Pomocný list 1'!Z$11-1986))/2000*'Pomocný list 1'!$F$5*'Pomocný list 1'!$F$13,$F$13),0)+IF($G$4="Wind",IF($G$11="Pay as produced",INDEX('Pomocný list 3'!$O$4:$O$262971,$V28+8760*('Pomocný list 1'!Z$11-1986))/2000*'Pomocný list 1'!$G$5*'Pomocný list 1'!$G$13,$G$13),0)+IF($C$4="Wind",IF($C$11="Pay as produced",INDEX('Pomocný list 3'!$O$4:$O$262971,$V28+8760*('Pomocný list 1'!Z$11-1986))/2000*'Pomocný list 1'!$C$5*'Pomocný list 1'!$C$13,$C$13),0) -> 2.435823282 | AA28: =IF($D$4="Wind",IF($D$11="Pay as produced",INDEX('Pomocný list 3'!$O$4:$O$262971,$V28+8760*('Pomocný list 1'!AA$11-1986))/2000*'Pomocný list 1'!$D$5*'Pomocný list 1'!$D$13,$D$13),0)+IF($E$4="Wind",IF($E$11="Pay as produced",INDEX('Pomocný list 3'!$O$4:$O$262971,$V28+8760*('Pomocný list 1'!AA$11-1986))/2000*'Pomocný list 1'!$E$5*'Pomocný list 1'!$E$13,$E$13),0)+IF($F$4="Wind",IF($F$11="Pay as produced",INDEX('Pomocný list 3'!$O$4:$O$262971,$V28+8760*('Pomocný list 1'!AA$11-1986))/2000*'Pomocný list 1'!$F$5*'Pomocný list 1'!$F$13,$F$13),0)+IF($G$4="Wind",IF($G$11="Pay as produced",INDEX('Pomocný list 3'!$O$4:$O$262971,$V28+8760*('Pomocný list 1'!AA$11-1986))/2000*'Pomocný list 1'!$G$5*'Pomocný list 1'!$G$13,$G$13),0)+IF($C$4="Wind",IF($C$11="Pay as produced",INDEX('Pomocný list 3'!$O$4:$O$262971,$V28+8760*('Pomocný list 1'!AA$11-1986))/2000*'Pomocný list 1'!$C$5*'Pomocný list 1'!$C$13,$C$13),0) -> 1.423903943 | AB28: =IF($D$4="PV",IF($D$11="Pay as produced",INDEX('Pomocný list 3'!$K$4:$K$262971,$V28+8760*('Pomocný list 1'!AB$11-1986))/1000*'Pomocný list 1'!$D$5*'Pomocný list 1'!$D$13,$D$13),0)+IF($E$4="PV",IF($E$11="Pay as produced",INDEX('Pomocný list 3'!$K$4:$K$262971,$V28+8760*('Pomocný list 1'!AB$11-1986))/1000*'Pomocný list 1'!$E$5*'Pomocný list 1'!$E$13,$E$13),0)+IF($F$4="PV",IF($F$11="Pay as produced",INDEX('Pomocný list 3'!$K$4:$K$262971,$V28+8760*('Pomocný list 1'!AB$11-1986))/1000*'Pomocný list 1'!$F$5*'Pomocný list 1'!$F$13,$F$13),0)+IF($G$4="PV",IF($G$11="Pay as produced",INDEX('Pomocný list 3'!$K$4:$K$262971,$V28+8760*('Pomocný list 1'!AB$11-1986))/1000*'Pomocný list 1'!$G$5*'Pomocný list 1'!$G$13,$G$13),0)+IF($C$4="PV",IF($C$11="Pay as produced",INDEX('Pomocný list 3'!$K$4:$K$262971,$V28+8760*('Pomocný list 1'!AB$11-1986))/1000*'Pomocný list 1'!$C$5*'Pomocný list 1'!$C$13,$C$13),0) -> 0.0775814218 | AC28: =IF($D$4="PV",IF($D$11="Pay as produced",INDEX('Pomocný list 3'!$K$4:$K$262971,$V28+8760*('Pomocný list 1'!AC$11-1986))/1000*'Pomocný list 1'!$D$5*'Pomocný list 1'!$D$13,$D$13),0)+IF($E$4="PV",IF($E$11="Pay as produced",INDEX('Pomocný list 3'!$K$4:$K$262971,$V28+8760*('Pomocný list 1'!AC$11-1986))/1000*'Pomocný list 1'!$E$5*'Pomocný list 1'!$E$13,$E$13),0)+IF($F$4="PV",IF($F$11="Pay as produced",INDEX('Pomocný list 3'!$K$4:$K$262971,$V28+8760*('Pomocný list 1'!AC$11-1986))/1000*'Pomocný list 1'!$F$5*'Pomocný list 1'!$F$13,$F$13),0)+IF($G$4="PV",IF($G$11="Pay as produced",INDEX('Pomocný list 3'!$K$4:$K$262971,$V28+8760*('Pomocný list 1'!AC$11-1986))/1000*'Pomocný list 1'!$G$5*'Pomocný list 1'!$G$13,$G$13),0)+IF($C$4="PV",IF($C$11="Pay as produced",INDEX('Pomocný list 3'!$K$4:$K$262971,$V28+8760*('Pomocný list 1'!AC$11-1986))/1000*'Pomocný list 1'!$C$5*'Pomocný list 1'!$C$13,$C$13),0) -> 0 | AD28: =IF($D$4="PV",IF($D$11="Pay as produced",INDEX('Pomocný list 3'!$K$4:$K$262971,$V28+8760*('Pomocný list 1'!AD$11-1986))/1000*'Pomocný list 1'!$D$5*'Pomocný list 1'!$D$13,$D$13),0)+IF($E$4="PV",IF($E$11="Pay as produced",INDEX('Pomocný list 3'!$K$4:$K$262971,$V28+8760*('Pomocný list 1'!AD$11-1986))/1000*'Pomocný list 1'!$E$5*'Pomocný list 1'!$E$13,$E$13),0)+IF($F$4="PV",IF($F$11="Pay as produced",INDEX('Pomocný list 3'!$K$4:$K$262971,$V28+8760*('Pomocný list 1'!AD$11-1986))/1000*'Pomocný list 1'!$F$5*'Pomocný list 1'!$F$13,$F$13),0)+IF($G$4="PV",IF($G$11="Pay as produced",INDEX('Pomocný list 3'!$K$4:$K$262971,$V28+8760*('Pomocný list 1'!AD$11-1986))/1000*'Pomocný list 1'!$G$5*'Pomocný list 1'!$G$13,$G$13),0)+IF($C$4="PV",IF($C$11="Pay as produced",INDEX('Pomocný list 3'!$K$4:$K$262971,$V28+8760*('Pomocný list 1'!AD$11-1986))/1000*'Pomocný list 1'!$C$5*'Pomocný list 1'!$C$13,$C$13),0) -> 0 | AE28: =IF($D$4="PV",IF($D$11="Pay as produced",INDEX('Pomocný list 3'!$K$4:$K$262971,$V28+8760*('Pomocný list 1'!AE$11-1986))/1000*'Pomocný list 1'!$D$5*'Pomocný list 1'!$D$13,$D$13),0)+IF($E$4="PV",IF($E$11="Pay as produced",INDEX('Pomocný list 3'!$K$4:$K$262971,$V28+8760*('Pomocný list 1'!AE$11-1986))/1000*'Pomocný list 1'!$E$5*'Pomocný list 1'!$E$13,$E$13),0)+IF($F$4="PV",IF($F$11="Pay as produced",INDEX('Pomocný list 3'!$K$4:$K$262971,$V28+8760*('Pomocný list 1'!AE$11-1986))/1000*'Pomocný list 1'!$F$5*'Pomocný list 1'!$F$13,$F$13),0)+IF($G$4="PV",IF($G$11="Pay as produced",INDEX('Pomocný list 3'!$K$4:$K$262971,$V28+8760*('Pomocný list 1'!AE$11-1986))/1000*'Pomocný list 1'!$G$5*'Pomocný list 1'!$G$13,$G$13),0)+IF($C$4="PV",IF($C$11="Pay as produced",INDEX('Pomocný list 3'!$K$4:$K$262971,$V28+8760*('Pomocný list 1'!AE$11-1986))/1000*'Pomocný list 1'!$C$5*'Pomocný list 1'!$C$13,$C$13),0) -> 0 | AF28: =IF($D$4="PV",IF($D$11="Pay as produced",INDEX('Pomocný list 3'!$K$4:$K$262971,$V28+8760*('Pomocný list 1'!AF$11-1986))/1000*'Pomocný list 1'!$D$5*'Pomocný list 1'!$D$13,$D$13),0)+IF($E$4="PV",IF($E$11="Pay as produced",INDEX('Pomocný list 3'!$K$4:$K$262971,$V28+8760*('Pomocný list 1'!AF$11-1986))/1000*'Pomocný list 1'!$E$5*'Pomocný list 1'!$E$13,$E$13),0)+IF($F$4="PV",IF($F$11="Pay as produced",INDEX('Pomocný list 3'!$K$4:$K$262971,$V28+8760*('Pomocný list 1'!AF$11-1986))/1000*'Pomocný list 1'!$F$5*'Pomocný list 1'!$F$13,$F$13),0)+IF($G$4="PV",IF($G$11="Pay as produced",INDEX('Pomocný list 3'!$K$4:$K$262971,$V28+8760*('Pomocný list 1'!AF$11-1986))/1000*'Pomocný list 1'!$G$5*'Pomocný list 1'!$G$13,$G$13),0)+IF($C$4="PV",IF($C$11="Pay as produced",INDEX('Pomocný list 3'!$K$4:$K$262971,$V28+8760*('Pomocný list 1'!AF$11-1986))/1000*'Pomocný list 1'!$C$5*'Pomocný list 1'!$C$13,$C$13),0) -> 0.1045662642 | AG28: -1.390710689 | AH28: 0.5163470223 | AI28: -1.830767359 | AJ28: 0.411987973 | AK28: -0.4953651011 | AL28: 16 | AM28: 0.5478110363 | AN28: 16 | AO28: 1.390710689 | AP28: 0 | AQ28: 1.830767359 | AR28: 0 | AS28: 0.4953651011 | AT28: 0 | AU28: 0.5163470223 | AV28: 0 | AW28: 0.411987973 | AX28: 0
N29: 2017-01-01 | O29: 17 | P29: 7 | Q29: 1 | S29: 2.090473668 | V29: 17 | W29: =IF($D$4="Wind",IF($D$11="Pay as produced",INDEX('Pomocný list 3'!$O$4:$O$262971,$V29+8760*('Pomocný list 1'!W$11-1986))/2000*'Pomocný list 1'!$D$5*'Pomocný list 1'!$D$13,$D$13),0)+IF($E$4="Wind",IF($E$11="Pay as produced",INDEX('Pomocný list 3'!$O$4:$O$262971,$V29+8760*('Pomocný list 1'!W$11-1986))/2000*'Pomocný list 1'!$E$5*'Pomocný list 1'!$E$13,$E$13),0)+IF($F$4="Wind",IF($F$11="Pay as produced",INDEX('Pomocný list 3'!$O$4:$O$262971,$V29+8760*('Pomocný list 1'!W$11-1986))/2000*'Pomocný list 1'!$F$5*'Pomocný list 1'!$F$13,$F$13),0)+IF($G$4="Wind",IF($G$11="Pay as produced",INDEX('Pomocný list 3'!$O$4:$O$262971,$V29+8760*('Pomocný list 1'!W$11-1986))/2000*'Pomocný list 1'!$G$5*'Pomocný list 1'!$G$13,$G$13),0)+IF($C$4="Wind",IF($C$11="Pay as produced",INDEX('Pomocný list 3'!$O$4:$O$262971,$V29+8760*('Pomocný list 1'!W$11-1986))/2000*'Pomocný list 1'!$C$5*'Pomocný list 1'!$C$13,$C$13),0) -> 0.4698382356 | X29: =IF($D$4="Wind",IF($D$11="Pay as produced",INDEX('Pomocný list 3'!$O$4:$O$262971,$V29+8760*('Pomocný list 1'!X$11-1986))/2000*'Pomocný list 1'!$D$5*'Pomocný list 1'!$D$13,$D$13),0)+IF($E$4="Wind",IF($E$11="Pay as produced",INDEX('Pomocný list 3'!$O$4:$O$262971,$V29+8760*('Pomocný list 1'!X$11-1986))/2000*'Pomocný list 1'!$E$5*'Pomocný list 1'!$E$13,$E$13),0)+IF($F$4="Wind",IF($F$11="Pay as produced",INDEX('Pomocný list 3'!$O$4:$O$262971,$V29+8760*('Pomocný list 1'!X$11-1986))/2000*'Pomocný list 1'!$F$5*'Pomocný list 1'!$F$13,$F$13),0)+IF($G$4="Wind",IF($G$11="Pay as produced",INDEX('Pomocný list 3'!$O$4:$O$262971,$V29+8760*('Pomocný list 1'!X$11-1986))/2000*'Pomocný list 1'!$G$5*'Pomocný list 1'!$G$13,$G$13),0)+IF($C$4="Wind",IF($C$11="Pay as produced",INDEX('Pomocný list 3'!$O$4:$O$262971,$V29+8760*('Pomocný list 1'!X$11-1986))/2000*'Pomocný list 1'!$C$5*'Pomocný list 1'!$C$13,$C$13),0) -> 2.661934555 | Y29: =IF($D$4="Wind",IF($D$11="Pay as produced",INDEX('Pomocný list 3'!$O$4:$O$262971,$V29+8760*('Pomocný list 1'!Y$11-1986))/2000*'Pomocný list 1'!$D$5*'Pomocný list 1'!$D$13,$D$13),0)+IF($E$4="Wind",IF($E$11="Pay as produced",INDEX('Pomocný list 3'!$O$4:$O$262971,$V29+8760*('Pomocný list 1'!Y$11-1986))/2000*'Pomocný list 1'!$E$5*'Pomocný list 1'!$E$13,$E$13),0)+IF($F$4="Wind",IF($F$11="Pay as produced",INDEX('Pomocný list 3'!$O$4:$O$262971,$V29+8760*('Pomocný list 1'!Y$11-1986))/2000*'Pomocný list 1'!$F$5*'Pomocný list 1'!$F$13,$F$13),0)+IF($G$4="Wind",IF($G$11="Pay as produced",INDEX('Pomocný list 3'!$O$4:$O$262971,$V29+8760*('Pomocný list 1'!Y$11-1986))/2000*'Pomocný list 1'!$G$5*'Pomocný list 1'!$G$13,$G$13),0)+IF($C$4="Wind",IF($C$11="Pay as produced",INDEX('Pomocný list 3'!$O$4:$O$262971,$V29+8760*('Pomocný list 1'!Y$11-1986))/2000*'Pomocný list 1'!$C$5*'Pomocný list 1'!$C$13,$C$13),0) -> 0.3085156115 | Z29: =IF($D$4="Wind",IF($D$11="Pay as produced",INDEX('Pomocný list 3'!$O$4:$O$262971,$V29+8760*('Pomocný list 1'!Z$11-1986))/2000*'Pomocný list 1'!$D$5*'Pomocný list 1'!$D$13,$D$13),0)+IF($E$4="Wind",IF($E$11="Pay as produced",INDEX('Pomocný list 3'!$O$4:$O$262971,$V29+8760*('Pomocný list 1'!Z$11-1986))/2000*'Pomocný list 1'!$E$5*'Pomocný list 1'!$E$13,$E$13),0)+IF($F$4="Wind",IF($F$11="Pay as produced",INDEX('Pomocný list 3'!$O$4:$O$262971,$V29+8760*('Pomocný list 1'!Z$11-1986))/2000*'Pomocný list 1'!$F$5*'Pomocný list 1'!$F$13,$F$13),0)+IF($G$4="Wind",IF($G$11="Pay as produced",INDEX('Pomocný list 3'!$O$4:$O$262971,$V29+8760*('Pomocný list 1'!Z$11-1986))/2000*'Pomocný list 1'!$G$5*'Pomocný list 1'!$G$13,$G$13),0)+IF($C$4="Wind",IF($C$11="Pay as produced",INDEX('Pomocný list 3'!$O$4:$O$262971,$V29+8760*('Pomocný list 1'!Z$11-1986))/2000*'Pomocný list 1'!$C$5*'Pomocný list 1'!$C$13,$C$13),0) -> 2.445057611 | AA29: =IF($D$4="Wind",IF($D$11="Pay as produced",INDEX('Pomocný list 3'!$O$4:$O$262971,$V29+8760*('Pomocný list 1'!AA$11-1986))/2000*'Pomocný list 1'!$D$5*'Pomocný list 1'!$D$13,$D$13),0)+IF($E$4="Wind",IF($E$11="Pay as produced",INDEX('Pomocný list 3'!$O$4:$O$262971,$V29+8760*('Pomocný list 1'!AA$11-1986))/2000*'Pomocný list 1'!$E$5*'Pomocný list 1'!$E$13,$E$13),0)+IF($F$4="Wind",IF($F$11="Pay as produced",INDEX('Pomocný list 3'!$O$4:$O$262971,$V29+8760*('Pomocný list 1'!AA$11-1986))/2000*'Pomocný list 1'!$F$5*'Pomocný list 1'!$F$13,$F$13),0)+IF($G$4="Wind",IF($G$11="Pay as produced",INDEX('Pomocný list 3'!$O$4:$O$262971,$V29+8760*('Pomocný list 1'!AA$11-1986))/2000*'Pomocný list 1'!$G$5*'Pomocný list 1'!$G$13,$G$13),0)+IF($C$4="Wind",IF($C$11="Pay as produced",INDEX('Pomocný list 3'!$O$4:$O$262971,$V29+8760*('Pomocný list 1'!AA$11-1986))/2000*'Pomocný list 1'!$C$5*'Pomocný list 1'!$C$13,$C$13),0) -> 1.564236083 | AB29: =IF($D$4="PV",IF($D$11="Pay as produced",INDEX('Pomocný list 3'!$K$4:$K$262971,$V29+8760*('Pomocný list 1'!AB$11-1986))/1000*'Pomocný list 1'!$D$5*'Pomocný list 1'!$D$13,$D$13),0)+IF($E$4="PV",IF($E$11="Pay as produced",INDEX('Pomocný list 3'!$K$4:$K$262971,$V29+8760*('Pomocný list 1'!AB$11-1986))/1000*'Pomocný list 1'!$E$5*'Pomocný list 1'!$E$13,$E$13),0)+IF($F$4="PV",IF($F$11="Pay as produced",INDEX('Pomocný list 3'!$K$4:$K$262971,$V29+8760*('Pomocný list 1'!AB$11-1986))/1000*'Pomocný list 1'!$F$5*'Pomocný list 1'!$F$13,$F$13),0)+IF($G$4="PV",IF($G$11="Pay as produced",INDEX('Pomocný list 3'!$K$4:$K$262971,$V29+8760*('Pomocný list 1'!AB$11-1986))/1000*'Pomocný list 1'!$G$5*'Pomocný list 1'!$G$13,$G$13),0)+IF($C$4="PV",IF($C$11="Pay as produced",INDEX('Pomocný list 3'!$K$4:$K$262971,$V29+8760*('Pomocný list 1'!AB$11-1986))/1000*'Pomocný list 1'!$C$5*'Pomocný list 1'!$C$13,$C$13),0) -> 0 | AC29: =IF($D$4="PV",IF($D$11="Pay as produced",INDEX('Pomocný list 3'!$K$4:$K$262971,$V29+8760*('Pomocný list 1'!AC$11-1986))/1000*'Pomocný list 1'!$D$5*'Pomocný list 1'!$D$13,$D$13),0)+IF($E$4="PV",IF($E$11="Pay as produced",INDEX('Pomocný list 3'!$K$4:$K$262971,$V29+8760*('Pomocný list 1'!AC$11-1986))/1000*'Pomocný list 1'!$E$5*'Pomocný list 1'!$E$13,$E$13),0)+IF($F$4="PV",IF($F$11="Pay as produced",INDEX('Pomocný list 3'!$K$4:$K$262971,$V29+8760*('Pomocný list 1'!AC$11-1986))/1000*'Pomocný list 1'!$F$5*'Pomocný list 1'!$F$13,$F$13),0)+IF($G$4="PV",IF($G$11="Pay as produced",INDEX('Pomocný list 3'!$K$4:$K$262971,$V29+8760*('Pomocný list 1'!AC$11-1986))/1000*'Pomocný list 1'!$G$5*'Pomocný list 1'!$G$13,$G$13),0)+IF($C$4="PV",IF($C$11="Pay as produced",INDEX('Pomocný list 3'!$K$4:$K$262971,$V29+8760*('Pomocný list 1'!AC$11-1986))/1000*'Pomocný list 1'!$C$5*'Pomocný list 1'!$C$13,$C$13),0) -> 0 | AD29: =IF($D$4="PV",IF($D$11="Pay as produced",INDEX('Pomocný list 3'!$K$4:$K$262971,$V29+8760*('Pomocný list 1'!AD$11-1986))/1000*'Pomocný list 1'!$D$5*'Pomocný list 1'!$D$13,$D$13),0)+IF($E$4="PV",IF($E$11="Pay as produced",INDEX('Pomocný list 3'!$K$4:$K$262971,$V29+8760*('Pomocný list 1'!AD$11-1986))/1000*'Pomocný list 1'!$E$5*'Pomocný list 1'!$E$13,$E$13),0)+IF($F$4="PV",IF($F$11="Pay as produced",INDEX('Pomocný list 3'!$K$4:$K$262971,$V29+8760*('Pomocný list 1'!AD$11-1986))/1000*'Pomocný list 1'!$F$5*'Pomocný list 1'!$F$13,$F$13),0)+IF($G$4="PV",IF($G$11="Pay as produced",INDEX('Pomocný list 3'!$K$4:$K$262971,$V29+8760*('Pomocný list 1'!AD$11-1986))/1000*'Pomocný list 1'!$G$5*'Pomocný list 1'!$G$13,$G$13),0)+IF($C$4="PV",IF($C$11="Pay as produced",INDEX('Pomocný list 3'!$K$4:$K$262971,$V29+8760*('Pomocný list 1'!AD$11-1986))/1000*'Pomocný list 1'!$C$5*'Pomocný list 1'!$C$13,$C$13),0) -> 0 | AE29: =IF($D$4="PV",IF($D$11="Pay as produced",INDEX('Pomocný list 3'!$K$4:$K$262971,$V29+8760*('Pomocný list 1'!AE$11-1986))/1000*'Pomocný list 1'!$D$5*'Pomocný list 1'!$D$13,$D$13),0)+IF($E$4="PV",IF($E$11="Pay as produced",INDEX('Pomocný list 3'!$K$4:$K$262971,$V29+8760*('Pomocný list 1'!AE$11-1986))/1000*'Pomocný list 1'!$E$5*'Pomocný list 1'!$E$13,$E$13),0)+IF($F$4="PV",IF($F$11="Pay as produced",INDEX('Pomocný list 3'!$K$4:$K$262971,$V29+8760*('Pomocný list 1'!AE$11-1986))/1000*'Pomocný list 1'!$F$5*'Pomocný list 1'!$F$13,$F$13),0)+IF($G$4="PV",IF($G$11="Pay as produced",INDEX('Pomocný list 3'!$K$4:$K$262971,$V29+8760*('Pomocný list 1'!AE$11-1986))/1000*'Pomocný list 1'!$G$5*'Pomocný list 1'!$G$13,$G$13),0)+IF($C$4="PV",IF($C$11="Pay as produced",INDEX('Pomocný list 3'!$K$4:$K$262971,$V29+8760*('Pomocný list 1'!AE$11-1986))/1000*'Pomocný list 1'!$C$5*'Pomocný list 1'!$C$13,$C$13),0) -> 0 | AF29: =IF($D$4="PV",IF($D$11="Pay as produced",INDEX('Pomocný list 3'!$K$4:$K$262971,$V29+8760*('Pomocný list 1'!AF$11-1986))/1000*'Pomocný list 1'!$D$5*'Pomocný list 1'!$D$13,$D$13),0)+IF($E$4="PV",IF($E$11="Pay as produced",INDEX('Pomocný list 3'!$K$4:$K$262971,$V29+8760*('Pomocný list 1'!AF$11-1986))/1000*'Pomocný list 1'!$E$5*'Pomocný list 1'!$E$13,$E$13),0)+IF($F$4="PV",IF($F$11="Pay as produced",INDEX('Pomocný list 3'!$K$4:$K$262971,$V29+8760*('Pomocný list 1'!AF$11-1986))/1000*'Pomocný list 1'!$F$5*'Pomocný list 1'!$F$13,$F$13),0)+IF($G$4="PV",IF($G$11="Pay as produced",INDEX('Pomocný list 3'!$K$4:$K$262971,$V29+8760*('Pomocný list 1'!AF$11-1986))/1000*'Pomocný list 1'!$G$5*'Pomocný list 1'!$G$13,$G$13),0)+IF($C$4="PV",IF($C$11="Pay as produced",INDEX('Pomocný list 3'!$K$4:$K$262971,$V29+8760*('Pomocný list 1'!AF$11-1986))/1000*'Pomocný list 1'!$C$5*'Pomocný list 1'!$C$13,$C$13),0) -> 0 | AG29: -1.620635432 | AH29: 0.5714608873 | AI29: -1.781958056 | AJ29: 0.3545839435 | AK29: -0.5262375842 | AL29: 17 | AM29: 0.7750069479 | AN29: 17 | AO29: 1.620635432 | AP29: 0 | AQ29: 1.781958056 | AR29: 0 | AS29: 0.5262375842 | AT29: 0 | AU29: 0.5714608873 | AV29: 0 | AW29: 0.3545839435 | AX29: 0
N30: 2017-01-01 | O30: 18 | P30: 7 | Q30: 1 | S30: 2.08167424 | V30: 18 | W30: =IF($D$4="Wind",IF($D$11="Pay as produced",INDEX('Pomocný list 3'!$O$4:$O$262971,$V30+8760*('Pomocný list 1'!W$11-1986))/2000*'Pomocný list 1'!$D$5*'Pomocný list 1'!$D$13,$D$13),0)+IF($E$4="Wind",IF($E$11="Pay as produced",INDEX('Pomocný list 3'!$O$4:$O$262971,$V30+8760*('Pomocný list 1'!W$11-1986))/2000*'Pomocný list 1'!$E$5*'Pomocný list 1'!$E$13,$E$13),0)+IF($F$4="Wind",IF($F$11="Pay as produced",INDEX('Pomocný list 3'!$O$4:$O$262971,$V30+8760*('Pomocný list 1'!W$11-1986))/2000*'Pomocný list 1'!$F$5*'Pomocný list 1'!$F$13,$F$13),0)+IF($G$4="Wind",IF($G$11="Pay as produced",INDEX('Pomocný list 3'!$O$4:$O$262971,$V30+8760*('Pomocný list 1'!W$11-1986))/2000*'Pomocný list 1'!$G$5*'Pomocný list 1'!$G$13,$G$13),0)+IF($C$4="Wind",IF($C$11="Pay as produced",INDEX('Pomocný list 3'!$O$4:$O$262971,$V30+8760*('Pomocný list 1'!W$11-1986))/2000*'Pomocný list 1'!$C$5*'Pomocný list 1'!$C$13,$C$13),0) -> 0.3380728831 | X30: =IF($D$4="Wind",IF($D$11="Pay as produced",INDEX('Pomocný list 3'!$O$4:$O$262971,$V30+8760*('Pomocný list 1'!X$11-1986))/2000*'Pomocný list 1'!$D$5*'Pomocný list 1'!$D$13,$D$13),0)+IF($E$4="Wind",IF($E$11="Pay as produced",INDEX('Pomocný list 3'!$O$4:$O$262971,$V30+8760*('Pomocný list 1'!X$11-1986))/2000*'Pomocný list 1'!$E$5*'Pomocný list 1'!$E$13,$E$13),0)+IF($F$4="Wind",IF($F$11="Pay as produced",INDEX('Pomocný list 3'!$O$4:$O$262971,$V30+8760*('Pomocný list 1'!X$11-1986))/2000*'Pomocný list 1'!$F$5*'Pomocný list 1'!$F$13,$F$13),0)+IF($G$4="Wind",IF($G$11="Pay as produced",INDEX('Pomocný list 3'!$O$4:$O$262971,$V30+8760*('Pomocný list 1'!X$11-1986))/2000*'Pomocný list 1'!$G$5*'Pomocný list 1'!$G$13,$G$13),0)+IF($C$4="Wind",IF($C$11="Pay as produced",INDEX('Pomocný list 3'!$O$4:$O$262971,$V30+8760*('Pomocný list 1'!X$11-1986))/2000*'Pomocný list 1'!$C$5*'Pomocný list 1'!$C$13,$C$13),0) -> 2.754203679 | Y30: =IF($D$4="Wind",IF($D$11="Pay as produced",INDEX('Pomocný list 3'!$O$4:$O$262971,$V30+8760*('Pomocný list 1'!Y$11-1986))/2000*'Pomocný list 1'!$D$5*'Pomocný list 1'!$D$13,$D$13),0)+IF($E$4="Wind",IF($E$11="Pay as produced",INDEX('Pomocný list 3'!$O$4:$O$262971,$V30+8760*('Pomocný list 1'!Y$11-1986))/2000*'Pomocný list 1'!$E$5*'Pomocný list 1'!$E$13,$E$13),0)+IF($F$4="Wind",IF($F$11="Pay as produced",INDEX('Pomocný list 3'!$O$4:$O$262971,$V30+8760*('Pomocný list 1'!Y$11-1986))/2000*'Pomocný list 1'!$F$5*'Pomocný list 1'!$F$13,$F$13),0)+IF($G$4="Wind",IF($G$11="Pay as produced",INDEX('Pomocný list 3'!$O$4:$O$262971,$V30+8760*('Pomocný list 1'!Y$11-1986))/2000*'Pomocný list 1'!$G$5*'Pomocný list 1'!$G$13,$G$13),0)+IF($C$4="Wind",IF($C$11="Pay as produced",INDEX('Pomocný list 3'!$O$4:$O$262971,$V30+8760*('Pomocný list 1'!Y$11-1986))/2000*'Pomocný list 1'!$C$5*'Pomocný list 1'!$C$13,$C$13),0) -> 0.4222573329 | Z30: =IF($D$4="Wind",IF($D$11="Pay as produced",INDEX('Pomocný list 3'!$O$4:$O$262971,$V30+8760*('Pomocný list 1'!Z$11-1986))/2000*'Pomocný list 1'!$D$5*'Pomocný list 1'!$D$13,$D$13),0)+IF($E$4="Wind",IF($E$11="Pay as produced",INDEX('Pomocný list 3'!$O$4:$O$262971,$V30+8760*('Pomocný list 1'!Z$11-1986))/2000*'Pomocný list 1'!$E$5*'Pomocný list 1'!$E$13,$E$13),0)+IF($F$4="Wind",IF($F$11="Pay as produced",INDEX('Pomocný list 3'!$O$4:$O$262971,$V30+8760*('Pomocný list 1'!Z$11-1986))/2000*'Pomocný list 1'!$F$5*'Pomocný list 1'!$F$13,$F$13),0)+IF($G$4="Wind",IF($G$11="Pay as produced",INDEX('Pomocný list 3'!$O$4:$O$262971,$V30+8760*('Pomocný list 1'!Z$11-1986))/2000*'Pomocný list 1'!$G$5*'Pomocný list 1'!$G$13,$G$13),0)+IF($C$4="Wind",IF($C$11="Pay as produced",INDEX('Pomocný list 3'!$O$4:$O$262971,$V30+8760*('Pomocný list 1'!Z$11-1986))/2000*'Pomocný list 1'!$C$5*'Pomocný list 1'!$C$13,$C$13),0) -> 2.430260432 | AA30: =IF($D$4="Wind",IF($D$11="Pay as produced",INDEX('Pomocný list 3'!$O$4:$O$262971,$V30+8760*('Pomocný list 1'!AA$11-1986))/2000*'Pomocný list 1'!$D$5*'Pomocný list 1'!$D$13,$D$13),0)+IF($E$4="Wind",IF($E$11="Pay as produced",INDEX('Pomocný list 3'!$O$4:$O$262971,$V30+8760*('Pomocný list 1'!AA$11-1986))/2000*'Pomocný list 1'!$E$5*'Pomocný list 1'!$E$13,$E$13),0)+IF($F$4="Wind",IF($F$11="Pay as produced",INDEX('Pomocný list 3'!$O$4:$O$262971,$V30+8760*('Pomocný list 1'!AA$11-1986))/2000*'Pomocný list 1'!$F$5*'Pomocný list 1'!$F$13,$F$13),0)+IF($G$4="Wind",IF($G$11="Pay as produced",INDEX('Pomocný list 3'!$O$4:$O$262971,$V30+8760*('Pomocný list 1'!AA$11-1986))/2000*'Pomocný list 1'!$G$5*'Pomocný list 1'!$G$13,$G$13),0)+IF($C$4="Wind",IF($C$11="Pay as produced",INDEX('Pomocný list 3'!$O$4:$O$262971,$V30+8760*('Pomocný list 1'!AA$11-1986))/2000*'Pomocný list 1'!$C$5*'Pomocný list 1'!$C$13,$C$13),0) -> 1.702194741 | AB30: =IF($D$4="PV",IF($D$11="Pay as produced",INDEX('Pomocný list 3'!$K$4:$K$262971,$V30+8760*('Pomocný list 1'!AB$11-1986))/1000*'Pomocný list 1'!$D$5*'Pomocný list 1'!$D$13,$D$13),0)+IF($E$4="PV",IF($E$11="Pay as produced",INDEX('Pomocný list 3'!$K$4:$K$262971,$V30+8760*('Pomocný list 1'!AB$11-1986))/1000*'Pomocný list 1'!$E$5*'Pomocný list 1'!$E$13,$E$13),0)+IF($F$4="PV",IF($F$11="Pay as produced",INDEX('Pomocný list 3'!$K$4:$K$262971,$V30+8760*('Pomocný list 1'!AB$11-1986))/1000*'Pomocný list 1'!$F$5*'Pomocný list 1'!$F$13,$F$13),0)+IF($G$4="PV",IF($G$11="Pay as produced",INDEX('Pomocný list 3'!$K$4:$K$262971,$V30+8760*('Pomocný list 1'!AB$11-1986))/1000*'Pomocný list 1'!$G$5*'Pomocný list 1'!$G$13,$G$13),0)+IF($C$4="PV",IF($C$11="Pay as produced",INDEX('Pomocný list 3'!$K$4:$K$262971,$V30+8760*('Pomocný list 1'!AB$11-1986))/1000*'Pomocný list 1'!$C$5*'Pomocný list 1'!$C$13,$C$13),0) -> 0 | AC30: =IF($D$4="PV",IF($D$11="Pay as produced",INDEX('Pomocný list 3'!$K$4:$K$262971,$V30+8760*('Pomocný list 1'!AC$11-1986))/1000*'Pomocný list 1'!$D$5*'Pomocný list 1'!$D$13,$D$13),0)+IF($E$4="PV",IF($E$11="Pay as produced",INDEX('Pomocný list 3'!$K$4:$K$262971,$V30+8760*('Pomocný list 1'!AC$11-1986))/1000*'Pomocný list 1'!$E$5*'Pomocný list 1'!$E$13,$E$13),0)+IF($F$4="PV",IF($F$11="Pay as produced",INDEX('Pomocný list 3'!$K$4:$K$262971,$V30+8760*('Pomocný list 1'!AC$11-1986))/1000*'Pomocný list 1'!$F$5*'Pomocný list 1'!$F$13,$F$13),0)+IF($G$4="PV",IF($G$11="Pay as produced",INDEX('Pomocný list 3'!$K$4:$K$262971,$V30+8760*('Pomocný list 1'!AC$11-1986))/1000*'Pomocný list 1'!$G$5*'Pomocný list 1'!$G$13,$G$13),0)+IF($C$4="PV",IF($C$11="Pay as produced",INDEX('Pomocný list 3'!$K$4:$K$262971,$V30+8760*('Pomocný list 1'!AC$11-1986))/1000*'Pomocný list 1'!$C$5*'Pomocný list 1'!$C$13,$C$13),0) -> 0 | AD30: =IF($D$4="PV",IF($D$11="Pay as produced",INDEX('Pomocný list 3'!$K$4:$K$262971,$V30+8760*('Pomocný list 1'!AD$11-1986))/1000*'Pomocný list 1'!$D$5*'Pomocný list 1'!$D$13,$D$13),0)+IF($E$4="PV",IF($E$11="Pay as produced",INDEX('Pomocný list 3'!$K$4:$K$262971,$V30+8760*('Pomocný list 1'!AD$11-1986))/1000*'Pomocný list 1'!$E$5*'Pomocný list 1'!$E$13,$E$13),0)+IF($F$4="PV",IF($F$11="Pay as produced",INDEX('Pomocný list 3'!$K$4:$K$262971,$V30+8760*('Pomocný list 1'!AD$11-1986))/1000*'Pomocný list 1'!$F$5*'Pomocný list 1'!$F$13,$F$13),0)+IF($G$4="PV",IF($G$11="Pay as produced",INDEX('Pomocný list 3'!$K$4:$K$262971,$V30+8760*('Pomocný list 1'!AD$11-1986))/1000*'Pomocný list 1'!$G$5*'Pomocný list 1'!$G$13,$G$13),0)+IF($C$4="PV",IF($C$11="Pay as produced",INDEX('Pomocný list 3'!$K$4:$K$262971,$V30+8760*('Pomocný list 1'!AD$11-1986))/1000*'Pomocný list 1'!$C$5*'Pomocný list 1'!$C$13,$C$13),0) -> 0 | AE30: =IF($D$4="PV",IF($D$11="Pay as produced",INDEX('Pomocný list 3'!$K$4:$K$262971,$V30+8760*('Pomocný list 1'!AE$11-1986))/1000*'Pomocný list 1'!$D$5*'Pomocný list 1'!$D$13,$D$13),0)+IF($E$4="PV",IF($E$11="Pay as produced",INDEX('Pomocný list 3'!$K$4:$K$262971,$V30+8760*('Pomocný list 1'!AE$11-1986))/1000*'Pomocný list 1'!$E$5*'Pomocný list 1'!$E$13,$E$13),0)+IF($F$4="PV",IF($F$11="Pay as produced",INDEX('Pomocný list 3'!$K$4:$K$262971,$V30+8760*('Pomocný list 1'!AE$11-1986))/1000*'Pomocný list 1'!$F$5*'Pomocný list 1'!$F$13,$F$13),0)+IF($G$4="PV",IF($G$11="Pay as produced",INDEX('Pomocný list 3'!$K$4:$K$262971,$V30+8760*('Pomocný list 1'!AE$11-1986))/1000*'Pomocný list 1'!$G$5*'Pomocný list 1'!$G$13,$G$13),0)+IF($C$4="PV",IF($C$11="Pay as produced",INDEX('Pomocný list 3'!$K$4:$K$262971,$V30+8760*('Pomocný list 1'!AE$11-1986))/1000*'Pomocný list 1'!$C$5*'Pomocný list 1'!$C$13,$C$13),0) -> 0 | AF30: =IF($D$4="PV",IF($D$11="Pay as produced",INDEX('Pomocný list 3'!$K$4:$K$262971,$V30+8760*('Pomocný list 1'!AF$11-1986))/1000*'Pomocný list 1'!$D$5*'Pomocný list 1'!$D$13,$D$13),0)+IF($E$4="PV",IF($E$11="Pay as produced",INDEX('Pomocný list 3'!$K$4:$K$262971,$V30+8760*('Pomocný list 1'!AF$11-1986))/1000*'Pomocný list 1'!$E$5*'Pomocný list 1'!$E$13,$E$13),0)+IF($F$4="PV",IF($F$11="Pay as produced",INDEX('Pomocný list 3'!$K$4:$K$262971,$V30+8760*('Pomocný list 1'!AF$11-1986))/1000*'Pomocný list 1'!$F$5*'Pomocný list 1'!$F$13,$F$13),0)+IF($G$4="PV",IF($G$11="Pay as produced",INDEX('Pomocný list 3'!$K$4:$K$262971,$V30+8760*('Pomocný list 1'!AF$11-1986))/1000*'Pomocný list 1'!$G$5*'Pomocný list 1'!$G$13,$G$13),0)+IF($C$4="PV",IF($C$11="Pay as produced",INDEX('Pomocný list 3'!$K$4:$K$262971,$V30+8760*('Pomocný list 1'!AF$11-1986))/1000*'Pomocný list 1'!$C$5*'Pomocný list 1'!$C$13,$C$13),0) -> 0 | AG30: -1.743601357 | AH30: 0.6725294384 | AI30: -1.659416907 | AJ30: 0.3485861921 | AK30: -0.3794794991 | AL30: 18 | AM30: 0.8731985368 | AN30: 18 | AO30: 1.743601357 | AP30: 0 | AQ30: 1.659416907 | AR30: 0 | AS30: 0.3794794991 | AT30: 0 | AU30: 0.6725294384 | AV30: 0 | AW30: 0.3485861921 | AX30: 0 | BH30: 2025 | BO30: 2030 | BV30: 2035 | CC30: 2040
N31: 2017-01-01 | O31: 19 | P31: 7 | Q31: 1 | S31: 2.033788219 | V31: 19 | W31: =IF($D$4="Wind",IF($D$11="Pay as produced",INDEX('Pomocný list 3'!$O$4:$O$262971,$V31+8760*('Pomocný list 1'!W$11-1986))/2000*'Pomocný list 1'!$D$5*'Pomocný list 1'!$D$13,$D$13),0)+IF($E$4="Wind",IF($E$11="Pay as produced",INDEX('Pomocný list 3'!$O$4:$O$262971,$V31+8760*('Pomocný list 1'!W$11-1986))/2000*'Pomocný list 1'!$E$5*'Pomocný list 1'!$E$13,$E$13),0)+IF($F$4="Wind",IF($F$11="Pay as produced",INDEX('Pomocný list 3'!$O$4:$O$262971,$V31+8760*('Pomocný list 1'!W$11-1986))/2000*'Pomocný list 1'!$F$5*'Pomocný list 1'!$F$13,$F$13),0)+IF($G$4="Wind",IF($G$11="Pay as produced",INDEX('Pomocný list 3'!$O$4:$O$262971,$V31+8760*('Pomocný list 1'!W$11-1986))/2000*'Pomocný list 1'!$G$5*'Pomocný list 1'!$G$13,$G$13),0)+IF($C$4="Wind",IF($C$11="Pay as produced",INDEX('Pomocný list 3'!$O$4:$O$262971,$V31+8760*('Pomocný list 1'!W$11-1986))/2000*'Pomocný list 1'!$C$5*'Pomocný list 1'!$C$13,$C$13),0) -> 0.2119074653 | X31: =IF($D$4="Wind",IF($D$11="Pay as produced",INDEX('Pomocný list 3'!$O$4:$O$262971,$V31+8760*('Pomocný list 1'!X$11-1986))/2000*'Pomocný list 1'!$D$5*'Pomocný list 1'!$D$13,$D$13),0)+IF($E$4="Wind",IF($E$11="Pay as produced",INDEX('Pomocný list 3'!$O$4:$O$262971,$V31+8760*('Pomocný list 1'!X$11-1986))/2000*'Pomocný list 1'!$E$5*'Pomocný list 1'!$E$13,$E$13),0)+IF($F$4="Wind",IF($F$11="Pay as produced",INDEX('Pomocný list 3'!$O$4:$O$262971,$V31+8760*('Pomocný list 1'!X$11-1986))/2000*'Pomocný list 1'!$F$5*'Pomocný list 1'!$F$13,$F$13),0)+IF($G$4="Wind",IF($G$11="Pay as produced",INDEX('Pomocný list 3'!$O$4:$O$262971,$V31+8760*('Pomocný list 1'!X$11-1986))/2000*'Pomocný list 1'!$G$5*'Pomocný list 1'!$G$13,$G$13),0)+IF($C$4="Wind",IF($C$11="Pay as produced",INDEX('Pomocný list 3'!$O$4:$O$262971,$V31+8760*('Pomocný list 1'!X$11-1986))/2000*'Pomocný list 1'!$C$5*'Pomocný list 1'!$C$13,$C$13),0) -> 2.917677271 | Y31: =IF($D$4="Wind",IF($D$11="Pay as produced",INDEX('Pomocný list 3'!$O$4:$O$262971,$V31+8760*('Pomocný list 1'!Y$11-1986))/2000*'Pomocný list 1'!$D$5*'Pomocný list 1'!$D$13,$D$13),0)+IF($E$4="Wind",IF($E$11="Pay as produced",INDEX('Pomocný list 3'!$O$4:$O$262971,$V31+8760*('Pomocný list 1'!Y$11-1986))/2000*'Pomocný list 1'!$E$5*'Pomocný list 1'!$E$13,$E$13),0)+IF($F$4="Wind",IF($F$11="Pay as produced",INDEX('Pomocný list 3'!$O$4:$O$262971,$V31+8760*('Pomocný list 1'!Y$11-1986))/2000*'Pomocný list 1'!$F$5*'Pomocný list 1'!$F$13,$F$13),0)+IF($G$4="Wind",IF($G$11="Pay as produced",INDEX('Pomocný list 3'!$O$4:$O$262971,$V31+8760*('Pomocný list 1'!Y$11-1986))/2000*'Pomocný list 1'!$G$5*'Pomocný list 1'!$G$13,$G$13),0)+IF($C$4="Wind",IF($C$11="Pay as produced",INDEX('Pomocný list 3'!$O$4:$O$262971,$V31+8760*('Pomocný list 1'!Y$11-1986))/2000*'Pomocný list 1'!$C$5*'Pomocný list 1'!$C$13,$C$13),0) -> 0.5756807113 | Z31: =IF($D$4="Wind",IF($D$11="Pay as produced",INDEX('Pomocný list 3'!$O$4:$O$262971,$V31+8760*('Pomocný list 1'!Z$11-1986))/2000*'Pomocný list 1'!$D$5*'Pomocný list 1'!$D$13,$D$13),0)+IF($E$4="Wind",IF($E$11="Pay as produced",INDEX('Pomocný list 3'!$O$4:$O$262971,$V31+8760*('Pomocný list 1'!Z$11-1986))/2000*'Pomocný list 1'!$E$5*'Pomocný list 1'!$E$13,$E$13),0)+IF($F$4="Wind",IF($F$11="Pay as produced",INDEX('Pomocný list 3'!$O$4:$O$262971,$V31+8760*('Pomocný list 1'!Z$11-1986))/2000*'Pomocný list 1'!$F$5*'Pomocný list 1'!$F$13,$F$13),0)+IF($G$4="Wind",IF($G$11="Pay as produced",INDEX('Pomocný list 3'!$O$4:$O$262971,$V31+8760*('Pomocný list 1'!Z$11-1986))/2000*'Pomocný list 1'!$G$5*'Pomocný list 1'!$G$13,$G$13),0)+IF($C$4="Wind",IF($C$11="Pay as produced",INDEX('Pomocný list 3'!$O$4:$O$262971,$V31+8760*('Pomocný list 1'!Z$11-1986))/2000*'Pomocný list 1'!$C$5*'Pomocný list 1'!$C$13,$C$13),0) -> 2.408379893 | AA31: =IF($D$4="Wind",IF($D$11="Pay as produced",INDEX('Pomocný list 3'!$O$4:$O$262971,$V31+8760*('Pomocný list 1'!AA$11-1986))/2000*'Pomocný list 1'!$D$5*'Pomocný list 1'!$D$13,$D$13),0)+IF($E$4="Wind",IF($E$11="Pay as produced",INDEX('Pomocný list 3'!$O$4:$O$262971,$V31+8760*('Pomocný list 1'!AA$11-1986))/2000*'Pomocný list 1'!$E$5*'Pomocný list 1'!$E$13,$E$13),0)+IF($F$4="Wind",IF($F$11="Pay as produced",INDEX('Pomocný list 3'!$O$4:$O$262971,$V31+8760*('Pomocný list 1'!AA$11-1986))/2000*'Pomocný list 1'!$F$5*'Pomocný list 1'!$F$13,$F$13),0)+IF($G$4="Wind",IF($G$11="Pay as produced",INDEX('Pomocný list 3'!$O$4:$O$262971,$V31+8760*('Pomocný list 1'!AA$11-1986))/2000*'Pomocný list 1'!$G$5*'Pomocný list 1'!$G$13,$G$13),0)+IF($C$4="Wind",IF($C$11="Pay as produced",INDEX('Pomocný list 3'!$O$4:$O$262971,$V31+8760*('Pomocný list 1'!AA$11-1986))/2000*'Pomocný list 1'!$C$5*'Pomocný list 1'!$C$13,$C$13),0) -> 1.893853436 | AB31: =IF($D$4="PV",IF($D$11="Pay as produced",INDEX('Pomocný list 3'!$K$4:$K$262971,$V31+8760*('Pomocný list 1'!AB$11-1986))/1000*'Pomocný list 1'!$D$5*'Pomocný list 1'!$D$13,$D$13),0)+IF($E$4="PV",IF($E$11="Pay as produced",INDEX('Pomocný list 3'!$K$4:$K$262971,$V31+8760*('Pomocný list 1'!AB$11-1986))/1000*'Pomocný list 1'!$E$5*'Pomocný list 1'!$E$13,$E$13),0)+IF($F$4="PV",IF($F$11="Pay as produced",INDEX('Pomocný list 3'!$K$4:$K$262971,$V31+8760*('Pomocný list 1'!AB$11-1986))/1000*'Pomocný list 1'!$F$5*'Pomocný list 1'!$F$13,$F$13),0)+IF($G$4="PV",IF($G$11="Pay as produced",INDEX('Pomocný list 3'!$K$4:$K$262971,$V31+8760*('Pomocný list 1'!AB$11-1986))/1000*'Pomocný list 1'!$G$5*'Pomocný list 1'!$G$13,$G$13),0)+IF($C$4="PV",IF($C$11="Pay as produced",INDEX('Pomocný list 3'!$K$4:$K$262971,$V31+8760*('Pomocný list 1'!AB$11-1986))/1000*'Pomocný list 1'!$C$5*'Pomocný list 1'!$C$13,$C$13),0) -> 0 | AC31: =IF($D$4="PV",IF($D$11="Pay as produced",INDEX('Pomocný list 3'!$K$4:$K$262971,$V31+8760*('Pomocný list 1'!AC$11-1986))/1000*'Pomocný list 1'!$D$5*'Pomocný list 1'!$D$13,$D$13),0)+IF($E$4="PV",IF($E$11="Pay as produced",INDEX('Pomocný list 3'!$K$4:$K$262971,$V31+8760*('Pomocný list 1'!AC$11-1986))/1000*'Pomocný list 1'!$E$5*'Pomocný list 1'!$E$13,$E$13),0)+IF($F$4="PV",IF($F$11="Pay as produced",INDEX('Pomocný list 3'!$K$4:$K$262971,$V31+8760*('Pomocný list 1'!AC$11-1986))/1000*'Pomocný list 1'!$F$5*'Pomocný list 1'!$F$13,$F$13),0)+IF($G$4="PV",IF($G$11="Pay as produced",INDEX('Pomocný list 3'!$K$4:$K$262971,$V31+8760*('Pomocný list 1'!AC$11-1986))/1000*'Pomocný list 1'!$G$5*'Pomocný list 1'!$G$13,$G$13),0)+IF($C$4="PV",IF($C$11="Pay as produced",INDEX('Pomocný list 3'!$K$4:$K$262971,$V31+8760*('Pomocný list 1'!AC$11-1986))/1000*'Pomocný list 1'!$C$5*'Pomocný list 1'!$C$13,$C$13),0) -> 0 | AD31: =IF($D$4="PV",IF($D$11="Pay as produced",INDEX('Pomocný list 3'!$K$4:$K$262971,$V31+8760*('Pomocný list 1'!AD$11-1986))/1000*'Pomocný list 1'!$D$5*'Pomocný list 1'!$D$13,$D$13),0)+IF($E$4="PV",IF($E$11="Pay as produced",INDEX('Pomocný list 3'!$K$4:$K$262971,$V31+8760*('Pomocný list 1'!AD$11-1986))/1000*'Pomocný list 1'!$E$5*'Pomocný list 1'!$E$13,$E$13),0)+IF($F$4="PV",IF($F$11="Pay as produced",INDEX('Pomocný list 3'!$K$4:$K$262971,$V31+8760*('Pomocný list 1'!AD$11-1986))/1000*'Pomocný list 1'!$F$5*'Pomocný list 1'!$F$13,$F$13),0)+IF($G$4="PV",IF($G$11="Pay as produced",INDEX('Pomocný list 3'!$K$4:$K$262971,$V31+8760*('Pomocný list 1'!AD$11-1986))/1000*'Pomocný list 1'!$G$5*'Pomocný list 1'!$G$13,$G$13),0)+IF($C$4="PV",IF($C$11="Pay as produced",INDEX('Pomocný list 3'!$K$4:$K$262971,$V31+8760*('Pomocný list 1'!AD$11-1986))/1000*'Pomocný list 1'!$C$5*'Pomocný list 1'!$C$13,$C$13),0) -> 0 | AE31: =IF($D$4="PV",IF($D$11="Pay as produced",INDEX('Pomocný list 3'!$K$4:$K$262971,$V31+8760*('Pomocný list 1'!AE$11-1986))/1000*'Pomocný list 1'!$D$5*'Pomocný list 1'!$D$13,$D$13),0)+IF($E$4="PV",IF($E$11="Pay as produced",INDEX('Pomocný list 3'!$K$4:$K$262971,$V31+8760*('Pomocný list 1'!AE$11-1986))/1000*'Pomocný list 1'!$E$5*'Pomocný list 1'!$E$13,$E$13),0)+IF($F$4="PV",IF($F$11="Pay as produced",INDEX('Pomocný list 3'!$K$4:$K$262971,$V31+8760*('Pomocný list 1'!AE$11-1986))/1000*'Pomocný list 1'!$F$5*'Pomocný list 1'!$F$13,$F$13),0)+IF($G$4="PV",IF($G$11="Pay as produced",INDEX('Pomocný list 3'!$K$4:$K$262971,$V31+8760*('Pomocný list 1'!AE$11-1986))/1000*'Pomocný list 1'!$G$5*'Pomocný list 1'!$G$13,$G$13),0)+IF($C$4="PV",IF($C$11="Pay as produced",INDEX('Pomocný list 3'!$K$4:$K$262971,$V31+8760*('Pomocný list 1'!AE$11-1986))/1000*'Pomocný list 1'!$C$5*'Pomocný list 1'!$C$13,$C$13),0) -> 0 | AF31: =IF($D$4="PV",IF($D$11="Pay as produced",INDEX('Pomocný list 3'!$K$4:$K$262971,$V31+8760*('Pomocný list 1'!AF$11-1986))/1000*'Pomocný list 1'!$D$5*'Pomocný list 1'!$D$13,$D$13),0)+IF($E$4="PV",IF($E$11="Pay as produced",INDEX('Pomocný list 3'!$K$4:$K$262971,$V31+8760*('Pomocný list 1'!AF$11-1986))/1000*'Pomocný list 1'!$E$5*'Pomocný list 1'!$E$13,$E$13),0)+IF($F$4="PV",IF($F$11="Pay as produced",INDEX('Pomocný list 3'!$K$4:$K$262971,$V31+8760*('Pomocný list 1'!AF$11-1986))/1000*'Pomocný list 1'!$F$5*'Pomocný list 1'!$F$13,$F$13),0)+IF($G$4="PV",IF($G$11="Pay as produced",INDEX('Pomocný list 3'!$K$4:$K$262971,$V31+8760*('Pomocný list 1'!AF$11-1986))/1000*'Pomocný list 1'!$G$5*'Pomocný list 1'!$G$13,$G$13),0)+IF($C$4="PV",IF($C$11="Pay as produced",INDEX('Pomocný list 3'!$K$4:$K$262971,$V31+8760*('Pomocný list 1'!AF$11-1986))/1000*'Pomocný list 1'!$C$5*'Pomocný list 1'!$C$13,$C$13),0) -> 0 | AG31: -1.821880753 | AH31: 0.8838890525 | AI31: -1.458107507 | AJ31: 0.3745916739 | AK31: -0.1399347829 | AL31: 19 | AM31: 0.9355133839 | AN31: 19 | AO31: 1.821880753 | AP31: 0 | AQ31: 1.458107507 | AR31: 0 | AS31: 0.1399347829 | AT31: 0 | AU31: 0.8838890525 | AV31: 0 | AW31: 0.3745916739 | AX31: 0 | BH31: Spotové ceny | BO31: Spotové ceny | BV31: Spotové ceny | CC31: Spotové ceny
N32: 2017-01-01 | O32: 20 | P32: 7 | Q32: 1 | S32: 2.037940757 | V32: 20 | W32: =IF($D$4="Wind",IF($D$11="Pay as produced",INDEX('Pomocný list 3'!$O$4:$O$262971,$V32+8760*('Pomocný list 1'!W$11-1986))/2000*'Pomocný list 1'!$D$5*'Pomocný list 1'!$D$13,$D$13),0)+IF($E$4="Wind",IF($E$11="Pay as produced",INDEX('Pomocný list 3'!$O$4:$O$262971,$V32+8760*('Pomocný list 1'!W$11-1986))/2000*'Pomocný list 1'!$E$5*'Pomocný list 1'!$E$13,$E$13),0)+IF($F$4="Wind",IF($F$11="Pay as produced",INDEX('Pomocný list 3'!$O$4:$O$262971,$V32+8760*('Pomocný list 1'!W$11-1986))/2000*'Pomocný list 1'!$F$5*'Pomocný list 1'!$F$13,$F$13),0)+IF($G$4="Wind",IF($G$11="Pay as produced",INDEX('Pomocný list 3'!$O$4:$O$262971,$V32+8760*('Pomocný list 1'!W$11-1986))/2000*'Pomocný list 1'!$G$5*'Pomocný list 1'!$G$13,$G$13),0)+IF($C$4="Wind",IF($C$11="Pay as produced",INDEX('Pomocný list 3'!$O$4:$O$262971,$V32+8760*('Pomocný list 1'!W$11-1986))/2000*'Pomocný list 1'!$C$5*'Pomocný list 1'!$C$13,$C$13),0) -> 0.1075484161 | X32: =IF($D$4="Wind",IF($D$11="Pay as produced",INDEX('Pomocný list 3'!$O$4:$O$262971,$V32+8760*('Pomocný list 1'!X$11-1986))/2000*'Pomocný list 1'!$D$5*'Pomocný list 1'!$D$13,$D$13),0)+IF($E$4="Wind",IF($E$11="Pay as produced",INDEX('Pomocný list 3'!$O$4:$O$262971,$V32+8760*('Pomocný list 1'!X$11-1986))/2000*'Pomocný list 1'!$E$5*'Pomocný list 1'!$E$13,$E$13),0)+IF($F$4="Wind",IF($F$11="Pay as produced",INDEX('Pomocný list 3'!$O$4:$O$262971,$V32+8760*('Pomocný list 1'!X$11-1986))/2000*'Pomocný list 1'!$F$5*'Pomocný list 1'!$F$13,$F$13),0)+IF($G$4="Wind",IF($G$11="Pay as produced",INDEX('Pomocný list 3'!$O$4:$O$262971,$V32+8760*('Pomocný list 1'!X$11-1986))/2000*'Pomocný list 1'!$G$5*'Pomocný list 1'!$G$13,$G$13),0)+IF($C$4="Wind",IF($C$11="Pay as produced",INDEX('Pomocný list 3'!$O$4:$O$262971,$V32+8760*('Pomocný list 1'!X$11-1986))/2000*'Pomocný list 1'!$C$5*'Pomocný list 1'!$C$13,$C$13),0) -> 3.047143313 | Y32: =IF($D$4="Wind",IF($D$11="Pay as produced",INDEX('Pomocný list 3'!$O$4:$O$262971,$V32+8760*('Pomocný list 1'!Y$11-1986))/2000*'Pomocný list 1'!$D$5*'Pomocný list 1'!$D$13,$D$13),0)+IF($E$4="Wind",IF($E$11="Pay as produced",INDEX('Pomocný list 3'!$O$4:$O$262971,$V32+8760*('Pomocný list 1'!Y$11-1986))/2000*'Pomocný list 1'!$E$5*'Pomocný list 1'!$E$13,$E$13),0)+IF($F$4="Wind",IF($F$11="Pay as produced",INDEX('Pomocný list 3'!$O$4:$O$262971,$V32+8760*('Pomocný list 1'!Y$11-1986))/2000*'Pomocný list 1'!$F$5*'Pomocný list 1'!$F$13,$F$13),0)+IF($G$4="Wind",IF($G$11="Pay as produced",INDEX('Pomocný list 3'!$O$4:$O$262971,$V32+8760*('Pomocný list 1'!Y$11-1986))/2000*'Pomocný list 1'!$G$5*'Pomocný list 1'!$G$13,$G$13),0)+IF($C$4="Wind",IF($C$11="Pay as produced",INDEX('Pomocný list 3'!$O$4:$O$262971,$V32+8760*('Pomocný list 1'!Y$11-1986))/2000*'Pomocný list 1'!$C$5*'Pomocný list 1'!$C$13,$C$13),0) -> 0.6945402539 | Z32: =IF($D$4="Wind",IF($D$11="Pay as produced",INDEX('Pomocný list 3'!$O$4:$O$262971,$V32+8760*('Pomocný list 1'!Z$11-1986))/2000*'Pomocný list 1'!$D$5*'Pomocný list 1'!$D$13,$D$13),0)+IF($E$4="Wind",IF($E$11="Pay as produced",INDEX('Pomocný list 3'!$O$4:$O$262971,$V32+8760*('Pomocný list 1'!Z$11-1986))/2000*'Pomocný list 1'!$E$5*'Pomocný list 1'!$E$13,$E$13),0)+IF($F$4="Wind",IF($F$11="Pay as produced",INDEX('Pomocný list 3'!$O$4:$O$262971,$V32+8760*('Pomocný list 1'!Z$11-1986))/2000*'Pomocný list 1'!$F$5*'Pomocný list 1'!$F$13,$F$13),0)+IF($G$4="Wind",IF($G$11="Pay as produced",INDEX('Pomocný list 3'!$O$4:$O$262971,$V32+8760*('Pomocný list 1'!Z$11-1986))/2000*'Pomocný list 1'!$G$5*'Pomocný list 1'!$G$13,$G$13),0)+IF($C$4="Wind",IF($C$11="Pay as produced",INDEX('Pomocný list 3'!$O$4:$O$262971,$V32+8760*('Pomocný list 1'!Z$11-1986))/2000*'Pomocný list 1'!$C$5*'Pomocný list 1'!$C$13,$C$13),0) -> 2.36079899 | AA32: =IF($D$4="Wind",IF($D$11="Pay as produced",INDEX('Pomocný list 3'!$O$4:$O$262971,$V32+8760*('Pomocný list 1'!AA$11-1986))/2000*'Pomocný list 1'!$D$5*'Pomocný list 1'!$D$13,$D$13),0)+IF($E$4="Wind",IF($E$11="Pay as produced",INDEX('Pomocný list 3'!$O$4:$O$262971,$V32+8760*('Pomocný list 1'!AA$11-1986))/2000*'Pomocný list 1'!$E$5*'Pomocný list 1'!$E$13,$E$13),0)+IF($F$4="Wind",IF($F$11="Pay as produced",INDEX('Pomocný list 3'!$O$4:$O$262971,$V32+8760*('Pomocný list 1'!AA$11-1986))/2000*'Pomocný list 1'!$F$5*'Pomocný list 1'!$F$13,$F$13),0)+IF($G$4="Wind",IF($G$11="Pay as produced",INDEX('Pomocný list 3'!$O$4:$O$262971,$V32+8760*('Pomocný list 1'!AA$11-1986))/2000*'Pomocný list 1'!$G$5*'Pomocný list 1'!$G$13,$G$13),0)+IF($C$4="Wind",IF($C$11="Pay as produced",INDEX('Pomocný list 3'!$O$4:$O$262971,$V32+8760*('Pomocný list 1'!AA$11-1986))/2000*'Pomocný list 1'!$C$5*'Pomocný list 1'!$C$13,$C$13),0) -> 2.126714299 | AB32: =IF($D$4="PV",IF($D$11="Pay as produced",INDEX('Pomocný list 3'!$K$4:$K$262971,$V32+8760*('Pomocný list 1'!AB$11-1986))/1000*'Pomocný list 1'!$D$5*'Pomocný list 1'!$D$13,$D$13),0)+IF($E$4="PV",IF($E$11="Pay as produced",INDEX('Pomocný list 3'!$K$4:$K$262971,$V32+8760*('Pomocný list 1'!AB$11-1986))/1000*'Pomocný list 1'!$E$5*'Pomocný list 1'!$E$13,$E$13),0)+IF($F$4="PV",IF($F$11="Pay as produced",INDEX('Pomocný list 3'!$K$4:$K$262971,$V32+8760*('Pomocný list 1'!AB$11-1986))/1000*'Pomocný list 1'!$F$5*'Pomocný list 1'!$F$13,$F$13),0)+IF($G$4="PV",IF($G$11="Pay as produced",INDEX('Pomocný list 3'!$K$4:$K$262971,$V32+8760*('Pomocný list 1'!AB$11-1986))/1000*'Pomocný list 1'!$G$5*'Pomocný list 1'!$G$13,$G$13),0)+IF($C$4="PV",IF($C$11="Pay as produced",INDEX('Pomocný list 3'!$K$4:$K$262971,$V32+8760*('Pomocný list 1'!AB$11-1986))/1000*'Pomocný list 1'!$C$5*'Pomocný list 1'!$C$13,$C$13),0) -> 0 | AC32: =IF($D$4="PV",IF($D$11="Pay as produced",INDEX('Pomocný list 3'!$K$4:$K$262971,$V32+8760*('Pomocný list 1'!AC$11-1986))/1000*'Pomocný list 1'!$D$5*'Pomocný list 1'!$D$13,$D$13),0)+IF($E$4="PV",IF($E$11="Pay as produced",INDEX('Pomocný list 3'!$K$4:$K$262971,$V32+8760*('Pomocný list 1'!AC$11-1986))/1000*'Pomocný list 1'!$E$5*'Pomocný list 1'!$E$13,$E$13),0)+IF($F$4="PV",IF($F$11="Pay as produced",INDEX('Pomocný list 3'!$K$4:$K$262971,$V32+8760*('Pomocný list 1'!AC$11-1986))/1000*'Pomocný list 1'!$F$5*'Pomocný list 1'!$F$13,$F$13),0)+IF($G$4="PV",IF($G$11="Pay as produced",INDEX('Pomocný list 3'!$K$4:$K$262971,$V32+8760*('Pomocný list 1'!AC$11-1986))/1000*'Pomocný list 1'!$G$5*'Pomocný list 1'!$G$13,$G$13),0)+IF($C$4="PV",IF($C$11="Pay as produced",INDEX('Pomocný list 3'!$K$4:$K$262971,$V32+8760*('Pomocný list 1'!AC$11-1986))/1000*'Pomocný list 1'!$C$5*'Pomocný list 1'!$C$13,$C$13),0) -> 0 | AD32: =IF($D$4="PV",IF($D$11="Pay as produced",INDEX('Pomocný list 3'!$K$4:$K$262971,$V32+8760*('Pomocný list 1'!AD$11-1986))/1000*'Pomocný list 1'!$D$5*'Pomocný list 1'!$D$13,$D$13),0)+IF($E$4="PV",IF($E$11="Pay as produced",INDEX('Pomocný list 3'!$K$4:$K$262971,$V32+8760*('Pomocný list 1'!AD$11-1986))/1000*'Pomocný list 1'!$E$5*'Pomocný list 1'!$E$13,$E$13),0)+IF($F$4="PV",IF($F$11="Pay as produced",INDEX('Pomocný list 3'!$K$4:$K$262971,$V32+8760*('Pomocný list 1'!AD$11-1986))/1000*'Pomocný list 1'!$F$5*'Pomocný list 1'!$F$13,$F$13),0)+IF($G$4="PV",IF($G$11="Pay as produced",INDEX('Pomocný list 3'!$K$4:$K$262971,$V32+8760*('Pomocný list 1'!AD$11-1986))/1000*'Pomocný list 1'!$G$5*'Pomocný list 1'!$G$13,$G$13),0)+IF($C$4="PV",IF($C$11="Pay as produced",INDEX('Pomocný list 3'!$K$4:$K$262971,$V32+8760*('Pomocný list 1'!AD$11-1986))/1000*'Pomocný list 1'!$C$5*'Pomocný list 1'!$C$13,$C$13),0) -> 0 | AE32: =IF($D$4="PV",IF($D$11="Pay as produced",INDEX('Pomocný list 3'!$K$4:$K$262971,$V32+8760*('Pomocný list 1'!AE$11-1986))/1000*'Pomocný list 1'!$D$5*'Pomocný list 1'!$D$13,$D$13),0)+IF($E$4="PV",IF($E$11="Pay as produced",INDEX('Pomocný list 3'!$K$4:$K$262971,$V32+8760*('Pomocný list 1'!AE$11-1986))/1000*'Pomocný list 1'!$E$5*'Pomocný list 1'!$E$13,$E$13),0)+IF($F$4="PV",IF($F$11="Pay as produced",INDEX('Pomocný list 3'!$K$4:$K$262971,$V32+8760*('Pomocný list 1'!AE$11-1986))/1000*'Pomocný list 1'!$F$5*'Pomocný list 1'!$F$13,$F$13),0)+IF($G$4="PV",IF($G$11="Pay as produced",INDEX('Pomocný list 3'!$K$4:$K$262971,$V32+8760*('Pomocný list 1'!AE$11-1986))/1000*'Pomocný list 1'!$G$5*'Pomocný list 1'!$G$13,$G$13),0)+IF($C$4="PV",IF($C$11="Pay as produced",INDEX('Pomocný list 3'!$K$4:$K$262971,$V32+8760*('Pomocný list 1'!AE$11-1986))/1000*'Pomocný list 1'!$C$5*'Pomocný list 1'!$C$13,$C$13),0) -> 0 | AF32: =IF($D$4="PV",IF($D$11="Pay as produced",INDEX('Pomocný list 3'!$K$4:$K$262971,$V32+8760*('Pomocný list 1'!AF$11-1986))/1000*'Pomocný list 1'!$D$5*'Pomocný list 1'!$D$13,$D$13),0)+IF($E$4="PV",IF($E$11="Pay as produced",INDEX('Pomocný list 3'!$K$4:$K$262971,$V32+8760*('Pomocný list 1'!AF$11-1986))/1000*'Pomocný list 1'!$E$5*'Pomocný list 1'!$E$13,$E$13),0)+IF($F$4="PV",IF($F$11="Pay as produced",INDEX('Pomocný list 3'!$K$4:$K$262971,$V32+8760*('Pomocný list 1'!AF$11-1986))/1000*'Pomocný list 1'!$F$5*'Pomocný list 1'!$F$13,$F$13),0)+IF($G$4="PV",IF($G$11="Pay as produced",INDEX('Pomocný list 3'!$K$4:$K$262971,$V32+8760*('Pomocný list 1'!AF$11-1986))/1000*'Pomocný list 1'!$G$5*'Pomocný list 1'!$G$13,$G$13),0)+IF($C$4="PV",IF($C$11="Pay as produced",INDEX('Pomocný list 3'!$K$4:$K$262971,$V32+8760*('Pomocný list 1'!AF$11-1986))/1000*'Pomocný list 1'!$C$5*'Pomocný list 1'!$C$13,$C$13),0) -> 0 | AG32: -1.930392341 | AH32: 1.009202555 | AI32: -1.343400503 | AJ32: 0.3228582325 | AK32: 0.08877354207 | AL32: 20 | AM32: 0.9294433423 | AN32: 20 | AO32: 1.930392341 | AP32: 0 | AQ32: 1.343400503 | AR32: 0 | AS32: 0 | AT32: 0 | AU32: 1.009202555 | AV32: 0 | AW32: 0.3228582325 | AX32: 0.08877354207 | BH32: měsíc | BJ32: den v týdnu | BL32: hodina | BO32: měsíc | BQ32: den v týdnu | BS32: hodina | BV32: měsíc | BX32: den v týdnu | BZ32: hodina | CC32: měsíc | CE32: den v týdnu | CG32: hodina
N33: 2017-01-01 | O33: 21 | P33: 7 | Q33: 1 | S33: 2.071095154 | V33: 21 | W33: =IF($D$4="Wind",IF($D$11="Pay as produced",INDEX('Pomocný list 3'!$O$4:$O$262971,$V33+8760*('Pomocný list 1'!W$11-1986))/2000*'Pomocný list 1'!$D$5*'Pomocný list 1'!$D$13,$D$13),0)+IF($E$4="Wind",IF($E$11="Pay as produced",INDEX('Pomocný list 3'!$O$4:$O$262971,$V33+8760*('Pomocný list 1'!W$11-1986))/2000*'Pomocný list 1'!$E$5*'Pomocný list 1'!$E$13,$E$13),0)+IF($F$4="Wind",IF($F$11="Pay as produced",INDEX('Pomocný list 3'!$O$4:$O$262971,$V33+8760*('Pomocný list 1'!W$11-1986))/2000*'Pomocný list 1'!$F$5*'Pomocný list 1'!$F$13,$F$13),0)+IF($G$4="Wind",IF($G$11="Pay as produced",INDEX('Pomocný list 3'!$O$4:$O$262971,$V33+8760*('Pomocný list 1'!W$11-1986))/2000*'Pomocný list 1'!$G$5*'Pomocný list 1'!$G$13,$G$13),0)+IF($C$4="Wind",IF($C$11="Pay as produced",INDEX('Pomocný list 3'!$O$4:$O$262971,$V33+8760*('Pomocný list 1'!W$11-1986))/2000*'Pomocný list 1'!$C$5*'Pomocný list 1'!$C$13,$C$13),0) -> 0.05455300691 | X33: =IF($D$4="Wind",IF($D$11="Pay as produced",INDEX('Pomocný list 3'!$O$4:$O$262971,$V33+8760*('Pomocný list 1'!X$11-1986))/2000*'Pomocný list 1'!$D$5*'Pomocný list 1'!$D$13,$D$13),0)+IF($E$4="Wind",IF($E$11="Pay as produced",INDEX('Pomocný list 3'!$O$4:$O$262971,$V33+8760*('Pomocný list 1'!X$11-1986))/2000*'Pomocný list 1'!$E$5*'Pomocný list 1'!$E$13,$E$13),0)+IF($F$4="Wind",IF($F$11="Pay as produced",INDEX('Pomocný list 3'!$O$4:$O$262971,$V33+8760*('Pomocný list 1'!X$11-1986))/2000*'Pomocný list 1'!$F$5*'Pomocný list 1'!$F$13,$F$13),0)+IF($G$4="Wind",IF($G$11="Pay as produced",INDEX('Pomocný list 3'!$O$4:$O$262971,$V33+8760*('Pomocný list 1'!X$11-1986))/2000*'Pomocný list 1'!$G$5*'Pomocný list 1'!$G$13,$G$13),0)+IF($C$4="Wind",IF($C$11="Pay as produced",INDEX('Pomocný list 3'!$O$4:$O$262971,$V33+8760*('Pomocný list 1'!X$11-1986))/2000*'Pomocný list 1'!$C$5*'Pomocný list 1'!$C$13,$C$13),0) -> 3.023074719 | Y33: =IF($D$4="Wind",IF($D$11="Pay as produced",INDEX('Pomocný list 3'!$O$4:$O$262971,$V33+8760*('Pomocný list 1'!Y$11-1986))/2000*'Pomocný list 1'!$D$5*'Pomocný list 1'!$D$13,$D$13),0)+IF($E$4="Wind",IF($E$11="Pay as produced",INDEX('Pomocný list 3'!$O$4:$O$262971,$V33+8760*('Pomocný list 1'!Y$11-1986))/2000*'Pomocný list 1'!$E$5*'Pomocný list 1'!$E$13,$E$13),0)+IF($F$4="Wind",IF($F$11="Pay as produced",INDEX('Pomocný list 3'!$O$4:$O$262971,$V33+8760*('Pomocný list 1'!Y$11-1986))/2000*'Pomocný list 1'!$F$5*'Pomocný list 1'!$F$13,$F$13),0)+IF($G$4="Wind",IF($G$11="Pay as produced",INDEX('Pomocný list 3'!$O$4:$O$262971,$V33+8760*('Pomocný list 1'!Y$11-1986))/2000*'Pomocný list 1'!$G$5*'Pomocný list 1'!$G$13,$G$13),0)+IF($C$4="Wind",IF($C$11="Pay as produced",INDEX('Pomocný list 3'!$O$4:$O$262971,$V33+8760*('Pomocný list 1'!Y$11-1986))/2000*'Pomocný list 1'!$C$5*'Pomocný list 1'!$C$13,$C$13),0) -> 0.8250076083 | Z33: =IF($D$4="Wind",IF($D$11="Pay as produced",INDEX('Pomocný list 3'!$O$4:$O$262971,$V33+8760*('Pomocný list 1'!Z$11-1986))/2000*'Pomocný list 1'!$D$5*'Pomocný list 1'!$D$13,$D$13),0)+IF($E$4="Wind",IF($E$11="Pay as produced",INDEX('Pomocný list 3'!$O$4:$O$262971,$V33+8760*('Pomocný list 1'!Z$11-1986))/2000*'Pomocný list 1'!$E$5*'Pomocný list 1'!$E$13,$E$13),0)+IF($F$4="Wind",IF($F$11="Pay as produced",INDEX('Pomocný list 3'!$O$4:$O$262971,$V33+8760*('Pomocný list 1'!Z$11-1986))/2000*'Pomocný list 1'!$F$5*'Pomocný list 1'!$F$13,$F$13),0)+IF($G$4="Wind",IF($G$11="Pay as produced",INDEX('Pomocný list 3'!$O$4:$O$262971,$V33+8760*('Pomocný list 1'!Z$11-1986))/2000*'Pomocný list 1'!$G$5*'Pomocný list 1'!$G$13,$G$13),0)+IF($C$4="Wind",IF($C$11="Pay as produced",INDEX('Pomocný list 3'!$O$4:$O$262971,$V33+8760*('Pomocný list 1'!Z$11-1986))/2000*'Pomocný list 1'!$C$5*'Pomocný list 1'!$C$13,$C$13),0) -> 2.231295863 | AA33: =IF($D$4="Wind",IF($D$11="Pay as produced",INDEX('Pomocný list 3'!$O$4:$O$262971,$V33+8760*('Pomocný list 1'!AA$11-1986))/2000*'Pomocný list 1'!$D$5*'Pomocný list 1'!$D$13,$D$13),0)+IF($E$4="Wind",IF($E$11="Pay as produced",INDEX('Pomocný list 3'!$O$4:$O$262971,$V33+8760*('Pomocný list 1'!AA$11-1986))/2000*'Pomocný list 1'!$E$5*'Pomocný list 1'!$E$13,$E$13),0)+IF($F$4="Wind",IF($F$11="Pay as produced",INDEX('Pomocný list 3'!$O$4:$O$262971,$V33+8760*('Pomocný list 1'!AA$11-1986))/2000*'Pomocný list 1'!$F$5*'Pomocný list 1'!$F$13,$F$13),0)+IF($G$4="Wind",IF($G$11="Pay as produced",INDEX('Pomocný list 3'!$O$4:$O$262971,$V33+8760*('Pomocný list 1'!AA$11-1986))/2000*'Pomocný list 1'!$G$5*'Pomocný list 1'!$G$13,$G$13),0)+IF($C$4="Wind",IF($C$11="Pay as produced",INDEX('Pomocný list 3'!$O$4:$O$262971,$V33+8760*('Pomocný list 1'!AA$11-1986))/2000*'Pomocný list 1'!$C$5*'Pomocný list 1'!$C$13,$C$13),0) -> 2.424400898 | AB33: =IF($D$4="PV",IF($D$11="Pay as produced",INDEX('Pomocný list 3'!$K$4:$K$262971,$V33+8760*('Pomocný list 1'!AB$11-1986))/1000*'Pomocný list 1'!$D$5*'Pomocný list 1'!$D$13,$D$13),0)+IF($E$4="PV",IF($E$11="Pay as produced",INDEX('Pomocný list 3'!$K$4:$K$262971,$V33+8760*('Pomocný list 1'!AB$11-1986))/1000*'Pomocný list 1'!$E$5*'Pomocný list 1'!$E$13,$E$13),0)+IF($F$4="PV",IF($F$11="Pay as produced",INDEX('Pomocný list 3'!$K$4:$K$262971,$V33+8760*('Pomocný list 1'!AB$11-1986))/1000*'Pomocný list 1'!$F$5*'Pomocný list 1'!$F$13,$F$13),0)+IF($G$4="PV",IF($G$11="Pay as produced",INDEX('Pomocný list 3'!$K$4:$K$262971,$V33+8760*('Pomocný list 1'!AB$11-1986))/1000*'Pomocný list 1'!$G$5*'Pomocný list 1'!$G$13,$G$13),0)+IF($C$4="PV",IF($C$11="Pay as produced",INDEX('Pomocný list 3'!$K$4:$K$262971,$V33+8760*('Pomocný list 1'!AB$11-1986))/1000*'Pomocný list 1'!$C$5*'Pomocný list 1'!$C$13,$C$13),0) -> 0 | AC33: =IF($D$4="PV",IF($D$11="Pay as produced",INDEX('Pomocný list 3'!$K$4:$K$262971,$V33+8760*('Pomocný list 1'!AC$11-1986))/1000*'Pomocný list 1'!$D$5*'Pomocný list 1'!$D$13,$D$13),0)+IF($E$4="PV",IF($E$11="Pay as produced",INDEX('Pomocný list 3'!$K$4:$K$262971,$V33+8760*('Pomocný list 1'!AC$11-1986))/1000*'Pomocný list 1'!$E$5*'Pomocný list 1'!$E$13,$E$13),0)+IF($F$4="PV",IF($F$11="Pay as produced",INDEX('Pomocný list 3'!$K$4:$K$262971,$V33+8760*('Pomocný list 1'!AC$11-1986))/1000*'Pomocný list 1'!$F$5*'Pomocný list 1'!$F$13,$F$13),0)+IF($G$4="PV",IF($G$11="Pay as produced",INDEX('Pomocný list 3'!$K$4:$K$262971,$V33+8760*('Pomocný list 1'!AC$11-1986))/1000*'Pomocný list 1'!$G$5*'Pomocný list 1'!$G$13,$G$13),0)+IF($C$4="PV",IF($C$11="Pay as produced",INDEX('Pomocný list 3'!$K$4:$K$262971,$V33+8760*('Pomocný list 1'!AC$11-1986))/1000*'Pomocný list 1'!$C$5*'Pomocný list 1'!$C$13,$C$13),0) -> 0 | AD33: =IF($D$4="PV",IF($D$11="Pay as produced",INDEX('Pomocný list 3'!$K$4:$K$262971,$V33+8760*('Pomocný list 1'!AD$11-1986))/1000*'Pomocný list 1'!$D$5*'Pomocný list 1'!$D$13,$D$13),0)+IF($E$4="PV",IF($E$11="Pay as produced",INDEX('Pomocný list 3'!$K$4:$K$262971,$V33+8760*('Pomocný list 1'!AD$11-1986))/1000*'Pomocný list 1'!$E$5*'Pomocný list 1'!$E$13,$E$13),0)+IF($F$4="PV",IF($F$11="Pay as produced",INDEX('Pomocný list 3'!$K$4:$K$262971,$V33+8760*('Pomocný list 1'!AD$11-1986))/1000*'Pomocný list 1'!$F$5*'Pomocný list 1'!$F$13,$F$13),0)+IF($G$4="PV",IF($G$11="Pay as produced",INDEX('Pomocný list 3'!$K$4:$K$262971,$V33+8760*('Pomocný list 1'!AD$11-1986))/1000*'Pomocný list 1'!$G$5*'Pomocný list 1'!$G$13,$G$13),0)+IF($C$4="PV",IF($C$11="Pay as produced",INDEX('Pomocný list 3'!$K$4:$K$262971,$V33+8760*('Pomocný list 1'!AD$11-1986))/1000*'Pomocný list 1'!$C$5*'Pomocný list 1'!$C$13,$C$13),0) -> 0 | AE33: =IF($D$4="PV",IF($D$11="Pay as produced",INDEX('Pomocný list 3'!$K$4:$K$262971,$V33+8760*('Pomocný list 1'!AE$11-1986))/1000*'Pomocný list 1'!$D$5*'Pomocný list 1'!$D$13,$D$13),0)+IF($E$4="PV",IF($E$11="Pay as produced",INDEX('Pomocný list 3'!$K$4:$K$262971,$V33+8760*('Pomocný list 1'!AE$11-1986))/1000*'Pomocný list 1'!$E$5*'Pomocný list 1'!$E$13,$E$13),0)+IF($F$4="PV",IF($F$11="Pay as produced",INDEX('Pomocný list 3'!$K$4:$K$262971,$V33+8760*('Pomocný list 1'!AE$11-1986))/1000*'Pomocný list 1'!$F$5*'Pomocný list 1'!$F$13,$F$13),0)+IF($G$4="PV",IF($G$11="Pay as produced",INDEX('Pomocný list 3'!$K$4:$K$262971,$V33+8760*('Pomocný list 1'!AE$11-1986))/1000*'Pomocný list 1'!$G$5*'Pomocný list 1'!$G$13,$G$13),0)+IF($C$4="PV",IF($C$11="Pay as produced",INDEX('Pomocný list 3'!$K$4:$K$262971,$V33+8760*('Pomocný list 1'!AE$11-1986))/1000*'Pomocný list 1'!$C$5*'Pomocný list 1'!$C$13,$C$13),0) -> 0 | AF33: =IF($D$4="PV",IF($D$11="Pay as produced",INDEX('Pomocný list 3'!$K$4:$K$262971,$V33+8760*('Pomocný list 1'!AF$11-1986))/1000*'Pomocný list 1'!$D$5*'Pomocný list 1'!$D$13,$D$13),0)+IF($E$4="PV",IF($E$11="Pay as produced",INDEX('Pomocný list 3'!$K$4:$K$262971,$V33+8760*('Pomocný list 1'!AF$11-1986))/1000*'Pomocný list 1'!$E$5*'Pomocný list 1'!$E$13,$E$13),0)+IF($F$4="PV",IF($F$11="Pay as produced",INDEX('Pomocný list 3'!$K$4:$K$262971,$V33+8760*('Pomocný list 1'!AF$11-1986))/1000*'Pomocný list 1'!$F$5*'Pomocný list 1'!$F$13,$F$13),0)+IF($G$4="PV",IF($G$11="Pay as produced",INDEX('Pomocný list 3'!$K$4:$K$262971,$V33+8760*('Pomocný list 1'!AF$11-1986))/1000*'Pomocný list 1'!$G$5*'Pomocný list 1'!$G$13,$G$13),0)+IF($C$4="PV",IF($C$11="Pay as produced",INDEX('Pomocný list 3'!$K$4:$K$262971,$V33+8760*('Pomocný list 1'!AF$11-1986))/1000*'Pomocný list 1'!$C$5*'Pomocný list 1'!$C$13,$C$13),0) -> 0 | AG33: -2.016542147 | AH33: 0.9519795653 | AI33: -1.246087545 | AJ33: 0.160200709 | AK33: 0.3533057444 | AL33: 21 | AM33: 0.9140012351 | AN33: 21 | AO33: 2.016542147 | AP33: 0 | AQ33: 1.246087545 | AR33: 0 | AS33: 0 | AT33: 0 | AU33: 0.9519795653 | AV33: 0 | AW33: 0.160200709 | AX33: 0.3533057444 | BH33: =Výstup!K73 -> 1 | BI33: =Výstup!L73 -> 1.17033424 | BJ33: 1 | BK33: =Výstup!N73 -> 1.05809357 | BL33: 1 | BM33: =Výstup!P73 -> 0.7907983234 | BO33: 1 | BP33: =IF(BP62=0,BI33-BO$57/BO$58,BI33+BP62) -> 1.37033424 | BQ33: 1 | BR33: =IF(BR62=0,BK33-BQ$57/BQ$58,BK33+BR62) -> 1.05809357 | BS33: 1 | BT33: =IF(BT62=0,BM33-BS$57/BS$58,BM33+BT62) -> 0.826092441 | BV33: 1 | BW33: =IF(BW62=0,BP33-BV$57/BV$58,BP33+BW62) -> 1.57033424 | BX33: 1 | BY33: =IF(BY62=0,BR33-BX$57/BX$58,BR33+BY62) -> 1.05809357 | BZ33: 1 | CA33: =IF(CA62=0,BT33-BZ$57/BZ$58,BT33+CA62) -> 0.876092441 | CC33: 1 | CD33: =IF(CD62=0,BW33-CC$57/CC$58,BW33+CD62) -> 1.77033424 | CE33: 1 | CF33: =IF(CF62=0,BY33-CE$57/CE$58,BY33+CF62) -> 1.05809357 | CG33: 1 | CH33: =IF(CH62=0,CA33-CG$57/CG$58,CA33+CH62) -> 0.926092441
N34: 2017-01-01 | O34: 22 | P34: 7 | Q34: 1 | S34: 2.077422832 | V34: 22 | W34: =IF($D$4="Wind",IF($D$11="Pay as produced",INDEX('Pomocný list 3'!$O$4:$O$262971,$V34+8760*('Pomocný list 1'!W$11-1986))/2000*'Pomocný list 1'!$D$5*'Pomocný list 1'!$D$13,$D$13),0)+IF($E$4="Wind",IF($E$11="Pay as produced",INDEX('Pomocný list 3'!$O$4:$O$262971,$V34+8760*('Pomocný list 1'!W$11-1986))/2000*'Pomocný list 1'!$E$5*'Pomocný list 1'!$E$13,$E$13),0)+IF($F$4="Wind",IF($F$11="Pay as produced",INDEX('Pomocný list 3'!$O$4:$O$262971,$V34+8760*('Pomocný list 1'!W$11-1986))/2000*'Pomocný list 1'!$F$5*'Pomocný list 1'!$F$13,$F$13),0)+IF($G$4="Wind",IF($G$11="Pay as produced",INDEX('Pomocný list 3'!$O$4:$O$262971,$V34+8760*('Pomocný list 1'!W$11-1986))/2000*'Pomocný list 1'!$G$5*'Pomocný list 1'!$G$13,$G$13),0)+IF($C$4="Wind",IF($C$11="Pay as produced",INDEX('Pomocný list 3'!$O$4:$O$262971,$V34+8760*('Pomocný list 1'!W$11-1986))/2000*'Pomocný list 1'!$C$5*'Pomocný list 1'!$C$13,$C$13),0) -> 0.05922580016 | X34: =IF($D$4="Wind",IF($D$11="Pay as produced",INDEX('Pomocný list 3'!$O$4:$O$262971,$V34+8760*('Pomocný list 1'!X$11-1986))/2000*'Pomocný list 1'!$D$5*'Pomocný list 1'!$D$13,$D$13),0)+IF($E$4="Wind",IF($E$11="Pay as produced",INDEX('Pomocný list 3'!$O$4:$O$262971,$V34+8760*('Pomocný list 1'!X$11-1986))/2000*'Pomocný list 1'!$E$5*'Pomocný list 1'!$E$13,$E$13),0)+IF($F$4="Wind",IF($F$11="Pay as produced",INDEX('Pomocný list 3'!$O$4:$O$262971,$V34+8760*('Pomocný list 1'!X$11-1986))/2000*'Pomocný list 1'!$F$5*'Pomocný list 1'!$F$13,$F$13),0)+IF($G$4="Wind",IF($G$11="Pay as produced",INDEX('Pomocný list 3'!$O$4:$O$262971,$V34+8760*('Pomocný list 1'!X$11-1986))/2000*'Pomocný list 1'!$G$5*'Pomocný list 1'!$G$13,$G$13),0)+IF($C$4="Wind",IF($C$11="Pay as produced",INDEX('Pomocný list 3'!$O$4:$O$262971,$V34+8760*('Pomocný list 1'!X$11-1986))/2000*'Pomocný list 1'!$C$5*'Pomocný list 1'!$C$13,$C$13),0) -> 2.896130502 | Y34: =IF($D$4="Wind",IF($D$11="Pay as produced",INDEX('Pomocný list 3'!$O$4:$O$262971,$V34+8760*('Pomocný list 1'!Y$11-1986))/2000*'Pomocný list 1'!$D$5*'Pomocný list 1'!$D$13,$D$13),0)+IF($E$4="Wind",IF($E$11="Pay as produced",INDEX('Pomocný list 3'!$O$4:$O$262971,$V34+8760*('Pomocný list 1'!Y$11-1986))/2000*'Pomocný list 1'!$E$5*'Pomocný list 1'!$E$13,$E$13),0)+IF($F$4="Wind",IF($F$11="Pay as produced",INDEX('Pomocný list 3'!$O$4:$O$262971,$V34+8760*('Pomocný list 1'!Y$11-1986))/2000*'Pomocný list 1'!$F$5*'Pomocný list 1'!$F$13,$F$13),0)+IF($G$4="Wind",IF($G$11="Pay as produced",INDEX('Pomocný list 3'!$O$4:$O$262971,$V34+8760*('Pomocný list 1'!Y$11-1986))/2000*'Pomocný list 1'!$G$5*'Pomocný list 1'!$G$13,$G$13),0)+IF($C$4="Wind",IF($C$11="Pay as produced",INDEX('Pomocný list 3'!$O$4:$O$262971,$V34+8760*('Pomocný list 1'!Y$11-1986))/2000*'Pomocný list 1'!$C$5*'Pomocný list 1'!$C$13,$C$13),0) -> 0.9363758474 | Z34: =IF($D$4="Wind",IF($D$11="Pay as produced",INDEX('Pomocný list 3'!$O$4:$O$262971,$V34+8760*('Pomocný list 1'!Z$11-1986))/2000*'Pomocný list 1'!$D$5*'Pomocný list 1'!$D$13,$D$13),0)+IF($E$4="Wind",IF($E$11="Pay as produced",INDEX('Pomocný list 3'!$O$4:$O$262971,$V34+8760*('Pomocný list 1'!Z$11-1986))/2000*'Pomocný list 1'!$E$5*'Pomocný list 1'!$E$13,$E$13),0)+IF($F$4="Wind",IF($F$11="Pay as produced",INDEX('Pomocný list 3'!$O$4:$O$262971,$V34+8760*('Pomocný list 1'!Z$11-1986))/2000*'Pomocný list 1'!$F$5*'Pomocný list 1'!$F$13,$F$13),0)+IF($G$4="Wind",IF($G$11="Pay as produced",INDEX('Pomocný list 3'!$O$4:$O$262971,$V34+8760*('Pomocný list 1'!Z$11-1986))/2000*'Pomocný list 1'!$G$5*'Pomocný list 1'!$G$13,$G$13),0)+IF($C$4="Wind",IF($C$11="Pay as produced",INDEX('Pomocný list 3'!$O$4:$O$262971,$V34+8760*('Pomocný list 1'!Z$11-1986))/2000*'Pomocný list 1'!$C$5*'Pomocný list 1'!$C$13,$C$13),0) -> 2.05347012 | AA34: =IF($D$4="Wind",IF($D$11="Pay as produced",INDEX('Pomocný list 3'!$O$4:$O$262971,$V34+8760*('Pomocný list 1'!AA$11-1986))/2000*'Pomocný list 1'!$D$5*'Pomocný list 1'!$D$13,$D$13),0)+IF($E$4="Wind",IF($E$11="Pay as produced",INDEX('Pomocný list 3'!$O$4:$O$262971,$V34+8760*('Pomocný list 1'!AA$11-1986))/2000*'Pomocný list 1'!$E$5*'Pomocný list 1'!$E$13,$E$13),0)+IF($F$4="Wind",IF($F$11="Pay as produced",INDEX('Pomocný list 3'!$O$4:$O$262971,$V34+8760*('Pomocný list 1'!AA$11-1986))/2000*'Pomocný list 1'!$F$5*'Pomocný list 1'!$F$13,$F$13),0)+IF($G$4="Wind",IF($G$11="Pay as produced",INDEX('Pomocný list 3'!$O$4:$O$262971,$V34+8760*('Pomocný list 1'!AA$11-1986))/2000*'Pomocný list 1'!$G$5*'Pomocný list 1'!$G$13,$G$13),0)+IF($C$4="Wind",IF($C$11="Pay as produced",INDEX('Pomocný list 3'!$O$4:$O$262971,$V34+8760*('Pomocný list 1'!AA$11-1986))/2000*'Pomocný list 1'!$C$5*'Pomocný list 1'!$C$13,$C$13),0) -> 2.775935876 | AB34: =IF($D$4="PV",IF($D$11="Pay as produced",INDEX('Pomocný list 3'!$K$4:$K$262971,$V34+8760*('Pomocný list 1'!AB$11-1986))/1000*'Pomocný list 1'!$D$5*'Pomocný list 1'!$D$13,$D$13),0)+IF($E$4="PV",IF($E$11="Pay as produced",INDEX('Pomocný list 3'!$K$4:$K$262971,$V34+8760*('Pomocný list 1'!AB$11-1986))/1000*'Pomocný list 1'!$E$5*'Pomocný list 1'!$E$13,$E$13),0)+IF($F$4="PV",IF($F$11="Pay as produced",INDEX('Pomocný list 3'!$K$4:$K$262971,$V34+8760*('Pomocný list 1'!AB$11-1986))/1000*'Pomocný list 1'!$F$5*'Pomocný list 1'!$F$13,$F$13),0)+IF($G$4="PV",IF($G$11="Pay as produced",INDEX('Pomocný list 3'!$K$4:$K$262971,$V34+8760*('Pomocný list 1'!AB$11-1986))/1000*'Pomocný list 1'!$G$5*'Pomocný list 1'!$G$13,$G$13),0)+IF($C$4="PV",IF($C$11="Pay as produced",INDEX('Pomocný list 3'!$K$4:$K$262971,$V34+8760*('Pomocný list 1'!AB$11-1986))/1000*'Pomocný list 1'!$C$5*'Pomocný list 1'!$C$13,$C$13),0) -> 0 | AC34: =IF($D$4="PV",IF($D$11="Pay as produced",INDEX('Pomocný list 3'!$K$4:$K$262971,$V34+8760*('Pomocný list 1'!AC$11-1986))/1000*'Pomocný list 1'!$D$5*'Pomocný list 1'!$D$13,$D$13),0)+IF($E$4="PV",IF($E$11="Pay as produced",INDEX('Pomocný list 3'!$K$4:$K$262971,$V34+8760*('Pomocný list 1'!AC$11-1986))/1000*'Pomocný list 1'!$E$5*'Pomocný list 1'!$E$13,$E$13),0)+IF($F$4="PV",IF($F$11="Pay as produced",INDEX('Pomocný list 3'!$K$4:$K$262971,$V34+8760*('Pomocný list 1'!AC$11-1986))/1000*'Pomocný list 1'!$F$5*'Pomocný list 1'!$F$13,$F$13),0)+IF($G$4="PV",IF($G$11="Pay as produced",INDEX('Pomocný list 3'!$K$4:$K$262971,$V34+8760*('Pomocný list 1'!AC$11-1986))/1000*'Pomocný list 1'!$G$5*'Pomocný list 1'!$G$13,$G$13),0)+IF($C$4="PV",IF($C$11="Pay as produced",INDEX('Pomocný list 3'!$K$4:$K$262971,$V34+8760*('Pomocný list 1'!AC$11-1986))/1000*'Pomocný list 1'!$C$5*'Pomocný list 1'!$C$13,$C$13),0) -> 0 | AD34: =IF($D$4="PV",IF($D$11="Pay as produced",INDEX('Pomocný list 3'!$K$4:$K$262971,$V34+8760*('Pomocný list 1'!AD$11-1986))/1000*'Pomocný list 1'!$D$5*'Pomocný list 1'!$D$13,$D$13),0)+IF($E$4="PV",IF($E$11="Pay as produced",INDEX('Pomocný list 3'!$K$4:$K$262971,$V34+8760*('Pomocný list 1'!AD$11-1986))/1000*'Pomocný list 1'!$E$5*'Pomocný list 1'!$E$13,$E$13),0)+IF($F$4="PV",IF($F$11="Pay as produced",INDEX('Pomocný list 3'!$K$4:$K$262971,$V34+8760*('Pomocný list 1'!AD$11-1986))/1000*'Pomocný list 1'!$F$5*'Pomocný list 1'!$F$13,$F$13),0)+IF($G$4="PV",IF($G$11="Pay as produced",INDEX('Pomocný list 3'!$K$4:$K$262971,$V34+8760*('Pomocný list 1'!AD$11-1986))/1000*'Pomocný list 1'!$G$5*'Pomocný list 1'!$G$13,$G$13),0)+IF($C$4="PV",IF($C$11="Pay as produced",INDEX('Pomocný list 3'!$K$4:$K$262971,$V34+8760*('Pomocný list 1'!AD$11-1986))/1000*'Pomocný list 1'!$C$5*'Pomocný list 1'!$C$13,$C$13),0) -> 0 | AE34: =IF($D$4="PV",IF($D$11="Pay as produced",INDEX('Pomocný list 3'!$K$4:$K$262971,$V34+8760*('Pomocný list 1'!AE$11-1986))/1000*'Pomocný list 1'!$D$5*'Pomocný list 1'!$D$13,$D$13),0)+IF($E$4="PV",IF($E$11="Pay as produced",INDEX('Pomocný list 3'!$K$4:$K$262971,$V34+8760*('Pomocný list 1'!AE$11-1986))/1000*'Pomocný list 1'!$E$5*'Pomocný list 1'!$E$13,$E$13),0)+IF($F$4="PV",IF($F$11="Pay as produced",INDEX('Pomocný list 3'!$K$4:$K$262971,$V34+8760*('Pomocný list 1'!AE$11-1986))/1000*'Pomocný list 1'!$F$5*'Pomocný list 1'!$F$13,$F$13),0)+IF($G$4="PV",IF($G$11="Pay as produced",INDEX('Pomocný list 3'!$K$4:$K$262971,$V34+8760*('Pomocný list 1'!AE$11-1986))/1000*'Pomocný list 1'!$G$5*'Pomocný list 1'!$G$13,$G$13),0)+IF($C$4="PV",IF($C$11="Pay as produced",INDEX('Pomocný list 3'!$K$4:$K$262971,$V34+8760*('Pomocný list 1'!AE$11-1986))/1000*'Pomocný list 1'!$C$5*'Pomocný list 1'!$C$13,$C$13),0) -> 0 | AF34: =IF($D$4="PV",IF($D$11="Pay as produced",INDEX('Pomocný list 3'!$K$4:$K$262971,$V34+8760*('Pomocný list 1'!AF$11-1986))/1000*'Pomocný list 1'!$D$5*'Pomocný list 1'!$D$13,$D$13),0)+IF($E$4="PV",IF($E$11="Pay as produced",INDEX('Pomocný list 3'!$K$4:$K$262971,$V34+8760*('Pomocný list 1'!AF$11-1986))/1000*'Pomocný list 1'!$E$5*'Pomocný list 1'!$E$13,$E$13),0)+IF($F$4="PV",IF($F$11="Pay as produced",INDEX('Pomocný list 3'!$K$4:$K$262971,$V34+8760*('Pomocný list 1'!AF$11-1986))/1000*'Pomocný list 1'!$F$5*'Pomocný list 1'!$F$13,$F$13),0)+IF($G$4="PV",IF($G$11="Pay as produced",INDEX('Pomocný list 3'!$K$4:$K$262971,$V34+8760*('Pomocný list 1'!AF$11-1986))/1000*'Pomocný list 1'!$G$5*'Pomocný list 1'!$G$13,$G$13),0)+IF($C$4="PV",IF($C$11="Pay as produced",INDEX('Pomocný list 3'!$K$4:$K$262971,$V34+8760*('Pomocný list 1'!AF$11-1986))/1000*'Pomocný list 1'!$C$5*'Pomocný list 1'!$C$13,$C$13),0) -> 0 | AG34: -2.018197031 | AH34: 0.8187076707 | AI34: -1.141046984 | AJ34: -0.02395271213 | AK34: 0.6985130443 | AL34: 22 | AM34: 0.8149612943 | AN34: 22 | AO34: 2.018197031 | AP34: 0 | AQ34: 1.141046984 | AR34: 0.02395271213 | AS34: 0 | AT34: 0 | AU34: 0.8187076707 | AV34: 0 | AW34: 0 | AX34: 0.6985130443 | BH34: 2 | BI34: =Výstup!L74 -> 0.9574117888 | BJ34: 2 | BK34: =Výstup!N74 -> 1.105430504 | BL34: 2 | BM34: =Výstup!P74 -> 0.7451425469 | BO34: 2 | BP34: =IF(BP63=0,BI34-BO$57/BO$58,BI34+BP63) -> 1.057411789 | BQ34: 2 | BR34: =IF(BR63=0,BK34-BQ$57/BQ$58,BK34+BR63) -> 1.105430504 | BS34: 2 | BT34: 0.7804366645 | BV34: 2 | BW34: 1.157411789 | BX34: 2 | BY34: 1.105430504 | BZ34: 2 | CA34: 0.8304366645 | CC34: 2 | CD34: 1.257411789 | CE34: 2 | CF34: 1.105430504 | CG34: 2 | CH34: 0.8804366645 | CP34: Cenová charakteristika spotových cen
